Workbook

Sheet Content
C2: Content
F3: Colour Codes | K3: File Name: | M3: =IFERROR(File_name(),"") -> 
C4: checks & questions | G4: Inputs | I4: 1234567890
G5: Section Titles | I5: TITLE ROW | K5: Last Save Date | M5: =IFERROR(lastsaved(),"") -> 
C6: Summary | G6: Sum Column | I6: 1000000000
D7: Sources & Uses of funds | G7: True or 1 | I7: =1=1 -> TRUE | K7: Last Save By | M7: =IFERROR(last_save_by(),"") -> 
G8: False or 0 | I8: =1=2 -> FALSE
C9: Inputs - Partnership | G9: Other Sheet Links | I9: |||||||||||||||||||
D10: Timing
D11: Construction
D12: Generation
D13: Fixed costs
C15: Inputs - Tax
D16: Depreciation Basis
D17: MACRS depreciation schedule (half-year convention)
D18: Tax Rates
C21: Inputs - Financing
D22: Equity
C24: Merchant curves
D25: Wood Mackenzie: 2022 base case Caiso zp26
D26: Inflation
C28: Timing
D29: Tax equity
C31: Partnership Cash Flow
D32: Generation at P50
D33: Revenue
D34: Operating costs
D35: Construction
D36: Unlevered IRR and Cash Flow at P50
D37: Generation at P99
D38: Revenue at P99
D39: Capex
C41: Partnership Income and ITC
D42: ITC
D43: Depreciation
D44: Partnership income
C46: Allocation to partners
D47: Transferred variables
D48: Contribution
D49: Income allocation
D50: Preferred yield
D51: Cash flow allocation
D52: Cash flow
C54: Back Leverage Debt sizing
D55: P50 debt sizing
D56: P99 debt sizing
D57: Applied Debt and Repayments
C59: TE Construction Financing
D60: Transferred Data
D61: TE Partner Sources and Uses Summary
D62: TE Partner Period by Period
C64: Back Leverage Construction Fin
D65: Transferred Data
D66: Sponsor Partner Sources and Uses Summary
D67: Sponsor Funding Period by Period
C69: Back Leverage Waterfall
D70: Transferred Variables
D71: After Tax
D72: Debt service reserve letter of credit
C74: Construction
C76: Equity
C78: Dep
C80: Waterfall
D81: Calendar year
D82: Days in Quarter
D83: Construction Quarter
D84: Operations Quarter
D85: Operations Year
D86: Escalation Counter
C88: Debt

Sheet Summary
B3: Sources & Uses of funds
E4: Financial | F4: Commercial | I4: Contribution Ratio | K4: ='Inputs - Financing'!F17 -> 1.2 | N4: Operation
E5: Close | F5: Operation | O5: Total DC Capacity | P5: MWp | Q5: ='Inputs - Partnership'!E52 -> 225
C6: Uses of funds | I6: Unlevered IRR | O6: Total Cost | P6: USD 000 | Q6: ='TE Construction Financing'!H14 -> 292950
D7: Development | E7: ='TE Construction Financing'!H12 -> 0 | F7: =E7 -> 0 | I7: Pre-tax IRR | K7: ='Partnership Pre-tax Cash Flow'!H129 -> 0 | O7: Cost/kWp | P7: $/kWp | Q7: =Q6/Q5 -> 1302
D8: Capex | E8: ='Back Leverage Construction Fin'!H13 -> 292950 | F8: =E8 -> 292950 | I8: Hypothetical after tax - No Tax on Dev Fee | K8: ='Partnership Income and ITC'!F130 -> 
D9: IDC on Equity Bridge | E9: ='TE Construction Financing'!H31 -> 3073.766237 | F9: =E9 -> 3073.766237 | I9: Hypothetical after tax - Tax on Dev Fee | K9: ='Partnership Income and ITC'!F133 ->  | O9: P50 Yield | P9: kWh/kWp | Q9: ='Partnership Pre-tax Cash Flow'!E23*'Partnership Pre-tax Cash Flow'!E27*8760/'Partnership Pre-tax Cash Flow'!E23 -> 2785.68
D10: Fees on Equity Brige | E10: ='TE Construction Financing'!H32+'TE Construction Financing'!H33 -> 2716.07307 | F10: =E10 -> 2716.07307 | O10: Capacity Factor | P10: % | Q10: ='Partnership Pre-tax Cash Flow'!E27 -> 0.318
D11: IDC on Back Leverage | E11: ='Back Leverage Construction Fin'!H28 -> 1307.172319 | F11: 1307.172319 | I11: Hypothetical After-tax - Development Fee as Cost | K11: ='Partnership Income and ITC'!F142 -> 
D12: Fees on Back Leverage | E12: ='Back Leverage Construction Fin'!H29+'Back Leverage Construction Fin'!H30 -> 2612.062457 | F12: 2612.062457 | I12: Hypothetical After-tax and Development Fee | O12: First Year O&M | P12: USD 000 | Q12: =-'Partnership Pre-tax Cash Flow'!Q100*4 -> 3124.005683
D13: Total Uses | E13: =SUM(E7:E12) -> 302659.0741 | F13: 302659.0741 | O13: Cost per kW-year | P13: USD/kWp | Q13: =Q12/Q5 -> 13.8844697
C15: Sources of funds | I15: TE IRR - Pre Financing | K15: ='Allocation to partners'!I75 ->  | O15: Levelized Cost | P15: USD/MWH
D16: Tax Equity Bridge Loan | E16: ='TE Construction Financing'!H37 -> 5500.347341 | I16: Sponsor pre tax | K16: ='Allocation to partners'!I91 -> 
D17: Tax Equity Investment | E17: ='TE Construction Financing'!H38 -> 289.4919653 | F17: =E17+E16 -> 5789.839307 | I17: Sponsor after tax | K17: ='Allocation to partners'!I100 -> 
D18: Backleverage | E18: ='Back Leverage Construction Fin'!H34 -> 0 | F18: =E18 -> 0
D19: Sponsor equity | E19: ='Back Leverage Construction Fin'!H35 -> 3919.234776 | F19: =E19 -> 3919.234776 | I19: Back Leverage Debt IRR | K19: ='Sponsor Waterfall'!H34 -> 
D20: Total Sources | E20: =SUM(E16:E19) -> 9709.074082 | F20: =SUM(F16:F19) -> 9709.074082 | I20: Pre-tax After Back Leverage | K20: ='Sponsor Waterfall'!H24 -> 
I21: After-tax After Back Leverage | K21: ='Sponsor Waterfall'!H41 -> 
C22: Partner Uses
D23: TE Funding | E23: ='TE Construction Financing'!H30 -> 0 | F23: =E23 -> 0 | I23: Debt Applied | K23: ='Back Leverage Debt sizing'!E16 -> P50
D24: Sponsor Funding | E24: ='Back Leverage Construction Fin'!H27 -> 0 | F24: =E24 -> 0
D25: IDC on Equity Bridge | E25: ='TE Construction Financing'!H31 -> 3073.766237 | F25: 3073.766237
D26: Fees on Equity Brige | E26: ='TE Construction Financing'!H32+'TE Construction Financing'!H33 -> 2716.07307 | F26: 2716.07307
D27: IDC on Back Leverage | E27: ='Back Leverage Construction Fin'!H28 -> 1307.172319 | F27: 1307.172319
D28: Fees on Back Leverage | E28: ='Back Leverage Construction Fin'!H29+'Back Leverage Construction Fin'!H30 -> 2612.062457 | F28: 2612.062457
D29: Total Uses | E29: =SUM(E23:E28) -> 9709.074082 | F29: 9709.074082
C31: Partner Sources
D32: TE Bridge Loan | E32: ='TE Construction Financing'!H37 -> 5500.347341
D33: Back Leverage | E33: ='Back Leverage Construction Fin'!H34 -> 0 | F33: =E33 -> 0
D34: TE Equity | E34: ='TE Construction Financing'!H38 -> 289.4919653 | F34: =E32+E34 -> 5789.839307
D35: Sponsor Equity | E35: ='Back Leverage Construction Fin'!H35 -> 3919.234776 | F35: =E35 -> 3919.234776
D36: Total Sources | E36: =SUM(E32:E35) -> 9709.074082 | F36: =SUM(F32:F35) -> 9709.074082

Sheet Inputs - Partnership
A1: PARTNERSHIP INPUTS
B3: Timing
C6: Month Before Start | E6: 2019-12-31
C7: Model Start | E7: =E6+1 -> 2020-01-01
E9: Duration
C10: Development | E10: 4
C11: End of Development | E11: =EOMONTH(E7,E10*3-1) -> 2020-12-31
C12: Start of Construction | E12: =E11+1 -> 2021-01-01
C13: Construction | E13: 4
C14: End of Construction | E14: =EOMONTH(E12,E13*3-1) -> 2021-12-31
C15: Commercial Operation | E15: =E14+1 -> 2022-01-01
C16: Operations | E16: 35
C17: End of Life | E17: =EOMONTH(E15,E16*12-1) -> 2056-12-31
B19: Construction
C21: Construction profile | E21: USD '000
C22: Development | D22: USD '000 | E22: 14700
C23: Panels | D23: USD '000 | E23: =IF(E35,E33,E32) -> 202500
C24: Balance of plant | D24: USD '000 | E24: 67500
C25: Interconnection | D25: USD '000 | E25: 9000
C26: Contingency | D26: USD '000 | E26: =SUM(E23:E25)*E49 -> 13950
C27: Total | E27: =SUM(E22:E26) -> 307650
C29: Panel Cost/kWp | E29: =E32/E52 -> 900
C30: Alternative Panel Cost/kWp | E30: 300
C32: Panel Cost | E32: 202500
C33: Alternative Panel Cost | E33: =E30*E52 -> 67500
C35: Alt Panel | E35: FALSE
C37: Quarter | E37: 0 | F37: 1 | G37: =F37+1 -> 2 | H37: =G37+1 -> 3 | I37: =H37+1 -> 4 | J37: 5
C38: Development S-curve | D38: =SUM(F38:XFD38) -> 1 | F38: 0.25 | G38: 0.25 | H38: 0.25 | I38: 0.25
C41: Quarter | E41: 0 | F41: 1 | G41: =F41+1 -> 2 | H41: =G41+1 -> 3 | I41: =H41+1 -> 4 | J41: 5
C42: CapEx spend Schedule (excl. development) | D42: =SUM(F42:XFD42) -> 1 | F42: 0.21 | G42: 0.29 | H42: 0.2 | I42: 0.3
E44: =Dev_start -> 2020-01-01 | F44: =Con_start -> 2021-01-01 | G44: =EDATE(F44,1) -> 2021-02-01 | H44: 2021-03-01 | I44: 2021-04-01 | J44: 2021-05-01 | K44: 2021-06-01 | L44: 2021-07-01 | M44: 2021-08-01 | N44: 2021-09-01 | O44: 2021-10-01 | P44: 2021-11-01 | Q44: 2021-12-01 | R44: =Op_start -> 2022-01-01
C45: Period | F45: 1 | G45: 2 | H45: 3 | I45: 4 | J45: 5 | K45: 6 | L45: 7 | M45: 8 | N45: 9 | O45: 10 | P45: 11 | Q45: 12 | R45: 13
C46: Percent | D46: =SUM(F46:XFD46) -> 1 | F46: 0.05 | G46: 0.1 | H46: 0.06 | I46: 0.15 | J46: 0.09 | K46: 0.05 | L46: 0.08 | M46: 0.05 | N46: 0.07 | O46: 0.15 | P46: 0.05 | Q46: 0.1
C49: Contingency | D49: % | E49: 0.05
B51: Generation
C52: Rated capacity | D52: MWp | E52: 225
C53: Capacity Convertion Ratio (AC/DC ratio) | D53: DC MWP/Mwac | E53: 1.24
C54: Rated capacity | D54: Mwac | E54: =E52/E53 -> 181.4516129
G55: Annual production | I55: Production ratio
G56: =$E$52*E57*8760 -> 626778 | H56: MWh | I56: =G56/$E$52 -> 2785.68 | J56: kWh/kW
C57: P50 Capacity Factor - Using Mwac | E57: 0.318 | G57: =$E$52*E58*8760 -> 545967 | H57: MWh | I57: =G57/$E$52 -> 2426.52 | J57: kWh/kW
C58: P99 Capacity Factor - Using Mwax | E58: 0.277
C60: Degradation | E60: 0.006
C61: Availability | E61: 1
C64: Quarterly insolation | D64: Total | E64: 1 | F64: =E64+1 -> 2 | G64: =F64+1 -> 3 | H64: =G64+1 -> 4
C65: Percent | D65: =SUM(E65:H65) -> 1 | E65: 0.2 | F65: 0.325 | G65: 0.294 | H65: 0.181
C67: Price
C69: Start | E69: 2021-12-31
C70: End | E70: =EOMONTH(E69,E74*12) -> 2036-12-31
C71: PPA 1
C73: Price | D73: USD / MWh | E73: 38
C74: Tenor | D74: Years | E74: 15
C75: Generation | D75: % | E75: 0.6
C76: Escalation | D76: % p.a. | E76: 0.025
C78: Security Requirements
C79: Once Executed ($/kWdc) | D79: $/KWdc | E79: 70
C80: Step Up (per Annum) | D80: $/KW | E80: 125
C82: PPA 2
C83: Start | E83: =Op_start -> 2022-01-01
C84: End | E84: =EOMONTH(E83,E86*12) -> 2042-01-31
C85: Price | D85: USD / MWh | E85: 42.5
C86: Tenor | D86: Years | E86: 20
C87: Generation | D87: % | E87: 0.35
C89: Escalation | D89: % | E89: 0
C91: Merchant price (real) | D91: << see Merchant curves tab
C93: Renewable energy credits (REC) | G93: Start | I93: =G94 -> 2022 | J93: =I93+1 -> 2023 | K93: 2024 | L93: 2025 | M93: 2026 | N93: 2027 | O93: 2028 | P93: 2029 | Q93: 2030 | R93: 2031
C94: Tenor | D94: Years | E94: 10 | G94: =YEAR(Op_start) -> 2022 | I94: 1.25 | J94: 1.25 | K94: 1.25 | L94: 1.25 | M94: 1.25 | N94: 1.25 | O94: 1.25 | P94: 1.25 | Q94: 1.25 | R94: 1.25
C95: Price | D95: USD / kWh | E95: 1.25
B98: Fixed costs
C99: Operating expense | E99: $ p.a. | G99: Escalation
C100: Panel O&M | D100: USD '000 | E100: 40 | G100: 0.025
C101: BoP O&M and site labor | D101: USD '000 | E101: 125 | G101: 0.02
C102: Operating expense | D102: USD '000 | E102: 71 | G102: 0.02
C103: Maintenance | D103: USD '000 | E103: 83 | G103: 0.02
C104: Asset management | D104: USD '000 | E104: 250 | G104: 0.02
C105: Community support | D105: USD '000 | E105: 10 | G105: 0.02
C106: 3rd party services | D106: USD '000 | E106: 200 | G106: 0.02
E108: Start | F108: End
C109: Maintenance Period | E109: 5 | F109: 20
C110: Maintenance Date Range | E110: =EOMONTH(Op_start,E109*12) -> 2027-01-31 | F110: =EOMONTH(Op_start,F109*12) -> 2042-01-31
C112: Property tax | D112: USD '000 | E112: 500 | G112: 0
C113: Land | D113: USD '000 | E113: 500 | G113: 0
C115: Insurance | D115: % | E115: 0.005 | G115: 0
C116: Project Cap Exp | E116: =SUM(E23:E26) -> 292950
D117: USD '000 | E117: =E116*E115 -> 1464.75
B119: Constants
C120: Quarters in Year | D120: Quarters | E120: 4

Sheet Inputs - Tax
E1: FALSE
B3: Depreciation Basis
C5: Categories
C6: Construction capex | E6: Category
C7: ='Inputs - Partnership'!C22 -> Development | E7: 1
C8: ='Inputs - Partnership'!C23 -> Panels | E8: 2
C9: ='Inputs - Partnership'!C24 -> Balance of plant | E9: 1
C10: ='Inputs - Partnership'!C25 -> Interconnection | E10: 2
C11: ='Inputs - Partnership'!C26 -> Contingency | E11: 2
C12: IDC | E12: 3
C13: Financing fees | E13: 3
C15: Maintenance capex | E15: Category
C16: ='Inputs - Partnership'!C103 -> Maintenance | E16: 1
B19: MACRS depreciation schedule (half-year convention)
C20: Depreciation by year
F21: Operation years
E22: =D22 -> 0 | F22: =E22+1 -> 1 | G22: 2 | H22: 3 | I22: 4 | J22: 5 | K22: 6 | L22: 7 | M22: 8 | N22: 9 | O22: 10 | P22: 11 | Q22: 12 | R22: 13 | S22: 14 | T22: 15 | U22: 16 | V22: 17
C23: 5 | D23: % p.a. | F23: 0.2 | G23: 0.32 | H23: 0.192 | I23: 0.1152 | J23: 0.1152 | K23: 0.0576
C24: 15 | D24: % p.a. | F24: 0.05 | G24: 0.095 | H24: 0.0855 | I24: 0.077 | J24: 0.0693 | K24: 0.0623 | L24: 0.059 | M24: 0.059 | N24: 0.0591 | O24: 0.059 | P24: 0.0591 | Q24: 0.059 | R24: 0.0591 | S24: 0.059 | T24: 0.0591 | U24: 0.0295
C26: Declining Balance Factor | E26: 2
C28: Full 5 year MACRS from VDB Caclculation | D28: % p.a. | E28: =SUM(F28:J28) -> 0
C29: 1/2 Year 5 year MACRS from VDB Caclculation | D29: % p.a.
C31: Basis reduction from ITC | E31: 0.5
B33: Tax Rates
C34: Federal tax rate | E34: 0.21
C36: Investment tax credit (ITC)
C37: ITC eligibility | E37: 0.3
C38: % of total project cost eligible for ITC | E38: 0.96
C39: % not eligible for ITC | E39: =1-E38 -> 0.04
C41: FMV tax basis step-up | E41: 0.25
C43: Include Tax on Development Fee | E43: FALSE
C44: ITC Amortization | E44: FALSE
C45: ITC Amortization Period | E45: 5
C48: Depreciation
C49: % of basis eligible for 5-yr MACRS | E49: 0.96 | F49: =E49*'Inputs - Tax'!$G$51 -> 281232 | K49: Agency Fees: $60,000 per annum
C50: % of basis eligible for 15-yr MACRS | E50: 0.04 | F50: =E50*'Inputs - Tax'!$G$51 -> 11718 | K50: o Minimum Hedge Requirement: 90.0%
G51: ='Partnership Pre-tax Cash Flow'!H120 -> 292950 | H51: =G51*E38 -> 281232 | J51: =E37*H51 -> 84369.6 | L51: =J51*'Inputs - Financing'!F17 -> 101243.52 | M51: <<< 2% of this pre fliP
E56: MACRS
E57: Selection
E58: 15 year
E59: 5 year
E60: 5 year
E63: Accounting | F63: Tax
C64: Long term | E64: SL | F64: MACRS
C65: Short term | E65: SL | F65: MACRS
C66: Financing | E66: SL | F66: MACRS
E68: Straight line
E69: Asset life | F69: % p.a. | G69: % p.q.
C70: Long term | E70: 15 | F70: =IF(E70=0,0,1/E70) -> 0.06666666667 | G70: =F70/4 -> 0.01666666667
C71: Short term | E71: 10 | F71: =IF(E71=0,0,1/E71) -> 0.1 | G71: =F71/4 -> 0.025
C72: Financing | E72: 6 | F72: =IF(E72=0,0,1/E72) -> 0.1666666667 | G72: =F72/4 -> 0.04166666667
E74: Reducing balance
E75: RB multiple | F75: % p.q.
C76: Long term | E76: 2 | F76: =G70*E76 -> 0.03333333333
C77: Short term | E77: 2 | F77: =G71*E77 -> 0.05
C78: Financing | E78: 2 | F78: =G72*E78 -> 0.08333333333
C80: PP&A | E80: ='Partnership Pre-tax Cash Flow'!H120 -> 292950
C82: Do not delete
C83: Straight line | E83: SL
C84: Reducing balance | E84: RB
C85: MACRS | E85: MACRS
E87: Useful life
C88: 5 year | E88: 6
C89: 5 year | E89: 6
C90: 15 year | E90: 16

Sheet Inputs - Financing
B3: Partnership Allocation
C4: Dates
D5: Flip method | F5: Time Base Flip
D7: Pre-Flip Period | F7: 5
D8: Post-Flip Period | F8: =Project_life-F7 -> 30
D10: Flip date (from COD) | F10: =EOMONTH(Op_start,F7*12) -> 2027-01-31
D11: Pre-Flip Begin | F11: =Op_start -> 2022-01-01
D12: Pre-Flip End | F12: =EOMONTH(F11,F7*12-1) -> 2026-12-31
D13: Post Flip Begin | F13: =F12+1 -> 2027-01-01
D14: Post Flip End | F14: =Op_end -> 2056-12-31
C16: Investment
D17: TE Contribution Ratio | F17: 1.2
C19: Income/Ownership Share
D20: Tax equity partner (class A) - Pre-Flip | F20: 0.99
D21: Tax equity partner (class A) - Post-Flip | F21: 0.05
D23: Sponsor partner (class B) - Pre-Flip
D24: Sponsor partner (class B) - Post-Flip
C26: Dividend Share
D27: Tax equity partner (class A) - Pre-Flip | F27: 0
D28: Tax Equity partner (class B) - Post-Flip | F28: 0.05
D30: Sponsor partner (class B) - Post-Flip
D31: Sponsor partner (class B) - Pre-Flip
D33: Tax Equity Preferred yield % of Investment | F33: 0.02
B35: TE Bridge Loan
D36: TE Bridge Loan Percent | F36: 0.95 | J36: Should be in inputs
D37: Tax Equity Bridge Loan Repayment
D39: Tax equity bridge loan Up-Front Fee | F39: 0.0125
D41: Construction / tax equity bridge loan
D42: 3-month LIBOR | F42: 0.02483
D43: Interest rate margin | F43: 0.0125
D44: All-in rate | F44: =SUM(F42:F43) -> 0.03733
B47: Back Leverage
C49: Back Leverage - Sizing
D50: P50 DSCR | F50: 1.5 | G50: << From investment grade counterparties
D51: P99 DSCR | F51: 1 | G51: << From investment grade counterparties
D54: Total funding requirement | F54: =Construction!H39 -> 302564.0593
F56: Debt | G56: Sponsor equity | H56: Add equity Req.
F57: =1-G57 -> 0.85 | G57: 0.15 | H57: =Construction!H48 -> -53556.55927
F58: =F57*SUM('Inputs - Partnership'!E23:E26) -> 249007.5 | G58: =G57*SUM('Inputs - Partnership'!E23:E26) -> 43942.5
C60: Repayment
H61: Start | I61: End
D62: Amortization | F62: 15 | H62: 2021-12-31 | I62: =EOMONTH(H62,F62*12) -> 2036-12-31
D63: Tenor | F63: 6 | H63: 2021-01-01 | I63: =EOMONTH(H63,F63*12) -> 2027-01-31
D64: Grace period | F64: 0.5 | H64: 2021-12-31 | I64: =EOMONTH(H64,F64*12) -> 2022-06-30
D70: Upfront fee
D71: Construction / Term Loan / LCs | F71: 0.01875
D73: Commitment fees | F73: 0.005 | G73: << On undrawn amounts
D74: Start date (COD) | F74: =Op_start -> 2022-01-01
D76: Admin Fees | E76: $ p.a. | F76: 60
D77: Percentage Hedged | E77: % | F77: 0.9
D79: Term loan
D80: 3-Month LIBOR | F80: 0.02483 | H80: Step-ups every 4 years
D81: Date | F81: ='Inputs - Partnership'!E6 -> 2019-12-31 | H81: =Op_start -> 2022-01-01 | I81: =EDATE(H81,4*12) -> 2026-01-01 | J81: 2030-01-01 | K81: 2034-01-01 | L81: 2038-01-01 | M81: 2042-01-01 | N81: 2046-01-01 | O81: 2050-01-01
D82: Step-up | F82: 0.00125 | I82: =F82 -> 0.00125 | J82: =I82 -> 0.00125 | K82: 0.00125 | L82: 0.00125 | M82: 0.00125 | N82: 0.00125 | O82: 0.00125
D83: Interest Rate Margin | F83: 0.0187 | H83: =F83 -> 0.0187 | I83: =H83+I82 -> 0.01995 | J83: 0.0212 | K83: 0.02245 | L83: 0.0237 | M83: 0.02495 | N83: 0.0262 | O83: 0.02745
D84: All-in Rate
D86: Interest Rate Step-up | F86: 0.00125
D87: Step-up dates | F87: 4
D90: Letter of credit
D91: 3-month LIBOR | F91: 0.02483
D94: Required Reserve Accounts
D95: DSRA Letter of Credit
D96: O&M Letter of Credit
D97: PPA Securities

Sheet Merchant curves
A1: CURVES
B7: Wood Mackenzie: 2022 base case Caiso zp26
D8: 2020 | E8: 2023 | F8: 2024 | G8: 2025 | H8: 2026 | I8: 2027 | J8: 2028 | K8: 2029 | L8: 2030 | M8: 2031 | N8: 2032 | O8: 2033 | P8: 2034 | Q8: 2035 | R8: 2036 | S8: 2037 | T8: 2038 | U8: 2039 | V8: 2040 | W8: 2041 | X8: 2042 | Y8: 2043 | Z8: 2044 | AA8: 2045 | AB8: 2046 | AC8: 2047 | AD8: 2048 | AE8: 2049 | AF8: 2050
B9: 43.19361235 | C9: Merchant Price - Real | D9: 36.96116528 | E9: 36.96116528 | F9: 33.62027939 | G9: 33.81123549 | H9: 34.8172956 | I9: 31.83712903 | J9: 29.70143368 | K9: 28.10859357 | L9: 26.23220471 | M9: 25.70793672 | N9: 25.67888851 | O9: 25.29119917 | P9: 24.90574234 | Q9: 25.55551861 | R9: 25.3475631 | S9: 25.88654141 | T9: 25.60635023 | U9: 26.1536796 | V9: 25.62338232 | W9: 26.94766796 | X9: 27.50332558 | Y9: 27.15480399 | Z9: 25.81485937 | AA9: 25.86502621 | AB9: 27.05360387 | AC9: 26.48179026 | AD9: 25.22960547 | AE9: 25.70014995 | AF9: 26.0522957
B11: Inflation | H11: 0.025

Sheet Partnership Pre-tax Cash Flow
A1: Partnership Cash Flow | H1: Sum
C2: Start of Period | I2: =Timing!K2 -> 2020-01-01 | J2: =Timing!L2 -> 2020-04-01 | K2: =Timing!M2 -> 2020-07-01 | L2: =Timing!N2 -> 2020-10-01 | M2: =Timing!O2 -> 2021-01-01 | N2: =Timing!P2 -> 2021-04-01 | O2: =Timing!Q2 -> 2021-07-01 | P2: =Timing!R2 -> 2021-10-01 | Q2: =Timing!S2 -> 2022-01-01 | R2: =Timing!T2 -> 2022-04-01 | S2: =Timing!U2 -> 2022-07-01 | T2: =Timing!V2 -> 2022-10-01 | U2: =Timing!W2 -> 2023-01-01 | V2: =Timing!X2 -> 2023-04-01 | W2: =Timing!Y2 -> 2023-07-01 | X2: =Timing!Z2 -> 2023-10-01 | Y2: =Timing!AA2 -> 2024-01-01 | Z2: =Timing!AB2 -> 2024-04-01 | AA2: =Timing!AC2 -> 2024-07-01 | AB2: =Timing!AD2 -> 2024-10-01 | AC2: =Timing!AE2 -> 2025-01-01 | AD2: =Timing!AF2 -> 2025-04-01 | AE2: =Timing!AG2 -> 2025-07-01 | AF2: =Timing!AH2 -> 2025-10-01 | AG2: =Timing!AI2 -> 2026-01-01 | AH2: =Timing!AJ2 -> 2026-04-01 | AI2: =Timing!AK2 -> 2026-07-01 | AJ2: =Timing!AL2 -> 2026-10-01 | AK2: =Timing!AM2 -> 2027-01-01 | AL2: =Timing!AN2 -> 2027-04-01 | AM2: =Timing!AO2 -> 2027-07-01 | AN2: =Timing!AP2 -> 2027-10-01 | AO2: =Timing!AQ2 -> 2028-01-01 | AP2: =Timing!AR2 -> 2028-04-01 | AQ2: =Timing!AS2 -> 2028-07-01 | AR2: =Timing!AT2 -> 2028-10-01 | AS2: =Timing!AU2 -> 2029-01-01 | AT2: =Timing!AV2 -> 2029-04-01 | AU2: =Timing!AW2 -> 2029-07-01 | AV2: =Timing!AX2 -> 2029-10-01 | AW2: =Timing!AY2 -> 2030-01-01 | AX2: =Timing!AZ2 -> 2030-04-01 | AY2: =Timing!BA2 -> 2030-07-01 | AZ2: =Timing!BB2 -> 2030-10-01 | BA2: =Timing!BC2 -> 2031-01-01 | BB2: =Timing!BD2 -> 2031-04-01 | BC2: =Timing!BE2 -> 2031-07-01 | BD2: =Timing!BF2 -> 2031-10-01 | BE2: =Timing!BG2 -> 2032-01-01 | BF2: =Timing!BH2 -> 2032-04-01 | BG2: =Timing!BI2 -> 2032-07-01 | BH2: =Timing!BJ2 -> 2032-10-01 | BI2: =Timing!BK2 -> 2033-01-01 | BJ2: =Timing!BL2 -> 2033-04-01 | BK2: =Timing!BM2 -> 2033-07-01 | BL2: =Timing!BN2 -> 2033-10-01 | BM2: =Timing!BO2 -> 2034-01-01 | BN2: =Timing!BP2 -> 2034-04-01 | BO2: =Timing!BQ2 -> 2034-07-01 | BP2: =Timing!BR2 -> 2034-10-01 | BQ2: =Timing!BS2 -> 2035-01-01 | BR2: =Timing!BT2 -> 2035-04-01 | BS2: =Timing!BU2 -> 2035-07-01 | BT2: =Timing!BV2 -> 2035-10-01 | BU2: =Timing!BW2 -> 2036-01-01 | BV2: =Timing!BX2 -> 2036-04-01 | BW2: =Timing!BY2 -> 2036-07-01 | BX2: =Timing!BZ2 -> 2036-10-01 | BY2: =Timing!CA2 -> 2037-01-01 | BZ2: =Timing!CB2 -> 2037-04-01 | CA2: =Timing!CC2 -> 2037-07-01 | CB2: =Timing!CD2 -> 2037-10-01 | CC2: =Timing!CE2 -> 2038-01-01 | CD2: =Timing!CF2 -> 2038-04-01 | CE2: =Timing!CG2 -> 2038-07-01 | CF2: =Timing!CH2 -> 2038-10-01 | CG2: =Timing!CI2 -> 2039-01-01 | CH2: =Timing!CJ2 -> 2039-04-01 | CI2: =Timing!CK2 -> 2039-07-01 | CJ2: =Timing!CL2 -> 2039-10-01 | CK2: =Timing!CM2 -> 2040-01-01 | CL2: =Timing!CN2 -> 2040-04-01 | CM2: =Timing!CO2 -> 2040-07-01 | CN2: =Timing!CP2 -> 2040-10-01 | CO2: =Timing!CQ2 -> 2041-01-01 | CP2: =Timing!CR2 -> 2041-04-01 | CQ2: =Timing!CS2 -> 2041-07-01 | CR2: =Timing!CT2 -> 2041-10-01 | CS2: =Timing!CU2 -> 2042-01-01 | CT2: =Timing!CV2 -> 2042-04-01 | CU2: =Timing!CW2 -> 2042-07-01 | CV2: =Timing!CX2 -> 2042-10-01 | CW2: =Timing!CY2 -> 2043-01-01 | CX2: =Timing!CZ2 -> 2043-04-01 | CY2: =Timing!DA2 -> 2043-07-01 | CZ2: =Timing!DB2 -> 2043-10-01 | DA2: =Timing!DC2 -> 2044-01-01 | DB2: =Timing!DD2 -> 2044-04-01 | DC2: =Timing!DE2 -> 2044-07-01 | DD2: =Timing!DF2 -> 2044-10-01 | DE2: =Timing!DG2 -> 2045-01-01 | DF2: =Timing!DH2 -> 2045-04-01 | DG2: =Timing!DI2 -> 2045-07-01 | DH2: =Timing!DJ2 -> 2045-10-01 | DI2: =Timing!DK2 -> 2046-01-01 | DJ2: =Timing!DL2 -> 2046-04-01 | DK2: =Timing!DM2 -> 2046-07-01 | DL2: =Timing!DN2 -> 2046-10-01 | DM2: =Timing!DO2 -> 2047-01-01 | DN2: =Timing!DP2 -> 2047-04-01 | DO2: =Timing!DQ2 -> 2047-07-01 | DP2: =Timing!DR2 -> 2047-10-01 | DQ2: =Timing!DS2 -> 2048-01-01 | DR2: =Timing!DT2 -> 2048-04-01 | DS2: =Timing!DU2 -> 2048-07-01 | DT2: =Timing!DV2 -> 2048-10-01 | DU2: =Timing!DW2 -> 2049-01-01 | DV2: =Timing!DX2 -> 2049-04-01 | DW2: =Timing!DY2 -> 2049-07-01 | DX2: =Timing!DZ2 -> 2049-10-01 | DY2: =Timing!EA2 -> 2050-01-01 | DZ2: =Timing!EB2 -> 2050-04-01 | EA2: =Timing!EC2 -> 2050-07-01 | EB2: =Timing!ED2 -> 2050-10-01 | EC2: =Timing!EE2 -> 2051-01-01 | ED2: =Timing!EF2 -> 2051-04-01 | EE2: =Timing!EG2 -> 2051-07-01 | EF2: =Timing!EH2 -> 2051-10-01 | EG2: =Timing!EI2 -> 2052-01-01 | EH2: =Timing!EJ2 -> 2052-04-01 | EI2: =Timing!EK2 -> 2052-07-01 | EJ2: =Timing!EL2 -> 2052-10-01 | EK2: =Timing!EM2 -> 2053-01-01 | EL2: =Timing!EN2 -> 2053-04-01 | EM2: =Timing!EO2 -> 2053-07-01 | EN2: =Timing!EP2 -> 2053-10-01 | EO2: =Timing!EQ2 -> 2054-01-01 | EP2: =Timing!ER2 -> 2054-04-01 | EQ2: =Timing!ES2 -> 2054-07-01 | ER2: =Timing!ET2 -> 2054-10-01 | ES2: =Timing!EU2 -> 2055-01-01 | ET2: =Timing!EV2 -> 2055-04-01 | EU2: =Timing!EW2 -> 2055-07-01 | EV2: =Timing!EX2 -> 2055-10-01 | EW2: =Timing!EY2 -> 2056-01-01 | EX2: =Timing!EZ2 -> 2056-04-01 | EY2: =Timing!FA2 -> 2056-07-01 | EZ2: =Timing!FB2 -> 2056-10-01 | FA2: =Timing!FC2 -> 2057-01-01 | FB2: =Timing!FD2 -> 2057-04-01 | FC2: =Timing!FE2 -> 2057-07-01 | FD2: =Timing!FF2 -> 2057-10-01 | FE2: =Timing!FG2 -> 2058-01-01 | FF2: =Timing!FH2 -> 2058-04-01 | FG2: =Timing!FI2 -> 2058-07-01 | FH2: =Timing!FJ2 -> 2058-10-01 | FI2: =Timing!FK2 -> 2059-01-01 | FJ2: =Timing!FL2 -> 2059-04-01 | FK2: =Timing!FM2 -> 2059-07-01 | FL2: =Timing!FN2 -> 2059-10-01 | FM2: =Timing!FO2 -> 2060-01-01 | FN2: =Timing!FP2 -> 2060-04-01 | FO2: =Timing!FQ2 -> 2060-07-01 | FP2: =Timing!FR2 -> 2060-10-01 | FQ2: =Timing!FS2 -> 2061-01-01 | FR2: =Timing!FT2 -> 2061-04-01 | FS2: =Timing!FU2 -> 2061-07-01
C3: End of Period | E3: Start | F3: End | I3: =Timing!K3 -> 2020-03-31 | J3: =Timing!L3 -> 2020-06-30 | K3: =Timing!M3 -> 2020-09-30 | L3: =Timing!N3 -> 2020-12-31 | M3: =Timing!O3 -> 2021-03-31 | N3: =Timing!P3 -> 2021-06-30 | O3: =Timing!Q3 -> 2021-09-30 | P3: =Timing!R3 -> 2021-12-31 | Q3: =Timing!S3 -> 2022-03-31 | R3: =Timing!T3 -> 2022-06-30 | S3: =Timing!U3 -> 2022-09-30 | T3: =Timing!V3 -> 2022-12-31 | U3: =Timing!W3 -> 2023-03-31 | V3: =Timing!X3 -> 2023-06-30 | W3: =Timing!Y3 -> 2023-09-30 | X3: =Timing!Z3 -> 2023-12-31 | Y3: =Timing!AA3 -> 2024-03-31 | Z3: =Timing!AB3 -> 2024-06-30 | AA3: =Timing!AC3 -> 2024-09-30 | AB3: =Timing!AD3 -> 2024-12-31 | AC3: =Timing!AE3 -> 2025-03-31 | AD3: =Timing!AF3 -> 2025-06-30 | AE3: =Timing!AG3 -> 2025-09-30 | AF3: =Timing!AH3 -> 2025-12-31 | AG3: =Timing!AI3 -> 2026-03-31 | AH3: =Timing!AJ3 -> 2026-06-30 | AI3: =Timing!AK3 -> 2026-09-30 | AJ3: =Timing!AL3 -> 2026-12-31 | AK3: =Timing!AM3 -> 2027-03-31 | AL3: =Timing!AN3 -> 2027-06-30 | AM3: =Timing!AO3 -> 2027-09-30 | AN3: =Timing!AP3 -> 2027-12-31 | AO3: =Timing!AQ3 -> 2028-03-31 | AP3: =Timing!AR3 -> 2028-06-30 | AQ3: =Timing!AS3 -> 2028-09-30 | AR3: =Timing!AT3 -> 2028-12-31 | AS3: =Timing!AU3 -> 2029-03-31 | AT3: =Timing!AV3 -> 2029-06-30 | AU3: =Timing!AW3 -> 2029-09-30 | AV3: =Timing!AX3 -> 2029-12-31 | AW3: =Timing!AY3 -> 2030-03-31 | AX3: =Timing!AZ3 -> 2030-06-30 | AY3: =Timing!BA3 -> 2030-09-30 | AZ3: =Timing!BB3 -> 2030-12-31 | BA3: =Timing!BC3 -> 2031-03-31 | BB3: =Timing!BD3 -> 2031-06-30 | BC3: =Timing!BE3 -> 2031-09-30 | BD3: =Timing!BF3 -> 2031-12-31 | BE3: =Timing!BG3 -> 2032-03-31 | BF3: =Timing!BH3 -> 2032-06-30 | BG3: =Timing!BI3 -> 2032-09-30 | BH3: =Timing!BJ3 -> 2032-12-31 | BI3: =Timing!BK3 -> 2033-03-31 | BJ3: =Timing!BL3 -> 2033-06-30 | BK3: =Timing!BM3 -> 2033-09-30 | BL3: =Timing!BN3 -> 2033-12-31 | BM3: =Timing!BO3 -> 2034-03-31 | BN3: =Timing!BP3 -> 2034-06-30 | BO3: =Timing!BQ3 -> 2034-09-30 | BP3: =Timing!BR3 -> 2034-12-31 | BQ3: =Timing!BS3 -> 2035-03-31 | BR3: =Timing!BT3 -> 2035-06-30 | BS3: =Timing!BU3 -> 2035-09-30 | BT3: =Timing!BV3 -> 2035-12-31 | BU3: =Timing!BW3 -> 2036-03-31 | BV3: =Timing!BX3 -> 2036-06-30 | BW3: =Timing!BY3 -> 2036-09-30 | BX3: =Timing!BZ3 -> 2036-12-31 | BY3: =Timing!CA3 -> 2037-03-31 | BZ3: =Timing!CB3 -> 2037-06-30 | CA3: =Timing!CC3 -> 2037-09-30 | CB3: =Timing!CD3 -> 2037-12-31 | CC3: =Timing!CE3 -> 2038-03-31 | CD3: =Timing!CF3 -> 2038-06-30 | CE3: =Timing!CG3 -> 2038-09-30 | CF3: =Timing!CH3 -> 2038-12-31 | CG3: =Timing!CI3 -> 2039-03-31 | CH3: =Timing!CJ3 -> 2039-06-30 | CI3: =Timing!CK3 -> 2039-09-30 | CJ3: =Timing!CL3 -> 2039-12-31 | CK3: =Timing!CM3 -> 2040-03-31 | CL3: =Timing!CN3 -> 2040-06-30 | CM3: =Timing!CO3 -> 2040-09-30 | CN3: =Timing!CP3 -> 2040-12-31 | CO3: =Timing!CQ3 -> 2041-03-31 | CP3: =Timing!CR3 -> 2041-06-30 | CQ3: =Timing!CS3 -> 2041-09-30 | CR3: =Timing!CT3 -> 2041-12-31 | CS3: =Timing!CU3 -> 2042-03-31 | CT3: =Timing!CV3 -> 2042-06-30 | CU3: =Timing!CW3 -> 2042-09-30 | CV3: =Timing!CX3 -> 2042-12-31 | CW3: =Timing!CY3 -> 2043-03-31 | CX3: =Timing!CZ3 -> 2043-06-30 | CY3: =Timing!DA3 -> 2043-09-30 | CZ3: =Timing!DB3 -> 2043-12-31 | DA3: =Timing!DC3 -> 2044-03-31 | DB3: =Timing!DD3 -> 2044-06-30 | DC3: =Timing!DE3 -> 2044-09-30 | DD3: =Timing!DF3 -> 2044-12-31 | DE3: =Timing!DG3 -> 2045-03-31 | DF3: =Timing!DH3 -> 2045-06-30 | DG3: =Timing!DI3 -> 2045-09-30 | DH3: =Timing!DJ3 -> 2045-12-31 | DI3: =Timing!DK3 -> 2046-03-31 | DJ3: =Timing!DL3 -> 2046-06-30 | DK3: =Timing!DM3 -> 2046-09-30 | DL3: =Timing!DN3 -> 2046-12-31 | DM3: =Timing!DO3 -> 2047-03-31 | DN3: =Timing!DP3 -> 2047-06-30 | DO3: =Timing!DQ3 -> 2047-09-30 | DP3: =Timing!DR3 -> 2047-12-31 | DQ3: =Timing!DS3 -> 2048-03-31 | DR3: =Timing!DT3 -> 2048-06-30 | DS3: =Timing!DU3 -> 2048-09-30 | DT3: =Timing!DV3 -> 2048-12-31 | DU3: =Timing!DW3 -> 2049-03-31 | DV3: =Timing!DX3 -> 2049-06-30 | DW3: =Timing!DY3 -> 2049-09-30 | DX3: =Timing!DZ3 -> 2049-12-31 | DY3: =Timing!EA3 -> 2050-03-31 | DZ3: =Timing!EB3 -> 2050-06-30 | EA3: =Timing!EC3 -> 2050-09-30 | EB3: =Timing!ED3 -> 2050-12-31 | EC3: =Timing!EE3 -> 2051-03-31 | ED3: =Timing!EF3 -> 2051-06-30 | EE3: =Timing!EG3 -> 2051-09-30 | EF3: =Timing!EH3 -> 2051-12-31 | EG3: =Timing!EI3 -> 2052-03-31 | EH3: =Timing!EJ3 -> 2052-06-30 | EI3: =Timing!EK3 -> 2052-09-30 | EJ3: =Timing!EL3 -> 2052-12-31 | EK3: =Timing!EM3 -> 2053-03-31 | EL3: =Timing!EN3 -> 2053-06-30 | EM3: =Timing!EO3 -> 2053-09-30 | EN3: =Timing!EP3 -> 2053-12-31 | EO3: =Timing!EQ3 -> 2054-03-31 | EP3: =Timing!ER3 -> 2054-06-30 | EQ3: =Timing!ES3 -> 2054-09-30 | ER3: =Timing!ET3 -> 2054-12-31 | ES3: =Timing!EU3 -> 2055-03-31 | ET3: =Timing!EV3 -> 2055-06-30 | EU3: =Timing!EW3 -> 2055-09-30 | EV3: =Timing!EX3 -> 2055-12-31 | EW3: =Timing!EY3 -> 2056-03-31 | EX3: =Timing!EZ3 -> 2056-06-30 | EY3: =Timing!FA3 -> 2056-09-30 | EZ3: =Timing!FB3 -> 2056-12-31 | FA3: =Timing!FC3 -> 2057-03-31 | FB3: =Timing!FD3 -> 2057-06-30 | FC3: =Timing!FE3 -> 2057-09-30 | FD3: =Timing!FF3 -> 2057-12-31 | FE3: =Timing!FG3 -> 2058-03-31 | FF3: =Timing!FH3 -> 2058-06-30 | FG3: =Timing!FI3 -> 2058-09-30 | FH3: =Timing!FJ3 -> 2058-12-31 | FI3: =Timing!FK3 -> 2059-03-31 | FJ3: =Timing!FL3 -> 2059-06-30 | FK3: =Timing!FM3 -> 2059-09-30 | FL3: =Timing!FN3 -> 2059-12-31 | FM3: =Timing!FO3 -> 2060-03-31 | FN3: =Timing!FP3 -> 2060-06-30 | FO3: =Timing!FQ3 -> 2060-09-30 | FP3: =Timing!FR3 -> 2060-12-31 | FQ3: =Timing!FS3 -> 2061-03-31 | FR3: =Timing!FT3 -> 2061-06-30 | FS3: =Timing!FU3 -> 2061-09-30
C4: Development Phase | E4: =Timing!F4 -> 2020-01-01 | F4: =Timing!G4 -> 2020-12-31 | I4: =Timing!K4 -> 1 | J4: =Timing!L4 -> 1 | K4: =Timing!M4 -> 1 | L4: =Timing!N4 -> 1 | M4: =Timing!O4 -> 0 | N4: =Timing!P4 -> 0 | O4: =Timing!Q4 -> 0 | P4: =Timing!R4 -> 0 | Q4: =Timing!S4 -> 0 | R4: =Timing!T4 -> 0 | S4: =Timing!U4 -> 0 | T4: =Timing!V4 -> 0 | U4: =Timing!W4 -> 0 | V4: =Timing!X4 -> 0 | W4: =Timing!Y4 -> 0 | X4: =Timing!Z4 -> 0 | Y4: =Timing!AA4 -> 0 | Z4: =Timing!AB4 -> 0 | AA4: =Timing!AC4 -> 0 | AB4: =Timing!AD4 -> 0 | AC4: =Timing!AE4 -> 0 | AD4: =Timing!AF4 -> 0 | AE4: =Timing!AG4 -> 0 | AF4: =Timing!AH4 -> 0 | AG4: =Timing!AI4 -> 0 | AH4: =Timing!AJ4 -> 0 | AI4: =Timing!AK4 -> 0 | AJ4: =Timing!AL4 -> 0 | AK4: =Timing!AM4 -> 0 | AL4: =Timing!AN4 -> 0 | AM4: =Timing!AO4 -> 0 | AN4: =Timing!AP4 -> 0 | AO4: =Timing!AQ4 -> 0 | AP4: =Timing!AR4 -> 0 | AQ4: =Timing!AS4 -> 0 | AR4: =Timing!AT4 -> 0 | AS4: =Timing!AU4 -> 0 | AT4: =Timing!AV4 -> 0 | AU4: =Timing!AW4 -> 0 | AV4: =Timing!AX4 -> 0 | AW4: =Timing!AY4 -> 0 | AX4: =Timing!AZ4 -> 0 | AY4: =Timing!BA4 -> 0 | AZ4: =Timing!BB4 -> 0 | BA4: =Timing!BC4 -> 0 | BB4: =Timing!BD4 -> 0 | BC4: =Timing!BE4 -> 0 | BD4: =Timing!BF4 -> 0 | BE4: =Timing!BG4 -> 0 | BF4: =Timing!BH4 -> 0 | BG4: =Timing!BI4 -> 0 | BH4: =Timing!BJ4 -> 0 | BI4: =Timing!BK4 -> 0 | BJ4: =Timing!BL4 -> 0 | BK4: =Timing!BM4 -> 0 | BL4: =Timing!BN4 -> 0 | BM4: =Timing!BO4 -> 0 | BN4: =Timing!BP4 -> 0 | BO4: =Timing!BQ4 -> 0 | BP4: =Timing!BR4 -> 0 | BQ4: =Timing!BS4 -> 0 | BR4: =Timing!BT4 -> 0 | BS4: =Timing!BU4 -> 0 | BT4: =Timing!BV4 -> 0 | BU4: =Timing!BW4 -> 0 | BV4: =Timing!BX4 -> 0 | BW4: =Timing!BY4 -> 0 | BX4: =Timing!BZ4 -> 0 | BY4: =Timing!CA4 -> 0 | BZ4: =Timing!CB4 -> 0 | CA4: =Timing!CC4 -> 0 | CB4: =Timing!CD4 -> 0 | CC4: =Timing!CE4 -> 0 | CD4: =Timing!CF4 -> 0 | CE4: =Timing!CG4 -> 0 | CF4: =Timing!CH4 -> 0 | CG4: =Timing!CI4 -> 0 | CH4: =Timing!CJ4 -> 0 | CI4: =Timing!CK4 -> 0 | CJ4: =Timing!CL4 -> 0 | CK4: =Timing!CM4 -> 0 | CL4: =Timing!CN4 -> 0 | CM4: =Timing!CO4 -> 0 | CN4: =Timing!CP4 -> 0 | CO4: =Timing!CQ4 -> 0 | CP4: =Timing!CR4 -> 0 | CQ4: =Timing!CS4 -> 0 | CR4: =Timing!CT4 -> 0 | CS4: =Timing!CU4 -> 0 | CT4: =Timing!CV4 -> 0 | CU4: =Timing!CW4 -> 0 | CV4: =Timing!CX4 -> 0 | CW4: =Timing!CY4 -> 0 | CX4: =Timing!CZ4 -> 0 | CY4: =Timing!DA4 -> 0 | CZ4: =Timing!DB4 -> 0 | DA4: =Timing!DC4 -> 0 | DB4: =Timing!DD4 -> 0 | DC4: =Timing!DE4 -> 0 | DD4: =Timing!DF4 -> 0 | DE4: =Timing!DG4 -> 0 | DF4: =Timing!DH4 -> 0 | DG4: =Timing!DI4 -> 0 | DH4: =Timing!DJ4 -> 0 | DI4: =Timing!DK4 -> 0 | DJ4: =Timing!DL4 -> 0 | DK4: =Timing!DM4 -> 0 | DL4: =Timing!DN4 -> 0 | DM4: =Timing!DO4 -> 0 | DN4: =Timing!DP4 -> 0 | DO4: =Timing!DQ4 -> 0 | DP4: =Timing!DR4 -> 0 | DQ4: =Timing!DS4 -> 0 | DR4: =Timing!DT4 -> 0 | DS4: =Timing!DU4 -> 0 | DT4: =Timing!DV4 -> 0 | DU4: =Timing!DW4 -> 0 | DV4: =Timing!DX4 -> 0 | DW4: =Timing!DY4 -> 0 | DX4: =Timing!DZ4 -> 0 | DY4: =Timing!EA4 -> 0 | DZ4: =Timing!EB4 -> 0 | EA4: =Timing!EC4 -> 0 | EB4: =Timing!ED4 -> 0 | EC4: =Timing!EE4 -> 0 | ED4: =Timing!EF4 -> 0 | EE4: =Timing!EG4 -> 0 | EF4: =Timing!EH4 -> 0 | EG4: =Timing!EI4 -> 0 | EH4: =Timing!EJ4 -> 0 | EI4: =Timing!EK4 -> 0 | EJ4: =Timing!EL4 -> 0 | EK4: =Timing!EM4 -> 0 | EL4: =Timing!EN4 -> 0 | EM4: =Timing!EO4 -> 0 | EN4: =Timing!EP4 -> 0 | EO4: =Timing!EQ4 -> 0 | EP4: =Timing!ER4 -> 0 | EQ4: =Timing!ES4 -> 0 | ER4: =Timing!ET4 -> 0 | ES4: =Timing!EU4 -> 0 | ET4: =Timing!EV4 -> 0 | EU4: =Timing!EW4 -> 0 | EV4: =Timing!EX4 -> 0 | EW4: =Timing!EY4 -> 0 | EX4: =Timing!EZ4 -> 0 | EY4: =Timing!FA4 -> 0 | EZ4: =Timing!FB4 -> 0 | FA4: =Timing!FC4 -> 0 | FB4: =Timing!FD4 -> 0 | FC4: =Timing!FE4 -> 0 | FD4: =Timing!FF4 -> 0 | FE4: =Timing!FG4 -> 0 | FF4: =Timing!FH4 -> 0 | FG4: =Timing!FI4 -> 0 | FH4: =Timing!FJ4 -> 0 | FI4: =Timing!FK4 -> 0 | FJ4: =Timing!FL4 -> 0 | FK4: =Timing!FM4 -> 0 | FL4: =Timing!FN4 -> 0 | FM4: =Timing!FO4 -> 0 | FN4: =Timing!FP4 -> 0 | FO4: =Timing!FQ4 -> 0 | FP4: =Timing!FR4 -> 0 | FQ4: =Timing!FS4 -> 0 | FR4: =Timing!FT4 -> 0 | FS4: =Timing!FU4 -> 0
C5: Construction Phase | E5: =Timing!F5 -> 2021-01-01 | F5: =Timing!G5 -> 2021-12-31 | I5: =Timing!K5 -> 0 | J5: =Timing!L5 -> 0 | K5: =Timing!M5 -> 0 | L5: =Timing!N5 -> 0 | M5: =Timing!O5 -> 1 | N5: =Timing!P5 -> 1 | O5: =Timing!Q5 -> 1 | P5: =Timing!R5 -> 1 | Q5: =Timing!S5 -> 0 | R5: =Timing!T5 -> 0 | S5: =Timing!U5 -> 0 | T5: =Timing!V5 -> 0 | U5: =Timing!W5 -> 0 | V5: =Timing!X5 -> 0 | W5: =Timing!Y5 -> 0 | X5: =Timing!Z5 -> 0 | Y5: =Timing!AA5 -> 0 | Z5: =Timing!AB5 -> 0 | AA5: =Timing!AC5 -> 0 | AB5: =Timing!AD5 -> 0 | AC5: =Timing!AE5 -> 0 | AD5: =Timing!AF5 -> 0 | AE5: =Timing!AG5 -> 0 | AF5: =Timing!AH5 -> 0 | AG5: =Timing!AI5 -> 0 | AH5: =Timing!AJ5 -> 0 | AI5: =Timing!AK5 -> 0 | AJ5: =Timing!AL5 -> 0 | AK5: =Timing!AM5 -> 0 | AL5: =Timing!AN5 -> 0 | AM5: =Timing!AO5 -> 0 | AN5: =Timing!AP5 -> 0 | AO5: =Timing!AQ5 -> 0 | AP5: =Timing!AR5 -> 0 | AQ5: =Timing!AS5 -> 0 | AR5: =Timing!AT5 -> 0 | AS5: =Timing!AU5 -> 0 | AT5: =Timing!AV5 -> 0 | AU5: =Timing!AW5 -> 0 | AV5: =Timing!AX5 -> 0 | AW5: =Timing!AY5 -> 0 | AX5: =Timing!AZ5 -> 0 | AY5: =Timing!BA5 -> 0 | AZ5: =Timing!BB5 -> 0 | BA5: =Timing!BC5 -> 0 | BB5: =Timing!BD5 -> 0 | BC5: =Timing!BE5 -> 0 | BD5: =Timing!BF5 -> 0 | BE5: =Timing!BG5 -> 0 | BF5: =Timing!BH5 -> 0 | BG5: =Timing!BI5 -> 0 | BH5: =Timing!BJ5 -> 0 | BI5: =Timing!BK5 -> 0 | BJ5: =Timing!BL5 -> 0 | BK5: =Timing!BM5 -> 0 | BL5: =Timing!BN5 -> 0 | BM5: =Timing!BO5 -> 0 | BN5: =Timing!BP5 -> 0 | BO5: =Timing!BQ5 -> 0 | BP5: =Timing!BR5 -> 0 | BQ5: =Timing!BS5 -> 0 | BR5: =Timing!BT5 -> 0 | BS5: =Timing!BU5 -> 0 | BT5: =Timing!BV5 -> 0 | BU5: =Timing!BW5 -> 0 | BV5: =Timing!BX5 -> 0 | BW5: =Timing!BY5 -> 0 | BX5: =Timing!BZ5 -> 0 | BY5: =Timing!CA5 -> 0 | BZ5: =Timing!CB5 -> 0 | CA5: =Timing!CC5 -> 0 | CB5: =Timing!CD5 -> 0 | CC5: =Timing!CE5 -> 0 | CD5: =Timing!CF5 -> 0 | CE5: =Timing!CG5 -> 0 | CF5: =Timing!CH5 -> 0 | CG5: =Timing!CI5 -> 0 | CH5: =Timing!CJ5 -> 0 | CI5: =Timing!CK5 -> 0 | CJ5: =Timing!CL5 -> 0 | CK5: =Timing!CM5 -> 0 | CL5: =Timing!CN5 -> 0 | CM5: =Timing!CO5 -> 0 | CN5: =Timing!CP5 -> 0 | CO5: =Timing!CQ5 -> 0 | CP5: =Timing!CR5 -> 0 | CQ5: =Timing!CS5 -> 0 | CR5: =Timing!CT5 -> 0 | CS5: =Timing!CU5 -> 0 | CT5: =Timing!CV5 -> 0 | CU5: =Timing!CW5 -> 0 | CV5: =Timing!CX5 -> 0 | CW5: =Timing!CY5 -> 0 | CX5: =Timing!CZ5 -> 0 | CY5: =Timing!DA5 -> 0 | CZ5: =Timing!DB5 -> 0 | DA5: =Timing!DC5 -> 0 | DB5: =Timing!DD5 -> 0 | DC5: =Timing!DE5 -> 0 | DD5: =Timing!DF5 -> 0 | DE5: =Timing!DG5 -> 0 | DF5: =Timing!DH5 -> 0 | DG5: =Timing!DI5 -> 0 | DH5: =Timing!DJ5 -> 0 | DI5: =Timing!DK5 -> 0 | DJ5: =Timing!DL5 -> 0 | DK5: =Timing!DM5 -> 0 | DL5: =Timing!DN5 -> 0 | DM5: =Timing!DO5 -> 0 | DN5: =Timing!DP5 -> 0 | DO5: =Timing!DQ5 -> 0 | DP5: =Timing!DR5 -> 0 | DQ5: =Timing!DS5 -> 0 | DR5: =Timing!DT5 -> 0 | DS5: =Timing!DU5 -> 0 | DT5: =Timing!DV5 -> 0 | DU5: =Timing!DW5 -> 0 | DV5: =Timing!DX5 -> 0 | DW5: =Timing!DY5 -> 0 | DX5: =Timing!DZ5 -> 0 | DY5: =Timing!EA5 -> 0 | DZ5: =Timing!EB5 -> 0 | EA5: =Timing!EC5 -> 0 | EB5: =Timing!ED5 -> 0 | EC5: =Timing!EE5 -> 0 | ED5: =Timing!EF5 -> 0 | EE5: =Timing!EG5 -> 0 | EF5: =Timing!EH5 -> 0 | EG5: =Timing!EI5 -> 0 | EH5: =Timing!EJ5 -> 0 | EI5: =Timing!EK5 -> 0 | EJ5: =Timing!EL5 -> 0 | EK5: =Timing!EM5 -> 0 | EL5: =Timing!EN5 -> 0 | EM5: =Timing!EO5 -> 0 | EN5: =Timing!EP5 -> 0 | EO5: =Timing!EQ5 -> 0 | EP5: =Timing!ER5 -> 0 | EQ5: =Timing!ES5 -> 0 | ER5: =Timing!ET5 -> 0 | ES5: =Timing!EU5 -> 0 | ET5: =Timing!EV5 -> 0 | EU5: =Timing!EW5 -> 0 | EV5: =Timing!EX5 -> 0 | EW5: =Timing!EY5 -> 0 | EX5: =Timing!EZ5 -> 0 | EY5: =Timing!FA5 -> 0 | EZ5: =Timing!FB5 -> 0 | FA5: =Timing!FC5 -> 0 | FB5: =Timing!FD5 -> 0 | FC5: =Timing!FE5 -> 0 | FD5: =Timing!FF5 -> 0 | FE5: =Timing!FG5 -> 0 | FF5: =Timing!FH5 -> 0 | FG5: =Timing!FI5 -> 0 | FH5: =Timing!FJ5 -> 0 | FI5: =Timing!FK5 -> 0 | FJ5: =Timing!FL5 -> 0 | FK5: =Timing!FM5 -> 0 | FL5: =Timing!FN5 -> 0 | FM5: =Timing!FO5 -> 0 | FN5: =Timing!FP5 -> 0 | FO5: =Timing!FQ5 -> 0 | FP5: =Timing!FR5 -> 0 | FQ5: =Timing!FS5 -> 0 | FR5: =Timing!FT5 -> 0 | FS5: =Timing!FU5 -> 0
C6: Operation Phase | E6: =Timing!F6 -> 2022-01-01 | F6: =Timing!G6 -> 2056-12-31 | I6: =Timing!K6 -> 0 | J6: =Timing!L6 -> 0 | K6: =Timing!M6 -> 0 | L6: =Timing!N6 -> 0 | M6: =Timing!O6 -> 0 | N6: =Timing!P6 -> 0 | O6: =Timing!Q6 -> 0 | P6: =Timing!R6 -> 0 | Q6: =Timing!S6 -> 1 | R6: =Timing!T6 -> 1 | S6: =Timing!U6 -> 1 | T6: =Timing!V6 -> 1 | U6: =Timing!W6 -> 1 | V6: =Timing!X6 -> 1 | W6: =Timing!Y6 -> 1 | X6: =Timing!Z6 -> 1 | Y6: =Timing!AA6 -> 1 | Z6: =Timing!AB6 -> 1 | AA6: =Timing!AC6 -> 1 | AB6: =Timing!AD6 -> 1 | AC6: =Timing!AE6 -> 1 | AD6: =Timing!AF6 -> 1 | AE6: =Timing!AG6 -> 1 | AF6: =Timing!AH6 -> 1 | AG6: =Timing!AI6 -> 1 | AH6: =Timing!AJ6 -> 1 | AI6: =Timing!AK6 -> 1 | AJ6: =Timing!AL6 -> 1 | AK6: =Timing!AM6 -> 1 | AL6: =Timing!AN6 -> 1 | AM6: =Timing!AO6 -> 1 | AN6: =Timing!AP6 -> 1 | AO6: =Timing!AQ6 -> 1 | AP6: =Timing!AR6 -> 1 | AQ6: =Timing!AS6 -> 1 | AR6: =Timing!AT6 -> 1 | AS6: =Timing!AU6 -> 1 | AT6: =Timing!AV6 -> 1 | AU6: =Timing!AW6 -> 1 | AV6: =Timing!AX6 -> 1 | AW6: =Timing!AY6 -> 1 | AX6: =Timing!AZ6 -> 1 | AY6: =Timing!BA6 -> 1 | AZ6: =Timing!BB6 -> 1 | BA6: =Timing!BC6 -> 1 | BB6: =Timing!BD6 -> 1 | BC6: =Timing!BE6 -> 1 | BD6: =Timing!BF6 -> 1 | BE6: =Timing!BG6 -> 1 | BF6: =Timing!BH6 -> 1 | BG6: =Timing!BI6 -> 1 | BH6: =Timing!BJ6 -> 1 | BI6: =Timing!BK6 -> 1 | BJ6: =Timing!BL6 -> 1 | BK6: =Timing!BM6 -> 1 | BL6: =Timing!BN6 -> 1 | BM6: =Timing!BO6 -> 1 | BN6: =Timing!BP6 -> 1 | BO6: =Timing!BQ6 -> 1 | BP6: =Timing!BR6 -> 1 | BQ6: =Timing!BS6 -> 1 | BR6: =Timing!BT6 -> 1 | BS6: =Timing!BU6 -> 1 | BT6: =Timing!BV6 -> 1 | BU6: =Timing!BW6 -> 1 | BV6: =Timing!BX6 -> 1 | BW6: =Timing!BY6 -> 1 | BX6: =Timing!BZ6 -> 1 | BY6: =Timing!CA6 -> 1 | BZ6: =Timing!CB6 -> 1 | CA6: =Timing!CC6 -> 1 | CB6: =Timing!CD6 -> 1 | CC6: =Timing!CE6 -> 1 | CD6: =Timing!CF6 -> 1 | CE6: =Timing!CG6 -> 1 | CF6: =Timing!CH6 -> 1 | CG6: =Timing!CI6 -> 1 | CH6: =Timing!CJ6 -> 1 | CI6: =Timing!CK6 -> 1 | CJ6: =Timing!CL6 -> 1 | CK6: =Timing!CM6 -> 1 | CL6: =Timing!CN6 -> 1 | CM6: =Timing!CO6 -> 1 | CN6: =Timing!CP6 -> 1 | CO6: =Timing!CQ6 -> 1 | CP6: =Timing!CR6 -> 1 | CQ6: =Timing!CS6 -> 1 | CR6: =Timing!CT6 -> 1 | CS6: =Timing!CU6 -> 1 | CT6: =Timing!CV6 -> 1 | CU6: =Timing!CW6 -> 1 | CV6: =Timing!CX6 -> 1 | CW6: =Timing!CY6 -> 1 | CX6: =Timing!CZ6 -> 1 | CY6: =Timing!DA6 -> 1 | CZ6: =Timing!DB6 -> 1 | DA6: =Timing!DC6 -> 1 | DB6: =Timing!DD6 -> 1 | DC6: =Timing!DE6 -> 1 | DD6: =Timing!DF6 -> 1 | DE6: =Timing!DG6 -> 1 | DF6: =Timing!DH6 -> 1 | DG6: =Timing!DI6 -> 1 | DH6: =Timing!DJ6 -> 1 | DI6: =Timing!DK6 -> 1 | DJ6: =Timing!DL6 -> 1 | DK6: =Timing!DM6 -> 1 | DL6: =Timing!DN6 -> 1 | DM6: =Timing!DO6 -> 1 | DN6: =Timing!DP6 -> 1 | DO6: =Timing!DQ6 -> 1 | DP6: =Timing!DR6 -> 1 | DQ6: =Timing!DS6 -> 1 | DR6: =Timing!DT6 -> 1 | DS6: =Timing!DU6 -> 1 | DT6: =Timing!DV6 -> 1 | DU6: =Timing!DW6 -> 1 | DV6: =Timing!DX6 -> 1 | DW6: =Timing!DY6 -> 1 | DX6: =Timing!DZ6 -> 1 | DY6: =Timing!EA6 -> 1 | DZ6: =Timing!EB6 -> 1 | EA6: =Timing!EC6 -> 1 | EB6: =Timing!ED6 -> 1 | EC6: =Timing!EE6 -> 1 | ED6: =Timing!EF6 -> 1 | EE6: =Timing!EG6 -> 1 | EF6: =Timing!EH6 -> 1 | EG6: =Timing!EI6 -> 1 | EH6: =Timing!EJ6 -> 1 | EI6: =Timing!EK6 -> 1 | EJ6: =Timing!EL6 -> 1 | EK6: =Timing!EM6 -> 1 | EL6: =Timing!EN6 -> 1 | EM6: =Timing!EO6 -> 1 | EN6: =Timing!EP6 -> 1 | EO6: =Timing!EQ6 -> 1 | EP6: =Timing!ER6 -> 1 | EQ6: =Timing!ES6 -> 1 | ER6: =Timing!ET6 -> 1 | ES6: =Timing!EU6 -> 1 | ET6: =Timing!EV6 -> 1 | EU6: =Timing!EW6 -> 1 | EV6: =Timing!EX6 -> 1 | EW6: =Timing!EY6 -> 1 | EX6: =Timing!EZ6 -> 1 | EY6: =Timing!FA6 -> 1 | EZ6: =Timing!FB6 -> 1 | FA6: =Timing!FC6 -> 0 | FB6: =Timing!FD6 -> 0 | FC6: =Timing!FE6 -> 0 | FD6: =Timing!FF6 -> 0 | FE6: =Timing!FG6 -> 0 | FF6: =Timing!FH6 -> 0 | FG6: =Timing!FI6 -> 0 | FH6: =Timing!FJ6 -> 0 | FI6: =Timing!FK6 -> 0 | FJ6: =Timing!FL6 -> 0 | FK6: =Timing!FM6 -> 0 | FL6: =Timing!FN6 -> 0 | FM6: =Timing!FO6 -> 0 | FN6: =Timing!FP6 -> 0 | FO6: =Timing!FQ6 -> 0 | FP6: =Timing!FR6 -> 0 | FQ6: =Timing!FS6 -> 0 | FR6: =Timing!FT6 -> 0 | FS6: =Timing!FU6 -> 0
C8: Counters for call-ups
C9: Calendar year | I9: =YEAR(I3) -> 2020 | J9: 2020 | K9: 2020 | L9: 2020 | M9: 2021 | N9: 2021 | O9: 2021 | P9: 2021 | Q9: 2022 | R9: 2022 | S9: 2022 | T9: 2022 | U9: 2023 | V9: 2023 | W9: 2023 | X9: 2023 | Y9: 2024 | Z9: 2024 | AA9: 2024 | AB9: 2024 | AC9: 2025 | AD9: 2025 | AE9: 2025 | AF9: 2025 | AG9: 2026 | AH9: 2026 | AI9: 2026 | AJ9: 2026 | AK9: 2027 | AL9: 2027 | AM9: 2027 | AN9: 2027 | AO9: =YEAR(AO3) -> 2028 | AP9: 2028 | AQ9: 2028 | AR9: 2028 | AS9: 2029 | AT9: 2029 | AU9: 2029 | AV9: 2029 | AW9: 2030 | AX9: 2030 | AY9: 2030 | AZ9: 2030 | BA9: 2031 | BB9: 2031 | BC9: 2031 | BD9: 2031 | BE9: 2032 | BF9: 2032 | BG9: 2032 | BH9: 2032 | BI9: 2033 | BJ9: 2033 | BK9: 2033 | BL9: 2033 | BM9: 2034 | BN9: 2034 | BO9: 2034 | BP9: 2034 | BQ9: 2035 | BR9: 2035 | BS9: 2035 | BT9: 2035 | BU9: =YEAR(BU3) -> 2036 | BV9: 2036 | BW9: 2036 | BX9: 2036 | BY9: 2037 | BZ9: 2037 | CA9: 2037 | CB9: 2037 | CC9: 2038 | CD9: 2038 | CE9: 2038 | CF9: 2038 | CG9: 2039 | CH9: 2039 | CI9: 2039 | CJ9: 2039 | CK9: 2040 | CL9: 2040 | CM9: 2040 | CN9: 2040 | CO9: 2041 | CP9: 2041 | CQ9: 2041 | CR9: 2041 | CS9: 2042 | CT9: 2042 | CU9: 2042 | CV9: 2042 | CW9: 2043 | CX9: 2043 | CY9: 2043 | CZ9: 2043 | DA9: =YEAR(DA3) -> 2044 | DB9: 2044 | DC9: 2044 | DD9: 2044 | DE9: 2045 | DF9: 2045 | DG9: 2045 | DH9: 2045 | DI9: 2046 | DJ9: 2046 | DK9: 2046 | DL9: 2046 | DM9: 2047 | DN9: 2047 | DO9: 2047 | DP9: 2047 | DQ9: 2048 | DR9: 2048 | DS9: 2048 | DT9: 2048 | DU9: 2049 | DV9: 2049 | DW9: 2049 | DX9: 2049 | DY9: 2050 | DZ9: 2050 | EA9: 2050 | EB9: 2050 | EC9: 2051 | ED9: 2051 | EE9: 2051 | EF9: 2051 | EG9: =YEAR(EG3) -> 2052 | EH9: 2052 | EI9: 2052 | EJ9: 2052 | EK9: 2053 | EL9: 2053 | EM9: 2053 | EN9: 2053 | EO9: 2054 | EP9: 2054 | EQ9: 2054 | ER9: 2054 | ES9: 2055 | ET9: 2055 | EU9: 2055 | EV9: 2055 | EW9: 2056 | EX9: 2056 | EY9: 2056 | EZ9: 2056 | FA9: 2057 | FB9: 2057 | FC9: 2057 | FD9: 2057 | FE9: 2058 | FF9: 2058 | FG9: 2058 | FH9: 2058 | FI9: 2059 | FJ9: 2059 | FK9: 2059 | FL9: 2059 | FM9: =YEAR(FM3) -> 2060 | FN9: 2060 | FO9: 2060 | FP9: 2060 | FQ9: 2061 | FR9: 2061 | FS9: 2061
C10: Days in Period | I10: =I3-I2+1 -> 91 | J10: 91 | K10: 92 | L10: 92 | M10: 90 | N10: 91 | O10: 92 | P10: 92 | Q10: 90 | R10: 91 | S10: 92 | T10: 92 | U10: 90 | V10: 91 | W10: 92 | X10: 92 | Y10: 91 | Z10: 91 | AA10: 92 | AB10: 92 | AC10: 90 | AD10: 91 | AE10: 92 | AF10: 92 | AG10: 90 | AH10: 91 | AI10: 92 | AJ10: 92 | AK10: 90 | AL10: 91 | AM10: 92 | AN10: 92 | AO10: =AO3-AO2+1 -> 91 | AP10: 91 | AQ10: 92 | AR10: 92 | AS10: 90 | AT10: 91 | AU10: 92 | AV10: 92 | AW10: 90 | AX10: 91 | AY10: 92 | AZ10: 92 | BA10: 90 | BB10: 91 | BC10: 92 | BD10: 92 | BE10: 91 | BF10: 91 | BG10: 92 | BH10: 92 | BI10: 90 | BJ10: 91 | BK10: 92 | BL10: 92 | BM10: 90 | BN10: 91 | BO10: 92 | BP10: 92 | BQ10: 90 | BR10: 91 | BS10: 92 | BT10: 92 | BU10: =BU3-BU2+1 -> 91 | BV10: 91 | BW10: 92 | BX10: 92 | BY10: 90 | BZ10: 91 | CA10: 92 | CB10: 92 | CC10: 90 | CD10: 91 | CE10: 92 | CF10: 92 | CG10: 90 | CH10: 91 | CI10: 92 | CJ10: 92 | CK10: 91 | CL10: 91 | CM10: 92 | CN10: 92 | CO10: 90 | CP10: 91 | CQ10: 92 | CR10: 92 | CS10: 90 | CT10: 91 | CU10: 92 | CV10: 92 | CW10: 90 | CX10: 91 | CY10: 92 | CZ10: 92 | DA10: =DA3-DA2+1 -> 91 | DB10: 91 | DC10: 92 | DD10: 92 | DE10: 90 | DF10: 91 | DG10: 92 | DH10: 92 | DI10: 90 | DJ10: 91 | DK10: 92 | DL10: 92 | DM10: 90 | DN10: 91 | DO10: 92 | DP10: 92 | DQ10: 91 | DR10: 91 | DS10: 92 | DT10: 92 | DU10: 90 | DV10: 91 | DW10: 92 | DX10: 92 | DY10: 90 | DZ10: 91 | EA10: 92 | EB10: 92 | EC10: 90 | ED10: 91 | EE10: 92 | EF10: 92 | EG10: =EG3-EG2+1 -> 91 | EH10: 91 | EI10: 92 | EJ10: 92 | EK10: 90 | EL10: 91 | EM10: 92 | EN10: 92 | EO10: 90 | EP10: 91 | EQ10: 92 | ER10: 92 | ES10: 90 | ET10: 91 | EU10: 92 | EV10: 92 | EW10: 91 | EX10: 91 | EY10: 92 | EZ10: 92 | FA10: 90 | FB10: 91 | FC10: 92 | FD10: 92 | FE10: 90 | FF10: 91 | FG10: 92 | FH10: 92 | FI10: 90 | FJ10: 91 | FK10: 92 | FL10: 92 | FM10: =FM3-FM2+1 -> 91 | FN10: 91 | FO10: 92 | FP10: 92 | FQ10: 90 | FR10: 91 | FS10: 92
C11: Development quarter | I11: =(H11+1)*I4 -> 1 | J11: 2 | K11: 3 | L11: 4 | M11: 0 | N11: 0 | O11: 0 | P11: 0 | Q11: 0 | R11: 0 | S11: 0 | T11: 0 | U11: 0 | V11: 0 | W11: 0 | X11: 0 | Y11: 0 | Z11: 0 | AA11: 0 | AB11: 0 | AC11: 0 | AD11: 0 | AE11: 0 | AF11: 0 | AG11: 0 | AH11: 0 | AI11: 0 | AJ11: 0 | AK11: 0 | AL11: 0 | AM11: 0 | AN11: 0 | AO11: =(AN11+1)*AO4 -> 0 | AP11: 0 | AQ11: 0 | AR11: 0 | AS11: 0 | AT11: 0 | AU11: 0 | AV11: 0 | AW11: 0 | AX11: 0 | AY11: 0 | AZ11: 0 | BA11: 0 | BB11: 0 | BC11: 0 | BD11: 0 | BE11: 0 | BF11: 0 | BG11: 0 | BH11: 0 | BI11: 0 | BJ11: 0 | BK11: 0 | BL11: 0 | BM11: 0 | BN11: 0 | BO11: 0 | BP11: 0 | BQ11: 0 | BR11: 0 | BS11: 0 | BT11: 0 | BU11: =(BT11+1)*BU4 -> 0 | BV11: 0 | BW11: 0 | BX11: 0 | BY11: 0 | BZ11: 0 | CA11: 0 | CB11: 0 | CC11: 0 | CD11: 0 | CE11: 0 | CF11: 0 | CG11: 0 | CH11: 0 | CI11: 0 | CJ11: 0 | CK11: 0 | CL11: 0 | CM11: 0 | CN11: 0 | CO11: 0 | CP11: 0 | CQ11: 0 | CR11: 0 | CS11: 0 | CT11: 0 | CU11: 0 | CV11: 0 | CW11: 0 | CX11: 0 | CY11: 0 | CZ11: 0 | DA11: =(CZ11+1)*DA4 -> 0 | DB11: 0 | DC11: 0 | DD11: 0 | DE11: 0 | DF11: 0 | DG11: 0 | DH11: 0 | DI11: 0 | DJ11: 0 | DK11: 0 | DL11: 0 | DM11: 0 | DN11: 0 | DO11: 0 | DP11: 0 | DQ11: 0 | DR11: 0 | DS11: 0 | DT11: 0 | DU11: 0 | DV11: 0 | DW11: 0 | DX11: 0 | DY11: 0 | DZ11: 0 | EA11: 0 | EB11: 0 | EC11: 0 | ED11: 0 | EE11: 0 | EF11: 0 | EG11: =(EF11+1)*EG4 -> 0 | EH11: 0 | EI11: 0 | EJ11: 0 | EK11: 0 | EL11: 0 | EM11: 0 | EN11: 0 | EO11: 0 | EP11: 0 | EQ11: 0 | ER11: 0 | ES11: 0 | ET11: 0 | EU11: 0 | EV11: 0 | EW11: 0 | EX11: 0 | EY11: 0 | EZ11: 0 | FA11: 0 | FB11: 0 | FC11: 0 | FD11: 0 | FE11: 0 | FF11: 0 | FG11: 0 | FH11: 0 | FI11: 0 | FJ11: 0 | FK11: 0 | FL11: 0 | FM11: =(FL11+1)*FM4 -> 0 | FN11: 0 | FO11: 0 | FP11: 0 | FQ11: 0 | FR11: 0 | FS11: 0
C12: Construction Quarter | I12: =(H12+1)*I5 -> 0 | J12: 0 | K12: 0 | L12: 0 | M12: 1 | N12: 2 | O12: 3 | P12: 4 | Q12: 0 | R12: 0 | S12: 0 | T12: 0 | U12: 0 | V12: 0 | W12: 0 | X12: 0 | Y12: 0 | Z12: 0 | AA12: 0 | AB12: 0 | AC12: 0 | AD12: 0 | AE12: 0 | AF12: 0 | AG12: 0 | AH12: 0 | AI12: 0 | AJ12: 0 | AK12: 0 | AL12: 0 | AM12: 0 | AN12: 0 | AO12: =(AN12+1)*AO5 -> 0 | AP12: 0 | AQ12: 0 | AR12: 0 | AS12: 0 | AT12: 0 | AU12: 0 | AV12: 0 | AW12: 0 | AX12: 0 | AY12: 0 | AZ12: 0 | BA12: 0 | BB12: 0 | BC12: 0 | BD12: 0 | BE12: 0 | BF12: 0 | BG12: 0 | BH12: 0 | BI12: 0 | BJ12: 0 | BK12: 0 | BL12: 0 | BM12: 0 | BN12: 0 | BO12: 0 | BP12: 0 | BQ12: 0 | BR12: 0 | BS12: 0 | BT12: 0 | BU12: =(BT12+1)*BU5 -> 0 | BV12: 0 | BW12: 0 | BX12: 0 | BY12: 0 | BZ12: 0 | CA12: 0 | CB12: 0 | CC12: 0 | CD12: 0 | CE12: 0 | CF12: 0 | CG12: 0 | CH12: 0 | CI12: 0 | CJ12: 0 | CK12: 0 | CL12: 0 | CM12: 0 | CN12: 0 | CO12: 0 | CP12: 0 | CQ12: 0 | CR12: 0 | CS12: 0 | CT12: 0 | CU12: 0 | CV12: 0 | CW12: 0 | CX12: 0 | CY12: 0 | CZ12: 0 | DA12: =(CZ12+1)*DA5 -> 0 | DB12: 0 | DC12: 0 | DD12: 0 | DE12: 0 | DF12: 0 | DG12: 0 | DH12: 0 | DI12: 0 | DJ12: 0 | DK12: 0 | DL12: 0 | DM12: 0 | DN12: 0 | DO12: 0 | DP12: 0 | DQ12: 0 | DR12: 0 | DS12: 0 | DT12: 0 | DU12: 0 | DV12: 0 | DW12: 0 | DX12: 0 | DY12: 0 | DZ12: 0 | EA12: 0 | EB12: 0 | EC12: 0 | ED12: 0 | EE12: 0 | EF12: 0 | EG12: =(EF12+1)*EG5 -> 0 | EH12: 0 | EI12: 0 | EJ12: 0 | EK12: 0 | EL12: 0 | EM12: 0 | EN12: 0 | EO12: 0 | EP12: 0 | EQ12: 0 | ER12: 0 | ES12: 0 | ET12: 0 | EU12: 0 | EV12: 0 | EW12: 0 | EX12: 0 | EY12: 0 | EZ12: 0 | FA12: 0 | FB12: 0 | FC12: 0 | FD12: 0 | FE12: 0 | FF12: 0 | FG12: 0 | FH12: 0 | FI12: 0 | FJ12: 0 | FK12: 0 | FL12: 0 | FM12: =(FL12+1)*FM5 -> 0 | FN12: 0 | FO12: 0 | FP12: 0 | FQ12: 0 | FR12: 0 | FS12: 0
C13: Operations Quarter | I13: =(H13+1)*I6 -> 0 | J13: 0 | K13: 0 | L13: 0 | M13: 0 | N13: 0 | O13: 0 | P13: 0 | Q13: 1 | R13: 2 | S13: 3 | T13: 4 | U13: 5 | V13: 6 | W13: 7 | X13: 8 | Y13: 9 | Z13: 10 | AA13: 11 | AB13: 12 | AC13: 13 | AD13: 14 | AE13: 15 | AF13: 16 | AG13: 17 | AH13: 18 | AI13: 19 | AJ13: 20 | AK13: 21 | AL13: 22 | AM13: 23 | AN13: 24 | AO13: =(AN13+1)*AO6 -> 25 | AP13: 26 | AQ13: 27 | AR13: 28 | AS13: 29 | AT13: 30 | AU13: 31 | AV13: 32 | AW13: 33 | AX13: 34 | AY13: 35 | AZ13: 36 | BA13: 37 | BB13: 38 | BC13: 39 | BD13: 40 | BE13: 41 | BF13: 42 | BG13: 43 | BH13: 44 | BI13: 45 | BJ13: 46 | BK13: 47 | BL13: 48 | BM13: 49 | BN13: 50 | BO13: 51 | BP13: 52 | BQ13: 53 | BR13: 54 | BS13: 55 | BT13: 56 | BU13: =(BT13+1)*BU6 -> 57 | BV13: 58 | BW13: 59 | BX13: 60 | BY13: 61 | BZ13: 62 | CA13: 63 | CB13: 64 | CC13: 65 | CD13: 66 | CE13: 67 | CF13: 68 | CG13: 69 | CH13: 70 | CI13: 71 | CJ13: 72 | CK13: 73 | CL13: 74 | CM13: 75 | CN13: 76 | CO13: 77 | CP13: 78 | CQ13: 79 | CR13: 80 | CS13: 81 | CT13: 82 | CU13: 83 | CV13: 84 | CW13: 85 | CX13: 86 | CY13: 87 | CZ13: 88 | DA13: =(CZ13+1)*DA6 -> 89 | DB13: 90 | DC13: 91 | DD13: 92 | DE13: 93 | DF13: 94 | DG13: 95 | DH13: 96 | DI13: 97 | DJ13: 98 | DK13: 99 | DL13: 100 | DM13: 101 | DN13: 102 | DO13: 103 | DP13: 104 | DQ13: 105 | DR13: 106 | DS13: 107 | DT13: 108 | DU13: 109 | DV13: 110 | DW13: 111 | DX13: 112 | DY13: 113 | DZ13: 114 | EA13: 115 | EB13: 116 | EC13: 117 | ED13: 118 | EE13: 119 | EF13: 120 | EG13: =(EF13+1)*EG6 -> 121 | EH13: 122 | EI13: 123 | EJ13: 124 | EK13: 125 | EL13: 126 | EM13: 127 | EN13: 128 | EO13: 129 | EP13: 130 | EQ13: 131 | ER13: 132 | ES13: 133 | ET13: 134 | EU13: 135 | EV13: 136 | EW13: 137 | EX13: 138 | EY13: 139 | EZ13: 140 | FA13: 0 | FB13: 0 | FC13: 0 | FD13: 0 | FE13: 0 | FF13: 0 | FG13: 0 | FH13: 0 | FI13: 0 | FJ13: 0 | FK13: 0 | FL13: 0 | FM13: =(FL13+1)*FM6 -> 0 | FN13: 0 | FO13: 0 | FP13: 0 | FQ13: 0 | FR13: 0 | FS13: 0
C14: Operations Year | I14: =ROUNDUP(I13/4,0) -> 0 | J14: 0 | K14: 0 | L14: 0 | M14: 0 | N14: 0 | O14: 0 | P14: 0 | Q14: 1 | R14: 1 | S14: 1 | T14: 1 | U14: 2 | V14: 2 | W14: 2 | X14: 2 | Y14: 3 | Z14: 3 | AA14: 3 | AB14: 3 | AC14: 4 | AD14: 4 | AE14: 4 | AF14: 4 | AG14: 5 | AH14: 5 | AI14: 5 | AJ14: 5 | AK14: 6 | AL14: 6 | AM14: 6 | AN14: 6 | AO14: =ROUNDUP(AO13/4,0) -> 7 | AP14: 7 | AQ14: 7 | AR14: 7 | AS14: 8 | AT14: 8 | AU14: 8 | AV14: 8 | AW14: 9 | AX14: 9 | AY14: 9 | AZ14: 9 | BA14: 10 | BB14: 10 | BC14: 10 | BD14: 10 | BE14: 11 | BF14: 11 | BG14: 11 | BH14: 11 | BI14: 12 | BJ14: 12 | BK14: 12 | BL14: 12 | BM14: 13 | BN14: 13 | BO14: 13 | BP14: 13 | BQ14: 14 | BR14: 14 | BS14: 14 | BT14: 14 | BU14: =ROUNDUP(BU13/4,0) -> 15 | BV14: 15 | BW14: 15 | BX14: 15 | BY14: 16 | BZ14: 16 | CA14: 16 | CB14: 16 | CC14: 17 | CD14: 17 | CE14: 17 | CF14: 17 | CG14: 18 | CH14: 18 | CI14: 18 | CJ14: 18 | CK14: 19 | CL14: 19 | CM14: 19 | CN14: 19 | CO14: 20 | CP14: 20 | CQ14: 20 | CR14: 20 | CS14: 21 | CT14: 21 | CU14: 21 | CV14: 21 | CW14: 22 | CX14: 22 | CY14: 22 | CZ14: 22 | DA14: =ROUNDUP(DA13/4,0) -> 23 | DB14: 23 | DC14: 23 | DD14: 23 | DE14: 24 | DF14: 24 | DG14: 24 | DH14: 24 | DI14: 25 | DJ14: 25 | DK14: 25 | DL14: 25 | DM14: 26 | DN14: 26 | DO14: 26 | DP14: 26 | DQ14: 27 | DR14: 27 | DS14: 27 | DT14: 27 | DU14: 28 | DV14: 28 | DW14: 28 | DX14: 28 | DY14: 29 | DZ14: 29 | EA14: 29 | EB14: 29 | EC14: 30 | ED14: 30 | EE14: 30 | EF14: 30 | EG14: =ROUNDUP(EG13/4,0) -> 31 | EH14: 31 | EI14: 31 | EJ14: 31 | EK14: 32 | EL14: 32 | EM14: 32 | EN14: 32 | EO14: 33 | EP14: 33 | EQ14: 33 | ER14: 33 | ES14: 34 | ET14: 34 | EU14: 34 | EV14: 34 | EW14: 35 | EX14: 35 | EY14: 35 | EZ14: 35 | FA14: 0 | FB14: 0 | FC14: 0 | FD14: 0 | FE14: 0 | FF14: 0 | FG14: 0 | FH14: 0 | FI14: 0 | FJ14: 0 | FK14: 0 | FL14: 0 | FM14: =ROUNDUP(FM13/4,0) -> 0 | FN14: 0 | FO14: 0 | FP14: 0 | FQ14: 0 | FR14: 0 | FS14: 0
C15: Escalation Counter | I15: =IF(I14=0,0,I14-1) -> 0 | J15: 0 | K15: 0 | L15: 0 | M15: 0 | N15: 0 | O15: 0 | P15: 0 | Q15: 0 | R15: 0 | S15: 0 | T15: 0 | U15: 1 | V15: 1 | W15: 1 | X15: 1 | Y15: 2 | Z15: 2 | AA15: 2 | AB15: 2 | AC15: 3 | AD15: 3 | AE15: 3 | AF15: 3 | AG15: 4 | AH15: 4 | AI15: 4 | AJ15: 4 | AK15: 5 | AL15: 5 | AM15: 5 | AN15: 5 | AO15: =IF(AO14=0,0,AO14-1) -> 6 | AP15: 6 | AQ15: 6 | AR15: 6 | AS15: 7 | AT15: 7 | AU15: 7 | AV15: 7 | AW15: 8 | AX15: 8 | AY15: 8 | AZ15: 8 | BA15: 9 | BB15: 9 | BC15: 9 | BD15: 9 | BE15: 10 | BF15: 10 | BG15: 10 | BH15: 10 | BI15: 11 | BJ15: 11 | BK15: 11 | BL15: 11 | BM15: 12 | BN15: 12 | BO15: 12 | BP15: 12 | BQ15: 13 | BR15: 13 | BS15: 13 | BT15: 13 | BU15: =IF(BU14=0,0,BU14-1) -> 14 | BV15: 14 | BW15: 14 | BX15: 14 | BY15: 15 | BZ15: 15 | CA15: 15 | CB15: 15 | CC15: 16 | CD15: 16 | CE15: 16 | CF15: 16 | CG15: 17 | CH15: 17 | CI15: 17 | CJ15: 17 | CK15: 18 | CL15: 18 | CM15: 18 | CN15: 18 | CO15: 19 | CP15: 19 | CQ15: 19 | CR15: 19 | CS15: 20 | CT15: 20 | CU15: 20 | CV15: 20 | CW15: 21 | CX15: 21 | CY15: 21 | CZ15: 21 | DA15: =IF(DA14=0,0,DA14-1) -> 22 | DB15: 22 | DC15: 22 | DD15: 22 | DE15: 23 | DF15: 23 | DG15: 23 | DH15: 23 | DI15: 24 | DJ15: 24 | DK15: 24 | DL15: 24 | DM15: 25 | DN15: 25 | DO15: 25 | DP15: 25 | DQ15: 26 | DR15: 26 | DS15: 26 | DT15: 26 | DU15: 27 | DV15: 27 | DW15: 27 | DX15: 27 | DY15: 28 | DZ15: 28 | EA15: 28 | EB15: 28 | EC15: 29 | ED15: 29 | EE15: 29 | EF15: 29 | EG15: =IF(EG14=0,0,EG14-1) -> 30 | EH15: 30 | EI15: 30 | EJ15: 30 | EK15: 31 | EL15: 31 | EM15: 31 | EN15: 31 | EO15: 32 | EP15: 32 | EQ15: 32 | ER15: 32 | ES15: 33 | ET15: 33 | EU15: 33 | EV15: 33 | EW15: 34 | EX15: 34 | EY15: 34 | EZ15: 34 | FA15: 0 | FB15: 0 | FC15: 0 | FD15: 0 | FE15: 0 | FF15: 0 | FG15: 0 | FH15: 0 | FI15: 0 | FJ15: 0 | FK15: 0 | FL15: 0 | FM15: =IF(FM14=0,0,FM14-1) -> 0 | FN15: 0 | FO15: 0 | FP15: 0 | FQ15: 0 | FR15: 0 | FS15: 0
B17: Generation at P50
C18: Month Number | I18: =MONTH(I2) -> 1 | J18: =MONTH(J2) -> 4 | K18: 7 | L18: 10 | M18: 1 | N18: 4 | O18: 7 | P18: 10 | Q18: 1 | R18: 4 | S18: 7 | T18: 10 | U18: 1 | V18: 4 | W18: 7 | X18: 10 | Y18: 1 | Z18: 4 | AA18: 7 | AB18: 10 | AC18: 1 | AD18: 4 | AE18: 7 | AF18: 10 | AG18: 1 | AH18: 4 | AI18: 7 | AJ18: 10 | AK18: 1 | AL18: 4 | AM18: 7 | AN18: 10 | AO18: 1 | AP18: 4 | AQ18: 7 | AR18: 10 | AS18: 1 | AT18: 4 | AU18: 7 | AV18: 10 | AW18: 1 | AX18: 4 | AY18: 7 | AZ18: 10 | BA18: 1 | BB18: 4 | BC18: 7 | BD18: 10 | BE18: 1 | BF18: 4 | BG18: 7 | BH18: 10 | BI18: 1 | BJ18: 4 | BK18: 7 | BL18: 10 | BM18: 1 | BN18: 4 | BO18: 7 | BP18: 10 | BQ18: 1 | BR18: 4 | BS18: 7 | BT18: 10 | BU18: 1 | BV18: =MONTH(BV2) -> 4 | BW18: 7 | BX18: 10 | BY18: 1 | BZ18: 4 | CA18: 7 | CB18: 10 | CC18: 1 | CD18: 4 | CE18: 7 | CF18: 10 | CG18: 1 | CH18: 4 | CI18: 7 | CJ18: 10 | CK18: 1 | CL18: 4 | CM18: 7 | CN18: 10 | CO18: 1 | CP18: 4 | CQ18: 7 | CR18: 10 | CS18: 1 | CT18: 4 | CU18: 7 | CV18: 10 | CW18: 1 | CX18: 4 | CY18: 7 | CZ18: 10 | DA18: 1 | DB18: 4 | DC18: 7 | DD18: 10 | DE18: 1 | DF18: 4 | DG18: 7 | DH18: 10 | DI18: 1 | DJ18: 4 | DK18: 7 | DL18: 10 | DM18: 1 | DN18: 4 | DO18: 7 | DP18: 10 | DQ18: 1 | DR18: 4 | DS18: 7 | DT18: 10 | DU18: 1 | DV18: 4 | DW18: 7 | DX18: 10 | DY18: 1 | DZ18: 4 | EA18: 7 | EB18: 10 | EC18: 1 | ED18: 4 | EE18: 7 | EF18: 10 | EG18: 1 | EH18: =MONTH(EH2) -> 4 | EI18: 7 | EJ18: 10 | EK18: 1 | EL18: 4 | EM18: 7 | EN18: 10 | EO18: 1 | EP18: 4 | EQ18: 7 | ER18: 10 | ES18: 1 | ET18: 4 | EU18: 7 | EV18: 10 | EW18: 1 | EX18: 4 | EY18: 7 | EZ18: 10 | FA18: 1 | FB18: 4 | FC18: 7 | FD18: 10 | FE18: 1 | FF18: 4 | FG18: 7 | FH18: 10 | FI18: 1 | FJ18: 4 | FK18: 7 | FL18: 10 | FM18: 1 | FN18: 4 | FO18: 7 | FP18: 10 | FQ18: 1 | FR18: 4 | FS18: 7
C19: Quarter Number | I19: =ROUNDUP(I18/3,0) -> 1 | J19: =ROUNDUP(J18/3,0) -> 2 | K19: 3 | L19: 4 | M19: 1 | N19: 2 | O19: 3 | P19: 4 | Q19: 1 | R19: 2 | S19: 3 | T19: 4 | U19: 1 | V19: 2 | W19: 3 | X19: 4 | Y19: 1 | Z19: 2 | AA19: 3 | AB19: 4 | AC19: 1 | AD19: 2 | AE19: 3 | AF19: 4 | AG19: 1 | AH19: 2 | AI19: 3 | AJ19: 4 | AK19: 1 | AL19: 2 | AM19: 3 | AN19: 4 | AO19: 1 | AP19: 2 | AQ19: 3 | AR19: 4 | AS19: 1 | AT19: 2 | AU19: 3 | AV19: 4 | AW19: 1 | AX19: 2 | AY19: 3 | AZ19: 4 | BA19: 1 | BB19: 2 | BC19: 3 | BD19: 4 | BE19: 1 | BF19: 2 | BG19: 3 | BH19: 4 | BI19: 1 | BJ19: 2 | BK19: 3 | BL19: 4 | BM19: 1 | BN19: 2 | BO19: 3 | BP19: 4 | BQ19: 1 | BR19: 2 | BS19: 3 | BT19: 4 | BU19: 1 | BV19: =ROUNDUP(BV18/3,0) -> 2 | BW19: 3 | BX19: 4 | BY19: 1 | BZ19: 2 | CA19: 3 | CB19: 4 | CC19: 1 | CD19: 2 | CE19: 3 | CF19: 4 | CG19: 1 | CH19: 2 | CI19: 3 | CJ19: 4 | CK19: 1 | CL19: 2 | CM19: 3 | CN19: 4 | CO19: 1 | CP19: 2 | CQ19: 3 | CR19: 4 | CS19: 1 | CT19: 2 | CU19: 3 | CV19: 4 | CW19: 1 | CX19: 2 | CY19: 3 | CZ19: 4 | DA19: 1 | DB19: 2 | DC19: 3 | DD19: 4 | DE19: 1 | DF19: 2 | DG19: 3 | DH19: 4 | DI19: 1 | DJ19: 2 | DK19: 3 | DL19: 4 | DM19: 1 | DN19: 2 | DO19: 3 | DP19: 4 | DQ19: 1 | DR19: 2 | DS19: 3 | DT19: 4 | DU19: 1 | DV19: 2 | DW19: 3 | DX19: 4 | DY19: 1 | DZ19: 2 | EA19: 3 | EB19: 4 | EC19: 1 | ED19: 2 | EE19: 3 | EF19: 4 | EG19: 1 | EH19: =ROUNDUP(EH18/3,0) -> 2 | EI19: 3 | EJ19: 4 | EK19: 1 | EL19: 2 | EM19: 3 | EN19: 4 | EO19: 1 | EP19: 2 | EQ19: 3 | ER19: 4 | ES19: 1 | ET19: 2 | EU19: 3 | EV19: 4 | EW19: 1 | EX19: 2 | EY19: 3 | EZ19: 4 | FA19: 1 | FB19: 2 | FC19: 3 | FD19: 4 | FE19: 1 | FF19: 2 | FG19: 3 | FH19: 4 | FI19: 1 | FJ19: 2 | FK19: 3 | FL19: 4 | FM19: 1 | FN19: 2 | FO19: 3 | FP19: 4 | FQ19: 1 | FR19: 2 | FS19: 3
C21: Rated capacity | D21: MWp | E21: ='Inputs - Partnership'!E52 -> 225 | I21: =$E$21*I6 -> 0 | J21: 0 | K21: 0 | L21: 0 | M21: 0 | N21: 0 | O21: 0 | P21: 0 | Q21: 225 | R21: 225 | S21: 225 | T21: 225 | U21: 225 | V21: 225 | W21: 225 | X21: 225 | Y21: 225 | Z21: 225 | AA21: 225 | AB21: 225 | AC21: 225 | AD21: 225 | AE21: 225 | AF21: 225 | AG21: 225 | AH21: 225 | AI21: 225 | AJ21: 225 | AK21: 225 | AL21: 225 | AM21: 225 | AN21: 225 | AO21: =$E$21*AO6 -> 225 | AP21: 225 | AQ21: 225 | AR21: 225 | AS21: 225 | AT21: 225 | AU21: 225 | AV21: 225 | AW21: 225 | AX21: 225 | AY21: 225 | AZ21: 225 | BA21: 225 | BB21: 225 | BC21: 225 | BD21: 225 | BE21: 225 | BF21: 225 | BG21: 225 | BH21: 225 | BI21: 225 | BJ21: 225 | BK21: 225 | BL21: 225 | BM21: 225 | BN21: 225 | BO21: 225 | BP21: 225 | BQ21: 225 | BR21: 225 | BS21: 225 | BT21: 225 | BU21: =$E$21*BU6 -> 225 | BV21: 225 | BW21: 225 | BX21: 225 | BY21: 225 | BZ21: 225 | CA21: 225 | CB21: 225 | CC21: 225 | CD21: 225 | CE21: 225 | CF21: 225 | CG21: 225 | CH21: 225 | CI21: 225 | CJ21: 225 | CK21: 225 | CL21: 225 | CM21: 225 | CN21: 225 | CO21: 225 | CP21: 225 | CQ21: 225 | CR21: 225 | CS21: 225 | CT21: 225 | CU21: 225 | CV21: 225 | CW21: 225 | CX21: 225 | CY21: 225 | CZ21: 225 | DA21: =$E$21*DA6 -> 225 | DB21: 225 | DC21: 225 | DD21: 225 | DE21: 225 | DF21: 225 | DG21: 225 | DH21: 225 | DI21: 225 | DJ21: 225 | DK21: 225 | DL21: 225 | DM21: 225 | DN21: 225 | DO21: 225 | DP21: 225 | DQ21: 225 | DR21: 225 | DS21: 225 | DT21: 225 | DU21: 225 | DV21: 225 | DW21: 225 | DX21: 225 | DY21: 225 | DZ21: 225 | EA21: 225 | EB21: 225 | EC21: 225 | ED21: 225 | EE21: 225 | EF21: 225 | EG21: =$E$21*EG6 -> 225 | EH21: 225 | EI21: 225 | EJ21: 225 | EK21: 225 | EL21: 225 | EM21: 225 | EN21: 225 | EO21: 225 | EP21: 225 | EQ21: 225 | ER21: 225 | ES21: 225 | ET21: 225 | EU21: 225 | EV21: 225 | EW21: 225 | EX21: 225 | EY21: 225 | EZ21: 225 | FA21: 0 | FB21: 0 | FC21: 0 | FD21: 0 | FE21: 0 | FF21: 0 | FG21: 0 | FH21: 0 | FI21: 0 | FJ21: 0 | FK21: 0 | FL21: 0 | FM21: =$E$21*FM6 -> 0 | FN21: 0 | FO21: 0 | FP21: 0 | FQ21: 0 | FR21: 0 | FS21: 0
C22: AC/DC Ratio | D22: Mwac | E22: =1/'Inputs - Partnership'!E53 -> 0.8064516129 | I22: =$E$22 -> 0.8064516129 | J22: =$E$22 -> 0.8064516129 | K22: 0.8064516129 | L22: 0.8064516129 | M22: 0.8064516129 | N22: 0.8064516129 | O22: 0.8064516129 | P22: 0.8064516129 | Q22: 0.8064516129 | R22: 0.8064516129 | S22: 0.8064516129 | T22: 0.8064516129 | U22: 0.8064516129 | V22: 0.8064516129 | W22: 0.8064516129 | X22: 0.8064516129 | Y22: 0.8064516129 | Z22: 0.8064516129 | AA22: 0.8064516129 | AB22: 0.8064516129 | AC22: 0.8064516129 | AD22: 0.8064516129 | AE22: 0.8064516129 | AF22: 0.8064516129 | AG22: 0.8064516129 | AH22: 0.8064516129 | AI22: 0.8064516129 | AJ22: 0.8064516129 | AK22: 0.8064516129 | AL22: 0.8064516129 | AM22: 0.8064516129 | AN22: 0.8064516129 | AO22: 0.8064516129 | AP22: 0.8064516129 | AQ22: 0.8064516129 | AR22: 0.8064516129 | AS22: 0.8064516129 | AT22: 0.8064516129 | AU22: 0.8064516129 | AV22: 0.8064516129 | AW22: 0.8064516129 | AX22: 0.8064516129 | AY22: 0.8064516129 | AZ22: 0.8064516129 | BA22: 0.8064516129 | BB22: 0.8064516129 | BC22: 0.8064516129 | BD22: 0.8064516129 | BE22: 0.8064516129 | BF22: 0.8064516129 | BG22: 0.8064516129 | BH22: 0.8064516129 | BI22: 0.8064516129 | BJ22: 0.8064516129 | BK22: 0.8064516129 | BL22: 0.8064516129 | BM22: 0.8064516129 | BN22: 0.8064516129 | BO22: 0.8064516129 | BP22: 0.8064516129 | BQ22: 0.8064516129 | BR22: 0.8064516129 | BS22: 0.8064516129 | BT22: 0.8064516129 | BU22: 0.8064516129 | BV22: =$E$22 -> 0.8064516129 | BW22: 0.8064516129 | BX22: 0.8064516129 | BY22: 0.8064516129 | BZ22: 0.8064516129 | CA22: 0.8064516129 | CB22: 0.8064516129 | CC22: 0.8064516129 | CD22: 0.8064516129 | CE22: 0.8064516129 | CF22: 0.8064516129 | CG22: 0.8064516129 | CH22: 0.8064516129 | CI22: 0.8064516129 | CJ22: 0.8064516129 | CK22: 0.8064516129 | CL22: 0.8064516129 | CM22: 0.8064516129 | CN22: 0.8064516129 | CO22: 0.8064516129 | CP22: 0.8064516129 | CQ22: 0.8064516129 | CR22: 0.8064516129 | CS22: 0.8064516129 | CT22: 0.8064516129 | CU22: 0.8064516129 | CV22: 0.8064516129 | CW22: 0.8064516129 | CX22: 0.8064516129 | CY22: 0.8064516129 | CZ22: 0.8064516129 | DA22: 0.8064516129 | DB22: 0.8064516129 | DC22: 0.8064516129 | DD22: 0.8064516129 | DE22: 0.8064516129 | DF22: 0.8064516129 | DG22: 0.8064516129 | DH22: 0.8064516129 | DI22: 0.8064516129 | DJ22: 0.8064516129 | DK22: 0.8064516129 | DL22: 0.8064516129 | DM22: 0.8064516129 | DN22: 0.8064516129 | DO22: 0.8064516129 | DP22: 0.8064516129 | DQ22: 0.8064516129 | DR22: 0.8064516129 | DS22: 0.8064516129 | DT22: 0.8064516129 | DU22: 0.8064516129 | DV22: 0.8064516129 | DW22: 0.8064516129 | DX22: 0.8064516129 | DY22: 0.8064516129 | DZ22: 0.8064516129 | EA22: 0.8064516129 | EB22: 0.8064516129 | EC22: 0.8064516129 | ED22: 0.8064516129 | EE22: 0.8064516129 | EF22: 0.8064516129 | EG22: 0.8064516129 | EH22: =$E$22 -> 0.8064516129 | EI22: 0.8064516129 | EJ22: 0.8064516129 | EK22: 0.8064516129 | EL22: 0.8064516129 | EM22: 0.8064516129 | EN22: 0.8064516129 | EO22: 0.8064516129 | EP22: 0.8064516129 | EQ22: 0.8064516129 | ER22: 0.8064516129 | ES22: 0.8064516129 | ET22: 0.8064516129 | EU22: 0.8064516129 | EV22: 0.8064516129 | EW22: 0.8064516129 | EX22: 0.8064516129 | EY22: 0.8064516129 | EZ22: 0.8064516129 | FA22: 0.8064516129 | FB22: 0.8064516129 | FC22: 0.8064516129 | FD22: 0.8064516129 | FE22: 0.8064516129 | FF22: 0.8064516129 | FG22: 0.8064516129 | FH22: 0.8064516129 | FI22: 0.8064516129 | FJ22: 0.8064516129 | FK22: 0.8064516129 | FL22: 0.8064516129 | FM22: 0.8064516129 | FN22: 0.8064516129 | FO22: 0.8064516129 | FP22: 0.8064516129 | FQ22: 0.8064516129 | FR22: 0.8064516129 | FS22: 0.8064516129
C23: Rated capacity | D23: MW | E23: =E21*E22 -> 181.4516129 | I23: =I21*I22 -> 0 | J23: =J21*J22 -> 0 | K23: 0 | L23: 0 | M23: 0 | N23: 0 | O23: 0 | P23: 0 | Q23: 181.4516129 | R23: 181.4516129 | S23: 181.4516129 | T23: 181.4516129 | U23: 181.4516129 | V23: 181.4516129 | W23: 181.4516129 | X23: 181.4516129 | Y23: 181.4516129 | Z23: 181.4516129 | AA23: 181.4516129 | AB23: 181.4516129 | AC23: 181.4516129 | AD23: 181.4516129 | AE23: 181.4516129 | AF23: 181.4516129 | AG23: 181.4516129 | AH23: 181.4516129 | AI23: 181.4516129 | AJ23: 181.4516129 | AK23: 181.4516129 | AL23: 181.4516129 | AM23: 181.4516129 | AN23: 181.4516129 | AO23: 181.4516129 | AP23: 181.4516129 | AQ23: 181.4516129 | AR23: 181.4516129 | AS23: 181.4516129 | AT23: 181.4516129 | AU23: 181.4516129 | AV23: 181.4516129 | AW23: 181.4516129 | AX23: 181.4516129 | AY23: 181.4516129 | AZ23: 181.4516129 | BA23: 181.4516129 | BB23: 181.4516129 | BC23: 181.4516129 | BD23: 181.4516129 | BE23: 181.4516129 | BF23: 181.4516129 | BG23: 181.4516129 | BH23: 181.4516129 | BI23: 181.4516129 | BJ23: 181.4516129 | BK23: 181.4516129 | BL23: 181.4516129 | BM23: 181.4516129 | BN23: 181.4516129 | BO23: 181.4516129 | BP23: 181.4516129 | BQ23: 181.4516129 | BR23: 181.4516129 | BS23: 181.4516129 | BT23: 181.4516129 | BU23: 181.4516129 | BV23: =BV21*BV22 -> 181.4516129 | BW23: 181.4516129 | BX23: 181.4516129 | BY23: 181.4516129 | BZ23: 181.4516129 | CA23: 181.4516129 | CB23: 181.4516129 | CC23: 181.4516129 | CD23: 181.4516129 | CE23: 181.4516129 | CF23: 181.4516129 | CG23: 181.4516129 | CH23: 181.4516129 | CI23: 181.4516129 | CJ23: 181.4516129 | CK23: 181.4516129 | CL23: 181.4516129 | CM23: 181.4516129 | CN23: 181.4516129 | CO23: 181.4516129 | CP23: 181.4516129 | CQ23: 181.4516129 | CR23: 181.4516129 | CS23: 181.4516129 | CT23: 181.4516129 | CU23: 181.4516129 | CV23: 181.4516129 | CW23: 181.4516129 | CX23: 181.4516129 | CY23: 181.4516129 | CZ23: 181.4516129 | DA23: 181.4516129 | DB23: 181.4516129 | DC23: 181.4516129 | DD23: 181.4516129 | DE23: 181.4516129 | DF23: 181.4516129 | DG23: 181.4516129 | DH23: 181.4516129 | DI23: 181.4516129 | DJ23: 181.4516129 | DK23: 181.4516129 | DL23: 181.4516129 | DM23: 181.4516129 | DN23: 181.4516129 | DO23: 181.4516129 | DP23: 181.4516129 | DQ23: 181.4516129 | DR23: 181.4516129 | DS23: 181.4516129 | DT23: 181.4516129 | DU23: 181.4516129 | DV23: 181.4516129 | DW23: 181.4516129 | DX23: 181.4516129 | DY23: 181.4516129 | DZ23: 181.4516129 | EA23: 181.4516129 | EB23: 181.4516129 | EC23: 181.4516129 | ED23: 181.4516129 | EE23: 181.4516129 | EF23: 181.4516129 | EG23: 181.4516129 | EH23: =EH21*EH22 -> 181.4516129 | EI23: 181.4516129 | EJ23: 181.4516129 | EK23: 181.4516129 | EL23: 181.4516129 | EM23: 181.4516129 | EN23: 181.4516129 | EO23: 181.4516129 | EP23: 181.4516129 | EQ23: 181.4516129 | ER23: 181.4516129 | ES23: 181.4516129 | ET23: 181.4516129 | EU23: 181.4516129 | EV23: 181.4516129 | EW23: 181.4516129 | EX23: 181.4516129 | EY23: 181.4516129 | EZ23: 181.4516129 | FA23: 0 | FB23: 0 | FC23: 0 | FD23: 0 | FE23: 0 | FF23: 0 | FG23: 0 | FH23: 0 | FI23: 0 | FJ23: 0 | FK23: 0 | FL23: 0 | FM23: 0 | FN23: 0 | FO23: 0 | FP23: 0 | FQ23: 0 | FR23: 0 | FS23: 0
C25: Days in Period | D25: Days | E25: 365 | I25: =$E$25 -> 365 | J25: =$E$25 -> 365 | K25: 365 | L25: 365 | M25: 365 | N25: 365 | O25: 365 | P25: 365 | Q25: 365 | R25: 365 | S25: 365 | T25: 365 | U25: 365 | V25: 365 | W25: 365 | X25: 365 | Y25: 365 | Z25: 365 | AA25: 365 | AB25: 365 | AC25: 365 | AD25: 365 | AE25: 365 | AF25: 365 | AG25: 365 | AH25: 365 | AI25: 365 | AJ25: 365 | AK25: 365 | AL25: 365 | AM25: 365 | AN25: 365 | AO25: 365 | AP25: 365 | AQ25: 365 | AR25: 365 | AS25: 365 | AT25: 365 | AU25: 365 | AV25: 365 | AW25: 365 | AX25: 365 | AY25: 365 | AZ25: 365 | BA25: 365 | BB25: 365 | BC25: 365 | BD25: 365 | BE25: 365 | BF25: 365 | BG25: 365 | BH25: 365 | BI25: 365 | BJ25: 365 | BK25: 365 | BL25: 365 | BM25: 365 | BN25: 365 | BO25: 365 | BP25: 365 | BQ25: 365 | BR25: 365 | BS25: 365 | BT25: 365 | BU25: 365 | BV25: =$E$25 -> 365 | BW25: 365 | BX25: 365 | BY25: 365 | BZ25: 365 | CA25: 365 | CB25: 365 | CC25: 365 | CD25: 365 | CE25: 365 | CF25: 365 | CG25: 365 | CH25: 365 | CI25: 365 | CJ25: 365 | CK25: 365 | CL25: 365 | CM25: 365 | CN25: 365 | CO25: 365 | CP25: 365 | CQ25: 365 | CR25: 365 | CS25: 365 | CT25: 365 | CU25: 365 | CV25: 365 | CW25: 365 | CX25: 365 | CY25: 365 | CZ25: 365 | DA25: 365 | DB25: 365 | DC25: 365 | DD25: 365 | DE25: 365 | DF25: 365 | DG25: 365 | DH25: 365 | DI25: 365 | DJ25: 365 | DK25: 365 | DL25: 365 | DM25: 365 | DN25: 365 | DO25: 365 | DP25: 365 | DQ25: 365 | DR25: 365 | DS25: 365 | DT25: 365 | DU25: 365 | DV25: 365 | DW25: 365 | DX25: 365 | DY25: 365 | DZ25: 365 | EA25: 365 | EB25: 365 | EC25: 365 | ED25: 365 | EE25: 365 | EF25: 365 | EG25: 365 | EH25: =$E$25 -> 365 | EI25: 365 | EJ25: 365 | EK25: 365 | EL25: 365 | EM25: 365 | EN25: 365 | EO25: 365 | EP25: 365 | EQ25: 365 | ER25: 365 | ES25: 365 | ET25: 365 | EU25: 365 | EV25: 365 | EW25: 365 | EX25: 365 | EY25: 365 | EZ25: 365 | FA25: 365 | FB25: 365 | FC25: 365 | FD25: 365 | FE25: 365 | FF25: 365 | FG25: 365 | FH25: 365 | FI25: 365 | FJ25: 365 | FK25: 365 | FL25: 365 | FM25: 365 | FN25: 365 | FO25: 365 | FP25: 365 | FQ25: 365 | FR25: 365 | FS25: 365
C26: Hours in Period | D26: Hours | I26: =I25*24 -> 8760 | J26: =J25*24 -> 8760 | K26: 8760 | L26: 8760 | M26: 8760 | N26: 8760 | O26: 8760 | P26: 8760 | Q26: 8760 | R26: 8760 | S26: 8760 | T26: 8760 | U26: 8760 | V26: 8760 | W26: 8760 | X26: 8760 | Y26: 8760 | Z26: 8760 | AA26: 8760 | AB26: 8760 | AC26: 8760 | AD26: 8760 | AE26: 8760 | AF26: 8760 | AG26: 8760 | AH26: 8760 | AI26: 8760 | AJ26: 8760 | AK26: 8760 | AL26: 8760 | AM26: 8760 | AN26: 8760 | AO26: 8760 | AP26: 8760 | AQ26: 8760 | AR26: 8760 | AS26: 8760 | AT26: 8760 | AU26: 8760 | AV26: 8760 | AW26: 8760 | AX26: 8760 | AY26: 8760 | AZ26: 8760 | BA26: 8760 | BB26: 8760 | BC26: 8760 | BD26: 8760 | BE26: 8760 | BF26: 8760 | BG26: 8760 | BH26: 8760 | BI26: 8760 | BJ26: 8760 | BK26: 8760 | BL26: 8760 | BM26: 8760 | BN26: 8760 | BO26: 8760 | BP26: 8760 | BQ26: 8760 | BR26: 8760 | BS26: 8760 | BT26: 8760 | BU26: 8760 | BV26: =BV25*24 -> 8760 | BW26: 8760 | BX26: 8760 | BY26: 8760 | BZ26: 8760 | CA26: 8760 | CB26: 8760 | CC26: 8760 | CD26: 8760 | CE26: 8760 | CF26: 8760 | CG26: 8760 | CH26: 8760 | CI26: 8760 | CJ26: 8760 | CK26: 8760 | CL26: 8760 | CM26: 8760 | CN26: 8760 | CO26: 8760 | CP26: 8760 | CQ26: 8760 | CR26: 8760 | CS26: 8760 | CT26: 8760 | CU26: 8760 | CV26: 8760 | CW26: 8760 | CX26: 8760 | CY26: 8760 | CZ26: 8760 | DA26: 8760 | DB26: 8760 | DC26: 8760 | DD26: 8760 | DE26: 8760 | DF26: 8760 | DG26: 8760 | DH26: 8760 | DI26: 8760 | DJ26: 8760 | DK26: 8760 | DL26: 8760 | DM26: 8760 | DN26: 8760 | DO26: 8760 | DP26: 8760 | DQ26: 8760 | DR26: 8760 | DS26: 8760 | DT26: 8760 | DU26: 8760 | DV26: 8760 | DW26: 8760 | DX26: 8760 | DY26: 8760 | DZ26: 8760 | EA26: 8760 | EB26: 8760 | EC26: 8760 | ED26: 8760 | EE26: 8760 | EF26: 8760 | EG26: 8760 | EH26: =EH25*24 -> 8760 | EI26: 8760 | EJ26: 8760 | EK26: 8760 | EL26: 8760 | EM26: 8760 | EN26: 8760 | EO26: 8760 | EP26: 8760 | EQ26: 8760 | ER26: 8760 | ES26: 8760 | ET26: 8760 | EU26: 8760 | EV26: 8760 | EW26: 8760 | EX26: 8760 | EY26: 8760 | EZ26: 8760 | FA26: 8760 | FB26: 8760 | FC26: 8760 | FD26: 8760 | FE26: 8760 | FF26: 8760 | FG26: 8760 | FH26: 8760 | FI26: 8760 | FJ26: 8760 | FK26: 8760 | FL26: 8760 | FM26: 8760 | FN26: 8760 | FO26: 8760 | FP26: 8760 | FQ26: 8760 | FR26: 8760 | FS26: 8760
C27: Net Annual AC Capacity Factor P-50 | D27: Capacity Factor | E27: ='Inputs - Partnership'!E57 -> 0.318
C28: Annual Production before Degradation | D28: MWH | H28: =SUM(I28:XFD28) -> 0
C30: Degradation Rate | D30: % | E30: ='Inputs - Partnership'!E60 -> 0.006
C31: Degradation Index | D31: Inde | H31: 1
C32: Production After Degradation - P50 | D32: MWH | H32: =SUM(I32:XFD32) -> 0 | I32: =I28*I31 -> 0 | J32: =J28*J31 -> 0 | K32: 0 | L32: 0 | M32: 0 | N32: 0 | O32: 0 | P32: 0 | Q32: 0 | R32: 0 | S32: 0 | T32: 0 | U32: 0 | V32: 0 | W32: 0 | X32: 0 | Y32: 0 | Z32: 0 | AA32: 0 | AB32: 0 | AC32: 0 | AD32: 0 | AE32: 0 | AF32: 0 | AG32: 0 | AH32: 0 | AI32: 0 | AJ32: 0 | AK32: 0 | AL32: 0 | AM32: 0 | AN32: 0 | AO32: 0 | AP32: 0 | AQ32: 0 | AR32: 0 | AS32: 0 | AT32: 0 | AU32: 0 | AV32: 0 | AW32: 0 | AX32: 0 | AY32: 0 | AZ32: 0 | BA32: 0 | BB32: 0 | BC32: 0 | BD32: 0 | BE32: 0 | BF32: 0 | BG32: 0 | BH32: 0 | BI32: 0 | BJ32: 0 | BK32: 0 | BL32: 0 | BM32: 0 | BN32: 0 | BO32: 0 | BP32: 0 | BQ32: 0 | BR32: 0 | BS32: 0 | BT32: 0 | BU32: 0 | BV32: =BV28*BV31 -> 0 | BW32: 0 | BX32: 0 | BY32: 0 | BZ32: 0 | CA32: 0 | CB32: 0 | CC32: 0 | CD32: 0 | CE32: 0 | CF32: 0 | CG32: 0 | CH32: 0 | CI32: 0 | CJ32: 0 | CK32: 0 | CL32: 0 | CM32: 0 | CN32: 0 | CO32: 0 | CP32: 0 | CQ32: 0 | CR32: 0 | CS32: 0 | CT32: 0 | CU32: 0 | CV32: 0 | CW32: 0 | CX32: 0 | CY32: 0 | CZ32: 0 | DA32: 0 | DB32: 0 | DC32: 0 | DD32: 0 | DE32: 0 | DF32: 0 | DG32: 0 | DH32: 0 | DI32: 0 | DJ32: 0 | DK32: 0 | DL32: 0 | DM32: 0 | DN32: 0 | DO32: 0 | DP32: 0 | DQ32: 0 | DR32: 0 | DS32: 0 | DT32: 0 | DU32: 0 | DV32: 0 | DW32: 0 | DX32: 0 | DY32: 0 | DZ32: 0 | EA32: 0 | EB32: 0 | EC32: 0 | ED32: 0 | EE32: 0 | EF32: 0 | EG32: 0 | EH32: =EH28*EH31 -> 0 | EI32: 0 | EJ32: 0 | EK32: 0 | EL32: 0 | EM32: 0 | EN32: 0 | EO32: 0 | EP32: 0 | EQ32: 0 | ER32: 0 | ES32: 0 | ET32: 0 | EU32: 0 | EV32: 0 | EW32: 0 | EX32: 0 | EY32: 0 | EZ32: 0 | FA32: 0 | FB32: 0 | FC32: 0 | FD32: 0 | FE32: 0 | FF32: 0 | FG32: 0 | FH32: 0 | FI32: 0 | FJ32: 0 | FK32: 0 | FL32: 0 | FM32: 0 | FN32: 0 | FO32: 0 | FP32: 0 | FQ32: 0 | FR32: 0 | FS32: 0
C34: Seasonality | D34: %
C35: Grid availability | D35: % | E35: ='Inputs - Partnership'!E61 -> 1 | I35: =$E$35 -> 1 | J35: =$E$35 -> 1 | K35: 1 | L35: 1 | M35: 1 | N35: 1 | O35: 1 | P35: 1 | Q35: 1 | R35: 1 | S35: 1 | T35: 1 | U35: 1 | V35: 1 | W35: 1 | X35: 1 | Y35: 1 | Z35: 1 | AA35: 1 | AB35: 1 | AC35: 1 | AD35: 1 | AE35: 1 | AF35: 1 | AG35: 1 | AH35: 1 | AI35: 1 | AJ35: 1 | AK35: 1 | AL35: 1 | AM35: 1 | AN35: 1 | AO35: 1 | AP35: 1 | AQ35: 1 | AR35: 1 | AS35: 1 | AT35: 1 | AU35: 1 | AV35: 1 | AW35: 1 | AX35: 1 | AY35: 1 | AZ35: 1 | BA35: 1 | BB35: 1 | BC35: 1 | BD35: 1 | BE35: 1 | BF35: 1 | BG35: 1 | BH35: 1 | BI35: 1 | BJ35: 1 | BK35: 1 | BL35: 1 | BM35: 1 | BN35: 1 | BO35: 1 | BP35: 1 | BQ35: 1 | BR35: 1 | BS35: 1 | BT35: 1 | BU35: 1 | BV35: =$E$35 -> 1 | BW35: 1 | BX35: 1 | BY35: 1 | BZ35: 1 | CA35: 1 | CB35: 1 | CC35: 1 | CD35: 1 | CE35: 1 | CF35: 1 | CG35: 1 | CH35: 1 | CI35: 1 | CJ35: 1 | CK35: 1 | CL35: 1 | CM35: 1 | CN35: 1 | CO35: 1 | CP35: 1 | CQ35: 1 | CR35: 1 | CS35: 1 | CT35: 1 | CU35: 1 | CV35: 1 | CW35: 1 | CX35: 1 | CY35: 1 | CZ35: 1 | DA35: 1 | DB35: 1 | DC35: 1 | DD35: 1 | DE35: 1 | DF35: 1 | DG35: 1 | DH35: 1 | DI35: 1 | DJ35: 1 | DK35: 1 | DL35: 1 | DM35: 1 | DN35: 1 | DO35: 1 | DP35: 1 | DQ35: 1 | DR35: 1 | DS35: 1 | DT35: 1 | DU35: 1 | DV35: 1 | DW35: 1 | DX35: 1 | DY35: 1 | DZ35: 1 | EA35: 1 | EB35: 1 | EC35: 1 | ED35: 1 | EE35: 1 | EF35: 1 | EG35: 1 | EH35: =$E$35 -> 1 | EI35: 1 | EJ35: 1 | EK35: 1 | EL35: 1 | EM35: 1 | EN35: 1 | EO35: 1 | EP35: 1 | EQ35: 1 | ER35: 1 | ES35: 1 | ET35: 1 | EU35: 1 | EV35: 1 | EW35: 1 | EX35: 1 | EY35: 1 | EZ35: 1 | FA35: 1 | FB35: 1 | FC35: 1 | FD35: 1 | FE35: 1 | FF35: 1 | FG35: 1 | FH35: 1 | FI35: 1 | FJ35: 1 | FK35: 1 | FL35: 1 | FM35: 1 | FN35: 1 | FO35: 1 | FP35: 1 | FQ35: 1 | FR35: 1 | FS35: 1
C36: Total generation - P50 | D36: MWh | H36: =SUM(I36:XFD36) -> 0 | I36: =I32*I34*I35 -> 0 | J36: =J32*J34*J35 -> 0 | K36: 0 | L36: 0 | M36: 0 | N36: 0 | O36: 0 | P36: 0 | Q36: 0 | R36: 0 | S36: 0 | T36: 0 | U36: 0 | V36: 0 | W36: 0 | X36: 0 | Y36: 0 | Z36: 0 | AA36: 0 | AB36: 0 | AC36: 0 | AD36: 0 | AE36: 0 | AF36: 0 | AG36: 0 | AH36: 0 | AI36: 0 | AJ36: 0 | AK36: 0 | AL36: 0 | AM36: 0 | AN36: 0 | AO36: 0 | AP36: 0 | AQ36: 0 | AR36: 0 | AS36: 0 | AT36: 0 | AU36: 0 | AV36: 0 | AW36: 0 | AX36: 0 | AY36: 0 | AZ36: 0 | BA36: 0 | BB36: 0 | BC36: 0 | BD36: 0 | BE36: 0 | BF36: 0 | BG36: 0 | BH36: 0 | BI36: 0 | BJ36: 0 | BK36: 0 | BL36: 0 | BM36: 0 | BN36: 0 | BO36: 0 | BP36: 0 | BQ36: 0 | BR36: 0 | BS36: 0 | BT36: 0 | BU36: 0 | BV36: =BV32*BV34*BV35 -> 0 | BW36: 0 | BX36: 0 | BY36: 0 | BZ36: 0 | CA36: 0 | CB36: 0 | CC36: 0 | CD36: 0 | CE36: 0 | CF36: 0 | CG36: 0 | CH36: 0 | CI36: 0 | CJ36: 0 | CK36: 0 | CL36: 0 | CM36: 0 | CN36: 0 | CO36: 0 | CP36: 0 | CQ36: 0 | CR36: 0 | CS36: 0 | CT36: 0 | CU36: 0 | CV36: 0 | CW36: 0 | CX36: 0 | CY36: 0 | CZ36: 0 | DA36: 0 | DB36: 0 | DC36: 0 | DD36: 0 | DE36: 0 | DF36: 0 | DG36: 0 | DH36: 0 | DI36: 0 | DJ36: 0 | DK36: 0 | DL36: 0 | DM36: 0 | DN36: 0 | DO36: 0 | DP36: 0 | DQ36: 0 | DR36: 0 | DS36: 0 | DT36: 0 | DU36: 0 | DV36: 0 | DW36: 0 | DX36: 0 | DY36: 0 | DZ36: 0 | EA36: 0 | EB36: 0 | EC36: 0 | ED36: 0 | EE36: 0 | EF36: 0 | EG36: 0 | EH36: =EH32*EH34*EH35 -> 0 | EI36: 0 | EJ36: 0 | EK36: 0 | EL36: 0 | EM36: 0 | EN36: 0 | EO36: 0 | EP36: 0 | EQ36: 0 | ER36: 0 | ES36: 0 | ET36: 0 | EU36: 0 | EV36: 0 | EW36: 0 | EX36: 0 | EY36: 0 | EZ36: 0 | FA36: 0 | FB36: 0 | FC36: 0 | FD36: 0 | FE36: 0 | FF36: 0 | FG36: 0 | FH36: 0 | FI36: 0 | FJ36: 0 | FK36: 0 | FL36: 0 | FM36: 0 | FN36: 0 | FO36: 0 | FP36: 0 | FQ36: 0 | FR36: 0 | FS36: 0
B38: Revenue
C39: PPA 1
C40: PPA 1 period flag | D40: Flag | E40: ='Inputs - Partnership'!E69 -> 2021-12-31 | F40: ='Inputs - Partnership'!E70 -> 2036-12-31 | I40: =AND(I$2>=$E40,I$3<=$F40)*1 -> 0 | J40: =AND(J$2>=$E40,J$3<=$F40)*1 -> 0 | K40: 0 | L40: 0 | M40: 0 | N40: 0 | O40: 0 | P40: 0 | Q40: 1 | R40: 1 | S40: 1 | T40: 1 | U40: 1 | V40: 1 | W40: 1 | X40: 1 | Y40: 1 | Z40: 1 | AA40: 1 | AB40: 1 | AC40: 1 | AD40: 1 | AE40: 1 | AF40: 1 | AG40: 1 | AH40: 1 | AI40: 1 | AJ40: 1 | AK40: 1 | AL40: 1 | AM40: 1 | AN40: 1 | AO40: 1 | AP40: 1 | AQ40: 1 | AR40: 1 | AS40: 1 | AT40: 1 | AU40: 1 | AV40: 1 | AW40: 1 | AX40: 1 | AY40: 1 | AZ40: 1 | BA40: 1 | BB40: 1 | BC40: 1 | BD40: 1 | BE40: 1 | BF40: 1 | BG40: 1 | BH40: 1 | BI40: 1 | BJ40: 1 | BK40: 1 | BL40: 1 | BM40: 1 | BN40: 1 | BO40: 1 | BP40: 1 | BQ40: 1 | BR40: 1 | BS40: 1 | BT40: 1 | BU40: 1 | BV40: =AND(BV$2>=$E40,BV$3<=$F40)*1 -> 1 | BW40: 1 | BX40: 1 | BY40: 0 | BZ40: 0 | CA40: 0 | CB40: 0 | CC40: 0 | CD40: 0 | CE40: 0 | CF40: 0 | CG40: 0 | CH40: 0 | CI40: 0 | CJ40: 0 | CK40: 0 | CL40: 0 | CM40: 0 | CN40: 0 | CO40: 0 | CP40: 0 | CQ40: 0 | CR40: 0 | CS40: 0 | CT40: 0 | CU40: 0 | CV40: 0 | CW40: 0 | CX40: 0 | CY40: 0 | CZ40: 0 | DA40: 0 | DB40: 0 | DC40: 0 | DD40: 0 | DE40: 0 | DF40: 0 | DG40: 0 | DH40: 0 | DI40: 0 | DJ40: 0 | DK40: 0 | DL40: 0 | DM40: 0 | DN40: 0 | DO40: 0 | DP40: 0 | DQ40: 0 | DR40: 0 | DS40: 0 | DT40: 0 | DU40: 0 | DV40: 0 | DW40: 0 | DX40: 0 | DY40: 0 | DZ40: 0 | EA40: 0 | EB40: 0 | EC40: 0 | ED40: 0 | EE40: 0 | EF40: 0 | EG40: 0 | EH40: =AND(EH$2>=$E40,EH$3<=$F40)*1 -> 0 | EI40: 0 | EJ40: 0 | EK40: 0 | EL40: 0 | EM40: 0 | EN40: 0 | EO40: 0 | EP40: 0 | EQ40: 0 | ER40: 0 | ES40: 0 | ET40: 0 | EU40: 0 | EV40: 0 | EW40: 0 | EX40: 0 | EY40: 0 | EZ40: 0 | FA40: 0 | FB40: 0 | FC40: 0 | FD40: 0 | FE40: 0 | FF40: 0 | FG40: 0 | FH40: 0 | FI40: 0 | FJ40: 0 | FK40: 0 | FL40: 0 | FM40: 0 | FN40: 0 | FO40: 0 | FP40: 0 | FQ40: 0 | FR40: 0 | FS40: 0
C41: Production | D41: MWh | E41: ='Inputs - Partnership'!E75 -> 0.6 | I41: =$E41*I$36*I40 -> 0 | J41: 0 | K41: 0 | L41: 0 | M41: 0 | N41: 0 | O41: 0 | P41: 0 | Q41: 0 | R41: 0 | S41: 0 | T41: 0 | U41: 0 | V41: 0 | W41: 0 | X41: 0 | Y41: 0 | Z41: 0 | AA41: 0 | AB41: 0 | AC41: 0 | AD41: 0 | AE41: 0 | AF41: 0 | AG41: 0 | AH41: 0 | AI41: 0 | AJ41: 0 | AK41: 0 | AL41: 0 | AM41: 0 | AN41: 0 | AO41: 0 | AP41: 0 | AQ41: 0 | AR41: 0 | AS41: 0 | AT41: 0 | AU41: 0 | AV41: 0 | AW41: 0 | AX41: 0 | AY41: 0 | AZ41: 0 | BA41: 0 | BB41: 0 | BC41: 0 | BD41: 0 | BE41: 0 | BF41: 0 | BG41: 0 | BH41: 0 | BI41: 0 | BJ41: 0 | BK41: 0 | BL41: 0 | BM41: 0 | BN41: 0 | BO41: 0 | BP41: 0 | BQ41: 0 | BR41: 0 | BS41: 0 | BT41: 0 | BU41: =$E41*BU$36*BU40 -> 0 | BV41: 0 | BW41: 0 | BX41: 0 | BY41: 0 | BZ41: 0 | CA41: 0 | CB41: 0 | CC41: 0 | CD41: 0 | CE41: 0 | CF41: 0 | CG41: 0 | CH41: 0 | CI41: 0 | CJ41: 0 | CK41: 0 | CL41: 0 | CM41: 0 | CN41: 0 | CO41: 0 | CP41: 0 | CQ41: 0 | CR41: 0 | CS41: 0 | CT41: 0 | CU41: 0 | CV41: 0 | CW41: 0 | CX41: 0 | CY41: 0 | CZ41: 0 | DA41: 0 | DB41: 0 | DC41: 0 | DD41: 0 | DE41: 0 | DF41: 0 | DG41: 0 | DH41: 0 | DI41: 0 | DJ41: 0 | DK41: 0 | DL41: 0 | DM41: 0 | DN41: 0 | DO41: 0 | DP41: 0 | DQ41: 0 | DR41: 0 | DS41: 0 | DT41: 0 | DU41: 0 | DV41: 0 | DW41: 0 | DX41: 0 | DY41: 0 | DZ41: 0 | EA41: 0 | EB41: 0 | EC41: 0 | ED41: 0 | EE41: 0 | EF41: 0 | EG41: =$E41*EG$36*EG40 -> 0 | EH41: 0 | EI41: 0 | EJ41: 0 | EK41: 0 | EL41: 0 | EM41: 0 | EN41: 0 | EO41: 0 | EP41: 0 | EQ41: 0 | ER41: 0 | ES41: 0 | ET41: 0 | EU41: 0 | EV41: 0 | EW41: 0 | EX41: 0 | EY41: 0 | EZ41: 0 | FA41: 0 | FB41: 0 | FC41: 0 | FD41: 0 | FE41: 0 | FF41: 0 | FG41: 0 | FH41: 0 | FI41: 0 | FJ41: 0 | FK41: 0 | FL41: 0 | FM41: 0 | FN41: 0 | FO41: 0 | FP41: 0 | FQ41: 0 | FR41: 0 | FS41: 0
C42: Price | D42: $ / MWh | E42: ='Inputs - Partnership'!E73 -> 38 | I42: =$E42*((1+($E43/4))^I$15)*I40 -> 0 | J42: 0 | K42: 0 | L42: 0 | M42: 0 | N42: 0 | O42: 0 | P42: 0 | Q42: 38 | R42: 38 | S42: 38 | T42: 38 | U42: 38.2375 | V42: 38.2375 | W42: 38.2375 | X42: 38.2375 | Y42: 38.47648438 | Z42: 38.47648438 | AA42: 38.47648438 | AB42: 38.47648438 | AC42: 38.7169624 | AD42: 38.7169624 | AE42: 38.7169624 | AF42: 38.7169624 | AG42: 38.95894342 | AH42: 38.95894342 | AI42: 38.95894342 | AJ42: 38.95894342 | AK42: 39.20243681 | AL42: 39.20243681 | AM42: 39.20243681 | AN42: 39.20243681 | AO42: =$E42*((1+($E43/4))^AO$15)*AO40 -> 39.44745204 | AP42: 39.44745204 | AQ42: 39.44745204 | AR42: 39.44745204 | AS42: 39.69399862 | AT42: 39.69399862 | AU42: 39.69399862 | AV42: 39.69399862 | AW42: 39.94208611 | AX42: 39.94208611 | AY42: 39.94208611 | AZ42: 39.94208611 | BA42: 40.19172415 | BB42: 40.19172415 | BC42: 40.19172415 | BD42: 40.19172415 | BE42: 40.44292242 | BF42: 40.44292242 | BG42: 40.44292242 | BH42: 40.44292242 | BI42: 40.69569069 | BJ42: 40.69569069 | BK42: 40.69569069 | BL42: 40.69569069 | BM42: 40.95003876 | BN42: 40.95003876 | BO42: 40.95003876 | BP42: 40.95003876 | BQ42: 41.2059765 | BR42: 41.2059765 | BS42: 41.2059765 | BT42: 41.2059765 | BU42: =$E42*((1+($E43/4))^BU$15)*BU40 -> 41.46351385 | BV42: 41.46351385 | BW42: 41.46351385 | BX42: 41.46351385 | BY42: 0 | BZ42: 0 | CA42: 0 | CB42: 0 | CC42: 0 | CD42: 0 | CE42: 0 | CF42: 0 | CG42: 0 | CH42: 0 | CI42: 0 | CJ42: 0 | CK42: 0 | CL42: 0 | CM42: 0 | CN42: 0 | CO42: 0 | CP42: 0 | CQ42: 0 | CR42: 0 | CS42: 0 | CT42: 0 | CU42: 0 | CV42: 0 | CW42: 0 | CX42: 0 | CY42: 0 | CZ42: 0 | DA42: =$E42*((1+($E43/4))^DA$15)*DA40 -> 0 | DB42: 0 | DC42: 0 | DD42: 0 | DE42: 0 | DF42: 0 | DG42: 0 | DH42: 0 | DI42: 0 | DJ42: 0 | DK42: 0 | DL42: 0 | DM42: 0 | DN42: 0 | DO42: 0 | DP42: 0 | DQ42: 0 | DR42: 0 | DS42: 0 | DT42: 0 | DU42: 0 | DV42: 0 | DW42: 0 | DX42: 0 | DY42: 0 | DZ42: 0 | EA42: 0 | EB42: 0 | EC42: 0 | ED42: 0 | EE42: 0 | EF42: 0 | EG42: =$E42*((1+($E43/4))^EG$15)*EG40 -> 0 | EH42: 0 | EI42: 0 | EJ42: 0 | EK42: 0 | EL42: 0 | EM42: 0 | EN42: 0 | EO42: 0 | EP42: 0 | EQ42: 0 | ER42: 0 | ES42: 0 | ET42: 0 | EU42: 0 | EV42: 0 | EW42: 0 | EX42: 0 | EY42: 0 | EZ42: 0 | FA42: 0 | FB42: 0 | FC42: 0 | FD42: 0 | FE42: 0 | FF42: 0 | FG42: 0 | FH42: 0 | FI42: 0 | FJ42: 0 | FK42: 0 | FL42: 0 | FM42: =$E42*((1+($E43/4))^FM$15)*FM40 -> 0 | FN42: 0 | FO42: 0 | FP42: 0 | FQ42: 0 | FR42: 0 | FS42: 0
C43: Escalation | D43: % p.a. | E43: ='Inputs - Partnership'!E76 -> 0.025
C44: PPA 1 revenue | D44: USD '000 | H44: =SUM(I44:FS44) -> 0 | I44: =I41*I42/1000 -> 0 | J44: =J41*J42/1000 -> 0 | K44: 0 | L44: 0 | M44: 0 | N44: 0 | O44: 0 | P44: 0 | Q44: 0 | R44: 0 | S44: 0 | T44: 0 | U44: 0 | V44: 0 | W44: 0 | X44: 0 | Y44: 0 | Z44: 0 | AA44: 0 | AB44: 0 | AC44: 0 | AD44: 0 | AE44: 0 | AF44: 0 | AG44: 0 | AH44: 0 | AI44: 0 | AJ44: 0 | AK44: 0 | AL44: 0 | AM44: 0 | AN44: 0 | AO44: 0 | AP44: 0 | AQ44: 0 | AR44: 0 | AS44: 0 | AT44: 0 | AU44: 0 | AV44: 0 | AW44: 0 | AX44: 0 | AY44: 0 | AZ44: 0 | BA44: 0 | BB44: 0 | BC44: 0 | BD44: 0 | BE44: 0 | BF44: 0 | BG44: 0 | BH44: 0 | BI44: 0 | BJ44: 0 | BK44: 0 | BL44: 0 | BM44: 0 | BN44: 0 | BO44: 0 | BP44: 0 | BQ44: 0 | BR44: 0 | BS44: 0 | BT44: 0 | BU44: 0 | BV44: =BV41*BV42/1000 -> 0 | BW44: 0 | BX44: 0 | BY44: 0 | BZ44: 0 | CA44: 0 | CB44: 0 | CC44: 0 | CD44: 0 | CE44: 0 | CF44: 0 | CG44: 0 | CH44: 0 | CI44: 0 | CJ44: 0 | CK44: 0 | CL44: 0 | CM44: 0 | CN44: 0 | CO44: 0 | CP44: 0 | CQ44: 0 | CR44: 0 | CS44: 0 | CT44: 0 | CU44: 0 | CV44: 0 | CW44: 0 | CX44: 0 | CY44: 0 | CZ44: 0 | DA44: 0 | DB44: 0 | DC44: 0 | DD44: 0 | DE44: 0 | DF44: 0 | DG44: 0 | DH44: 0 | DI44: 0 | DJ44: 0 | DK44: 0 | DL44: 0 | DM44: 0 | DN44: 0 | DO44: 0 | DP44: 0 | DQ44: 0 | DR44: 0 | DS44: 0 | DT44: 0 | DU44: 0 | DV44: 0 | DW44: 0 | DX44: 0 | DY44: 0 | DZ44: 0 | EA44: 0 | EB44: 0 | EC44: 0 | ED44: 0 | EE44: 0 | EF44: 0 | EG44: 0 | EH44: =EH41*EH42/1000 -> 0 | EI44: 0 | EJ44: 0 | EK44: 0 | EL44: 0 | EM44: 0 | EN44: 0 | EO44: 0 | EP44: 0 | EQ44: 0 | ER44: 0 | ES44: 0 | ET44: 0 | EU44: 0 | EV44: 0 | EW44: 0 | EX44: 0 | EY44: 0 | EZ44: 0 | FA44: 0 | FB44: 0 | FC44: 0 | FD44: 0 | FE44: 0 | FF44: 0 | FG44: 0 | FH44: 0 | FI44: 0 | FJ44: 0 | FK44: 0 | FL44: 0 | FM44: 0 | FN44: 0 | FO44: 0 | FP44: 0 | FQ44: 0 | FR44: 0 | FS44: 0
C46: PPA 2
C47: PPA 2 period flag | D47: Flag | E47: ='Inputs - Partnership'!E83 -> 2022-01-01 | F47: ='Inputs - Partnership'!E84 -> 2042-01-31 | I47: =IF(AND(I$2>=$E47,I$3<=$F47),1,0) -> 0 | J47: 0 | K47: 0 | L47: 0 | M47: 0 | N47: 0 | O47: 0 | P47: 0 | Q47: 1 | R47: 1 | S47: 1 | T47: 1 | U47: 1 | V47: 1 | W47: 1 | X47: 1 | Y47: 1 | Z47: 1 | AA47: 1 | AB47: 1 | AC47: 1 | AD47: 1 | AE47: 1 | AF47: 1 | AG47: 1 | AH47: 1 | AI47: 1 | AJ47: 1 | AK47: 1 | AL47: 1 | AM47: 1 | AN47: 1 | AO47: =IF(AND(AO$2>=$E47,AO$3<=$F47),1,0) -> 1 | AP47: 1 | AQ47: 1 | AR47: 1 | AS47: 1 | AT47: 1 | AU47: 1 | AV47: 1 | AW47: 1 | AX47: 1 | AY47: 1 | AZ47: 1 | BA47: 1 | BB47: 1 | BC47: 1 | BD47: 1 | BE47: 1 | BF47: 1 | BG47: 1 | BH47: 1 | BI47: 1 | BJ47: 1 | BK47: 1 | BL47: 1 | BM47: 1 | BN47: 1 | BO47: 1 | BP47: 1 | BQ47: 1 | BR47: 1 | BS47: 1 | BT47: 1 | BU47: =IF(AND(BU$2>=$E47,BU$3<=$F47),1,0) -> 1 | BV47: 1 | BW47: 1 | BX47: 1 | BY47: 1 | BZ47: 1 | CA47: 1 | CB47: 1 | CC47: 1 | CD47: 1 | CE47: 1 | CF47: 1 | CG47: 1 | CH47: 1 | CI47: 1 | CJ47: 1 | CK47: 1 | CL47: 1 | CM47: 1 | CN47: 1 | CO47: 1 | CP47: 1 | CQ47: 1 | CR47: 1 | CS47: 0 | CT47: 0 | CU47: 0 | CV47: 0 | CW47: 0 | CX47: 0 | CY47: 0 | CZ47: 0 | DA47: =IF(AND(DA$2>=$E47,DA$3<=$F47),1,0) -> 0 | DB47: 0 | DC47: 0 | DD47: 0 | DE47: 0 | DF47: 0 | DG47: 0 | DH47: 0 | DI47: 0 | DJ47: 0 | DK47: 0 | DL47: 0 | DM47: 0 | DN47: 0 | DO47: 0 | DP47: 0 | DQ47: 0 | DR47: 0 | DS47: 0 | DT47: 0 | DU47: 0 | DV47: 0 | DW47: 0 | DX47: 0 | DY47: 0 | DZ47: 0 | EA47: 0 | EB47: 0 | EC47: 0 | ED47: 0 | EE47: 0 | EF47: 0 | EG47: =IF(AND(EG$2>=$E47,EG$3<=$F47),1,0) -> 0 | EH47: 0 | EI47: 0 | EJ47: 0 | EK47: 0 | EL47: 0 | EM47: 0 | EN47: 0 | EO47: 0 | EP47: 0 | EQ47: 0 | ER47: 0 | ES47: 0 | ET47: 0 | EU47: 0 | EV47: 0 | EW47: 0 | EX47: 0 | EY47: 0 | EZ47: 0 | FA47: 0 | FB47: 0 | FC47: 0 | FD47: 0 | FE47: 0 | FF47: 0 | FG47: 0 | FH47: 0 | FI47: 0 | FJ47: 0 | FK47: 0 | FL47: 0 | FM47: =IF(AND(FM$2>=$E47,FM$3<=$F47),1,0) -> 0 | FN47: 0 | FO47: 0 | FP47: 0 | FQ47: 0 | FR47: 0 | FS47: 0
C48: Production | D48: MWh | E48: ='Inputs - Partnership'!E87 -> 0.35 | I48: =$E48*I$36*I47 -> 0 | J48: 0 | K48: 0 | L48: 0 | M48: 0 | N48: 0 | O48: 0 | P48: 0 | Q48: 0 | R48: 0 | S48: 0 | T48: 0 | U48: 0 | V48: 0 | W48: 0 | X48: 0 | Y48: 0 | Z48: 0 | AA48: 0 | AB48: 0 | AC48: 0 | AD48: 0 | AE48: 0 | AF48: 0 | AG48: 0 | AH48: 0 | AI48: 0 | AJ48: 0 | AK48: 0 | AL48: 0 | AM48: 0 | AN48: 0 | AO48: =$E48*AO$36*AO47 -> 0 | AP48: 0 | AQ48: 0 | AR48: 0 | AS48: 0 | AT48: 0 | AU48: 0 | AV48: 0 | AW48: 0 | AX48: 0 | AY48: 0 | AZ48: 0 | BA48: 0 | BB48: 0 | BC48: 0 | BD48: 0 | BE48: 0 | BF48: 0 | BG48: 0 | BH48: 0 | BI48: 0 | BJ48: 0 | BK48: 0 | BL48: 0 | BM48: 0 | BN48: 0 | BO48: 0 | BP48: 0 | BQ48: 0 | BR48: 0 | BS48: 0 | BT48: 0 | BU48: =$E48*BU$36*BU47 -> 0 | BV48: 0 | BW48: 0 | BX48: 0 | BY48: 0 | BZ48: 0 | CA48: 0 | CB48: 0 | CC48: 0 | CD48: 0 | CE48: 0 | CF48: 0 | CG48: 0 | CH48: 0 | CI48: 0 | CJ48: 0 | CK48: 0 | CL48: 0 | CM48: 0 | CN48: 0 | CO48: 0 | CP48: 0 | CQ48: 0 | CR48: 0 | CS48: 0 | CT48: 0 | CU48: 0 | CV48: 0 | CW48: 0 | CX48: 0 | CY48: 0 | CZ48: 0 | DA48: =$E48*DA$36*DA47 -> 0 | DB48: 0 | DC48: 0 | DD48: 0 | DE48: 0 | DF48: 0 | DG48: 0 | DH48: 0 | DI48: 0 | DJ48: 0 | DK48: 0 | DL48: 0 | DM48: 0 | DN48: 0 | DO48: 0 | DP48: 0 | DQ48: 0 | DR48: 0 | DS48: 0 | DT48: 0 | DU48: 0 | DV48: 0 | DW48: 0 | DX48: 0 | DY48: 0 | DZ48: 0 | EA48: 0 | EB48: 0 | EC48: 0 | ED48: 0 | EE48: 0 | EF48: 0 | EG48: =$E48*EG$36*EG47 -> 0 | EH48: 0 | EI48: 0 | EJ48: 0 | EK48: 0 | EL48: 0 | EM48: 0 | EN48: 0 | EO48: 0 | EP48: 0 | EQ48: 0 | ER48: 0 | ES48: 0 | ET48: 0 | EU48: 0 | EV48: 0 | EW48: 0 | EX48: 0 | EY48: 0 | EZ48: 0 | FA48: 0 | FB48: 0 | FC48: 0 | FD48: 0 | FE48: 0 | FF48: 0 | FG48: 0 | FH48: 0 | FI48: 0 | FJ48: 0 | FK48: 0 | FL48: 0 | FM48: =$E48*FM$36*FM47 -> 0 | FN48: 0 | FO48: 0 | FP48: 0 | FQ48: 0 | FR48: 0 | FS48: 0
C49: Price | D49: $ / MWh | E49: ='Inputs - Partnership'!E85 -> 42.5 | I49: =$E49*((1+($E50/4))^I$15)*I47 -> 0 | J49: 0 | K49: 0 | L49: 0 | M49: 0 | N49: 0 | O49: 0 | P49: 0 | Q49: 42.5 | R49: 42.5 | S49: 42.5 | T49: 42.5 | U49: 42.5 | V49: 42.5 | W49: 42.5 | X49: 42.5 | Y49: 42.5 | Z49: 42.5 | AA49: 42.5 | AB49: 42.5 | AC49: 42.5 | AD49: 42.5 | AE49: 42.5 | AF49: 42.5 | AG49: 42.5 | AH49: 42.5 | AI49: 42.5 | AJ49: 42.5 | AK49: 42.5 | AL49: 42.5 | AM49: 42.5 | AN49: 42.5 | AO49: =$E49*((1+($E50/4))^AO$15)*AO47 -> 42.5 | AP49: 42.5 | AQ49: 42.5 | AR49: 42.5 | AS49: 42.5 | AT49: 42.5 | AU49: 42.5 | AV49: 42.5 | AW49: 42.5 | AX49: 42.5 | AY49: 42.5 | AZ49: 42.5 | BA49: 42.5 | BB49: 42.5 | BC49: 42.5 | BD49: 42.5 | BE49: 42.5 | BF49: 42.5 | BG49: 42.5 | BH49: 42.5 | BI49: 42.5 | BJ49: 42.5 | BK49: 42.5 | BL49: 42.5 | BM49: 42.5 | BN49: 42.5 | BO49: 42.5 | BP49: 42.5 | BQ49: 42.5 | BR49: 42.5 | BS49: 42.5 | BT49: 42.5 | BU49: =$E49*((1+($E50/4))^BU$15)*BU47 -> 42.5 | BV49: 42.5 | BW49: 42.5 | BX49: 42.5 | BY49: 42.5 | BZ49: 42.5 | CA49: 42.5 | CB49: 42.5 | CC49: 42.5 | CD49: 42.5 | CE49: 42.5 | CF49: 42.5 | CG49: 42.5 | CH49: 42.5 | CI49: 42.5 | CJ49: 42.5 | CK49: 42.5 | CL49: 42.5 | CM49: 42.5 | CN49: 42.5 | CO49: 42.5 | CP49: 42.5 | CQ49: 42.5 | CR49: 42.5 | CS49: 0 | CT49: 0 | CU49: 0 | CV49: 0 | CW49: 0 | CX49: 0 | CY49: 0 | CZ49: 0 | DA49: =$E49*((1+($E50/4))^DA$15)*DA47 -> 0 | DB49: 0 | DC49: 0 | DD49: 0 | DE49: 0 | DF49: 0 | DG49: 0 | DH49: 0 | DI49: 0 | DJ49: 0 | DK49: 0 | DL49: 0 | DM49: 0 | DN49: 0 | DO49: 0 | DP49: 0 | DQ49: 0 | DR49: 0 | DS49: 0 | DT49: 0 | DU49: 0 | DV49: 0 | DW49: 0 | DX49: 0 | DY49: 0 | DZ49: 0 | EA49: 0 | EB49: 0 | EC49: 0 | ED49: 0 | EE49: 0 | EF49: 0 | EG49: =$E49*((1+($E50/4))^EG$15)*EG47 -> 0 | EH49: 0 | EI49: 0 | EJ49: 0 | EK49: 0 | EL49: 0 | EM49: 0 | EN49: 0 | EO49: 0 | EP49: 0 | EQ49: 0 | ER49: 0 | ES49: 0 | ET49: 0 | EU49: 0 | EV49: 0 | EW49: 0 | EX49: 0 | EY49: 0 | EZ49: 0 | FA49: 0 | FB49: 0 | FC49: 0 | FD49: 0 | FE49: 0 | FF49: 0 | FG49: 0 | FH49: 0 | FI49: 0 | FJ49: 0 | FK49: 0 | FL49: 0 | FM49: =$E49*((1+($E50/4))^FM$15)*FM47 -> 0 | FN49: 0 | FO49: 0 | FP49: 0 | FQ49: 0 | FR49: 0 | FS49: 0
C50: Escalation | E50: ='Inputs - Partnership'!E89 -> 0
C51: PPA 2 Revenue | D51: USD '000 | H51: =SUM(I51:FS51) -> 0 | I51: =I48*I49/1000 -> 0 | J51: =J48*J49/1000 -> 0 | K51: 0 | L51: 0 | M51: 0 | N51: 0 | O51: 0 | P51: 0 | Q51: 0 | R51: 0 | S51: 0 | T51: 0 | U51: 0 | V51: 0 | W51: 0 | X51: 0 | Y51: 0 | Z51: 0 | AA51: 0 | AB51: 0 | AC51: 0 | AD51: 0 | AE51: 0 | AF51: 0 | AG51: 0 | AH51: 0 | AI51: 0 | AJ51: 0 | AK51: 0 | AL51: 0 | AM51: 0 | AN51: 0 | AO51: 0 | AP51: 0 | AQ51: 0 | AR51: 0 | AS51: 0 | AT51: 0 | AU51: 0 | AV51: 0 | AW51: 0 | AX51: 0 | AY51: 0 | AZ51: 0 | BA51: 0 | BB51: 0 | BC51: 0 | BD51: 0 | BE51: 0 | BF51: 0 | BG51: 0 | BH51: 0 | BI51: 0 | BJ51: 0 | BK51: 0 | BL51: 0 | BM51: 0 | BN51: 0 | BO51: 0 | BP51: 0 | BQ51: 0 | BR51: 0 | BS51: 0 | BT51: 0 | BU51: 0 | BV51: =BV48*BV49/1000 -> 0 | BW51: 0 | BX51: 0 | BY51: 0 | BZ51: 0 | CA51: 0 | CB51: 0 | CC51: 0 | CD51: 0 | CE51: 0 | CF51: 0 | CG51: 0 | CH51: 0 | CI51: 0 | CJ51: 0 | CK51: 0 | CL51: 0 | CM51: 0 | CN51: 0 | CO51: 0 | CP51: 0 | CQ51: 0 | CR51: 0 | CS51: 0 | CT51: 0 | CU51: 0 | CV51: 0 | CW51: 0 | CX51: 0 | CY51: 0 | CZ51: 0 | DA51: 0 | DB51: 0 | DC51: 0 | DD51: 0 | DE51: 0 | DF51: 0 | DG51: 0 | DH51: 0 | DI51: 0 | DJ51: 0 | DK51: 0 | DL51: 0 | DM51: 0 | DN51: 0 | DO51: 0 | DP51: 0 | DQ51: 0 | DR51: 0 | DS51: 0 | DT51: 0 | DU51: 0 | DV51: 0 | DW51: 0 | DX51: 0 | DY51: 0 | DZ51: 0 | EA51: 0 | EB51: 0 | EC51: 0 | ED51: 0 | EE51: 0 | EF51: 0 | EG51: 0 | EH51: =EH48*EH49/1000 -> 0 | EI51: 0 | EJ51: 0 | EK51: 0 | EL51: 0 | EM51: 0 | EN51: 0 | EO51: 0 | EP51: 0 | EQ51: 0 | ER51: 0 | ES51: 0 | ET51: 0 | EU51: 0 | EV51: 0 | EW51: 0 | EX51: 0 | EY51: 0 | EZ51: 0 | FA51: 0 | FB51: 0 | FC51: 0 | FD51: 0 | FE51: 0 | FF51: 0 | FG51: 0 | FH51: 0 | FI51: 0 | FJ51: 0 | FK51: 0 | FL51: 0 | FM51: 0 | FN51: 0 | FO51: 0 | FP51: 0 | FQ51: 0 | FR51: 0 | FS51: 0
C53: REC
C54: REC period flag | E54: ='Inputs - Partnership'!E94 -> 10 | I54: =(I$14<=$E54)*(I$14>0)*1 -> 0 | J54: 0 | K54: 0 | L54: 0 | M54: 0 | N54: 0 | O54: 0 | P54: 0 | Q54: 1 | R54: 1 | S54: 1 | T54: 1 | U54: 1 | V54: 1 | W54: 1 | X54: 1 | Y54: 1 | Z54: 1 | AA54: 1 | AB54: 1 | AC54: 1 | AD54: 1 | AE54: 1 | AF54: 1 | AG54: 1 | AH54: 1 | AI54: 1 | AJ54: 1 | AK54: 1 | AL54: 1 | AM54: 1 | AN54: 1 | AO54: =(AO$14<=$E54)*(AO$14>0)*1 -> 1 | AP54: 1 | AQ54: 1 | AR54: 1 | AS54: 1 | AT54: 1 | AU54: 1 | AV54: 1 | AW54: 1 | AX54: 1 | AY54: 1 | AZ54: 1 | BA54: 1 | BB54: 1 | BC54: 1 | BD54: 1 | BE54: 0 | BF54: 0 | BG54: 0 | BH54: 0 | BI54: 0 | BJ54: 0 | BK54: 0 | BL54: 0 | BM54: 0 | BN54: 0 | BO54: 0 | BP54: 0 | BQ54: 0 | BR54: 0 | BS54: 0 | BT54: 0 | BU54: =(BU$14<=$E54)*(BU$14>0)*1 -> 0 | BV54: 0 | BW54: 0 | BX54: 0 | BY54: 0 | BZ54: 0 | CA54: 0 | CB54: 0 | CC54: 0 | CD54: 0 | CE54: 0 | CF54: 0 | CG54: 0 | CH54: 0 | CI54: 0 | CJ54: 0 | CK54: 0 | CL54: 0 | CM54: 0 | CN54: 0 | CO54: 0 | CP54: 0 | CQ54: 0 | CR54: 0 | CS54: 0 | CT54: 0 | CU54: 0 | CV54: 0 | CW54: 0 | CX54: 0 | CY54: 0 | CZ54: 0 | DA54: =(DA$14<=$E54)*(DA$14>0)*1 -> 0 | DB54: 0 | DC54: 0 | DD54: 0 | DE54: 0 | DF54: 0 | DG54: 0 | DH54: 0 | DI54: 0 | DJ54: 0 | DK54: 0 | DL54: 0 | DM54: 0 | DN54: 0 | DO54: 0 | DP54: 0 | DQ54: 0 | DR54: 0 | DS54: 0 | DT54: 0 | DU54: 0 | DV54: 0 | DW54: 0 | DX54: 0 | DY54: 0 | DZ54: 0 | EA54: 0 | EB54: 0 | EC54: 0 | ED54: 0 | EE54: 0 | EF54: 0 | EG54: =(EG$14<=$E54)*(EG$14>0)*1 -> 0 | EH54: 0 | EI54: 0 | EJ54: 0 | EK54: 0 | EL54: 0 | EM54: 0 | EN54: 0 | EO54: 0 | EP54: 0 | EQ54: 0 | ER54: 0 | ES54: 0 | ET54: 0 | EU54: 0 | EV54: 0 | EW54: 0 | EX54: 0 | EY54: 0 | EZ54: 0 | FA54: 0 | FB54: 0 | FC54: 0 | FD54: 0 | FE54: 0 | FF54: 0 | FG54: 0 | FH54: 0 | FI54: 0 | FJ54: 0 | FK54: 0 | FL54: 0 | FM54: =(FM$14<=$E54)*(FM$14>0)*1 -> 0 | FN54: 0 | FO54: 0 | FP54: 0 | FQ54: 0 | FR54: 0 | FS54: 0
C55: Price | D55: USD / MWH | E55: ='Inputs - Partnership'!E95 -> 1.25 | I55: =IF(I$14=0,0,LOOKUP(I$9,'Inputs - Partnership'!$I$93:$R$93,'Inputs - Partnership'!$I$94:$R$94)*I54) -> 0 | J55: =IF(J14=0,0,LOOKUP(J9,'Inputs - Partnership'!$I$93:$R$93,'Inputs - Partnership'!$I$94:$R$94)*J54) -> 0 | K55: =IF(K14=0,0,LOOKUP(K9,'Inputs - Partnership'!$I$93:$R$93,'Inputs - Partnership'!$I$94:$R$94)*K54) -> 0 | L55: =IF(L14=0,0,LOOKUP(L9,'Inputs - Partnership'!$I$93:$R$93,'Inputs - Partnership'!$I$94:$R$94)*L54) -> 0 | M55: =IF(M14=0,0,LOOKUP(M9,'Inputs - Partnership'!$I$93:$R$93,'Inputs - Partnership'!$I$94:$R$94)*M54) -> 0 | N55: =IF(N14=0,0,LOOKUP(N9,'Inputs - Partnership'!$I$93:$R$93,'Inputs - Partnership'!$I$94:$R$94)*N54) -> 0 | O55: =IF(O14=0,0,LOOKUP(O9,'Inputs - Partnership'!$I$93:$R$93,'Inputs - Partnership'!$I$94:$R$94)*O54) -> 0 | P55: =IF(P14=0,0,LOOKUP(P9,'Inputs - Partnership'!$I$93:$R$93,'Inputs - Partnership'!$I$94:$R$94)*P54) -> 0 | Q55: =IF(Q14=0,0,LOOKUP(Q9,'Inputs - Partnership'!$I$93:$R$93,'Inputs - Partnership'!$I$94:$R$94)*Q54) -> 1.25 | R55: =IF(R14=0,0,LOOKUP(R9,'Inputs - Partnership'!$I$93:$R$93,'Inputs - Partnership'!$I$94:$R$94)*R54) -> 1.25 | S55: =IF(S14=0,0,LOOKUP(S9,'Inputs - Partnership'!$I$93:$R$93,'Inputs - Partnership'!$I$94:$R$94)*S54) -> 1.25 | T55: =IF(T14=0,0,LOOKUP(T9,'Inputs - Partnership'!$I$93:$R$93,'Inputs - Partnership'!$I$94:$R$94)*T54) -> 1.25 | U55: =IF(U14=0,0,LOOKUP(U9,'Inputs - Partnership'!$I$93:$R$93,'Inputs - Partnership'!$I$94:$R$94)*U54) -> 1.25 | V55: =IF(V14=0,0,LOOKUP(V9,'Inputs - Partnership'!$I$93:$R$93,'Inputs - Partnership'!$I$94:$R$94)*V54) -> 1.25 | W55: =IF(W14=0,0,LOOKUP(W9,'Inputs - Partnership'!$I$93:$R$93,'Inputs - Partnership'!$I$94:$R$94)*W54) -> 1.25 | X55: =IF(X14=0,0,LOOKUP(X9,'Inputs - Partnership'!$I$93:$R$93,'Inputs - Partnership'!$I$94:$R$94)*X54) -> 1.25 | Y55: =IF(Y14=0,0,LOOKUP(Y9,'Inputs - Partnership'!$I$93:$R$93,'Inputs - Partnership'!$I$94:$R$94)*Y54) -> 1.25 | Z55: =IF(Z14=0,0,LOOKUP(Z9,'Inputs - Partnership'!$I$93:$R$93,'Inputs - Partnership'!$I$94:$R$94)*Z54) -> 1.25 | AA55: =IF(AA14=0,0,LOOKUP(AA9,'Inputs - Partnership'!$I$93:$R$93,'Inputs - Partnership'!$I$94:$R$94)*AA54) -> 1.25 | AB55: =IF(AB14=0,0,LOOKUP(AB9,'Inputs - Partnership'!$I$93:$R$93,'Inputs - Partnership'!$I$94:$R$94)*AB54) -> 1.25 | AC55: =IF(AC14=0,0,LOOKUP(AC9,'Inputs - Partnership'!$I$93:$R$93,'Inputs - Partnership'!$I$94:$R$94)*AC54) -> 1.25 | AD55: =IF(AD14=0,0,LOOKUP(AD9,'Inputs - Partnership'!$I$93:$R$93,'Inputs - Partnership'!$I$94:$R$94)*AD54) -> 1.25 | AE55: =IF(AE14=0,0,LOOKUP(AE9,'Inputs - Partnership'!$I$93:$R$93,'Inputs - Partnership'!$I$94:$R$94)*AE54) -> 1.25 | AF55: =IF(AF14=0,0,LOOKUP(AF9,'Inputs - Partnership'!$I$93:$R$93,'Inputs - Partnership'!$I$94:$R$94)*AF54) -> 1.25 | AG55: =IF(AG14=0,0,LOOKUP(AG9,'Inputs - Partnership'!$I$93:$R$93,'Inputs - Partnership'!$I$94:$R$94)*AG54) -> 1.25 | AH55: =IF(AH14=0,0,LOOKUP(AH9,'Inputs - Partnership'!$I$93:$R$93,'Inputs - Partnership'!$I$94:$R$94)*AH54) -> 1.25 | AI55: =IF(AI14=0,0,LOOKUP(AI9,'Inputs - Partnership'!$I$93:$R$93,'Inputs - Partnership'!$I$94:$R$94)*AI54) -> 1.25 | AJ55: =IF(AJ14=0,0,LOOKUP(AJ9,'Inputs - Partnership'!$I$93:$R$93,'Inputs - Partnership'!$I$94:$R$94)*AJ54) -> 1.25 | AK55: =IF(AK14=0,0,LOOKUP(AK9,'Inputs - Partnership'!$I$93:$R$93,'Inputs - Partnership'!$I$94:$R$94)*AK54) -> 1.25 | AL55: =IF(AL14=0,0,LOOKUP(AL9,'Inputs - Partnership'!$I$93:$R$93,'Inputs - Partnership'!$I$94:$R$94)*AL54) -> 1.25 | AM55: =IF(AM14=0,0,LOOKUP(AM9,'Inputs - Partnership'!$I$93:$R$93,'Inputs - Partnership'!$I$94:$R$94)*AM54) -> 1.25 | AN55: =IF(AN14=0,0,LOOKUP(AN9,'Inputs - Partnership'!$I$93:$R$93,'Inputs - Partnership'!$I$94:$R$94)*AN54) -> 1.25 | AO55: =IF(AO14=0,0,LOOKUP(AO9,'Inputs - Partnership'!$I$93:$R$93,'Inputs - Partnership'!$I$94:$R$94)*AO54) -> 1.25 | AP55: =IF(AP14=0,0,LOOKUP(AP9,'Inputs - Partnership'!$I$93:$R$93,'Inputs - Partnership'!$I$94:$R$94)*AP54) -> 1.25 | AQ55: =IF(AQ14=0,0,LOOKUP(AQ9,'Inputs - Partnership'!$I$93:$R$93,'Inputs - Partnership'!$I$94:$R$94)*AQ54) -> 1.25 | AR55: =IF(AR14=0,0,LOOKUP(AR9,'Inputs - Partnership'!$I$93:$R$93,'Inputs - Partnership'!$I$94:$R$94)*AR54) -> 1.25 | AS55: =IF(AS14=0,0,LOOKUP(AS9,'Inputs - Partnership'!$I$93:$R$93,'Inputs - Partnership'!$I$94:$R$94)*AS54) -> 1.25 | AT55: =IF(AT14=0,0,LOOKUP(AT9,'Inputs - Partnership'!$I$93:$R$93,'Inputs - Partnership'!$I$94:$R$94)*AT54) -> 1.25 | AU55: =IF(AU14=0,0,LOOKUP(AU9,'Inputs - Partnership'!$I$93:$R$93,'Inputs - Partnership'!$I$94:$R$94)*AU54) -> 1.25 | AV55: =IF(AV14=0,0,LOOKUP(AV9,'Inputs - Partnership'!$I$93:$R$93,'Inputs - Partnership'!$I$94:$R$94)*AV54) -> 1.25 | AW55: =IF(AW14=0,0,LOOKUP(AW9,'Inputs - Partnership'!$I$93:$R$93,'Inputs - Partnership'!$I$94:$R$94)*AW54) -> 1.25 | AX55: =IF(AX14=0,0,LOOKUP(AX9,'Inputs - Partnership'!$I$93:$R$93,'Inputs - Partnership'!$I$94:$R$94)*AX54) -> 1.25 | AY55: =IF(AY14=0,0,LOOKUP(AY9,'Inputs - Partnership'!$I$93:$R$93,'Inputs - Partnership'!$I$94:$R$94)*AY54) -> 1.25 | AZ55: =IF(AZ14=0,0,LOOKUP(AZ9,'Inputs - Partnership'!$I$93:$R$93,'Inputs - Partnership'!$I$94:$R$94)*AZ54) -> 1.25 | BA55: =IF(BA14=0,0,LOOKUP(BA9,'Inputs - Partnership'!$I$93:$R$93,'Inputs - Partnership'!$I$94:$R$94)*BA54) -> 1.25 | BB55: =IF(BB14=0,0,LOOKUP(BB9,'Inputs - Partnership'!$I$93:$R$93,'Inputs - Partnership'!$I$94:$R$94)*BB54) -> 1.25 | BC55: =IF(BC14=0,0,LOOKUP(BC9,'Inputs - Partnership'!$I$93:$R$93,'Inputs - Partnership'!$I$94:$R$94)*BC54) -> 1.25 | BD55: =IF(BD14=0,0,LOOKUP(BD9,'Inputs - Partnership'!$I$93:$R$93,'Inputs - Partnership'!$I$94:$R$94)*BD54) -> 1.25 | BE55: =IF(BE14=0,0,LOOKUP(BE9,'Inputs - Partnership'!$I$93:$R$93,'Inputs - Partnership'!$I$94:$R$94)*BE54) -> 0 | BF55: =IF(BF14=0,0,LOOKUP(BF9,'Inputs - Partnership'!$I$93:$R$93,'Inputs - Partnership'!$I$94:$R$94)*BF54) -> 0 | BG55: =IF(BG14=0,0,LOOKUP(BG9,'Inputs - Partnership'!$I$93:$R$93,'Inputs - Partnership'!$I$94:$R$94)*BG54) -> 0 | BH55: =IF(BH14=0,0,LOOKUP(BH9,'Inputs - Partnership'!$I$93:$R$93,'Inputs - Partnership'!$I$94:$R$94)*BH54) -> 0 | BI55: =IF(BI14=0,0,LOOKUP(BI9,'Inputs - Partnership'!$I$93:$R$93,'Inputs - Partnership'!$I$94:$R$94)*BI54) -> 0 | BJ55: =IF(BJ14=0,0,LOOKUP(BJ9,'Inputs - Partnership'!$I$93:$R$93,'Inputs - Partnership'!$I$94:$R$94)*BJ54) -> 0 | BK55: =IF(BK14=0,0,LOOKUP(BK9,'Inputs - Partnership'!$I$93:$R$93,'Inputs - Partnership'!$I$94:$R$94)*BK54) -> 0 | BL55: =IF(BL14=0,0,LOOKUP(BL9,'Inputs - Partnership'!$I$93:$R$93,'Inputs - Partnership'!$I$94:$R$94)*BL54) -> 0 | BM55: =IF(BM14=0,0,LOOKUP(BM9,'Inputs - Partnership'!$I$93:$R$93,'Inputs - Partnership'!$I$94:$R$94)*BM54) -> 0 | BN55: =IF(BN14=0,0,LOOKUP(BN9,'Inputs - Partnership'!$I$93:$R$93,'Inputs - Partnership'!$I$94:$R$94)*BN54) -> 0 | BO55: =IF(BO14=0,0,LOOKUP(BO9,'Inputs - Partnership'!$I$93:$R$93,'Inputs - Partnership'!$I$94:$R$94)*BO54) -> 0 | BP55: =IF(BP14=0,0,LOOKUP(BP9,'Inputs - Partnership'!$I$93:$R$93,'Inputs - Partnership'!$I$94:$R$94)*BP54) -> 0 | BQ55: =IF(BQ14=0,0,LOOKUP(BQ9,'Inputs - Partnership'!$I$93:$R$93,'Inputs - Partnership'!$I$94:$R$94)*BQ54) -> 0 | BR55: =IF(BR14=0,0,LOOKUP(BR9,'Inputs - Partnership'!$I$93:$R$93,'Inputs - Partnership'!$I$94:$R$94)*BR54) -> 0 | BS55: =IF(BS14=0,0,LOOKUP(BS9,'Inputs - Partnership'!$I$93:$R$93,'Inputs - Partnership'!$I$94:$R$94)*BS54) -> 0 | BT55: =IF(BT14=0,0,LOOKUP(BT9,'Inputs - Partnership'!$I$93:$R$93,'Inputs - Partnership'!$I$94:$R$94)*BT54) -> 0 | BU55: =IF(BU14=0,0,LOOKUP(BU9,'Inputs - Partnership'!$I$93:$R$93,'Inputs - Partnership'!$I$94:$R$94)*BU54) -> 0 | BV55: =IF(BV14=0,0,LOOKUP(BV9,'Inputs - Partnership'!$I$93:$R$93,'Inputs - Partnership'!$I$94:$R$94)*BV54) -> 0 | BW55: =IF(BW14=0,0,LOOKUP(BW9,'Inputs - Partnership'!$I$93:$R$93,'Inputs - Partnership'!$I$94:$R$94)*BW54) -> 0 | BX55: =IF(BX14=0,0,LOOKUP(BX9,'Inputs - Partnership'!$I$93:$R$93,'Inputs - Partnership'!$I$94:$R$94)*BX54) -> 0 | BY55: =IF(BY14=0,0,LOOKUP(BY9,'Inputs - Partnership'!$I$93:$R$93,'Inputs - Partnership'!$I$94:$R$94)*BY54) -> 0 | BZ55: =IF(BZ14=0,0,LOOKUP(BZ9,'Inputs - Partnership'!$I$93:$R$93,'Inputs - Partnership'!$I$94:$R$94)*BZ54) -> 0 | CA55: =IF(CA14=0,0,LOOKUP(CA9,'Inputs - Partnership'!$I$93:$R$93,'Inputs - Partnership'!$I$94:$R$94)*CA54) -> 0 | CB55: =IF(CB14=0,0,LOOKUP(CB9,'Inputs - Partnership'!$I$93:$R$93,'Inputs - Partnership'!$I$94:$R$94)*CB54) -> 0 | CC55: =IF(CC14=0,0,LOOKUP(CC9,'Inputs - Partnership'!$I$93:$R$93,'Inputs - Partnership'!$I$94:$R$94)*CC54) -> 0 | CD55: =IF(CD14=0,0,LOOKUP(CD9,'Inputs - Partnership'!$I$93:$R$93,'Inputs - Partnership'!$I$94:$R$94)*CD54) -> 0 | CE55: =IF(CE14=0,0,LOOKUP(CE9,'Inputs - Partnership'!$I$93:$R$93,'Inputs - Partnership'!$I$94:$R$94)*CE54) -> 0 | CF55: =IF(CF14=0,0,LOOKUP(CF9,'Inputs - Partnership'!$I$93:$R$93,'Inputs - Partnership'!$I$94:$R$94)*CF54) -> 0 | CG55: =IF(CG14=0,0,LOOKUP(CG9,'Inputs - Partnership'!$I$93:$R$93,'Inputs - Partnership'!$I$94:$R$94)*CG54) -> 0 | CH55: =IF(CH14=0,0,LOOKUP(CH9,'Inputs - Partnership'!$I$93:$R$93,'Inputs - Partnership'!$I$94:$R$94)*CH54) -> 0 | CI55: =IF(CI14=0,0,LOOKUP(CI9,'Inputs - Partnership'!$I$93:$R$93,'Inputs - Partnership'!$I$94:$R$94)*CI54) -> 0 | CJ55: =IF(CJ14=0,0,LOOKUP(CJ9,'Inputs - Partnership'!$I$93:$R$93,'Inputs - Partnership'!$I$94:$R$94)*CJ54) -> 0 | CK55: =IF(CK14=0,0,LOOKUP(CK9,'Inputs - Partnership'!$I$93:$R$93,'Inputs - Partnership'!$I$94:$R$94)*CK54) -> 0 | CL55: =IF(CL14=0,0,LOOKUP(CL9,'Inputs - Partnership'!$I$93:$R$93,'Inputs - Partnership'!$I$94:$R$94)*CL54) -> 0 | CM55: =IF(CM14=0,0,LOOKUP(CM9,'Inputs - Partnership'!$I$93:$R$93,'Inputs - Partnership'!$I$94:$R$94)*CM54) -> 0 | CN55: =IF(CN14=0,0,LOOKUP(CN9,'Inputs - Partnership'!$I$93:$R$93,'Inputs - Partnership'!$I$94:$R$94)*CN54) -> 0 | CO55: =IF(CO14=0,0,LOOKUP(CO9,'Inputs - Partnership'!$I$93:$R$93,'Inputs - Partnership'!$I$94:$R$94)*CO54) -> 0 | CP55: =IF(CP14=0,0,LOOKUP(CP9,'Inputs - Partnership'!$I$93:$R$93,'Inputs - Partnership'!$I$94:$R$94)*CP54) -> 0 | CQ55: =IF(CQ14=0,0,LOOKUP(CQ9,'Inputs - Partnership'!$I$93:$R$93,'Inputs - Partnership'!$I$94:$R$94)*CQ54) -> 0 | CR55: =IF(CR14=0,0,LOOKUP(CR9,'Inputs - Partnership'!$I$93:$R$93,'Inputs - Partnership'!$I$94:$R$94)*CR54) -> 0 | CS55: =IF(CS14=0,0,LOOKUP(CS9,'Inputs - Partnership'!$I$93:$R$93,'Inputs - Partnership'!$I$94:$R$94)*CS54) -> 0 | CT55: =IF(CT14=0,0,LOOKUP(CT9,'Inputs - Partnership'!$I$93:$R$93,'Inputs - Partnership'!$I$94:$R$94)*CT54) -> 0 | CU55: =IF(CU14=0,0,LOOKUP(CU9,'Inputs - Partnership'!$I$93:$R$93,'Inputs - Partnership'!$I$94:$R$94)*CU54) -> 0 | CV55: =IF(CV14=0,0,LOOKUP(CV9,'Inputs - Partnership'!$I$93:$R$93,'Inputs - Partnership'!$I$94:$R$94)*CV54) -> 0 | CW55: =IF(CW14=0,0,LOOKUP(CW9,'Inputs - Partnership'!$I$93:$R$93,'Inputs - Partnership'!$I$94:$R$94)*CW54) -> 0 | CX55: =IF(CX14=0,0,LOOKUP(CX9,'Inputs - Partnership'!$I$93:$R$93,'Inputs - Partnership'!$I$94:$R$94)*CX54) -> 0 | CY55: =IF(CY14=0,0,LOOKUP(CY9,'Inputs - Partnership'!$I$93:$R$93,'Inputs - Partnership'!$I$94:$R$94)*CY54) -> 0 | CZ55: =IF(CZ14=0,0,LOOKUP(CZ9,'Inputs - Partnership'!$I$93:$R$93,'Inputs - Partnership'!$I$94:$R$94)*CZ54) -> 0 | DA55: =IF(DA14=0,0,LOOKUP(DA9,'Inputs - Partnership'!$I$93:$R$93,'Inputs - Partnership'!$I$94:$R$94)*DA54) -> 0 | DB55: =IF(DB14=0,0,LOOKUP(DB9,'Inputs - Partnership'!$I$93:$R$93,'Inputs - Partnership'!$I$94:$R$94)*DB54) -> 0 | DC55: =IF(DC14=0,0,LOOKUP(DC9,'Inputs - Partnership'!$I$93:$R$93,'Inputs - Partnership'!$I$94:$R$94)*DC54) -> 0 | DD55: =IF(DD14=0,0,LOOKUP(DD9,'Inputs - Partnership'!$I$93:$R$93,'Inputs - Partnership'!$I$94:$R$94)*DD54) -> 0 | DE55: =IF(DE14=0,0,LOOKUP(DE9,'Inputs - Partnership'!$I$93:$R$93,'Inputs - Partnership'!$I$94:$R$94)*DE54) -> 0 | DF55: =IF(DF14=0,0,LOOKUP(DF9,'Inputs - Partnership'!$I$93:$R$93,'Inputs - Partnership'!$I$94:$R$94)*DF54) -> 0 | DG55: =IF(DG14=0,0,LOOKUP(DG9,'Inputs - Partnership'!$I$93:$R$93,'Inputs - Partnership'!$I$94:$R$94)*DG54) -> 0 | DH55: =IF(DH14=0,0,LOOKUP(DH9,'Inputs - Partnership'!$I$93:$R$93,'Inputs - Partnership'!$I$94:$R$94)*DH54) -> 0 | DI55: =IF(DI14=0,0,LOOKUP(DI9,'Inputs - Partnership'!$I$93:$R$93,'Inputs - Partnership'!$I$94:$R$94)*DI54) -> 0 | DJ55: =IF(DJ14=0,0,LOOKUP(DJ9,'Inputs - Partnership'!$I$93:$R$93,'Inputs - Partnership'!$I$94:$R$94)*DJ54) -> 0 | DK55: =IF(DK14=0,0,LOOKUP(DK9,'Inputs - Partnership'!$I$93:$R$93,'Inputs - Partnership'!$I$94:$R$94)*DK54) -> 0 | DL55: =IF(DL14=0,0,LOOKUP(DL9,'Inputs - Partnership'!$I$93:$R$93,'Inputs - Partnership'!$I$94:$R$94)*DL54) -> 0 | DM55: =IF(DM14=0,0,LOOKUP(DM9,'Inputs - Partnership'!$I$93:$R$93,'Inputs - Partnership'!$I$94:$R$94)*DM54) -> 0 | DN55: =IF(DN14=0,0,LOOKUP(DN9,'Inputs - Partnership'!$I$93:$R$93,'Inputs - Partnership'!$I$94:$R$94)*DN54) -> 0 | DO55: =IF(DO14=0,0,LOOKUP(DO9,'Inputs - Partnership'!$I$93:$R$93,'Inputs - Partnership'!$I$94:$R$94)*DO54) -> 0 | DP55: =IF(DP14=0,0,LOOKUP(DP9,'Inputs - Partnership'!$I$93:$R$93,'Inputs - Partnership'!$I$94:$R$94)*DP54) -> 0 | DQ55: =IF(DQ14=0,0,LOOKUP(DQ9,'Inputs - Partnership'!$I$93:$R$93,'Inputs - Partnership'!$I$94:$R$94)*DQ54) -> 0 | DR55: =IF(DR14=0,0,LOOKUP(DR9,'Inputs - Partnership'!$I$93:$R$93,'Inputs - Partnership'!$I$94:$R$94)*DR54) -> 0 | DS55: =IF(DS14=0,0,LOOKUP(DS9,'Inputs - Partnership'!$I$93:$R$93,'Inputs - Partnership'!$I$94:$R$94)*DS54) -> 0 | DT55: =IF(DT14=0,0,LOOKUP(DT9,'Inputs - Partnership'!$I$93:$R$93,'Inputs - Partnership'!$I$94:$R$94)*DT54) -> 0 | DU55: =IF(DU14=0,0,LOOKUP(DU9,'Inputs - Partnership'!$I$93:$R$93,'Inputs - Partnership'!$I$94:$R$94)*DU54) -> 0 | DV55: =IF(DV14=0,0,LOOKUP(DV9,'Inputs - Partnership'!$I$93:$R$93,'Inputs - Partnership'!$I$94:$R$94)*DV54) -> 0 | DW55: =IF(DW14=0,0,LOOKUP(DW9,'Inputs - Partnership'!$I$93:$R$93,'Inputs - Partnership'!$I$94:$R$94)*DW54) -> 0 | DX55: =IF(DX14=0,0,LOOKUP(DX9,'Inputs - Partnership'!$I$93:$R$93,'Inputs - Partnership'!$I$94:$R$94)*DX54) -> 0 | DY55: =IF(DY14=0,0,LOOKUP(DY9,'Inputs - Partnership'!$I$93:$R$93,'Inputs - Partnership'!$I$94:$R$94)*DY54) -> 0 | DZ55: =IF(DZ14=0,0,LOOKUP(DZ9,'Inputs - Partnership'!$I$93:$R$93,'Inputs - Partnership'!$I$94:$R$94)*DZ54) -> 0 | EA55: =IF(EA14=0,0,LOOKUP(EA9,'Inputs - Partnership'!$I$93:$R$93,'Inputs - Partnership'!$I$94:$R$94)*EA54) -> 0 | EB55: =IF(EB14=0,0,LOOKUP(EB9,'Inputs - Partnership'!$I$93:$R$93,'Inputs - Partnership'!$I$94:$R$94)*EB54) -> 0 | EC55: =IF(EC14=0,0,LOOKUP(EC9,'Inputs - Partnership'!$I$93:$R$93,'Inputs - Partnership'!$I$94:$R$94)*EC54) -> 0 | ED55: =IF(ED14=0,0,LOOKUP(ED9,'Inputs - Partnership'!$I$93:$R$93,'Inputs - Partnership'!$I$94:$R$94)*ED54) -> 0 | EE55: =IF(EE14=0,0,LOOKUP(EE9,'Inputs - Partnership'!$I$93:$R$93,'Inputs - Partnership'!$I$94:$R$94)*EE54) -> 0 | EF55: =IF(EF14=0,0,LOOKUP(EF9,'Inputs - Partnership'!$I$93:$R$93,'Inputs - Partnership'!$I$94:$R$94)*EF54) -> 0 | EG55: =IF(EG14=0,0,LOOKUP(EG9,'Inputs - Partnership'!$I$93:$R$93,'Inputs - Partnership'!$I$94:$R$94)*EG54) -> 0 | EH55: =IF(EH14=0,0,LOOKUP(EH9,'Inputs - Partnership'!$I$93:$R$93,'Inputs - Partnership'!$I$94:$R$94)*EH54) -> 0 | EI55: =IF(EI14=0,0,LOOKUP(EI9,'Inputs - Partnership'!$I$93:$R$93,'Inputs - Partnership'!$I$94:$R$94)*EI54) -> 0 | EJ55: =IF(EJ14=0,0,LOOKUP(EJ9,'Inputs - Partnership'!$I$93:$R$93,'Inputs - Partnership'!$I$94:$R$94)*EJ54) -> 0 | EK55: =IF(EK14=0,0,LOOKUP(EK9,'Inputs - Partnership'!$I$93:$R$93,'Inputs - Partnership'!$I$94:$R$94)*EK54) -> 0 | EL55: =IF(EL14=0,0,LOOKUP(EL9,'Inputs - Partnership'!$I$93:$R$93,'Inputs - Partnership'!$I$94:$R$94)*EL54) -> 0 | EM55: =IF(EM14=0,0,LOOKUP(EM9,'Inputs - Partnership'!$I$93:$R$93,'Inputs - Partnership'!$I$94:$R$94)*EM54) -> 0 | EN55: =IF(EN14=0,0,LOOKUP(EN9,'Inputs - Partnership'!$I$93:$R$93,'Inputs - Partnership'!$I$94:$R$94)*EN54) -> 0 | EO55: =IF(EO14=0,0,LOOKUP(EO9,'Inputs - Partnership'!$I$93:$R$93,'Inputs - Partnership'!$I$94:$R$94)*EO54) -> 0 | EP55: =IF(EP14=0,0,LOOKUP(EP9,'Inputs - Partnership'!$I$93:$R$93,'Inputs - Partnership'!$I$94:$R$94)*EP54) -> 0 | EQ55: =IF(EQ14=0,0,LOOKUP(EQ9,'Inputs - Partnership'!$I$93:$R$93,'Inputs - Partnership'!$I$94:$R$94)*EQ54) -> 0 | ER55: =IF(ER14=0,0,LOOKUP(ER9,'Inputs - Partnership'!$I$93:$R$93,'Inputs - Partnership'!$I$94:$R$94)*ER54) -> 0 | ES55: =IF(ES14=0,0,LOOKUP(ES9,'Inputs - Partnership'!$I$93:$R$93,'Inputs - Partnership'!$I$94:$R$94)*ES54) -> 0 | ET55: =IF(ET14=0,0,LOOKUP(ET9,'Inputs - Partnership'!$I$93:$R$93,'Inputs - Partnership'!$I$94:$R$94)*ET54) -> 0 | EU55: =IF(EU14=0,0,LOOKUP(EU9,'Inputs - Partnership'!$I$93:$R$93,'Inputs - Partnership'!$I$94:$R$94)*EU54) -> 0 | EV55: =IF(EV14=0,0,LOOKUP(EV9,'Inputs - Partnership'!$I$93:$R$93,'Inputs - Partnership'!$I$94:$R$94)*EV54) -> 0 | EW55: =IF(EW14=0,0,LOOKUP(EW9,'Inputs - Partnership'!$I$93:$R$93,'Inputs - Partnership'!$I$94:$R$94)*EW54) -> 0 | EX55: =IF(EX14=0,0,LOOKUP(EX9,'Inputs - Partnership'!$I$93:$R$93,'Inputs - Partnership'!$I$94:$R$94)*EX54) -> 0 | EY55: =IF(EY14=0,0,LOOKUP(EY9,'Inputs - Partnership'!$I$93:$R$93,'Inputs - Partnership'!$I$94:$R$94)*EY54) -> 0 | EZ55: =IF(EZ14=0,0,LOOKUP(EZ9,'Inputs - Partnership'!$I$93:$R$93,'Inputs - Partnership'!$I$94:$R$94)*EZ54) -> 0 | FA55: =IF(FA14=0,0,LOOKUP(FA9,'Inputs - Partnership'!$I$93:$R$93,'Inputs - Partnership'!$I$94:$R$94)*FA54) -> 0 | FB55: =IF(FB14=0,0,LOOKUP(FB9,'Inputs - Partnership'!$I$93:$R$93,'Inputs - Partnership'!$I$94:$R$94)*FB54) -> 0 | FC55: =IF(FC14=0,0,LOOKUP(FC9,'Inputs - Partnership'!$I$93:$R$93,'Inputs - Partnership'!$I$94:$R$94)*FC54) -> 0 | FD55: =IF(FD14=0,0,LOOKUP(FD9,'Inputs - Partnership'!$I$93:$R$93,'Inputs - Partnership'!$I$94:$R$94)*FD54) -> 0 | FE55: =IF(FE14=0,0,LOOKUP(FE9,'Inputs - Partnership'!$I$93:$R$93,'Inputs - Partnership'!$I$94:$R$94)*FE54) -> 0 | FF55: =IF(FF14=0,0,LOOKUP(FF9,'Inputs - Partnership'!$I$93:$R$93,'Inputs - Partnership'!$I$94:$R$94)*FF54) -> 0 | FG55: =IF(FG14=0,0,LOOKUP(FG9,'Inputs - Partnership'!$I$93:$R$93,'Inputs - Partnership'!$I$94:$R$94)*FG54) -> 0 | FH55: =IF(FH14=0,0,LOOKUP(FH9,'Inputs - Partnership'!$I$93:$R$93,'Inputs - Partnership'!$I$94:$R$94)*FH54) -> 0 | FI55: =IF(FI14=0,0,LOOKUP(FI9,'Inputs - Partnership'!$I$93:$R$93,'Inputs - Partnership'!$I$94:$R$94)*FI54) -> 0 | FJ55: =IF(FJ14=0,0,LOOKUP(FJ9,'Inputs - Partnership'!$I$93:$R$93,'Inputs - Partnership'!$I$94:$R$94)*FJ54) -> 0 | FK55: =IF(FK14=0,0,LOOKUP(FK9,'Inputs - Partnership'!$I$93:$R$93,'Inputs - Partnership'!$I$94:$R$94)*FK54) -> 0 | FL55: =IF(FL14=0,0,LOOKUP(FL9,'Inputs - Partnership'!$I$93:$R$93,'Inputs - Partnership'!$I$94:$R$94)*FL54) -> 0 | FM55: =IF(FM14=0,0,LOOKUP(FM9,'Inputs - Partnership'!$I$93:$R$93,'Inputs - Partnership'!$I$94:$R$94)*FM54) -> 0 | FN55: =IF(FN14=0,0,LOOKUP(FN9,'Inputs - Partnership'!$I$93:$R$93,'Inputs - Partnership'!$I$94:$R$94)*FN54) -> 0 | FO55: =IF(FO14=0,0,LOOKUP(FO9,'Inputs - Partnership'!$I$93:$R$93,'Inputs - Partnership'!$I$94:$R$94)*FO54) -> 0 | FP55: =IF(FP14=0,0,LOOKUP(FP9,'Inputs - Partnership'!$I$93:$R$93,'Inputs - Partnership'!$I$94:$R$94)*FP54) -> 0 | FQ55: =IF(FQ14=0,0,LOOKUP(FQ9,'Inputs - Partnership'!$I$93:$R$93,'Inputs - Partnership'!$I$94:$R$94)*FQ54) -> 0 | FR55: =IF(FR14=0,0,LOOKUP(FR9,'Inputs - Partnership'!$I$93:$R$93,'Inputs - Partnership'!$I$94:$R$94)*FR54) -> 0 | FS55: =IF(FS14=0,0,LOOKUP(FS9,'Inputs - Partnership'!$I$93:$R$93,'Inputs - Partnership'!$I$94:$R$94)*FS54) -> 0
C56: REC revenue | D56: USD '000 | H56: =SUM(I56:FS56) -> 0 | I56: =I$36*I55/1000 -> 0 | J56: =J$36*J55/1000 -> 0 | K56: 0 | L56: 0 | M56: 0 | N56: 0 | O56: 0 | P56: 0 | Q56: 0 | R56: 0 | S56: 0 | T56: 0 | U56: 0 | V56: 0 | W56: 0 | X56: 0 | Y56: 0 | Z56: 0 | AA56: 0 | AB56: 0 | AC56: 0 | AD56: 0 | AE56: 0 | AF56: 0 | AG56: 0 | AH56: 0 | AI56: 0 | AJ56: 0 | AK56: 0 | AL56: 0 | AM56: 0 | AN56: 0 | AO56: 0 | AP56: 0 | AQ56: 0 | AR56: 0 | AS56: 0 | AT56: 0 | AU56: 0 | AV56: 0 | AW56: 0 | AX56: 0 | AY56: 0 | AZ56: 0 | BA56: 0 | BB56: 0 | BC56: 0 | BD56: 0 | BE56: 0 | BF56: 0 | BG56: 0 | BH56: 0 | BI56: 0 | BJ56: 0 | BK56: 0 | BL56: 0 | BM56: 0 | BN56: 0 | BO56: 0 | BP56: 0 | BQ56: 0 | BR56: 0 | BS56: 0 | BT56: 0 | BU56: 0 | BV56: =BV$36*BV55/1000 -> 0 | BW56: 0 | BX56: 0 | BY56: 0 | BZ56: 0 | CA56: 0 | CB56: 0 | CC56: 0 | CD56: 0 | CE56: 0 | CF56: 0 | CG56: 0 | CH56: 0 | CI56: 0 | CJ56: 0 | CK56: 0 | CL56: 0 | CM56: 0 | CN56: 0 | CO56: 0 | CP56: 0 | CQ56: 0 | CR56: 0 | CS56: 0 | CT56: 0 | CU56: 0 | CV56: 0 | CW56: 0 | CX56: 0 | CY56: 0 | CZ56: 0 | DA56: 0 | DB56: 0 | DC56: 0 | DD56: 0 | DE56: 0 | DF56: 0 | DG56: 0 | DH56: 0 | DI56: 0 | DJ56: 0 | DK56: 0 | DL56: 0 | DM56: 0 | DN56: 0 | DO56: 0 | DP56: 0 | DQ56: 0 | DR56: 0 | DS56: 0 | DT56: 0 | DU56: 0 | DV56: 0 | DW56: 0 | DX56: 0 | DY56: 0 | DZ56: 0 | EA56: 0 | EB56: 0 | EC56: 0 | ED56: 0 | EE56: 0 | EF56: 0 | EG56: 0 | EH56: =EH$36*EH55/1000 -> 0 | EI56: 0 | EJ56: 0 | EK56: 0 | EL56: 0 | EM56: 0 | EN56: 0 | EO56: 0 | EP56: 0 | EQ56: 0 | ER56: 0 | ES56: 0 | ET56: 0 | EU56: 0 | EV56: 0 | EW56: 0 | EX56: 0 | EY56: 0 | EZ56: 0 | FA56: 0 | FB56: 0 | FC56: 0 | FD56: 0 | FE56: 0 | FF56: 0 | FG56: 0 | FH56: 0 | FI56: 0 | FJ56: 0 | FK56: 0 | FL56: 0 | FM56: 0 | FN56: 0 | FO56: 0 | FP56: 0 | FQ56: 0 | FR56: 0 | FS56: 0
C58: Merchant
C59: Year | I59: =YEAR(I2) -> 2020 | J59: 2020 | K59: 2020 | L59: 2020 | M59: 2021 | N59: 2021 | O59: 2021 | P59: 2021 | Q59: 2022 | R59: 2022 | S59: 2022 | T59: 2022 | U59: 2023 | V59: 2023 | W59: 2023 | X59: 2023 | Y59: 2024 | Z59: 2024 | AA59: 2024 | AB59: 2024 | AC59: 2025 | AD59: 2025 | AE59: 2025 | AF59: 2025 | AG59: 2026 | AH59: 2026 | AI59: 2026 | AJ59: 2026 | AK59: 2027 | AL59: 2027 | AM59: 2027 | AN59: 2027 | AO59: =YEAR(AO2) -> 2028 | AP59: 2028 | AQ59: 2028 | AR59: 2028 | AS59: 2029 | AT59: 2029 | AU59: 2029 | AV59: 2029 | AW59: 2030 | AX59: 2030 | AY59: 2030 | AZ59: 2030 | BA59: 2031 | BB59: 2031 | BC59: 2031 | BD59: 2031 | BE59: 2032 | BF59: 2032 | BG59: 2032 | BH59: 2032 | BI59: 2033 | BJ59: 2033 | BK59: 2033 | BL59: 2033 | BM59: 2034 | BN59: 2034 | BO59: 2034 | BP59: 2034 | BQ59: 2035 | BR59: 2035 | BS59: 2035 | BT59: 2035 | BU59: =YEAR(BU2) -> 2036 | BV59: 2036 | BW59: 2036 | BX59: 2036 | BY59: 2037 | BZ59: 2037 | CA59: 2037 | CB59: 2037 | CC59: 2038 | CD59: 2038 | CE59: 2038 | CF59: 2038 | CG59: 2039 | CH59: 2039 | CI59: 2039 | CJ59: 2039 | CK59: 2040 | CL59: 2040 | CM59: 2040 | CN59: 2040 | CO59: 2041 | CP59: 2041 | CQ59: 2041 | CR59: 2041 | CS59: 2042 | CT59: 2042 | CU59: 2042 | CV59: 2042 | CW59: 2043 | CX59: 2043 | CY59: 2043 | CZ59: 2043 | DA59: =YEAR(DA2) -> 2044 | DB59: 2044 | DC59: 2044 | DD59: 2044 | DE59: 2045 | DF59: 2045 | DG59: 2045 | DH59: 2045 | DI59: 2046 | DJ59: 2046 | DK59: 2046 | DL59: 2046 | DM59: 2047 | DN59: 2047 | DO59: 2047 | DP59: 2047 | DQ59: 2048 | DR59: 2048 | DS59: 2048 | DT59: 2048 | DU59: 2049 | DV59: 2049 | DW59: 2049 | DX59: 2049 | DY59: 2050 | DZ59: 2050 | EA59: 2050 | EB59: 2050 | EC59: 2051 | ED59: 2051 | EE59: 2051 | EF59: 2051 | EG59: =YEAR(EG2) -> 2052 | EH59: 2052 | EI59: 2052 | EJ59: 2052 | EK59: 2053 | EL59: 2053 | EM59: 2053 | EN59: 2053 | EO59: 2054 | EP59: 2054 | EQ59: 2054 | ER59: 2054 | ES59: 2055 | ET59: 2055 | EU59: 2055 | EV59: 2055 | EW59: 2056 | EX59: 2056 | EY59: 2056 | EZ59: 2056 | FA59: 2057 | FB59: 2057 | FC59: 2057 | FD59: 2057 | FE59: 2058 | FF59: 2058 | FG59: 2058 | FH59: 2058 | FI59: 2059 | FJ59: 2059 | FK59: 2059 | FL59: 2059 | FM59: =YEAR(FM2) -> 2060 | FN59: 2060 | FO59: 2060 | FP59: 2060 | FQ59: 2061 | FR59: 2061 | FS59: 2061
C60: Merchant period flag | D60: Flag | E60: =F47 -> 2042-01-31 | F60: =EOMONTH(E60,15*12) -> 2057-01-31 | I60: =IF(AND(I$2>=$E60,I$3<=$F60),1,0) -> 0 | J60: 0 | K60: 0 | L60: 0 | M60: 0 | N60: 0 | O60: 0 | P60: 0 | Q60: 0 | R60: 0 | S60: 0 | T60: 0 | U60: 0 | V60: 0 | W60: 0 | X60: 0 | Y60: 0 | Z60: 0 | AA60: 0 | AB60: 0 | AC60: 0 | AD60: 0 | AE60: 0 | AF60: 0 | AG60: 0 | AH60: 0 | AI60: 0 | AJ60: 0 | AK60: 0 | AL60: 0 | AM60: 0 | AN60: 0 | AO60: 0 | AP60: 0 | AQ60: 0 | AR60: 0 | AS60: 0 | AT60: 0 | AU60: 0 | AV60: 0 | AW60: 0 | AX60: 0 | AY60: 0 | AZ60: 0 | BA60: 0 | BB60: 0 | BC60: 0 | BD60: 0 | BE60: 0 | BF60: 0 | BG60: 0 | BH60: 0 | BI60: 0 | BJ60: 0 | BK60: 0 | BL60: 0 | BM60: 0 | BN60: 0 | BO60: 0 | BP60: 0 | BQ60: 0 | BR60: 0 | BS60: 0 | BT60: 0 | BU60: =IF(AND(BU$2>=$E60,BU$3<=$F60),1,0) -> 0 | BV60: 0 | BW60: 0 | BX60: 0 | BY60: 0 | BZ60: 0 | CA60: 0 | CB60: 0 | CC60: 0 | CD60: 0 | CE60: 0 | CF60: 0 | CG60: 0 | CH60: 0 | CI60: 0 | CJ60: 0 | CK60: 0 | CL60: 0 | CM60: 0 | CN60: 0 | CO60: 0 | CP60: 0 | CQ60: 0 | CR60: 0 | CS60: 0 | CT60: 1 | CU60: 1 | CV60: 1 | CW60: 1 | CX60: 1 | CY60: 1 | CZ60: 1 | DA60: 1 | DB60: 1 | DC60: 1 | DD60: 1 | DE60: 1 | DF60: 1 | DG60: 1 | DH60: 1 | DI60: 1 | DJ60: 1 | DK60: 1 | DL60: 1 | DM60: 1 | DN60: 1 | DO60: 1 | DP60: 1 | DQ60: 1 | DR60: 1 | DS60: 1 | DT60: 1 | DU60: 1 | DV60: 1 | DW60: 1 | DX60: 1 | DY60: 1 | DZ60: 1 | EA60: 1 | EB60: 1 | EC60: 1 | ED60: 1 | EE60: 1 | EF60: 1 | EG60: =IF(AND(EG$2>=$E60,EG$3<=$F60),1,0) -> 1 | EH60: 1 | EI60: 1 | EJ60: 1 | EK60: 1 | EL60: 1 | EM60: 1 | EN60: 1 | EO60: 1 | EP60: 1 | EQ60: 1 | ER60: 1 | ES60: 1 | ET60: 1 | EU60: 1 | EV60: 1 | EW60: 1 | EX60: 1 | EY60: 1 | EZ60: 1 | FA60: 0 | FB60: 0 | FC60: 0 | FD60: 0 | FE60: 0 | FF60: 0 | FG60: 0 | FH60: 0 | FI60: 0 | FJ60: 0 | FK60: 0 | FL60: 0 | FM60: 0 | FN60: 0 | FO60: 0 | FP60: 0 | FQ60: 0 | FR60: 0 | FS60: 0
C61: Production (Remaining) | D61: MWh | H61: =SUM(I61:XFD61) -> 0 | I61: =I36-I41-I48 -> 0 | J61: 0 | K61: 0 | L61: 0 | M61: 0 | N61: 0 | O61: 0 | P61: 0 | Q61: 0 | R61: 0 | S61: 0 | T61: 0 | U61: 0 | V61: 0 | W61: 0 | X61: 0 | Y61: 0 | Z61: 0 | AA61: 0 | AB61: 0 | AC61: 0 | AD61: 0 | AE61: 0 | AF61: 0 | AG61: 0 | AH61: 0 | AI61: 0 | AJ61: 0 | AK61: 0 | AL61: 0 | AM61: 0 | AN61: 0 | AO61: 0 | AP61: 0 | AQ61: 0 | AR61: 0 | AS61: 0 | AT61: 0 | AU61: 0 | AV61: 0 | AW61: 0 | AX61: 0 | AY61: 0 | AZ61: 0 | BA61: 0 | BB61: 0 | BC61: 0 | BD61: 0 | BE61: 0 | BF61: 0 | BG61: 0 | BH61: 0 | BI61: 0 | BJ61: 0 | BK61: 0 | BL61: 0 | BM61: 0 | BN61: 0 | BO61: 0 | BP61: 0 | BQ61: 0 | BR61: 0 | BS61: 0 | BT61: 0 | BU61: 0 | BV61: =BV36-BV41-BV48 -> 0 | BW61: 0 | BX61: 0 | BY61: 0 | BZ61: 0 | CA61: 0 | CB61: 0 | CC61: 0 | CD61: 0 | CE61: 0 | CF61: 0 | CG61: 0 | CH61: 0 | CI61: 0 | CJ61: 0 | CK61: 0 | CL61: 0 | CM61: 0 | CN61: 0 | CO61: 0 | CP61: 0 | CQ61: 0 | CR61: 0 | CS61: 0 | CT61: 0 | CU61: 0 | CV61: 0 | CW61: 0 | CX61: 0 | CY61: 0 | CZ61: 0 | DA61: 0 | DB61: 0 | DC61: 0 | DD61: 0 | DE61: 0 | DF61: 0 | DG61: 0 | DH61: 0 | DI61: 0 | DJ61: 0 | DK61: 0 | DL61: 0 | DM61: 0 | DN61: 0 | DO61: 0 | DP61: 0 | DQ61: 0 | DR61: 0 | DS61: 0 | DT61: 0 | DU61: 0 | DV61: 0 | DW61: 0 | DX61: 0 | DY61: 0 | DZ61: 0 | EA61: 0 | EB61: 0 | EC61: 0 | ED61: 0 | EE61: 0 | EF61: 0 | EG61: 0 | EH61: =EH36-EH41-EH48 -> 0 | EI61: 0 | EJ61: 0 | EK61: 0 | EL61: 0 | EM61: 0 | EN61: 0 | EO61: 0 | EP61: 0 | EQ61: 0 | ER61: 0 | ES61: 0 | ET61: 0 | EU61: 0 | EV61: 0 | EW61: 0 | EX61: 0 | EY61: 0 | EZ61: 0 | FA61: 0 | FB61: 0 | FC61: 0 | FD61: 0 | FE61: 0 | FF61: 0 | FG61: 0 | FH61: 0 | FI61: 0 | FJ61: 0 | FK61: 0 | FL61: 0 | FM61: 0 | FN61: 0 | FO61: 0 | FP61: 0 | FQ61: 0 | FR61: 0 | FS61: 0
C63: Real Merchant Price | D63: $ / MWh | E63: Inflation %
C64: Inflated Merchant Price | D64: $ / MWh | E64: ='Merchant curves'!H11 -> 0.025 | I64: =I63*((1+($E64/4)))*I60 -> 0 | J64: =J63*((1+($E64/4)))*J60 -> 0 | K64: 0 | L64: 0 | M64: 0 | N64: 0 | O64: 0 | P64: 0 | Q64: 0 | R64: 0 | S64: 0 | T64: 0 | U64: 0 | V64: 0 | W64: 0 | X64: 0 | Y64: 0 | Z64: 0 | AA64: 0 | AB64: 0 | AC64: 0 | AD64: 0 | AE64: 0 | AF64: 0 | AG64: 0 | AH64: 0 | AI64: 0 | AJ64: 0 | AK64: 0 | AL64: 0 | AM64: 0 | AN64: 0 | AO64: 0 | AP64: 0 | AQ64: 0 | AR64: 0 | AS64: 0 | AT64: 0 | AU64: 0 | AV64: 0 | AW64: 0 | AX64: 0 | AY64: 0 | AZ64: 0 | BA64: 0 | BB64: 0 | BC64: 0 | BD64: 0 | BE64: 0 | BF64: 0 | BG64: 0 | BH64: 0 | BI64: 0 | BJ64: 0 | BK64: 0 | BL64: 0 | BM64: 0 | BN64: 0 | BO64: 0 | BP64: 0 | BQ64: 0 | BR64: 0 | BS64: 0 | BT64: 0 | BU64: 0 | BV64: =BV63*((1+($E64/4)))*BV60 -> 0 | BW64: 0 | BX64: 0 | BY64: 0 | BZ64: 0 | CA64: 0 | CB64: 0 | CC64: 0 | CD64: 0 | CE64: 0 | CF64: 0 | CG64: 0 | CH64: 0 | CI64: 0 | CJ64: 0 | CK64: 0 | CL64: 0 | CM64: 0 | CN64: 0 | CO64: 0 | CP64: 0 | CQ64: 0 | CR64: 0 | CS64: 0 | CT64: 0 | CU64: 0 | CV64: 0 | CW64: 0 | CX64: 0 | CY64: 0 | CZ64: 0 | DA64: 0 | DB64: 0 | DC64: 0 | DD64: 0 | DE64: 0 | DF64: 0 | DG64: 0 | DH64: 0 | DI64: 0 | DJ64: 0 | DK64: 0 | DL64: 0 | DM64: 0 | DN64: 0 | DO64: 0 | DP64: 0 | DQ64: 0 | DR64: 0 | DS64: 0 | DT64: 0 | DU64: 0 | DV64: 0 | DW64: 0 | DX64: 0 | DY64: 0 | DZ64: 0 | EA64: 0 | EB64: 0 | EC64: 0 | ED64: 0 | EE64: 0 | EF64: 0 | EG64: 0 | EH64: =EH63*((1+($E64/4)))*EH60 -> 0 | EI64: 0 | EJ64: 0 | EK64: 0 | EL64: 0 | EM64: 0 | EN64: 0 | EO64: 0 | EP64: 0 | EQ64: 0 | ER64: 0 | ES64: 0 | ET64: 0 | EU64: 0 | EV64: 0 | EW64: 0 | EX64: 0 | EY64: 0 | EZ64: 0 | FA64: 0 | FB64: 0 | FC64: 0 | FD64: 0 | FE64: 0 | FF64: 0 | FG64: 0 | FH64: 0 | FI64: 0 | FJ64: 0 | FK64: 0 | FL64: 0 | FM64: 0 | FN64: 0 | FO64: 0 | FP64: 0 | FQ64: 0 | FR64: 0 | FS64: 0
C65: Merchant Revenue | D65: USD '000 | H65: =SUM(I65:FS65) -> 0 | I65: =I64*I61/1000 -> 0 | J65: =J64*J61/1000 -> 0 | K65: 0 | L65: 0 | M65: 0 | N65: 0 | O65: 0 | P65: 0 | Q65: 0 | R65: 0 | S65: 0 | T65: 0 | U65: 0 | V65: 0 | W65: 0 | X65: 0 | Y65: 0 | Z65: 0 | AA65: 0 | AB65: 0 | AC65: 0 | AD65: 0 | AE65: 0 | AF65: 0 | AG65: 0 | AH65: 0 | AI65: 0 | AJ65: 0 | AK65: 0 | AL65: 0 | AM65: 0 | AN65: 0 | AO65: =AO64*AO61/1000 -> 0 | AP65: 0 | AQ65: 0 | AR65: 0 | AS65: 0 | AT65: 0 | AU65: 0 | AV65: 0 | AW65: 0 | AX65: 0 | AY65: 0 | AZ65: 0 | BA65: 0 | BB65: 0 | BC65: 0 | BD65: 0 | BE65: 0 | BF65: 0 | BG65: 0 | BH65: 0 | BI65: 0 | BJ65: 0 | BK65: 0 | BL65: 0 | BM65: 0 | BN65: 0 | BO65: 0 | BP65: 0 | BQ65: 0 | BR65: 0 | BS65: 0 | BT65: 0 | BU65: =BU64*BU61/1000 -> 0 | BV65: 0 | BW65: 0 | BX65: 0 | BY65: 0 | BZ65: 0 | CA65: 0 | CB65: 0 | CC65: 0 | CD65: 0 | CE65: 0 | CF65: 0 | CG65: 0 | CH65: 0 | CI65: 0 | CJ65: 0 | CK65: 0 | CL65: 0 | CM65: 0 | CN65: 0 | CO65: 0 | CP65: 0 | CQ65: 0 | CR65: 0 | CS65: 0 | CT65: 0 | CU65: 0 | CV65: 0 | CW65: 0 | CX65: 0 | CY65: 0 | CZ65: 0 | DA65: =DA64*DA61/1000 -> 0 | DB65: 0 | DC65: 0 | DD65: 0 | DE65: 0 | DF65: 0 | DG65: 0 | DH65: 0 | DI65: 0 | DJ65: 0 | DK65: 0 | DL65: 0 | DM65: 0 | DN65: 0 | DO65: 0 | DP65: 0 | DQ65: 0 | DR65: 0 | DS65: 0 | DT65: 0 | DU65: 0 | DV65: 0 | DW65: 0 | DX65: 0 | DY65: 0 | DZ65: 0 | EA65: 0 | EB65: 0 | EC65: 0 | ED65: 0 | EE65: 0 | EF65: 0 | EG65: =EG64*EG61/1000 -> 0 | EH65: 0 | EI65: 0 | EJ65: 0 | EK65: 0 | EL65: 0 | EM65: 0 | EN65: 0 | EO65: 0 | EP65: 0 | EQ65: 0 | ER65: 0 | ES65: 0 | ET65: 0 | EU65: 0 | EV65: 0 | EW65: 0 | EX65: 0 | EY65: 0 | EZ65: 0 | FA65: 0 | FB65: 0 | FC65: 0 | FD65: 0 | FE65: 0 | FF65: 0 | FG65: 0 | FH65: 0 | FI65: 0 | FJ65: 0 | FK65: 0 | FL65: 0 | FM65: =FM64*FM61/1000 -> 0 | FN65: 0 | FO65: 0 | FP65: 0 | FQ65: 0 | FR65: 0 | FS65: 0
C67: Total Sales Check | D67: MWH | H67: =SUM(I67:FS67) -> 0 | I67: =I41+I48+I61 -> 0 | J67: =J41+J48+J61 -> 0 | K67: 0 | L67: 0 | M67: 0 | N67: 0 | O67: 0 | P67: 0 | Q67: 0 | R67: 0 | S67: 0 | T67: 0 | U67: 0 | V67: 0 | W67: 0 | X67: 0 | Y67: 0 | Z67: 0 | AA67: 0 | AB67: 0 | AC67: 0 | AD67: 0 | AE67: 0 | AF67: 0 | AG67: 0 | AH67: 0 | AI67: 0 | AJ67: 0 | AK67: 0 | AL67: 0 | AM67: 0 | AN67: 0 | AO67: 0 | AP67: 0 | AQ67: 0 | AR67: 0 | AS67: 0 | AT67: 0 | AU67: 0 | AV67: 0 | AW67: 0 | AX67: 0 | AY67: 0 | AZ67: 0 | BA67: 0 | BB67: 0 | BC67: 0 | BD67: 0 | BE67: 0 | BF67: 0 | BG67: 0 | BH67: 0 | BI67: 0 | BJ67: 0 | BK67: 0 | BL67: 0 | BM67: 0 | BN67: 0 | BO67: 0 | BP67: 0 | BQ67: 0 | BR67: 0 | BS67: 0 | BT67: 0 | BU67: 0 | BV67: =BV41+BV48+BV61 -> 0 | BW67: 0 | BX67: 0 | BY67: 0 | BZ67: 0 | CA67: 0 | CB67: 0 | CC67: 0 | CD67: 0 | CE67: 0 | CF67: 0 | CG67: 0 | CH67: 0 | CI67: 0 | CJ67: 0 | CK67: 0 | CL67: 0 | CM67: 0 | CN67: 0 | CO67: 0 | CP67: 0 | CQ67: 0 | CR67: 0 | CS67: 0 | CT67: 0 | CU67: 0 | CV67: 0 | CW67: 0 | CX67: 0 | CY67: 0 | CZ67: 0 | DA67: 0 | DB67: 0 | DC67: 0 | DD67: 0 | DE67: 0 | DF67: 0 | DG67: 0 | DH67: 0 | DI67: 0 | DJ67: 0 | DK67: 0 | DL67: 0 | DM67: 0 | DN67: 0 | DO67: 0 | DP67: 0 | DQ67: 0 | DR67: 0 | DS67: 0 | DT67: 0 | DU67: 0 | DV67: 0 | DW67: 0 | DX67: 0 | DY67: 0 | DZ67: 0 | EA67: 0 | EB67: 0 | EC67: 0 | ED67: 0 | EE67: 0 | EF67: 0 | EG67: 0 | EH67: =EH41+EH48+EH61 -> 0 | EI67: 0 | EJ67: 0 | EK67: 0 | EL67: 0 | EM67: 0 | EN67: 0 | EO67: 0 | EP67: 0 | EQ67: 0 | ER67: 0 | ES67: 0 | ET67: 0 | EU67: 0 | EV67: 0 | EW67: 0 | EX67: 0 | EY67: 0 | EZ67: 0 | FA67: 0 | FB67: 0 | FC67: 0 | FD67: 0 | FE67: 0 | FF67: 0 | FG67: 0 | FH67: 0 | FI67: 0 | FJ67: 0 | FK67: 0 | FL67: 0 | FM67: 0 | FN67: 0 | FO67: 0 | FP67: 0 | FQ67: 0 | FR67: 0 | FS67: 0
C68: Energy Generation | H68: =SUM(I68:XFD68) -> 0 | I68: =I36 -> 0 | J68: =J36 -> 0 | K68: 0 | L68: 0 | M68: 0 | N68: 0 | O68: 0 | P68: 0 | Q68: 0 | R68: 0 | S68: 0 | T68: 0 | U68: 0 | V68: 0 | W68: 0 | X68: 0 | Y68: 0 | Z68: 0 | AA68: 0 | AB68: 0 | AC68: 0 | AD68: 0 | AE68: 0 | AF68: 0 | AG68: 0 | AH68: 0 | AI68: 0 | AJ68: 0 | AK68: 0 | AL68: 0 | AM68: 0 | AN68: 0 | AO68: 0 | AP68: 0 | AQ68: 0 | AR68: 0 | AS68: 0 | AT68: 0 | AU68: 0 | AV68: 0 | AW68: 0 | AX68: 0 | AY68: 0 | AZ68: 0 | BA68: 0 | BB68: 0 | BC68: 0 | BD68: 0 | BE68: 0 | BF68: 0 | BG68: 0 | BH68: 0 | BI68: 0 | BJ68: 0 | BK68: 0 | BL68: 0 | BM68: 0 | BN68: 0 | BO68: 0 | BP68: 0 | BQ68: 0 | BR68: 0 | BS68: 0 | BT68: 0 | BU68: 0 | BV68: =BV36 -> 0 | BW68: 0 | BX68: 0 | BY68: 0 | BZ68: 0 | CA68: 0 | CB68: 0 | CC68: 0 | CD68: 0 | CE68: 0 | CF68: 0 | CG68: 0 | CH68: 0 | CI68: 0 | CJ68: 0 | CK68: 0 | CL68: 0 | CM68: 0 | CN68: 0 | CO68: 0 | CP68: 0 | CQ68: 0 | CR68: 0 | CS68: 0 | CT68: 0 | CU68: 0 | CV68: 0 | CW68: 0 | CX68: 0 | CY68: 0 | CZ68: 0 | DA68: 0 | DB68: 0 | DC68: 0 | DD68: 0 | DE68: 0 | DF68: 0 | DG68: 0 | DH68: 0 | DI68: 0 | DJ68: 0 | DK68: 0 | DL68: 0 | DM68: 0 | DN68: 0 | DO68: 0 | DP68: 0 | DQ68: 0 | DR68: 0 | DS68: 0 | DT68: 0 | DU68: 0 | DV68: 0 | DW68: 0 | DX68: 0 | DY68: 0 | DZ68: 0 | EA68: 0 | EB68: 0 | EC68: 0 | ED68: 0 | EE68: 0 | EF68: 0 | EG68: 0 | EH68: =EH36 -> 0 | EI68: 0 | EJ68: 0 | EK68: 0 | EL68: 0 | EM68: 0 | EN68: 0 | EO68: 0 | EP68: 0 | EQ68: 0 | ER68: 0 | ES68: 0 | ET68: 0 | EU68: 0 | EV68: 0 | EW68: 0 | EX68: 0 | EY68: 0 | EZ68: 0 | FA68: 0 | FB68: 0 | FC68: 0 | FD68: 0 | FE68: 0 | FF68: 0 | FG68: 0 | FH68: 0 | FI68: 0 | FJ68: 0 | FK68: 0 | FL68: 0 | FM68: 0 | FN68: 0 | FO68: 0 | FP68: 0 | FQ68: 0 | FR68: 0 | FS68: 0
C69: Check | H69: =H67=H68 -> TRUE
C71: Summary
C72: PPA 1 revenue | D72: USD '000 | I72: =I44 -> 0 | J72: 0 | K72: 0 | L72: 0 | M72: 0 | N72: 0 | O72: 0 | P72: 0 | Q72: 0 | R72: 0 | S72: 0 | T72: 0 | U72: 0 | V72: 0 | W72: 0 | X72: 0 | Y72: 0 | Z72: 0 | AA72: 0 | AB72: 0 | AC72: 0 | AD72: 0 | AE72: 0 | AF72: 0 | AG72: 0 | AH72: 0 | AI72: 0 | AJ72: 0 | AK72: 0 | AL72: 0 | AM72: 0 | AN72: 0 | AO72: =AO44 -> 0 | AP72: 0 | AQ72: 0 | AR72: 0 | AS72: 0 | AT72: 0 | AU72: 0 | AV72: 0 | AW72: 0 | AX72: 0 | AY72: 0 | AZ72: 0 | BA72: 0 | BB72: 0 | BC72: 0 | BD72: 0 | BE72: 0 | BF72: 0 | BG72: 0 | BH72: 0 | BI72: 0 | BJ72: 0 | BK72: 0 | BL72: 0 | BM72: 0 | BN72: 0 | BO72: 0 | BP72: 0 | BQ72: 0 | BR72: 0 | BS72: 0 | BT72: 0 | BU72: =BU44 -> 0 | BV72: 0 | BW72: 0 | BX72: 0 | BY72: 0 | BZ72: 0 | CA72: 0 | CB72: 0 | CC72: 0 | CD72: 0 | CE72: 0 | CF72: 0 | CG72: 0 | CH72: 0 | CI72: 0 | CJ72: 0 | CK72: 0 | CL72: 0 | CM72: 0 | CN72: 0 | CO72: 0 | CP72: 0 | CQ72: 0 | CR72: 0 | CS72: 0 | CT72: 0 | CU72: 0 | CV72: 0 | CW72: 0 | CX72: 0 | CY72: 0 | CZ72: 0 | DA72: =DA44 -> 0 | DB72: 0 | DC72: 0 | DD72: 0 | DE72: 0 | DF72: 0 | DG72: 0 | DH72: 0 | DI72: 0 | DJ72: 0 | DK72: 0 | DL72: 0 | DM72: 0 | DN72: 0 | DO72: 0 | DP72: 0 | DQ72: 0 | DR72: 0 | DS72: 0 | DT72: 0 | DU72: 0 | DV72: 0 | DW72: 0 | DX72: 0 | DY72: 0 | DZ72: 0 | EA72: 0 | EB72: 0 | EC72: 0 | ED72: 0 | EE72: 0 | EF72: 0 | EG72: =EG44 -> 0 | EH72: 0 | EI72: 0 | EJ72: 0 | EK72: 0 | EL72: 0 | EM72: 0 | EN72: 0 | EO72: 0 | EP72: 0 | EQ72: 0 | ER72: 0 | ES72: 0 | ET72: 0 | EU72: 0 | EV72: 0 | EW72: 0 | EX72: 0 | EY72: 0 | EZ72: 0 | FA72: 0 | FB72: 0 | FC72: 0 | FD72: 0 | FE72: 0 | FF72: 0 | FG72: 0 | FH72: 0 | FI72: 0 | FJ72: 0 | FK72: 0 | FL72: 0 | FM72: =FM44 -> 0 | FN72: 0 | FO72: 0 | FP72: 0 | FQ72: 0 | FR72: 0 | FS72: 0
C73: PPA 2 revenue | D73: USD '000 | I73: =I51 -> 0 | J73: 0 | K73: 0 | L73: 0 | M73: 0 | N73: 0 | O73: 0 | P73: 0 | Q73: 0 | R73: 0 | S73: 0 | T73: 0 | U73: 0 | V73: 0 | W73: 0 | X73: 0 | Y73: 0 | Z73: 0 | AA73: 0 | AB73: 0 | AC73: 0 | AD73: 0 | AE73: 0 | AF73: 0 | AG73: 0 | AH73: 0 | AI73: 0 | AJ73: 0 | AK73: 0 | AL73: 0 | AM73: 0 | AN73: 0 | AO73: =AO51 -> 0 | AP73: 0 | AQ73: 0 | AR73: 0 | AS73: 0 | AT73: 0 | AU73: 0 | AV73: 0 | AW73: 0 | AX73: 0 | AY73: 0 | AZ73: 0 | BA73: 0 | BB73: 0 | BC73: 0 | BD73: 0 | BE73: 0 | BF73: 0 | BG73: 0 | BH73: 0 | BI73: 0 | BJ73: 0 | BK73: 0 | BL73: 0 | BM73: 0 | BN73: 0 | BO73: 0 | BP73: 0 | BQ73: 0 | BR73: 0 | BS73: 0 | BT73: 0 | BU73: =BU51 -> 0 | BV73: 0 | BW73: 0 | BX73: 0 | BY73: 0 | BZ73: 0 | CA73: 0 | CB73: 0 | CC73: 0 | CD73: 0 | CE73: 0 | CF73: 0 | CG73: 0 | CH73: 0 | CI73: 0 | CJ73: 0 | CK73: 0 | CL73: 0 | CM73: 0 | CN73: 0 | CO73: 0 | CP73: 0 | CQ73: 0 | CR73: 0 | CS73: 0 | CT73: 0 | CU73: 0 | CV73: 0 | CW73: 0 | CX73: 0 | CY73: 0 | CZ73: 0 | DA73: =DA51 -> 0 | DB73: 0 | DC73: 0 | DD73: 0 | DE73: 0 | DF73: 0 | DG73: 0 | DH73: 0 | DI73: 0 | DJ73: 0 | DK73: 0 | DL73: 0 | DM73: 0 | DN73: 0 | DO73: 0 | DP73: 0 | DQ73: 0 | DR73: 0 | DS73: 0 | DT73: 0 | DU73: 0 | DV73: 0 | DW73: 0 | DX73: 0 | DY73: 0 | DZ73: 0 | EA73: 0 | EB73: 0 | EC73: 0 | ED73: 0 | EE73: 0 | EF73: 0 | EG73: =EG51 -> 0 | EH73: 0 | EI73: 0 | EJ73: 0 | EK73: 0 | EL73: 0 | EM73: 0 | EN73: 0 | EO73: 0 | EP73: 0 | EQ73: 0 | ER73: 0 | ES73: 0 | ET73: 0 | EU73: 0 | EV73: 0 | EW73: 0 | EX73: 0 | EY73: 0 | EZ73: 0 | FA73: 0 | FB73: 0 | FC73: 0 | FD73: 0 | FE73: 0 | FF73: 0 | FG73: 0 | FH73: 0 | FI73: 0 | FJ73: 0 | FK73: 0 | FL73: 0 | FM73: =FM51 -> 0 | FN73: 0 | FO73: 0 | FP73: 0 | FQ73: 0 | FR73: 0 | FS73: 0
C74: REC revenue | D74: USD '000 | I74: =I56 -> 0 | J74: 0 | K74: 0 | L74: 0 | M74: 0 | N74: 0 | O74: 0 | P74: 0 | Q74: 0 | R74: 0 | S74: 0 | T74: 0 | U74: 0 | V74: 0 | W74: 0 | X74: 0 | Y74: 0 | Z74: 0 | AA74: 0 | AB74: 0 | AC74: 0 | AD74: 0 | AE74: 0 | AF74: 0 | AG74: 0 | AH74: 0 | AI74: 0 | AJ74: 0 | AK74: 0 | AL74: 0 | AM74: 0 | AN74: 0 | AO74: =AO56 -> 0 | AP74: 0 | AQ74: 0 | AR74: 0 | AS74: 0 | AT74: 0 | AU74: 0 | AV74: 0 | AW74: 0 | AX74: 0 | AY74: 0 | AZ74: 0 | BA74: 0 | BB74: 0 | BC74: 0 | BD74: 0 | BE74: 0 | BF74: 0 | BG74: 0 | BH74: 0 | BI74: 0 | BJ74: 0 | BK74: 0 | BL74: 0 | BM74: 0 | BN74: 0 | BO74: 0 | BP74: 0 | BQ74: 0 | BR74: 0 | BS74: 0 | BT74: 0 | BU74: =BU56 -> 0 | BV74: 0 | BW74: 0 | BX74: 0 | BY74: 0 | BZ74: 0 | CA74: 0 | CB74: 0 | CC74: 0 | CD74: 0 | CE74: 0 | CF74: 0 | CG74: 0 | CH74: 0 | CI74: 0 | CJ74: 0 | CK74: 0 | CL74: 0 | CM74: 0 | CN74: 0 | CO74: 0 | CP74: 0 | CQ74: 0 | CR74: 0 | CS74: 0 | CT74: 0 | CU74: 0 | CV74: 0 | CW74: 0 | CX74: 0 | CY74: 0 | CZ74: 0 | DA74: =DA56 -> 0 | DB74: 0 | DC74: 0 | DD74: 0 | DE74: 0 | DF74: 0 | DG74: 0 | DH74: 0 | DI74: 0 | DJ74: 0 | DK74: 0 | DL74: 0 | DM74: 0 | DN74: 0 | DO74: 0 | DP74: 0 | DQ74: 0 | DR74: 0 | DS74: 0 | DT74: 0 | DU74: 0 | DV74: 0 | DW74: 0 | DX74: 0 | DY74: 0 | DZ74: 0 | EA74: 0 | EB74: 0 | EC74: 0 | ED74: 0 | EE74: 0 | EF74: 0 | EG74: =EG56 -> 0 | EH74: 0 | EI74: 0 | EJ74: 0 | EK74: 0 | EL74: 0 | EM74: 0 | EN74: 0 | EO74: 0 | EP74: 0 | EQ74: 0 | ER74: 0 | ES74: 0 | ET74: 0 | EU74: 0 | EV74: 0 | EW74: 0 | EX74: 0 | EY74: 0 | EZ74: 0 | FA74: 0 | FB74: 0 | FC74: 0 | FD74: 0 | FE74: 0 | FF74: 0 | FG74: 0 | FH74: 0 | FI74: 0 | FJ74: 0 | FK74: 0 | FL74: 0 | FM74: =FM56 -> 0 | FN74: 0 | FO74: 0 | FP74: 0 | FQ74: 0 | FR74: 0 | FS74: 0
C75: Merchant revenue | D75: USD '000 | I75: =I65 -> 0 | J75: 0 | K75: 0 | L75: 0 | M75: 0 | N75: 0 | O75: 0 | P75: 0 | Q75: 0 | R75: 0 | S75: 0 | T75: 0 | U75: 0 | V75: 0 | W75: 0 | X75: 0 | Y75: 0 | Z75: 0 | AA75: 0 | AB75: 0 | AC75: 0 | AD75: 0 | AE75: 0 | AF75: 0 | AG75: 0 | AH75: 0 | AI75: 0 | AJ75: 0 | AK75: 0 | AL75: 0 | AM75: 0 | AN75: 0 | AO75: =AO65 -> 0 | AP75: 0 | AQ75: 0 | AR75: 0 | AS75: 0 | AT75: 0 | AU75: 0 | AV75: 0 | AW75: 0 | AX75: 0 | AY75: 0 | AZ75: 0 | BA75: 0 | BB75: 0 | BC75: 0 | BD75: 0 | BE75: 0 | BF75: 0 | BG75: 0 | BH75: 0 | BI75: 0 | BJ75: 0 | BK75: 0 | BL75: 0 | BM75: 0 | BN75: 0 | BO75: 0 | BP75: 0 | BQ75: 0 | BR75: 0 | BS75: 0 | BT75: 0 | BU75: =BU65 -> 0 | BV75: 0 | BW75: 0 | BX75: 0 | BY75: 0 | BZ75: 0 | CA75: 0 | CB75: 0 | CC75: 0 | CD75: 0 | CE75: 0 | CF75: 0 | CG75: 0 | CH75: 0 | CI75: 0 | CJ75: 0 | CK75: 0 | CL75: 0 | CM75: 0 | CN75: 0 | CO75: 0 | CP75: 0 | CQ75: 0 | CR75: 0 | CS75: 0 | CT75: 0 | CU75: 0 | CV75: 0 | CW75: 0 | CX75: 0 | CY75: 0 | CZ75: 0 | DA75: =DA65 -> 0 | DB75: 0 | DC75: 0 | DD75: 0 | DE75: 0 | DF75: 0 | DG75: 0 | DH75: 0 | DI75: 0 | DJ75: 0 | DK75: 0 | DL75: 0 | DM75: 0 | DN75: 0 | DO75: 0 | DP75: 0 | DQ75: 0 | DR75: 0 | DS75: 0 | DT75: 0 | DU75: 0 | DV75: 0 | DW75: 0 | DX75: 0 | DY75: 0 | DZ75: 0 | EA75: 0 | EB75: 0 | EC75: 0 | ED75: 0 | EE75: 0 | EF75: 0 | EG75: =EG65 -> 0 | EH75: 0 | EI75: 0 | EJ75: 0 | EK75: 0 | EL75: 0 | EM75: 0 | EN75: 0 | EO75: 0 | EP75: 0 | EQ75: 0 | ER75: 0 | ES75: 0 | ET75: 0 | EU75: 0 | EV75: 0 | EW75: 0 | EX75: 0 | EY75: 0 | EZ75: 0 | FA75: 0 | FB75: 0 | FC75: 0 | FD75: 0 | FE75: 0 | FF75: 0 | FG75: 0 | FH75: 0 | FI75: 0 | FJ75: 0 | FK75: 0 | FL75: 0 | FM75: =FM65 -> 0 | FN75: 0 | FO75: 0 | FP75: 0 | FQ75: 0 | FR75: 0 | FS75: 0
C76: Total revenue | D76: USD '000 | H76: =SUM(I76:FS76) -> 0 | I76: =SUM(I72:I75) -> 0 | J76: 0 | K76: 0 | L76: 0 | M76: 0 | N76: 0 | O76: 0 | P76: 0 | Q76: 0 | R76: 0 | S76: 0 | T76: 0 | U76: 0 | V76: 0 | W76: 0 | X76: 0 | Y76: 0 | Z76: 0 | AA76: 0 | AB76: 0 | AC76: 0 | AD76: 0 | AE76: 0 | AF76: 0 | AG76: 0 | AH76: 0 | AI76: 0 | AJ76: 0 | AK76: 0 | AL76: 0 | AM76: 0 | AN76: 0 | AO76: =SUM(AO72:AO75) -> 0 | AP76: 0 | AQ76: 0 | AR76: 0 | AS76: 0 | AT76: 0 | AU76: 0 | AV76: 0 | AW76: 0 | AX76: 0 | AY76: 0 | AZ76: 0 | BA76: 0 | BB76: 0 | BC76: 0 | BD76: 0 | BE76: 0 | BF76: 0 | BG76: 0 | BH76: 0 | BI76: 0 | BJ76: 0 | BK76: 0 | BL76: 0 | BM76: 0 | BN76: 0 | BO76: 0 | BP76: 0 | BQ76: 0 | BR76: 0 | BS76: 0 | BT76: 0 | BU76: =SUM(BU72:BU75) -> 0 | BV76: 0 | BW76: 0 | BX76: 0 | BY76: 0 | BZ76: 0 | CA76: 0 | CB76: 0 | CC76: 0 | CD76: 0 | CE76: 0 | CF76: 0 | CG76: 0 | CH76: 0 | CI76: 0 | CJ76: 0 | CK76: 0 | CL76: 0 | CM76: 0 | CN76: 0 | CO76: 0 | CP76: 0 | CQ76: 0 | CR76: 0 | CS76: 0 | CT76: 0 | CU76: 0 | CV76: 0 | CW76: 0 | CX76: 0 | CY76: 0 | CZ76: 0 | DA76: =SUM(DA72:DA75) -> 0 | DB76: 0 | DC76: 0 | DD76: 0 | DE76: 0 | DF76: 0 | DG76: 0 | DH76: 0 | DI76: 0 | DJ76: 0 | DK76: 0 | DL76: 0 | DM76: 0 | DN76: 0 | DO76: 0 | DP76: 0 | DQ76: 0 | DR76: 0 | DS76: 0 | DT76: 0 | DU76: 0 | DV76: 0 | DW76: 0 | DX76: 0 | DY76: 0 | DZ76: 0 | EA76: 0 | EB76: 0 | EC76: 0 | ED76: 0 | EE76: 0 | EF76: 0 | EG76: =SUM(EG72:EG75) -> 0 | EH76: 0 | EI76: 0 | EJ76: 0 | EK76: 0 | EL76: 0 | EM76: 0 | EN76: 0 | EO76: 0 | EP76: 0 | EQ76: 0 | ER76: 0 | ES76: 0 | ET76: 0 | EU76: 0 | EV76: 0 | EW76: 0 | EX76: 0 | EY76: 0 | EZ76: 0 | FA76: 0 | FB76: 0 | FC76: 0 | FD76: 0 | FE76: 0 | FF76: 0 | FG76: 0 | FH76: 0 | FI76: 0 | FJ76: 0 | FK76: 0 | FL76: 0 | FM76: =SUM(FM72:FM75) -> 0 | FN76: 0 | FO76: 0 | FP76: 0 | FQ76: 0 | FR76: 0 | FS76: 0
B78: Operating costs
C80: Inflation Quarterly 2.5% | D80: % p.p. | E80: ='Inputs - Partnership'!$G$100 -> 0.025 | I80: =(1+$E$80)^(1/4)-1 -> 0.006192246326 | J80: 0.006192246326 | K80: 0.006192246326 | L80: 0.006192246326 | M80: 0.006192246326 | N80: 0.006192246326 | O80: 0.006192246326 | P80: 0.006192246326 | Q80: 0.006192246326 | R80: 0.006192246326 | S80: 0.006192246326 | T80: 0.006192246326 | U80: 0.006192246326 | V80: 0.006192246326 | W80: 0.006192246326 | X80: 0.006192246326 | Y80: 0.006192246326 | Z80: 0.006192246326 | AA80: 0.006192246326 | AB80: 0.006192246326 | AC80: 0.006192246326 | AD80: 0.006192246326 | AE80: 0.006192246326 | AF80: 0.006192246326 | AG80: 0.006192246326 | AH80: 0.006192246326 | AI80: 0.006192246326 | AJ80: 0.006192246326 | AK80: 0.006192246326 | AL80: 0.006192246326 | AM80: 0.006192246326 | AN80: 0.006192246326 | AO80: =(1+$E$80)^(1/4)-1 -> 0.006192246326 | AP80: 0.006192246326 | AQ80: 0.006192246326 | AR80: 0.006192246326 | AS80: 0.006192246326 | AT80: 0.006192246326 | AU80: 0.006192246326 | AV80: 0.006192246326 | AW80: 0.006192246326 | AX80: 0.006192246326 | AY80: 0.006192246326 | AZ80: 0.006192246326 | BA80: 0.006192246326 | BB80: 0.006192246326 | BC80: 0.006192246326 | BD80: 0.006192246326 | BE80: 0.006192246326 | BF80: 0.006192246326 | BG80: 0.006192246326 | BH80: 0.006192246326 | BI80: 0.006192246326 | BJ80: 0.006192246326 | BK80: 0.006192246326 | BL80: 0.006192246326 | BM80: 0.006192246326 | BN80: 0.006192246326 | BO80: 0.006192246326 | BP80: 0.006192246326 | BQ80: 0.006192246326 | BR80: 0.006192246326 | BS80: 0.006192246326 | BT80: 0.006192246326 | BU80: =(1+$E$80)^(1/4)-1 -> 0.006192246326 | BV80: 0.006192246326 | BW80: 0.006192246326 | BX80: 0.006192246326 | BY80: 0.006192246326 | BZ80: 0.006192246326 | CA80: 0.006192246326 | CB80: 0.006192246326 | CC80: 0.006192246326 | CD80: 0.006192246326 | CE80: 0.006192246326 | CF80: 0.006192246326 | CG80: 0.006192246326 | CH80: 0.006192246326 | CI80: 0.006192246326 | CJ80: 0.006192246326 | CK80: 0.006192246326 | CL80: 0.006192246326 | CM80: 0.006192246326 | CN80: 0.006192246326 | CO80: 0.006192246326 | CP80: 0.006192246326 | CQ80: 0.006192246326 | CR80: 0.006192246326 | CS80: 0.006192246326 | CT80: 0.006192246326 | CU80: 0.006192246326 | CV80: 0.006192246326 | CW80: 0.006192246326 | CX80: 0.006192246326 | CY80: 0.006192246326 | CZ80: 0.006192246326 | DA80: =(1+$E$80)^(1/4)-1 -> 0.006192246326 | DB80: 0.006192246326 | DC80: 0.006192246326 | DD80: 0.006192246326 | DE80: 0.006192246326 | DF80: 0.006192246326 | DG80: 0.006192246326 | DH80: 0.006192246326 | DI80: 0.006192246326 | DJ80: 0.006192246326 | DK80: 0.006192246326 | DL80: 0.006192246326 | DM80: 0.006192246326 | DN80: 0.006192246326 | DO80: 0.006192246326 | DP80: 0.006192246326 | DQ80: 0.006192246326 | DR80: 0.006192246326 | DS80: 0.006192246326 | DT80: 0.006192246326 | DU80: 0.006192246326 | DV80: 0.006192246326 | DW80: 0.006192246326 | DX80: 0.006192246326 | DY80: 0.006192246326 | DZ80: 0.006192246326 | EA80: 0.006192246326 | EB80: 0.006192246326 | EC80: 0.006192246326 | ED80: 0.006192246326 | EE80: 0.006192246326 | EF80: 0.006192246326 | EG80: =(1+$E$80)^(1/4)-1 -> 0.006192246326 | EH80: 0.006192246326 | EI80: 0.006192246326 | EJ80: 0.006192246326 | EK80: 0.006192246326 | EL80: 0.006192246326 | EM80: 0.006192246326 | EN80: 0.006192246326 | EO80: 0.006192246326 | EP80: 0.006192246326 | EQ80: 0.006192246326 | ER80: 0.006192246326 | ES80: 0.006192246326 | ET80: 0.006192246326 | EU80: 0.006192246326 | EV80: 0.006192246326 | EW80: 0.006192246326 | EX80: 0.006192246326 | EY80: 0.006192246326 | EZ80: 0.006192246326 | FA80: 0.006192246326 | FB80: 0.006192246326 | FC80: 0.006192246326 | FD80: 0.006192246326 | FE80: 0.006192246326 | FF80: 0.006192246326 | FG80: 0.006192246326 | FH80: 0.006192246326 | FI80: 0.006192246326 | FJ80: 0.006192246326 | FK80: 0.006192246326 | FL80: 0.006192246326 | FM80: =(1+$E$80)^(1/4)-1 -> 0.006192246326 | FN80: 0.006192246326 | FO80: 0.006192246326 | FP80: 0.006192246326 | FQ80: 0.006192246326 | FR80: 0.006192246326 | FS80: 0.006192246326
C81: Inflation Quarterly 2.0% | D81: % p.p. | E81: ='Inputs - Partnership'!$G$101 -> 0.02 | I81: =(1+$E$81)^(1/4)-1 -> 0.004962931573 | J81: =(1+$E$81)^(1/4)-1 -> 0.004962931573 | K81: 0.004962931573 | L81: 0.004962931573 | M81: 0.004962931573 | N81: 0.004962931573 | O81: 0.004962931573 | P81: 0.004962931573 | Q81: 0.004962931573 | R81: 0.004962931573 | S81: 0.004962931573 | T81: 0.004962931573 | U81: 0.004962931573 | V81: 0.004962931573 | W81: 0.004962931573 | X81: 0.004962931573 | Y81: 0.004962931573 | Z81: 0.004962931573 | AA81: 0.004962931573 | AB81: 0.004962931573 | AC81: 0.004962931573 | AD81: 0.004962931573 | AE81: 0.004962931573 | AF81: 0.004962931573 | AG81: 0.004962931573 | AH81: 0.004962931573 | AI81: 0.004962931573 | AJ81: 0.004962931573 | AK81: 0.004962931573 | AL81: 0.004962931573 | AM81: 0.004962931573 | AN81: 0.004962931573 | AO81: 0.004962931573 | AP81: 0.004962931573 | AQ81: 0.004962931573 | AR81: 0.004962931573 | AS81: 0.004962931573 | AT81: 0.004962931573 | AU81: 0.004962931573 | AV81: 0.004962931573 | AW81: 0.004962931573 | AX81: 0.004962931573 | AY81: 0.004962931573 | AZ81: 0.004962931573 | BA81: 0.004962931573 | BB81: 0.004962931573 | BC81: 0.004962931573 | BD81: 0.004962931573 | BE81: 0.004962931573 | BF81: 0.004962931573 | BG81: 0.004962931573 | BH81: 0.004962931573 | BI81: 0.004962931573 | BJ81: 0.004962931573 | BK81: 0.004962931573 | BL81: 0.004962931573 | BM81: 0.004962931573 | BN81: 0.004962931573 | BO81: 0.004962931573 | BP81: 0.004962931573 | BQ81: 0.004962931573 | BR81: 0.004962931573 | BS81: 0.004962931573 | BT81: 0.004962931573 | BU81: 0.004962931573 | BV81: =(1+$E$81)^(1/4)-1 -> 0.004962931573 | BW81: 0.004962931573 | BX81: 0.004962931573 | BY81: 0.004962931573 | BZ81: 0.004962931573 | CA81: 0.004962931573 | CB81: 0.004962931573 | CC81: 0.004962931573 | CD81: 0.004962931573 | CE81: 0.004962931573 | CF81: 0.004962931573 | CG81: 0.004962931573 | CH81: 0.004962931573 | CI81: 0.004962931573 | CJ81: 0.004962931573 | CK81: 0.004962931573 | CL81: 0.004962931573 | CM81: 0.004962931573 | CN81: 0.004962931573 | CO81: 0.004962931573 | CP81: 0.004962931573 | CQ81: 0.004962931573 | CR81: 0.004962931573 | CS81: 0.004962931573 | CT81: 0.004962931573 | CU81: 0.004962931573 | CV81: 0.004962931573 | CW81: 0.004962931573 | CX81: 0.004962931573 | CY81: 0.004962931573 | CZ81: 0.004962931573 | DA81: 0.004962931573 | DB81: 0.004962931573 | DC81: 0.004962931573 | DD81: 0.004962931573 | DE81: 0.004962931573 | DF81: 0.004962931573 | DG81: 0.004962931573 | DH81: 0.004962931573 | DI81: 0.004962931573 | DJ81: 0.004962931573 | DK81: 0.004962931573 | DL81: 0.004962931573 | DM81: 0.004962931573 | DN81: 0.004962931573 | DO81: 0.004962931573 | DP81: 0.004962931573 | DQ81: 0.004962931573 | DR81: 0.004962931573 | DS81: 0.004962931573 | DT81: 0.004962931573 | DU81: 0.004962931573 | DV81: 0.004962931573 | DW81: 0.004962931573 | DX81: 0.004962931573 | DY81: 0.004962931573 | DZ81: 0.004962931573 | EA81: 0.004962931573 | EB81: 0.004962931573 | EC81: 0.004962931573 | ED81: 0.004962931573 | EE81: 0.004962931573 | EF81: 0.004962931573 | EG81: 0.004962931573 | EH81: =(1+$E$81)^(1/4)-1 -> 0.004962931573 | EI81: 0.004962931573 | EJ81: 0.004962931573 | EK81: 0.004962931573 | EL81: 0.004962931573 | EM81: 0.004962931573 | EN81: 0.004962931573 | EO81: 0.004962931573 | EP81: 0.004962931573 | EQ81: 0.004962931573 | ER81: 0.004962931573 | ES81: 0.004962931573 | ET81: 0.004962931573 | EU81: 0.004962931573 | EV81: 0.004962931573 | EW81: 0.004962931573 | EX81: 0.004962931573 | EY81: 0.004962931573 | EZ81: 0.004962931573 | FA81: 0.004962931573 | FB81: 0.004962931573 | FC81: 0.004962931573 | FD81: 0.004962931573 | FE81: 0.004962931573 | FF81: 0.004962931573 | FG81: 0.004962931573 | FH81: 0.004962931573 | FI81: 0.004962931573 | FJ81: 0.004962931573 | FK81: 0.004962931573 | FL81: 0.004962931573 | FM81: 0.004962931573 | FN81: 0.004962931573 | FO81: 0.004962931573 | FP81: 0.004962931573 | FQ81: 0.004962931573 | FR81: 0.004962931573 | FS81: 0.004962931573
C83: Inflation Index 2.5% | D83: Index | H83: 1 | I83: =H83*(1+I80*I$6) -> 1 | J83: =I83*(1+J80*J$6) -> 1 | K83: 1 | L83: 1 | M83: 1 | N83: 1 | O83: 1 | P83: 1 | Q83: 1.006192246 | R83: 1.012422837 | S83: 1.018692008 | T83: 1.025 | U83: 1.031347052 | V83: 1.037733407 | W83: 1.044159308 | X83: 1.050625 | Y83: 1.057130729 | Z83: 1.063676743 | AA83: 1.070263291 | AB83: 1.076890625 | AC83: 1.083558997 | AD83: 1.090268661 | AE83: 1.097019873 | AF83: 1.103812891 | AG83: 1.110647972 | AH83: 1.117525378 | AI83: 1.12444537 | AJ83: 1.131408213 | AK83: 1.138414171 | AL83: 1.145463512 | AM83: 1.152556504 | AN83: 1.159693418 | AO83: 1.166874526 | AP83: 1.1741001 | AQ83: 1.181370417 | AR83: 1.188685754 | AS83: 1.196046389 | AT83: 1.203452603 | AU83: 1.210904677 | AV83: 1.218402898 | AW83: 1.225947548 | AX83: 1.233538918 | AY83: 1.241177294 | AZ83: 1.24886297 | BA83: 1.256596237 | BB83: 1.264377391 | BC83: 1.272206727 | BD83: 1.280084544 | BE83: 1.288011143 | BF83: 1.295986825 | BG83: 1.304011895 | BH83: 1.312086658 | BI83: 1.320211422 | BJ83: 1.328386496 | BK83: 1.336612192 | BL83: 1.344888824 | BM83: 1.353216707 | BN83: 1.361596158 | BO83: 1.370027497 | BP83: 1.378511045 | BQ83: 1.387047125 | BR83: 1.395636062 | BS83: 1.404278185 | BT83: 1.412973821 | BU83: 1.421723303 | BV83: =BU83*(1+BV80*BV$6) -> 1.430526964 | BW83: 1.439385139 | BX83: 1.448298166 | BY83: 1.457266385 | BZ83: 1.466290138 | CA83: 1.475369768 | CB83: 1.484505621 | CC83: 1.493698045 | CD83: 1.502947391 | CE83: 1.512254012 | CF83: 1.521618261 | CG83: 1.531040496 | CH83: 1.540521076 | CI83: 1.550060362 | CJ83: 1.559658718 | CK83: 1.569316509 | CL83: 1.579034103 | CM83: 1.588811871 | CN83: 1.598650186 | CO83: 1.608549421 | CP83: 1.618509956 | CQ83: 1.628532168 | CR83: 1.63861644 | CS83: 1.648763157 | CT83: 1.658972705 | CU83: 1.669245472 | CV83: 1.679581851 | CW83: 1.689982236 | CX83: 1.700447022 | CY83: 1.710976609 | CZ83: 1.721571398 | DA83: 1.732231792 | DB83: 1.742958198 | DC83: 1.753751024 | DD83: 1.764610683 | DE83: 1.775537587 | DF83: 1.786532153 | DG83: 1.7975948 | DH83: 1.80872595 | DI83: 1.819926026 | DJ83: 1.831195456 | DK83: 1.84253467 | DL83: 1.853944098 | DM83: 1.865424177 | DN83: 1.876975343 | DO83: 1.888598037 | DP83: 1.900292701 | DQ83: 1.912059781 | DR83: 1.923899726 | DS83: 1.935812987 | DT83: 1.947800018 | DU83: 1.959861276 | DV83: 1.97199722 | DW83: 1.984208312 | DX83: 1.996495019 | DY83: 2.008857808 | DZ83: 2.02129715 | EA83: 2.03381352 | EB83: 2.046407394 | EC83: 2.059079253 | ED83: 2.071829579 | EE83: 2.084658858 | EF83: 2.097567579 | EG83: 2.110556234 | EH83: =EG83*(1+EH80*EH$6) -> 2.123625318 | EI83: 2.136775329 | EJ83: 2.150006769 | EK83: 2.16332014 | EL83: 2.176715951 | EM83: 2.190194713 | EN83: 2.203756938 | EO83: 2.217403144 | EP83: 2.23113385 | EQ83: 2.24494958 | ER83: 2.258850861 | ES83: 2.272838222 | ET83: 2.286912196 | EU83: 2.30107332 | EV83: 2.315322133 | EW83: 2.329659178 | EX83: 2.344085001 | EY83: 2.358600153 | EZ83: 2.373205186 | FA83: 2.373205186 | FB83: 2.373205186 | FC83: 2.373205186 | FD83: 2.373205186 | FE83: 2.373205186 | FF83: 2.373205186 | FG83: 2.373205186 | FH83: 2.373205186 | FI83: 2.373205186 | FJ83: 2.373205186 | FK83: 2.373205186 | FL83: 2.373205186 | FM83: 2.373205186 | FN83: 2.373205186 | FO83: 2.373205186 | FP83: 2.373205186 | FQ83: 2.373205186 | FR83: 2.373205186 | FS83: 2.373205186
C84: Inflation Index 2% | D84: Index | H84: 1 | I84: =H84*(1+I81*I$6) -> 1 | J84: =I84*(1+J81*J$6) -> 1 | K84: 1 | L84: 1 | M84: 1 | N84: 1 | O84: 1 | P84: 1 | Q84: 1.004962932 | R84: 1.009950494 | S84: 1.014962809 | T84: 1.02 | U84: 1.02506219 | V84: 1.030149504 | W84: 1.035262065 | X84: 1.0404 | Y84: 1.045563434 | Z84: 1.050752494 | AA84: 1.055967307 | AB84: 1.061208 | AC84: 1.066474703 | AD84: 1.071767544 | AE84: 1.077086653 | AF84: 1.08243216 | AG84: 1.087804197 | AH84: 1.093202895 | AI84: 1.098628386 | AJ84: 1.104080803 | AK84: 1.109560281 | AL84: 1.115066952 | AM84: 1.120600953 | AN84: 1.126162419 | AO84: 1.131751486 | AP84: 1.137368291 | AQ84: 1.143012972 | AR84: 1.148685668 | AS84: 1.154386516 | AT84: 1.160115657 | AU84: 1.165873232 | AV84: 1.171659381 | AW84: 1.177474246 | AX84: 1.18331797 | AY84: 1.189190697 | AZ84: 1.195092569 | BA84: 1.201023731 | BB84: 1.20698433 | BC84: 1.21297451 | BD84: 1.21899442 | BE84: 1.225044206 | BF84: 1.231124016 | BG84: 1.237234001 | BH84: 1.243374308 | BI84: 1.24954509 | BJ84: 1.255746497 | BK84: 1.261978681 | BL84: 1.268241795 | BM84: 1.274535992 | BN84: 1.280861427 | BO84: 1.287218254 | BP84: 1.29360663 | BQ84: 1.300026712 | BR84: 1.306478655 | BS84: 1.312962619 | BT84: 1.319478763 | BU84: 1.326027246 | BV84: =BU84*(1+BV81*BV$6) -> 1.332608228 | BW84: 1.339221872 | BX84: 1.345868338 | BY84: 1.352547791 | BZ84: 1.359260393 | CA84: 1.366006309 | CB84: 1.372785705 | CC84: 1.379598747 | CD84: 1.386445601 | CE84: 1.393326435 | CF84: 1.400241419 | CG84: 1.407190722 | CH84: 1.414174513 | CI84: 1.421192964 | CJ84: 1.428246248 | CK84: 1.435334536 | CL84: 1.442458003 | CM84: 1.449616823 | CN84: 1.456811173 | CO84: 1.464041227 | CP84: 1.471307163 | CQ84: 1.47860916 | CR84: 1.485947396 | CS84: 1.493322051 | CT84: 1.500733306 | CU84: 1.508181343 | CV84: 1.515666344 | CW84: 1.523188492 | CX84: 1.530747973 | CY84: 1.53834497 | CZ84: 1.545979671 | DA84: 1.553652262 | DB84: 1.561362932 | DC84: 1.569111869 | DD84: 1.576899264 | DE84: 1.584725307 | DF84: 1.592590191 | DG84: 1.600494107 | DH84: 1.608437249 | DI84: 1.616419813 | DJ84: 1.624441994 | DK84: 1.632503989 | DL84: 1.640605994 | DM84: 1.64874821 | DN84: 1.656930834 | DO84: 1.665154069 | DP84: 1.673418114 | DQ84: 1.681723174 | DR84: 1.690069451 | DS84: 1.69845715 | DT84: 1.706886477 | DU84: 1.715357637 | DV84: 1.72387084 | DW84: 1.732426293 | DX84: 1.741024206 | DY84: 1.74966479 | DZ84: 1.758348257 | EA84: 1.767074819 | EB84: 1.77584469 | EC84: 1.784658086 | ED84: 1.793515222 | EE84: 1.802416315 | EF84: 1.811361584 | EG84: 1.820351248 | EH84: =EG84*(1+EH81*EH$6) -> 1.829385526 | EI84: 1.838464642 | EJ84: 1.847588816 | EK84: 1.856758273 | EL84: 1.865973237 | EM84: 1.875233934 | EN84: 1.884540592 | EO84: 1.893893438 | EP84: 1.903292702 | EQ84: 1.912738613 | ER84: 1.922231404 | ES84: 1.931771307 | ET84: 1.941358556 | EU84: 1.950993385 | EV84: 1.960676032 | EW84: 1.970406733 | EX84: 1.980185727 | EY84: 1.990013253 | EZ84: 1.999889553 | FA84: 1.999889553 | FB84: 1.999889553 | FC84: 1.999889553 | FD84: 1.999889553 | FE84: 1.999889553 | FF84: 1.999889553 | FG84: 1.999889553 | FH84: 1.999889553 | FI84: 1.999889553 | FJ84: 1.999889553 | FK84: 1.999889553 | FL84: 1.999889553 | FM84: 1.999889553 | FN84: 1.999889553 | FO84: 1.999889553 | FP84: 1.999889553 | FQ84: 1.999889553 | FR84: 1.999889553 | FS84: 1.999889553
E86: $ p.a. | F86: Escalation
C87: Panel O&M | D87: USD '000 | E87: ='Inputs - Partnership'!E100 -> 40 | F87: ='Inputs - Partnership'!$G$100 -> 0.025 | H87: =SUM(I87:FS87) -> 0
C88: BoP O&M and site labor | D88: USD '000 | E88: ='Inputs - Partnership'!E101 -> 125 | F88: ='Inputs - Partnership'!$G$101 -> 0.02 | H88: -6327.232713 | I88: =-$E88/4*I$84*I$6 -> 0 | J88: 0 | K88: 0 | L88: 0 | M88: 0 | N88: 0 | O88: 0 | P88: 0 | Q88: -31.40509161 | R88: -31.56095293 | S88: =-$E88/4*S$84*S$6 -> -31.71758778 | T88: -31.875 | U88: -32.03319344 | V88: -32.19217199 | W88: -32.35193954 | X88: -32.5125 | Y88: -32.67385731 | Z88: -32.83601543 | AA88: -32.99897833 | AB88: -33.16275 | AC88: =-$E88/4*AC$84*AC$6 -> -33.32733446 | AD88: -33.49273574 | AE88: -33.6589579 | AF88: -33.826005 | AG88: -33.99388115 | AH88: -34.16259045 | AI88: -34.33213705 | AJ88: -34.5025251 | AK88: -34.67375877 | AL88: -34.84584226 | AM88: =-$E88/4*AM$84*AM$6 -> -35.01877979 | AN88: -35.1925756 | AO88: -35.36723395 | AP88: -35.54275911 | AQ88: -35.71915539 | AR88: -35.89642711 | AS88: -36.07457863 | AT88: -36.25361429 | AU88: -36.4335385 | AV88: -36.61435566 | AW88: =-$E88/4*AW$84*AW$6 -> -36.7960702 | AX88: -36.97868658 | AY88: -37.16220927 | AZ88: -37.34664277 | BA88: -37.5319916 | BB88: -37.71826031 | BC88: -37.90545345 | BD88: -38.09357562 | BE88: -38.28263143 | BF88: -38.47262551 | BG88: =-$E88/4*BG$84*BG$6 -> -38.66356252 | BH88: -38.85544714 | BI88: -39.04828406 | BJ88: -39.24207802 | BK88: -39.43683377 | BL88: -39.63255608 | BM88: -39.82924974 | BN88: -40.02691959 | BO88: -40.22557045 | BP88: -40.4252072 | BQ88: =-$E88/4*BQ$84*BQ$6 -> -40.62583474 | BR88: -40.82745798 | BS88: -41.03008186 | BT88: -41.23371135 | BU88: -41.43835143 | BV88: -41.64400714 | BW88: -41.85068349 | BX88: -42.05838557 | BY88: -42.26711846 | BZ88: -42.47688728 | CA88: =-$E88/4*CA$84*CA$6 -> -42.68769716 | CB88: -42.89955328 | CC88: -43.11246083 | CD88: -43.32642502 | CE88: -43.54145111 | CF88: -43.75754435 | CG88: -43.97471005 | CH88: -44.19295353 | CI88: -44.41228013 | CJ88: -44.63269524 | CK88: =-$E88/4*CK$84*CK$6 -> -44.85420425 | CL88: -45.0768126 | CM88: -45.30052573 | CN88: -45.52534914 | CO88: -45.75128833 | CP88: -45.97834885 | CQ88: -46.20653625 | CR88: -46.43585612 | CS88: -46.6663141 | CT88: -46.89791582 | CU88: =-$E88/4*CU$84*CU$6 -> -47.13066697 | CV88: -47.36457325 | CW88: -47.59964038 | CX88: -47.83587414 | CY88: -48.07328031 | CZ88: -48.31186471 | DA88: -48.55163319 | DB88: -48.79259162 | DC88: -49.03474592 | DD88: -49.27810201 | DE88: =-$E88/4*DE$84*DE$6 -> -49.52266585 | DF88: -49.76844346 | DG88: -50.01544084 | DH88: -50.26366405 | DI88: -50.51311917 | DJ88: -50.76381233 | DK88: -51.01574965 | DL88: -51.26893733 | DM88: -51.52338155 | DN88: -51.77908857 | DO88: =-$E88/4*DO$84*DO$6 -> -52.03606465 | DP88: -52.29431607 | DQ88: -52.55384919 | DR88: -52.81467034 | DS88: -53.07678594 | DT88: -53.3402024 | DU88: -53.60492617 | DV88: -53.87096375 | DW88: -54.13832166 | DX88: -54.40700644 | DY88: =-$E88/4*DY$84*DY$6 -> -54.67702469 | DZ88: -54.94838303 | EA88: -55.22108809 | EB88: -55.49514657 | EC88: -55.77056519 | ED88: -56.04735069 | EE88: -56.32550985 | EF88: -56.6050495 | EG88: -56.88597649 | EH88: -57.1682977 | EI88: =-$E88/4*EI$84*EI$6 -> -57.45202005 | EJ88: -57.73715049 | EK88: -58.02369602 | EL88: -58.31166365 | EM88: -58.60106045 | EN88: -58.8918935 | EO88: -59.18416994 | EP88: -59.47789693 | EQ88: -59.77308166 | ER88: -60.06973137 | ES88: =-$E88/4*ES$84*ES$6 -> -60.36785334 | ET88: -60.66745486 | EU88: -60.96854329 | EV88: -61.271126 | EW88: -61.57521041 | EX88: -61.88080396 | EY88: -62.18791416 | EZ88: -62.49654852 | FA88: 0 | FB88: 0 | FC88: =-$E88/4*FC$84*FC$6 -> 0 | FD88: 0 | FE88: 0 | FF88: 0 | FG88: 0 | FH88: 0 | FI88: 0 | FJ88: 0 | FK88: 0 | FL88: 0 | FM88: =-$E88/4*FM$84*FM$6 -> 0 | FN88: 0 | FO88: 0 | FP88: 0 | FQ88: 0 | FR88: 0 | FS88: 0
C89: Operating expense | D89: USD '000 | E89: ='Inputs - Partnership'!E102 -> 71 | F89: ='Inputs - Partnership'!G102 -> 0.02 | H89: -3593.868181 | I89: 0 | J89: 0 | K89: 0 | L89: 0 | M89: 0 | N89: 0 | O89: 0 | P89: 0 | Q89: -17.83809204 | R89: -17.92662127 | S89: -18.01558986 | T89: -18.105 | U89: -18.19485388 | V89: -18.28515369 | W89: -18.37590166 | X89: -18.4671 | Y89: -18.55875095 | Z89: -18.65085676 | AA89: -18.74341969 | AB89: -18.836442 | AC89: -18.92992597 | AD89: -19.0238739 | AE89: -19.11828808 | AF89: -19.21317084 | AG89: -19.30852449 | AH89: -19.40435138 | AI89: -19.50065385 | AJ89: -19.59743426 | AK89: -19.69469498 | AL89: -19.79243841 | AM89: -19.89066692 | AN89: -19.98938294 | AO89: -20.08858888 | AP89: -20.18828717 | AQ89: -20.28848026 | AR89: -20.3891706 | AS89: -20.49036066 | AT89: -20.59205292 | AU89: -20.69424987 | AV89: -20.79695401 | AW89: -20.90016787 | AX89: -21.00389398 | AY89: -21.10813486 | AZ89: -21.21289309 | BA89: -21.31817123 | BB89: -21.42397186 | BC89: -21.53029756 | BD89: -21.63715095 | BE89: -21.74453465 | BF89: -21.85245129 | BG89: -21.96090351 | BH89: -22.06989397 | BI89: -22.17942535 | BJ89: -22.28950032 | BK89: -22.40012158 | BL89: -22.51129185 | BM89: -22.62301385 | BN89: -22.73529032 | BO89: -22.84812401 | BP89: -22.96151769 | BQ89: -23.07547413 | BR89: -23.18999613 | BS89: -23.30508649 | BT89: -23.42074804 | BU89: -23.53698361 | BV89: -23.65379605 | BW89: -23.77118822 | BX89: -23.88916301 | BY89: -24.00772329 | BZ89: -24.12687197 | CA89: -24.24661199 | CB89: -24.36694627 | CC89: -24.48787775 | CD89: -24.60940941 | CE89: -24.73154423 | CF89: -24.85428519 | CG89: -24.97763531 | CH89: -25.1015976 | CI89: -25.22617511 | CJ89: -25.35137089 | CK89: -25.47718801 | CL89: -25.60362955 | CM89: -25.73069862 | CN89: -25.85839831 | CO89: -25.98673177 | CP89: -26.11570215 | CQ89: -26.24531259 | CR89: -26.37556628 | CS89: -26.50646641 | CT89: -26.63801619 | CU89: -26.77021884 | CV89: -26.9030776 | CW89: -27.03659574 | CX89: -27.17077651 | CY89: -27.30562322 | CZ89: -27.44113916 | DA89: -27.57732765 | DB89: -27.71419204 | DC89: -27.85173568 | DD89: -27.98996194 | DE89: -28.12887421 | DF89: -28.26847588 | DG89: -28.40877039 | DH89: -28.54976118 | DI89: -28.69145169 | DJ89: -28.8338454 | DK89: -28.9769458 | DL89: -29.1207564 | DM89: -29.26528072 | DN89: -29.41052231 | DO89: -29.55648472 | DP89: -29.70317153 | DQ89: -29.85058634 | DR89: -29.99873276 | DS89: -30.14761441 | DT89: -30.29723496 | DU89: -30.44759806 | DV89: -30.59870741 | DW89: -30.7505667 | DX89: -30.90317966 | DY89: -31.05655003 | DZ89: -31.21068156 | EA89: -31.36557804 | EB89: -31.52124325 | EC89: -31.67768103 | ED89: -31.83489519 | EE89: -31.9928896 | EF89: -32.15166812 | EG89: -32.31123465 | EH89: -32.47159309 | EI89: -32.63274739 | EJ89: -32.79470148 | EK89: -32.95745934 | EL89: -33.12102496 | EM89: -33.28540234 | EN89: -33.45059551 | EO89: -33.61660853 | EP89: -33.78344545 | EQ89: -33.95111038 | ER89: -34.11960742 | ES89: -34.2889407 | ET89: -34.45911436 | EU89: -34.63013259 | EV89: -34.80199957 | EW89: -34.97471951 | EX89: -35.14829665 | EY89: -35.32273524 | EZ89: -35.49803956 | FA89: 0 | FB89: 0 | FC89: 0 | FD89: 0 | FE89: 0 | FF89: 0 | FG89: 0 | FH89: 0 | FI89: 0 | FJ89: 0 | FK89: 0 | FL89: 0 | FM89: 0 | FN89: 0 | FO89: 0 | FP89: 0 | FQ89: 0 | FR89: 0 | FS89: 0
C90: Asset management | D90: USD '000 | E90: ='Inputs - Partnership'!E104 -> 250 | F90: ='Inputs - Partnership'!G104 -> 0.02 | H90: -12654.46543 | I90: 0 | J90: 0 | K90: 0 | L90: 0 | M90: 0 | N90: 0 | O90: 0 | P90: 0 | Q90: -62.81018322 | R90: -63.12190586 | S90: -63.43517556 | T90: -63.75 | U90: -64.06638689 | V90: -64.38434398 | W90: -64.70387908 | X90: -65.025 | Y90: -65.34771463 | Z90: -65.67203086 | AA90: -65.99795666 | AB90: -66.3255 | AC90: -66.65466892 | AD90: -66.98547148 | AE90: -67.31791579 | AF90: -67.65201 | AG90: -67.9877623 | AH90: -68.32518091 | AI90: -68.66427411 | AJ90: -69.0050502 | AK90: -69.34751754 | AL90: -69.69168453 | AM90: -70.03755959 | AN90: -70.3851512 | AO90: -70.73446789 | AP90: -71.08551822 | AQ90: -71.43831078 | AR90: -71.79285423 | AS90: -72.14915725 | AT90: -72.50722858 | AU90: -72.867077 | AV90: -73.22871131 | AW90: -73.5921404 | AX90: -73.95737315 | AY90: -74.32441854 | AZ90: -74.69328554 | BA90: -75.0639832 | BB90: -75.43652062 | BC90: -75.81090691 | BD90: -76.18715125 | BE90: -76.56526287 | BF90: -76.94525103 | BG90: -77.32712504 | BH90: -77.71089427 | BI90: -78.09656813 | BJ90: -78.48415605 | BK90: -78.87366755 | BL90: -79.26511216 | BM90: -79.65849949 | BN90: -80.05383917 | BO90: -80.4511409 | BP90: -80.8504144 | BQ90: -81.25166948 | BR90: -81.65491595 | BS90: -82.06016371 | BT90: -82.46742269 | BU90: -82.87670287 | BV90: -83.28801427 | BW90: -83.70136699 | BX90: -84.11677115 | BY90: -84.53423692 | BZ90: -84.95377456 | CA90: -85.37539433 | CB90: -85.79910657 | CC90: -86.22492166 | CD90: -86.65285005 | CE90: -87.08290221 | CF90: -87.5150887 | CG90: -87.9494201 | CH90: -88.38590705 | CI90: -88.82456026 | CJ90: -89.26539047 | CK90: -89.7084085 | CL90: -90.15362519 | CM90: -90.60105146 | CN90: -91.05069828 | CO90: -91.50257667 | CP90: -91.9566977 | CQ90: -92.41307249 | CR90: -92.87171225 | CS90: -93.3326282 | CT90: -93.79583165 | CU90: -94.26133394 | CV90: -94.72914649 | CW90: -95.19928077 | CX90: -95.67174828 | CY90: -96.14656062 | CZ90: -96.62372942 | DA90: -97.10326638 | DB90: -97.58518325 | DC90: -98.06949183 | DD90: -98.55620401 | DE90: -99.04533171 | DF90: -99.53688691 | DG90: -100.0308817 | DH90: -100.5273281 | DI90: -101.0262383 | DJ90: -101.5276247 | DK90: -102.0314993 | DL90: -102.5378747 | DM90: -103.0467631 | DN90: -103.5581771 | DO90: -104.0721293 | DP90: -104.5886321 | DQ90: -105.1076984 | DR90: -105.6293407 | DS90: -106.1535719 | DT90: -106.6804048 | DU90: -107.2098523 | DV90: -107.7419275 | DW90: -108.2766433 | DX90: -108.8140129 | DY90: -109.3540494 | DZ90: -109.8967661 | EA90: -110.4421762 | EB90: -110.9902931 | EC90: -111.5411304 | ED90: -112.0947014 | EE90: -112.6510197 | EF90: -113.210099 | EG90: -113.771953 | EH90: -114.3365954 | EI90: -114.9040401 | EJ90: -115.474301 | EK90: -116.047392 | EL90: -116.6233273 | EM90: -117.2021209 | EN90: -117.783787 | EO90: -118.3683399 | EP90: -118.9557939 | EQ90: -119.5461633 | ER90: -120.1394627 | ES90: -120.7357067 | ET90: -121.3349097 | EU90: -121.9370866 | EV90: -122.542252 | EW90: -123.1504208 | EX90: -123.7616079 | EY90: -124.3758283 | EZ90: -124.993097 | FA90: 0 | FB90: 0 | FC90: 0 | FD90: 0 | FE90: 0 | FF90: 0 | FG90: 0 | FH90: 0 | FI90: 0 | FJ90: 0 | FK90: 0 | FL90: 0 | FM90: 0 | FN90: 0 | FO90: 0 | FP90: 0 | FQ90: 0 | FR90: 0 | FS90: 0
C91: Community support | D91: USD '000 | E91: ='Inputs - Partnership'!E105 -> 10 | F91: ='Inputs - Partnership'!G105 -> 0.02 | H91: -506.178617 | I91: 0 | J91: 0 | K91: 0 | L91: 0 | M91: 0 | N91: 0 | O91: 0 | P91: 0 | Q91: -2.512407329 | R91: -2.524876235 | S91: -2.537407023 | T91: -2.55 | U91: -2.562655476 | V91: -2.575373759 | W91: -2.588155163 | X91: -2.601 | Y91: -2.613908585 | Z91: -2.626881234 | AA91: -2.639918266 | AB91: -2.65302 | AC91: -2.666186757 | AD91: -2.679418859 | AE91: -2.692716632 | AF91: -2.7060804 | AG91: -2.719510492 | AH91: -2.733007236 | AI91: -2.746570964 | AJ91: -2.760202008 | AK91: -2.773900702 | AL91: -2.787667381 | AM91: -2.801502384 | AN91: -2.815406048 | AO91: -2.829378716 | AP91: -2.843420729 | AQ91: -2.857532431 | AR91: -2.871714169 | AS91: -2.88596629 | AT91: -2.900289143 | AU91: -2.91468308 | AV91: -2.929148453 | AW91: -2.943685616 | AX91: -2.958294926 | AY91: -2.972976741 | AZ91: -2.987731422 | BA91: -3.002559328 | BB91: -3.017460825 | BC91: -3.032436276 | BD91: -3.04748605 | BE91: -3.062610515 | BF91: -3.077810041 | BG91: -3.093085002 | BH91: -3.108435771 | BI91: -3.123862725 | BJ91: -3.139366242 | BK91: -3.154946702 | BL91: -3.170604486 | BM91: -3.18633998 | BN91: -3.202153567 | BO91: -3.218045636 | BP91: -3.234016576 | BQ91: -3.250066779 | BR91: -3.266196638 | BS91: -3.282406549 | BT91: -3.298696908 | BU91: -3.315068115 | BV91: -3.331520571 | BW91: -3.34805468 | BX91: -3.364670846 | BY91: -3.381369477 | BZ91: -3.398150982 | CA91: -3.415015773 | CB91: -3.431964263 | CC91: -3.448996867 | CD91: -3.466114002 | CE91: -3.483316089 | CF91: -3.500603548 | CG91: -3.517976804 | CH91: -3.535436282 | CI91: -3.55298241 | CJ91: -3.570615619 | CK91: -3.58833634 | CL91: -3.606145008 | CM91: -3.624042059 | CN91: -3.642027931 | CO91: -3.660103067 | CP91: -3.678267908 | CQ91: -3.6965229 | CR91: -3.71486849 | CS91: -3.733305128 | CT91: -3.751833266 | CU91: -3.770453358 | CV91: -3.78916586 | CW91: -3.807971231 | CX91: -3.826869931 | CY91: -3.845862425 | CZ91: -3.864949177 | DA91: -3.884130655 | DB91: -3.90340733 | DC91: -3.922779673 | DD91: -3.94224816 | DE91: -3.961813268 | DF91: -3.981475477 | DG91: -4.001235267 | DH91: -4.021093124 | DI91: -4.041049534 | DJ91: -4.061104986 | DK91: -4.081259972 | DL91: -4.101514986 | DM91: -4.121870524 | DN91: -4.142327086 | DO91: -4.162885172 | DP91: -4.183545286 | DQ91: -4.204307935 | DR91: -4.225173627 | DS91: -4.246142875 | DT91: -4.267216192 | DU91: -4.288394094 | DV91: -4.3096771 | DW91: -4.331065733 | DX91: -4.352560515 | DY91: -4.374161975 | DZ91: -4.395870642 | EA91: -4.417687047 | EB91: -4.439611726 | EC91: -4.461645215 | ED91: -4.483788055 | EE91: -4.506040788 | EF91: -4.52840396 | EG91: -4.550878119 | EH91: -4.573463816 | EI91: -4.596161604 | EJ91: -4.618972039 | EK91: -4.641895682 | EL91: -4.664933092 | EM91: -4.688084836 | EN91: -4.71135148 | EO91: -4.734733595 | EP91: -4.758231754 | EQ91: -4.781846533 | ER91: -4.80557851 | ES91: -4.829428267 | ET91: -4.853396389 | EU91: -4.877483463 | EV91: -4.90169008 | EW91: -4.926016833 | EX91: -4.950464317 | EY91: -4.975033133 | EZ91: -4.999723882 | FA91: 0 | FB91: 0 | FC91: 0 | FD91: 0 | FE91: 0 | FF91: 0 | FG91: 0 | FH91: 0 | FI91: 0 | FJ91: 0 | FK91: 0 | FL91: 0 | FM91: 0 | FN91: 0 | FO91: 0 | FP91: 0 | FQ91: 0 | FR91: 0 | FS91: 0
C92: 3rd party services | D92: USD '000 | E92: ='Inputs - Partnership'!E106 -> 200 | F92: ='Inputs - Partnership'!G106 -> 0.02 | H92: -10123.57234 | I92: 0 | J92: 0 | K92: 0 | L92: 0 | M92: 0 | N92: 0 | O92: 0 | P92: 0 | Q92: -50.24814658 | R92: -50.49752469 | S92: -50.74814045 | T92: -51 | U92: -51.25310951 | V92: -51.50747519 | W92: -51.76310326 | X92: -52.02 | Y92: -52.2781717 | Z92: -52.53762469 | AA92: -52.79836533 | AB92: -53.0604 | AC92: -53.32373513 | AD92: -53.58837718 | AE92: -53.85433263 | AF92: -54.121608 | AG92: -54.39020984 | AH92: -54.66014473 | AI92: -54.93141928 | AJ92: -55.20404016 | AK92: -55.47801403 | AL92: -55.75334762 | AM92: -56.03004767 | AN92: -56.30812096 | AO92: -56.58757431 | AP92: -56.86841457 | AQ92: -57.15064862 | AR92: -57.43428338 | AS92: -57.7193258 | AT92: -58.00578287 | AU92: -58.2936616 | AV92: -58.58296905 | AW92: -58.87371232 | AX92: -59.16589852 | AY92: -59.45953483 | AZ92: -59.75462843 | BA92: -60.05118656 | BB92: -60.34921649 | BC92: -60.64872552 | BD92: -60.949721 | BE92: -61.25221029 | BF92: -61.55620082 | BG92: -61.86170004 | BH92: -62.16871542 | BI92: -62.4772545 | BJ92: -62.78732484 | BK92: -63.09893404 | BL92: -63.41208973 | BM92: -63.72679959 | BN92: -64.04307134 | BO92: -64.36091272 | BP92: -64.68033152 | BQ92: -65.00133558 | BR92: -65.32393276 | BS92: -65.64813097 | BT92: -65.97393815 | BU92: -66.30136229 | BV92: -66.63041142 | BW92: -66.96109359 | BX92: -67.29341692 | BY92: -67.62738954 | BZ92: -67.96301965 | CA92: -68.30031546 | CB92: -68.63928525 | CC92: -68.97993733 | CD92: -69.32228004 | CE92: -69.66632177 | CF92: -70.01207096 | CG92: -70.35953608 | CH92: -70.70872564 | CI92: -71.05964821 | CJ92: -71.41231238 | CK92: -71.7667268 | CL92: -72.12290015 | CM92: -72.48084117 | CN92: -72.84055863 | CO92: -73.20206133 | CP92: -73.56535816 | CQ92: -73.93045799 | CR92: -74.2973698 | CS92: -74.66610256 | CT92: -75.03666532 | CU92: -75.40906715 | CV92: -75.78331719 | CW92: -76.15942461 | CX92: -76.53739863 | CY92: -76.9172485 | CZ92: -77.29898354 | DA92: -77.6826131 | DB92: -78.0681466 | DC92: -78.45559347 | DD92: -78.84496321 | DE92: -79.23626537 | DF92: -79.62950953 | DG92: -80.02470534 | DH92: -80.42186247 | DI92: -80.82099067 | DJ92: -81.22209972 | DK92: -81.62519944 | DL92: -82.03029972 | DM92: -82.43741049 | DN92: -82.84654172 | DO92: -83.25770343 | DP92: -83.67090572 | DQ92: -84.0861587 | DR92: -84.50347255 | DS92: -84.9228575 | DT92: -85.34432383 | DU92: -85.76788187 | DV92: -86.193542 | DW92: -86.62131465 | DX92: -87.05121031 | DY92: -87.48323951 | DZ92: -87.91741284 | EA92: -88.35374094 | EB92: -88.79223451 | EC92: -89.2329043 | ED92: -89.6757611 | EE92: -90.12081576 | EF92: -90.56807921 | EG92: -91.01756238 | EH92: -91.46927632 | EI92: -91.92323208 | EJ92: -92.37944079 | EK92: -92.83791363 | EL92: -93.29866185 | EM92: -93.76169672 | EN92: -94.22702961 | EO92: -94.69467191 | EP92: -95.16463508 | EQ92: -95.63693065 | ER92: -96.1115702 | ES92: -96.58856534 | ET92: -97.06792778 | EU92: -97.54966927 | EV92: -98.0338016 | EW92: -98.52033665 | EX92: -99.00928634 | EY92: -99.50066265 | EZ92: -99.99447763 | FA92: 0 | FB92: 0 | FC92: 0 | FD92: 0 | FE92: 0 | FF92: 0 | FG92: 0 | FH92: 0 | FI92: 0 | FJ92: 0 | FK92: 0 | FL92: 0 | FM92: 0 | FN92: 0 | FO92: 0 | FP92: 0 | FQ92: 0 | FR92: 0 | FS92: 0
C93: Insurance | D93: USD '000 | E93: ='Inputs - Partnership'!E117 -> 1464.75 | F93: ='Inputs - Partnership'!G115 -> 0 | H93: -51266.25 | I93: =-$E93/4*I$6 -> 0 | J93: =-$E93/4*J$6 -> 0 | K93: 0 | L93: 0 | M93: 0 | N93: 0 | O93: 0 | P93: 0 | Q93: -366.1875 | R93: -366.1875 | S93: -366.1875 | T93: -366.1875 | U93: -366.1875 | V93: -366.1875 | W93: -366.1875 | X93: -366.1875 | Y93: -366.1875 | Z93: -366.1875 | AA93: -366.1875 | AB93: -366.1875 | AC93: -366.1875 | AD93: -366.1875 | AE93: -366.1875 | AF93: -366.1875 | AG93: -366.1875 | AH93: -366.1875 | AI93: -366.1875 | AJ93: -366.1875 | AK93: -366.1875 | AL93: -366.1875 | AM93: -366.1875 | AN93: -366.1875 | AO93: -366.1875 | AP93: -366.1875 | AQ93: -366.1875 | AR93: -366.1875 | AS93: -366.1875 | AT93: -366.1875 | AU93: -366.1875 | AV93: -366.1875 | AW93: -366.1875 | AX93: -366.1875 | AY93: -366.1875 | AZ93: -366.1875 | BA93: -366.1875 | BB93: -366.1875 | BC93: -366.1875 | BD93: -366.1875 | BE93: -366.1875 | BF93: -366.1875 | BG93: -366.1875 | BH93: -366.1875 | BI93: -366.1875 | BJ93: -366.1875 | BK93: -366.1875 | BL93: -366.1875 | BM93: -366.1875 | BN93: -366.1875 | BO93: -366.1875 | BP93: -366.1875 | BQ93: -366.1875 | BR93: -366.1875 | BS93: -366.1875 | BT93: -366.1875 | BU93: -366.1875 | BV93: =-$E93/4*BV$6 -> -366.1875 | BW93: -366.1875 | BX93: -366.1875 | BY93: -366.1875 | BZ93: -366.1875 | CA93: -366.1875 | CB93: -366.1875 | CC93: -366.1875 | CD93: -366.1875 | CE93: -366.1875 | CF93: -366.1875 | CG93: -366.1875 | CH93: -366.1875 | CI93: -366.1875 | CJ93: -366.1875 | CK93: -366.1875 | CL93: -366.1875 | CM93: -366.1875 | CN93: -366.1875 | CO93: -366.1875 | CP93: -366.1875 | CQ93: -366.1875 | CR93: -366.1875 | CS93: -366.1875 | CT93: -366.1875 | CU93: -366.1875 | CV93: -366.1875 | CW93: -366.1875 | CX93: -366.1875 | CY93: -366.1875 | CZ93: -366.1875 | DA93: -366.1875 | DB93: -366.1875 | DC93: -366.1875 | DD93: -366.1875 | DE93: -366.1875 | DF93: -366.1875 | DG93: -366.1875 | DH93: -366.1875 | DI93: -366.1875 | DJ93: -366.1875 | DK93: -366.1875 | DL93: -366.1875 | DM93: -366.1875 | DN93: -366.1875 | DO93: -366.1875 | DP93: -366.1875 | DQ93: -366.1875 | DR93: -366.1875 | DS93: -366.1875 | DT93: -366.1875 | DU93: -366.1875 | DV93: -366.1875 | DW93: -366.1875 | DX93: -366.1875 | DY93: -366.1875 | DZ93: -366.1875 | EA93: -366.1875 | EB93: -366.1875 | EC93: -366.1875 | ED93: -366.1875 | EE93: -366.1875 | EF93: -366.1875 | EG93: -366.1875 | EH93: =-$E93/4*EH$6 -> -366.1875 | EI93: -366.1875 | EJ93: -366.1875 | EK93: -366.1875 | EL93: -366.1875 | EM93: -366.1875 | EN93: -366.1875 | EO93: -366.1875 | EP93: -366.1875 | EQ93: -366.1875 | ER93: -366.1875 | ES93: -366.1875 | ET93: -366.1875 | EU93: -366.1875 | EV93: -366.1875 | EW93: -366.1875 | EX93: -366.1875 | EY93: -366.1875 | EZ93: -366.1875 | FA93: 0 | FB93: 0 | FC93: 0 | FD93: 0 | FE93: 0 | FF93: 0 | FG93: 0 | FH93: 0 | FI93: 0 | FJ93: 0 | FK93: 0 | FL93: 0 | FM93: 0 | FN93: 0 | FO93: 0 | FP93: 0 | FQ93: 0 | FR93: 0 | FS93: 0
C94: Property tax | D94: USD '000 | E94: ='Inputs - Partnership'!E112 -> 500 | F94: ='Inputs - Partnership'!G112 -> 0 | H94: -17500 | I94: =-$E94/4*I$6 -> 0 | J94: 0 | K94: 0 | L94: 0 | M94: 0 | N94: 0 | O94: 0 | P94: 0 | Q94: -125 | R94: -125 | S94: -125 | T94: -125 | U94: -125 | V94: -125 | W94: -125 | X94: -125 | Y94: -125 | Z94: -125 | AA94: -125 | AB94: -125 | AC94: -125 | AD94: -125 | AE94: -125 | AF94: -125 | AG94: -125 | AH94: -125 | AI94: -125 | AJ94: -125 | AK94: -125 | AL94: -125 | AM94: -125 | AN94: -125 | AO94: -125 | AP94: -125 | AQ94: -125 | AR94: -125 | AS94: -125 | AT94: -125 | AU94: -125 | AV94: -125 | AW94: -125 | AX94: -125 | AY94: -125 | AZ94: -125 | BA94: -125 | BB94: -125 | BC94: -125 | BD94: -125 | BE94: -125 | BF94: -125 | BG94: -125 | BH94: -125 | BI94: -125 | BJ94: -125 | BK94: -125 | BL94: -125 | BM94: -125 | BN94: -125 | BO94: -125 | BP94: -125 | BQ94: -125 | BR94: -125 | BS94: -125 | BT94: -125 | BU94: -125 | BV94: -125 | BW94: -125 | BX94: -125 | BY94: -125 | BZ94: -125 | CA94: -125 | CB94: -125 | CC94: -125 | CD94: -125 | CE94: -125 | CF94: -125 | CG94: -125 | CH94: -125 | CI94: -125 | CJ94: -125 | CK94: -125 | CL94: -125 | CM94: -125 | CN94: -125 | CO94: -125 | CP94: -125 | CQ94: -125 | CR94: -125 | CS94: -125 | CT94: -125 | CU94: -125 | CV94: -125 | CW94: -125 | CX94: -125 | CY94: -125 | CZ94: -125 | DA94: -125 | DB94: -125 | DC94: -125 | DD94: -125 | DE94: -125 | DF94: -125 | DG94: -125 | DH94: -125 | DI94: -125 | DJ94: -125 | DK94: -125 | DL94: -125 | DM94: -125 | DN94: -125 | DO94: -125 | DP94: -125 | DQ94: -125 | DR94: -125 | DS94: -125 | DT94: -125 | DU94: -125 | DV94: -125 | DW94: -125 | DX94: -125 | DY94: -125 | DZ94: -125 | EA94: -125 | EB94: -125 | EC94: -125 | ED94: -125 | EE94: -125 | EF94: -125 | EG94: -125 | EH94: -125 | EI94: -125 | EJ94: -125 | EK94: -125 | EL94: -125 | EM94: -125 | EN94: -125 | EO94: -125 | EP94: -125 | EQ94: -125 | ER94: -125 | ES94: -125 | ET94: -125 | EU94: -125 | EV94: -125 | EW94: -125 | EX94: -125 | EY94: -125 | EZ94: -125 | FA94: 0 | FB94: 0 | FC94: 0 | FD94: 0 | FE94: 0 | FF94: 0 | FG94: 0 | FH94: 0 | FI94: 0 | FJ94: 0 | FK94: 0 | FL94: 0 | FM94: 0 | FN94: 0 | FO94: 0 | FP94: 0 | FQ94: 0 | FR94: 0 | FS94: 0
C95: Land | D95: USD '000 | E95: ='Inputs - Partnership'!E113 -> 500 | F95: ='Inputs - Partnership'!G113 -> 0 | H95: -17500 | I95: 0 | J95: 0 | K95: 0 | L95: 0 | M95: 0 | N95: 0 | O95: 0 | P95: 0 | Q95: -125 | R95: -125 | S95: -125 | T95: -125 | U95: -125 | V95: -125 | W95: -125 | X95: -125 | Y95: -125 | Z95: -125 | AA95: -125 | AB95: -125 | AC95: -125 | AD95: -125 | AE95: -125 | AF95: -125 | AG95: -125 | AH95: -125 | AI95: -125 | AJ95: -125 | AK95: -125 | AL95: -125 | AM95: -125 | AN95: -125 | AO95: -125 | AP95: -125 | AQ95: -125 | AR95: -125 | AS95: -125 | AT95: -125 | AU95: -125 | AV95: -125 | AW95: -125 | AX95: -125 | AY95: -125 | AZ95: -125 | BA95: -125 | BB95: -125 | BC95: -125 | BD95: -125 | BE95: -125 | BF95: -125 | BG95: -125 | BH95: -125 | BI95: -125 | BJ95: -125 | BK95: -125 | BL95: -125 | BM95: -125 | BN95: -125 | BO95: -125 | BP95: -125 | BQ95: -125 | BR95: -125 | BS95: -125 | BT95: -125 | BU95: -125 | BV95: -125 | BW95: -125 | BX95: -125 | BY95: -125 | BZ95: -125 | CA95: -125 | CB95: -125 | CC95: -125 | CD95: -125 | CE95: -125 | CF95: -125 | CG95: -125 | CH95: -125 | CI95: -125 | CJ95: -125 | CK95: -125 | CL95: -125 | CM95: -125 | CN95: -125 | CO95: -125 | CP95: -125 | CQ95: -125 | CR95: -125 | CS95: -125 | CT95: -125 | CU95: -125 | CV95: -125 | CW95: -125 | CX95: -125 | CY95: -125 | CZ95: -125 | DA95: -125 | DB95: -125 | DC95: -125 | DD95: -125 | DE95: -125 | DF95: -125 | DG95: -125 | DH95: -125 | DI95: -125 | DJ95: -125 | DK95: -125 | DL95: -125 | DM95: -125 | DN95: -125 | DO95: -125 | DP95: -125 | DQ95: -125 | DR95: -125 | DS95: -125 | DT95: -125 | DU95: -125 | DV95: -125 | DW95: -125 | DX95: -125 | DY95: -125 | DZ95: -125 | EA95: -125 | EB95: -125 | EC95: -125 | ED95: -125 | EE95: -125 | EF95: -125 | EG95: -125 | EH95: -125 | EI95: -125 | EJ95: -125 | EK95: -125 | EL95: -125 | EM95: -125 | EN95: -125 | EO95: -125 | EP95: -125 | EQ95: -125 | ER95: -125 | ES95: -125 | ET95: -125 | EU95: -125 | EV95: -125 | EW95: -125 | EX95: -125 | EY95: -125 | EZ95: -125 | FA95: 0 | FB95: 0 | FC95: 0 | FD95: 0 | FE95: 0 | FF95: 0 | FG95: 0 | FH95: 0 | FI95: 0 | FJ95: 0 | FK95: 0 | FL95: 0 | FM95: 0 | FN95: 0 | FO95: 0 | FP95: 0 | FQ95: 0 | FR95: 0 | FS95: 0
E96: Start | F96: End
E97: ='Inputs - Partnership'!E109 -> 5 | F97: ='Inputs - Partnership'!F109 -> 20
C98: Maintenance - Inverter replacement | D98: USD '000 | E98: ='Inputs - Partnership'!E103 -> 83 | F98: ='Inputs - Partnership'!G103 -> 0.02 | H98: =SUM(I98:FS98) -> -1677.536266 | I98: =IF(AND(I$14>=$E97,I$14<=$F97),((($E98*I$6)*(1+($F98/4))^(I$15*4))/4)*-1,0) -> 0 | J98: 0 | K98: 0 | L98: 0 | M98: 0 | N98: 0 | O98: 0 | P98: 0 | Q98: 0 | R98: 0 | S98: 0 | T98: 0 | U98: 0 | V98: 0 | W98: 0 | X98: 0 | Y98: 0 | Z98: 0 | AA98: 0 | AB98: 0 | AC98: 0 | AD98: 0 | AE98: 0 | AF98: 0 | AG98: -22.47372639 | AH98: -22.47372639 | AI98: -22.47372639 | AJ98: -22.47372639 | AK98: -22.92658323 | AL98: -22.92658323 | AM98: -22.92658323 | AN98: -22.92658323 | AO98: =IF(AND(AO$14>=$E97,AO$14<=$F97),((($E98*AO$6)*(1+($F98/4))^(AO$15*4))/4)*-1,0) -> -23.38856536 | AP98: -23.38856536 | AQ98: -23.38856536 | AR98: -23.38856536 | AS98: -23.85985666 | AT98: -23.85985666 | AU98: -23.85985666 | AV98: -23.85985666 | AW98: -24.34064471 | AX98: -24.34064471 | AY98: -24.34064471 | AZ98: -24.34064471 | BA98: -24.83112089 | BB98: -24.83112089 | BC98: -24.83112089 | BD98: -24.83112089 | BE98: -25.33148041 | BF98: -25.33148041 | BG98: -25.33148041 | BH98: -25.33148041 | BI98: -25.84192242 | BJ98: -25.84192242 | BK98: -25.84192242 | BL98: -25.84192242 | BM98: -26.36265009 | BN98: -26.36265009 | BO98: -26.36265009 | BP98: -26.36265009 | BQ98: -26.89387069 | BR98: -26.89387069 | BS98: -26.89387069 | BT98: -26.89387069 | BU98: =IF(AND(BU$14>=$E97,BU$14<=$F97),((($E98*BU$6)*(1+($F98/4))^(BU$15*4))/4)*-1,0) -> -27.43579565 | BV98: -27.43579565 | BW98: -27.43579565 | BX98: -27.43579565 | BY98: -27.98864067 | BZ98: -27.98864067 | CA98: -27.98864067 | CB98: -27.98864067 | CC98: -28.55262579 | CD98: -28.55262579 | CE98: -28.55262579 | CF98: -28.55262579 | CG98: -29.12797549 | CH98: -29.12797549 | CI98: -29.12797549 | CJ98: -29.12797549 | CK98: -29.71491878 | CL98: -29.71491878 | CM98: -29.71491878 | CN98: -29.71491878 | CO98: -30.31368927 | CP98: -30.31368927 | CQ98: -30.31368927 | CR98: -30.31368927 | CS98: 0 | CT98: 0 | CU98: 0 | CV98: 0 | CW98: 0 | CX98: 0 | CY98: 0 | CZ98: 0 | DA98: =IF(AND(DA$14>=$E97,DA$14<=$F97),((($E98*DA$6)*(1+($F98/4))^(DA$15*4))/4)*-1,0) -> 0 | DB98: 0 | DC98: 0 | DD98: 0 | DE98: 0 | DF98: 0 | DG98: 0 | DH98: 0 | DI98: 0 | DJ98: 0 | DK98: 0 | DL98: 0 | DM98: 0 | DN98: 0 | DO98: 0 | DP98: 0 | DQ98: 0 | DR98: 0 | DS98: 0 | DT98: 0 | DU98: 0 | DV98: 0 | DW98: 0 | DX98: 0 | DY98: 0 | DZ98: 0 | EA98: 0 | EB98: 0 | EC98: 0 | ED98: 0 | EE98: 0 | EF98: 0 | EG98: =IF(AND(EG$14>=$E97,EG$14<=$F97),((($E98*EG$6)*(1+($F98/4))^(EG$15*4))/4)*-1,0) -> 0 | EH98: 0 | EI98: 0 | EJ98: 0 | EK98: 0 | EL98: 0 | EM98: 0 | EN98: 0 | EO98: 0 | EP98: 0 | EQ98: 0 | ER98: 0 | ES98: 0 | ET98: 0 | EU98: 0 | EV98: 0 | EW98: 0 | EX98: 0 | EY98: 0 | EZ98: 0 | FA98: 0 | FB98: 0 | FC98: 0 | FD98: 0 | FE98: 0 | FF98: 0 | FG98: 0 | FH98: 0 | FI98: 0 | FJ98: 0 | FK98: 0 | FL98: 0 | FM98: =IF(AND(FM$14>=$E97,FM$14<=$F97),((($E98*FM$6)*(1+($F98/4))^(FM$15*4))/4)*-1,0) -> 0 | FN98: 0 | FO98: 0 | FP98: 0 | FQ98: 0 | FR98: 0 | FS98: 0
C100: Total operating costs | D100: USD '000 | H100: =SUM(I100:FS100) -> -121149.1035 | I100: =SUM(I98,I87:I95) -> 0 | J100: 0 | K100: 0 | L100: 0 | M100: 0 | N100: 0 | O100: 0 | P100: 0 | Q100: -781.0014208 | R100: -781.819381 | S100: -782.6414007 | T100: -783.4675 | U100: -784.2976992 | V100: -785.1320186 | W100: -785.9704787 | X100: -786.8131 | Y100: -787.6599032 | Z100: -788.510909 | AA100: -789.3661383 | AB100: -790.225612 | AC100: -791.0893512 | AD100: -791.9573772 | AE100: -792.829711 | AF100: -793.7063742 | AG100: -817.0611147 | AH100: -817.9465011 | AI100: -818.8362816 | AJ100: -819.7304781 | AK100: -821.0819693 | AL100: -821.9850634 | AM100: -822.8926396 | AN100: -823.80472 | AO100: =SUM(AO98,AO87:AO95) -> -825.1833091 | AP100: -826.1044652 | AQ100: -827.0301928 | AR100: -827.9605149 | AS100: -829.3667453 | AT100: -830.3063245 | AU100: -831.2505667 | AV100: -832.1994951 | AW100: -833.6339211 | AX100: -834.5922919 | AY100: -835.555419 | AZ100: -836.523326 | BA100: -837.9865128 | BB100: -838.964051 | BC100: -839.9464406 | BD100: -840.9337058 | BE100: -842.4262302 | BF100: -843.4233191 | BG100: -844.4253565 | BH100: -845.432367 | BI100: -846.9548172 | BJ100: -847.9718479 | BK100: -848.9939261 | BL100: -850.0210767 | BM100: -851.5740527 | BN100: -852.6114241 | BO100: -853.6539438 | BP100: -854.7016375 | BQ100: -856.2857514 | BR100: -857.3438702 | BS100: -858.4072403 | BT100: -859.4758878 | BU100: =SUM(BU98,BU87:BU95) -> -861.091764 | BV100: -862.1710451 | BW100: -863.2556826 | BX100: -864.3457031 | BY100: -865.9939784 | BZ100: -867.0948451 | CA100: -868.2011754 | CB100: -869.3129963 | CC100: -870.9943202 | CD100: -872.1172043 | CE100: -873.2456612 | CF100: -874.3797185 | CG100: -876.0947538 | CH100: -877.2400956 | CI100: -878.3911216 | CJ100: -879.5478601 | CK100: -881.2972827 | CL100: -882.4655313 | CM100: -883.6395778 | CN100: -884.8194511 | CO100: -886.6039504 | CP100: -887.795564 | CQ100: -888.9930915 | CR100: -890.1965622 | CS100: -861.0923164 | CT100: -862.3077622 | CU100: -863.5292403 | CV100: -864.7567804 | CW100: -865.9904127 | CX100: -867.2301675 | CY100: -868.4760751 | CZ100: -869.728166 | DA100: =SUM(DA98,DA87:DA95) -> -870.986471 | DB100: -872.2510208 | DC100: -873.5218466 | DD100: -874.7989793 | DE100: -876.0824504 | DF100: -877.3722913 | DG100: -878.6685335 | DH100: -879.9712089 | DI100: -881.2803494 | DJ100: -882.5959871 | DK100: -883.9181542 | DL100: -885.2468831 | DM100: -886.5822064 | DN100: -887.9241568 | DO100: -889.2727673 | DP100: -890.6280708 | DQ100: -891.9901005 | DR100: -893.35889 | DS100: -894.7344726 | DT100: -896.1168822 | DU100: -897.5061525 | DV100: -898.9023178 | DW100: -900.3054121 | DX100: -901.7154698 | DY100: -903.1325256 | DZ100: -904.5566141 | EA100: -905.9877703 | EB100: -907.4260292 | EC100: -908.8714261 | ED100: -910.3239964 | EE100: -911.7837757 | EF100: -913.2507998 | EG100: =SUM(EG98,EG87:EG95) -> -914.7251046 | EH100: -916.2067263 | EI100: -917.6957012 | EJ100: -919.1920658 | EK100: -920.6958567 | EL100: -922.2071109 | EM100: -923.7258652 | EN100: -925.2521571 | EO100: -926.7860238 | EP100: -928.3275031 | EQ100: -929.8766325 | ER100: -931.4334502 | ES100: -932.9979943 | ET100: -934.5703031 | EU100: -936.1504152 | EV100: -937.7383693 | EW100: -939.3342042 | EX100: -940.9379592 | EY100: -942.5496735 | EZ100: -944.1693866 | FA100: 0 | FB100: 0 | FC100: 0 | FD100: 0 | FE100: 0 | FF100: 0 | FG100: 0 | FH100: 0 | FI100: 0 | FJ100: 0 | FK100: 0 | FL100: 0 | FM100: =SUM(FM98,FM87:FM95) -> 0 | FN100: 0 | FO100: 0 | FP100: 0 | FQ100: 0 | FR100: 0 | FS100: 0
C102: EBITDA at P50 | D102: USD '000 | H102: =SUM(I102:FS102) -> -121149.1035 | I102: =I76+I100 -> 0 | J102: 0 | K102: 0 | L102: 0 | M102: 0 | N102: 0 | O102: 0 | P102: 0 | Q102: -781.0014208 | R102: -781.819381 | S102: -782.6414007 | T102: -783.4675 | U102: -784.2976992 | V102: -785.1320186 | W102: -785.9704787 | X102: -786.8131 | Y102: -787.6599032 | Z102: -788.510909 | AA102: -789.3661383 | AB102: -790.225612 | AC102: -791.0893512 | AD102: -791.9573772 | AE102: -792.829711 | AF102: -793.7063742 | AG102: -817.0611147 | AH102: -817.9465011 | AI102: -818.8362816 | AJ102: -819.7304781 | AK102: -821.0819693 | AL102: -821.9850634 | AM102: -822.8926396 | AN102: -823.80472 | AO102: =AO76+AO100 -> -825.1833091 | AP102: -826.1044652 | AQ102: -827.0301928 | AR102: -827.9605149 | AS102: -829.3667453 | AT102: -830.3063245 | AU102: -831.2505667 | AV102: -832.1994951 | AW102: -833.6339211 | AX102: -834.5922919 | AY102: -835.555419 | AZ102: -836.523326 | BA102: -837.9865128 | BB102: -838.964051 | BC102: -839.9464406 | BD102: -840.9337058 | BE102: -842.4262302 | BF102: -843.4233191 | BG102: -844.4253565 | BH102: -845.432367 | BI102: -846.9548172 | BJ102: -847.9718479 | BK102: -848.9939261 | BL102: -850.0210767 | BM102: -851.5740527 | BN102: -852.6114241 | BO102: -853.6539438 | BP102: -854.7016375 | BQ102: -856.2857514 | BR102: -857.3438702 | BS102: -858.4072403 | BT102: -859.4758878 | BU102: =BU76+BU100 -> -861.091764 | BV102: -862.1710451 | BW102: -863.2556826 | BX102: -864.3457031 | BY102: -865.9939784 | BZ102: -867.0948451 | CA102: -868.2011754 | CB102: -869.3129963 | CC102: -870.9943202 | CD102: -872.1172043 | CE102: -873.2456612 | CF102: -874.3797185 | CG102: -876.0947538 | CH102: -877.2400956 | CI102: -878.3911216 | CJ102: -879.5478601 | CK102: -881.2972827 | CL102: -882.4655313 | CM102: -883.6395778 | CN102: -884.8194511 | CO102: -886.6039504 | CP102: -887.795564 | CQ102: -888.9930915 | CR102: -890.1965622 | CS102: -861.0923164 | CT102: -862.3077622 | CU102: -863.5292403 | CV102: -864.7567804 | CW102: -865.9904127 | CX102: -867.2301675 | CY102: -868.4760751 | CZ102: -869.728166 | DA102: =DA76+DA100 -> -870.986471 | DB102: -872.2510208 | DC102: -873.5218466 | DD102: -874.7989793 | DE102: -876.0824504 | DF102: -877.3722913 | DG102: -878.6685335 | DH102: -879.9712089 | DI102: -881.2803494 | DJ102: -882.5959871 | DK102: -883.9181542 | DL102: -885.2468831 | DM102: -886.5822064 | DN102: -887.9241568 | DO102: -889.2727673 | DP102: -890.6280708 | DQ102: -891.9901005 | DR102: -893.35889 | DS102: -894.7344726 | DT102: -896.1168822 | DU102: -897.5061525 | DV102: -898.9023178 | DW102: -900.3054121 | DX102: -901.7154698 | DY102: -903.1325256 | DZ102: -904.5566141 | EA102: -905.9877703 | EB102: -907.4260292 | EC102: -908.8714261 | ED102: -910.3239964 | EE102: -911.7837757 | EF102: -913.2507998 | EG102: =EG76+EG100 -> -914.7251046 | EH102: -916.2067263 | EI102: -917.6957012 | EJ102: -919.1920658 | EK102: -920.6958567 | EL102: -922.2071109 | EM102: -923.7258652 | EN102: -925.2521571 | EO102: -926.7860238 | EP102: -928.3275031 | EQ102: -929.8766325 | ER102: -931.4334502 | ES102: -932.9979943 | ET102: -934.5703031 | EU102: -936.1504152 | EV102: -937.7383693 | EW102: -939.3342042 | EX102: -940.9379592 | EY102: -942.5496735 | EZ102: -944.1693866 | FA102: 0 | FB102: 0 | FC102: 0 | FD102: 0 | FE102: 0 | FF102: 0 | FG102: 0 | FH102: 0 | FI102: 0 | FJ102: 0 | FK102: 0 | FL102: 0 | FM102: =FM76+FM100 -> 0 | FN102: 0 | FO102: 0 | FP102: 0 | FQ102: 0 | FR102: 0 | FS102: 0
C103: Margin | D103: % | H103: =IFERROR(H102/H76,0) -> 0 | I103: 0 | J103: 0 | K103: 0 | L103: 0 | M103: 0 | N103: 0 | O103: 0 | P103: 0 | Q103: 0 | R103: 0 | S103: 0 | T103: 0 | U103: 0 | V103: 0 | W103: 0 | X103: 0 | Y103: 0 | Z103: 0 | AA103: 0 | AB103: 0 | AC103: 0 | AD103: 0 | AE103: 0 | AF103: 0 | AG103: 0 | AH103: 0 | AI103: 0 | AJ103: 0 | AK103: 0 | AL103: 0 | AM103: 0 | AN103: =IFERROR(AN102/AN76,0) -> 0 | AO103: 0 | AP103: 0 | AQ103: 0 | AR103: 0 | AS103: 0 | AT103: 0 | AU103: 0 | AV103: 0 | AW103: 0 | AX103: 0 | AY103: 0 | AZ103: 0 | BA103: 0 | BB103: 0 | BC103: 0 | BD103: 0 | BE103: 0 | BF103: 0 | BG103: 0 | BH103: 0 | BI103: 0 | BJ103: 0 | BK103: 0 | BL103: 0 | BM103: 0 | BN103: 0 | BO103: 0 | BP103: 0 | BQ103: 0 | BR103: 0 | BS103: 0 | BT103: =IFERROR(BT102/BT76,0) -> 0 | BU103: 0 | BV103: 0 | BW103: 0 | BX103: 0 | BY103: 0 | BZ103: 0 | CA103: 0 | CB103: 0 | CC103: 0 | CD103: 0 | CE103: 0 | CF103: 0 | CG103: 0 | CH103: 0 | CI103: 0 | CJ103: 0 | CK103: 0 | CL103: 0 | CM103: 0 | CN103: 0 | CO103: 0 | CP103: 0 | CQ103: 0 | CR103: 0 | CS103: 0 | CT103: 0 | CU103: 0 | CV103: 0 | CW103: 0 | CX103: 0 | CY103: 0 | CZ103: =IFERROR(CZ102/CZ76,0) -> 0 | DA103: 0 | DB103: 0 | DC103: 0 | DD103: 0 | DE103: 0 | DF103: 0 | DG103: 0 | DH103: 0 | DI103: 0 | DJ103: 0 | DK103: 0 | DL103: 0 | DM103: 0 | DN103: 0 | DO103: 0 | DP103: 0 | DQ103: 0 | DR103: 0 | DS103: 0 | DT103: 0 | DU103: 0 | DV103: 0 | DW103: 0 | DX103: 0 | DY103: 0 | DZ103: 0 | EA103: 0 | EB103: 0 | EC103: 0 | ED103: 0 | EE103: 0 | EF103: =IFERROR(EF102/EF76,0) -> 0 | EG103: 0 | EH103: 0 | EI103: 0 | EJ103: 0 | EK103: 0 | EL103: 0 | EM103: 0 | EN103: 0 | EO103: 0 | EP103: 0 | EQ103: 0 | ER103: 0 | ES103: 0 | ET103: 0 | EU103: 0 | EV103: 0 | EW103: 0 | EX103: 0 | EY103: 0 | EZ103: 0 | FA103: 0 | FB103: 0 | FC103: 0 | FD103: 0 | FE103: 0 | FF103: 0 | FG103: 0 | FH103: 0 | FI103: 0 | FJ103: 0 | FK103: 0 | FL103: =IFERROR(FL102/FL76,0) -> 0 | FM103: 0 | FN103: 0 | FO103: 0 | FP103: 0 | FQ103: 0 | FR103: 0 | FS103: 0
B105: Construction
C106: Construction costs
C107: Allocation profile
C108: Development spend schedule | D108: %
C109: Construction Quarater Number | I109: =H109+I5 -> 0 | J109: 0 | K109: 0 | L109: 0 | M109: 1 | N109: 2 | O109: 3 | P109: 4 | Q109: 4 | R109: 4 | S109: 4 | T109: 4 | U109: 4 | V109: 4 | W109: 4 | X109: 4 | Y109: 4 | Z109: 4 | AA109: 4 | AB109: 4 | AC109: 4 | AD109: 4 | AE109: 4 | AF109: 4 | AG109: 4 | AH109: 4 | AI109: 4 | AJ109: 4 | AK109: 4 | AL109: 4 | AM109: 4 | AN109: 4 | AO109: =AN109+AO5 -> 4 | AP109: 4 | AQ109: 4 | AR109: 4 | AS109: 4 | AT109: 4 | AU109: 4 | AV109: 4 | AW109: 4 | AX109: 4 | AY109: 4 | AZ109: 4 | BA109: 4 | BB109: 4 | BC109: 4 | BD109: 4 | BE109: 4 | BF109: 4 | BG109: 4 | BH109: 4 | BI109: 4 | BJ109: 4 | BK109: 4 | BL109: 4 | BM109: 4 | BN109: 4 | BO109: 4 | BP109: 4 | BQ109: 4 | BR109: 4 | BS109: 4 | BT109: 4 | BU109: =BT109+BU5 -> 4 | BV109: 4 | BW109: 4 | BX109: 4 | BY109: 4 | BZ109: 4 | CA109: 4 | CB109: 4 | CC109: 4 | CD109: 4 | CE109: 4 | CF109: 4 | CG109: 4 | CH109: 4 | CI109: 4 | CJ109: 4 | CK109: 4 | CL109: 4 | CM109: 4 | CN109: 4 | CO109: 4 | CP109: 4 | CQ109: 4 | CR109: 4 | CS109: 4 | CT109: 4 | CU109: 4 | CV109: 4 | CW109: 4 | CX109: 4 | CY109: 4 | CZ109: 4 | DA109: =CZ109+DA5 -> 4 | DB109: 4 | DC109: 4 | DD109: 4 | DE109: 4 | DF109: 4 | DG109: 4 | DH109: 4 | DI109: 4 | DJ109: 4 | DK109: 4 | DL109: 4 | DM109: 4 | DN109: 4 | DO109: 4 | DP109: 4 | DQ109: 4 | DR109: 4 | DS109: 4 | DT109: 4 | DU109: 4 | DV109: 4 | DW109: 4 | DX109: 4 | DY109: 4 | DZ109: 4 | EA109: 4 | EB109: 4 | EC109: 4 | ED109: 4 | EE109: 4 | EF109: 4 | EG109: =EF109+EG5 -> 4 | EH109: 4 | EI109: 4 | EJ109: 4 | EK109: 4 | EL109: 4 | EM109: 4 | EN109: 4 | EO109: 4 | EP109: 4 | EQ109: 4 | ER109: 4 | ES109: 4 | ET109: 4 | EU109: 4 | EV109: 4 | EW109: 4 | EX109: 4 | EY109: 4 | EZ109: 4 | FA109: 4 | FB109: 4 | FC109: 4 | FD109: 4 | FE109: 4 | FF109: 4 | FG109: 4 | FH109: 4 | FI109: 4 | FJ109: 4 | FK109: 4 | FL109: 4 | FM109: =FL109+FM5 -> 4 | FN109: 4 | FO109: 4 | FP109: 4 | FQ109: 4 | FR109: 4 | FS109: 4
C110: CapEx spend schedule | D110: % | H110: =SUM(I110:XFD110) -> 1 | I110: =LOOKUP(I109,'Inputs - Partnership'!37:37,'Inputs - Partnership'!38:38)*I5 -> 0 | J110: =LOOKUP(J109,'Inputs - Partnership'!37:37,'Inputs - Partnership'!38:38)*J5 -> 0 | K110: =LOOKUP(K109,'Inputs - Partnership'!37:37,'Inputs - Partnership'!38:38)*K5 -> 0 | L110: =LOOKUP(L109,'Inputs - Partnership'!37:37,'Inputs - Partnership'!38:38)*L5 -> 0 | M110: =LOOKUP(M109,'Inputs - Partnership'!37:37,'Inputs - Partnership'!38:38)*M5 -> 0.25 | N110: =LOOKUP(N109,'Inputs - Partnership'!37:37,'Inputs - Partnership'!38:38)*N5 -> 0.25 | O110: =LOOKUP(O109,'Inputs - Partnership'!37:37,'Inputs - Partnership'!38:38)*O5 -> 0.25 | P110: =LOOKUP(P109,'Inputs - Partnership'!37:37,'Inputs - Partnership'!38:38)*P5 -> 0.25 | Q110: =LOOKUP(Q109,'Inputs - Partnership'!37:37,'Inputs - Partnership'!38:38)*Q5 -> 0 | R110: =LOOKUP(R109,'Inputs - Partnership'!37:37,'Inputs - Partnership'!38:38)*R5 -> 0 | S110: =LOOKUP(S109,'Inputs - Partnership'!37:37,'Inputs - Partnership'!38:38)*S5 -> 0 | T110: =LOOKUP(T109,'Inputs - Partnership'!37:37,'Inputs - Partnership'!38:38)*T5 -> 0 | U110: =LOOKUP(U109,'Inputs - Partnership'!37:37,'Inputs - Partnership'!38:38)*U5 -> 0 | V110: =LOOKUP(V109,'Inputs - Partnership'!37:37,'Inputs - Partnership'!38:38)*V5 -> 0 | W110: =LOOKUP(W109,'Inputs - Partnership'!37:37,'Inputs - Partnership'!38:38)*W5 -> 0 | X110: =LOOKUP(X109,'Inputs - Partnership'!37:37,'Inputs - Partnership'!38:38)*X5 -> 0 | Y110: =LOOKUP(Y109,'Inputs - Partnership'!37:37,'Inputs - Partnership'!38:38)*Y5 -> 0 | Z110: =LOOKUP(Z109,'Inputs - Partnership'!37:37,'Inputs - Partnership'!38:38)*Z5 -> 0 | AA110: =LOOKUP(AA109,'Inputs - Partnership'!37:37,'Inputs - Partnership'!38:38)*AA5 -> 0 | AB110: =LOOKUP(AB109,'Inputs - Partnership'!37:37,'Inputs - Partnership'!38:38)*AB5 -> 0 | AC110: =LOOKUP(AC109,'Inputs - Partnership'!37:37,'Inputs - Partnership'!38:38)*AC5 -> 0 | AD110: =LOOKUP(AD109,'Inputs - Partnership'!37:37,'Inputs - Partnership'!38:38)*AD5 -> 0 | AE110: =LOOKUP(AE109,'Inputs - Partnership'!37:37,'Inputs - Partnership'!38:38)*AE5 -> 0 | AF110: =LOOKUP(AF109,'Inputs - Partnership'!37:37,'Inputs - Partnership'!38:38)*AF5 -> 0 | AG110: =LOOKUP(AG109,'Inputs - Partnership'!37:37,'Inputs - Partnership'!38:38)*AG5 -> 0 | AH110: =LOOKUP(AH109,'Inputs - Partnership'!37:37,'Inputs - Partnership'!38:38)*AH5 -> 0 | AI110: =LOOKUP(AI109,'Inputs - Partnership'!37:37,'Inputs - Partnership'!38:38)*AI5 -> 0 | AJ110: =LOOKUP(AJ109,'Inputs - Partnership'!37:37,'Inputs - Partnership'!38:38)*AJ5 -> 0 | AK110: =LOOKUP(AK109,'Inputs - Partnership'!37:37,'Inputs - Partnership'!38:38)*AK5 -> 0 | AL110: =LOOKUP(AL109,'Inputs - Partnership'!37:37,'Inputs - Partnership'!38:38)*AL5 -> 0 | AM110: =LOOKUP(AM109,'Inputs - Partnership'!37:37,'Inputs - Partnership'!38:38)*AM5 -> 0 | AN110: =LOOKUP(AN109,'Inputs - Partnership'!37:37,'Inputs - Partnership'!38:38)*AN5 -> 0 | AO110: =LOOKUP(AO109,'Inputs - Partnership'!37:37,'Inputs - Partnership'!38:38)*AO5 -> 0 | AP110: =LOOKUP(AP109,'Inputs - Partnership'!37:37,'Inputs - Partnership'!38:38)*AP5 -> 0 | AQ110: =LOOKUP(AQ109,'Inputs - Partnership'!37:37,'Inputs - Partnership'!38:38)*AQ5 -> 0 | AR110: =LOOKUP(AR109,'Inputs - Partnership'!37:37,'Inputs - Partnership'!38:38)*AR5 -> 0 | AS110: =LOOKUP(AS109,'Inputs - Partnership'!37:37,'Inputs - Partnership'!38:38)*AS5 -> 0 | AT110: =LOOKUP(AT109,'Inputs - Partnership'!37:37,'Inputs - Partnership'!38:38)*AT5 -> 0 | AU110: =LOOKUP(AU109,'Inputs - Partnership'!37:37,'Inputs - Partnership'!38:38)*AU5 -> 0 | AV110: =LOOKUP(AV109,'Inputs - Partnership'!37:37,'Inputs - Partnership'!38:38)*AV5 -> 0 | AW110: =LOOKUP(AW109,'Inputs - Partnership'!37:37,'Inputs - Partnership'!38:38)*AW5 -> 0 | AX110: =LOOKUP(AX109,'Inputs - Partnership'!37:37,'Inputs - Partnership'!38:38)*AX5 -> 0 | AY110: =LOOKUP(AY109,'Inputs - Partnership'!37:37,'Inputs - Partnership'!38:38)*AY5 -> 0 | AZ110: =LOOKUP(AZ109,'Inputs - Partnership'!37:37,'Inputs - Partnership'!38:38)*AZ5 -> 0 | BA110: =LOOKUP(BA109,'Inputs - Partnership'!37:37,'Inputs - Partnership'!38:38)*BA5 -> 0 | BB110: =LOOKUP(BB109,'Inputs - Partnership'!37:37,'Inputs - Partnership'!38:38)*BB5 -> 0 | BC110: =LOOKUP(BC109,'Inputs - Partnership'!37:37,'Inputs - Partnership'!38:38)*BC5 -> 0 | BD110: =LOOKUP(BD109,'Inputs - Partnership'!37:37,'Inputs - Partnership'!38:38)*BD5 -> 0 | BE110: =LOOKUP(BE109,'Inputs - Partnership'!37:37,'Inputs - Partnership'!38:38)*BE5 -> 0 | BF110: =LOOKUP(BF109,'Inputs - Partnership'!37:37,'Inputs - Partnership'!38:38)*BF5 -> 0 | BG110: =LOOKUP(BG109,'Inputs - Partnership'!37:37,'Inputs - Partnership'!38:38)*BG5 -> 0 | BH110: =LOOKUP(BH109,'Inputs - Partnership'!37:37,'Inputs - Partnership'!38:38)*BH5 -> 0 | BI110: =LOOKUP(BI109,'Inputs - Partnership'!37:37,'Inputs - Partnership'!38:38)*BI5 -> 0 | BJ110: =LOOKUP(BJ109,'Inputs - Partnership'!37:37,'Inputs - Partnership'!38:38)*BJ5 -> 0 | BK110: =LOOKUP(BK109,'Inputs - Partnership'!37:37,'Inputs - Partnership'!38:38)*BK5 -> 0 | BL110: =LOOKUP(BL109,'Inputs - Partnership'!37:37,'Inputs - Partnership'!38:38)*BL5 -> 0 | BM110: =LOOKUP(BM109,'Inputs - Partnership'!37:37,'Inputs - Partnership'!38:38)*BM5 -> 0 | BN110: =LOOKUP(BN109,'Inputs - Partnership'!37:37,'Inputs - Partnership'!38:38)*BN5 -> 0 | BO110: =LOOKUP(BO109,'Inputs - Partnership'!37:37,'Inputs - Partnership'!38:38)*BO5 -> 0 | BP110: =LOOKUP(BP109,'Inputs - Partnership'!37:37,'Inputs - Partnership'!38:38)*BP5 -> 0 | BQ110: =LOOKUP(BQ109,'Inputs - Partnership'!37:37,'Inputs - Partnership'!38:38)*BQ5 -> 0 | BR110: =LOOKUP(BR109,'Inputs - Partnership'!37:37,'Inputs - Partnership'!38:38)*BR5 -> 0 | BS110: =LOOKUP(BS109,'Inputs - Partnership'!37:37,'Inputs - Partnership'!38:38)*BS5 -> 0 | BT110: =LOOKUP(BT109,'Inputs - Partnership'!37:37,'Inputs - Partnership'!38:38)*BT5 -> 0 | BU110: =LOOKUP(BU109,'Inputs - Partnership'!37:37,'Inputs - Partnership'!38:38)*BU5 -> 0 | BV110: =LOOKUP(BV109,'Inputs - Partnership'!37:37,'Inputs - Partnership'!38:38)*BV5 -> 0 | BW110: =LOOKUP(BW109,'Inputs - Partnership'!37:37,'Inputs - Partnership'!38:38)*BW5 -> 0 | BX110: =LOOKUP(BX109,'Inputs - Partnership'!37:37,'Inputs - Partnership'!38:38)*BX5 -> 0 | BY110: =LOOKUP(BY109,'Inputs - Partnership'!37:37,'Inputs - Partnership'!38:38)*BY5 -> 0 | BZ110: =LOOKUP(BZ109,'Inputs - Partnership'!37:37,'Inputs - Partnership'!38:38)*BZ5 -> 0 | CA110: =LOOKUP(CA109,'Inputs - Partnership'!37:37,'Inputs - Partnership'!38:38)*CA5 -> 0 | CB110: =LOOKUP(CB109,'Inputs - Partnership'!37:37,'Inputs - Partnership'!38:38)*CB5 -> 0 | CC110: =LOOKUP(CC109,'Inputs - Partnership'!37:37,'Inputs - Partnership'!38:38)*CC5 -> 0 | CD110: =LOOKUP(CD109,'Inputs - Partnership'!37:37,'Inputs - Partnership'!38:38)*CD5 -> 0 | CE110: =LOOKUP(CE109,'Inputs - Partnership'!37:37,'Inputs - Partnership'!38:38)*CE5 -> 0 | CF110: =LOOKUP(CF109,'Inputs - Partnership'!37:37,'Inputs - Partnership'!38:38)*CF5 -> 0 | CG110: =LOOKUP(CG109,'Inputs - Partnership'!37:37,'Inputs - Partnership'!38:38)*CG5 -> 0 | CH110: =LOOKUP(CH109,'Inputs - Partnership'!37:37,'Inputs - Partnership'!38:38)*CH5 -> 0 | CI110: =LOOKUP(CI109,'Inputs - Partnership'!37:37,'Inputs - Partnership'!38:38)*CI5 -> 0 | CJ110: =LOOKUP(CJ109,'Inputs - Partnership'!37:37,'Inputs - Partnership'!38:38)*CJ5 -> 0 | CK110: =LOOKUP(CK109,'Inputs - Partnership'!37:37,'Inputs - Partnership'!38:38)*CK5 -> 0 | CL110: =LOOKUP(CL109,'Inputs - Partnership'!37:37,'Inputs - Partnership'!38:38)*CL5 -> 0 | CM110: =LOOKUP(CM109,'Inputs - Partnership'!37:37,'Inputs - Partnership'!38:38)*CM5 -> 0 | CN110: =LOOKUP(CN109,'Inputs - Partnership'!37:37,'Inputs - Partnership'!38:38)*CN5 -> 0 | CO110: =LOOKUP(CO109,'Inputs - Partnership'!37:37,'Inputs - Partnership'!38:38)*CO5 -> 0 | CP110: =LOOKUP(CP109,'Inputs - Partnership'!37:37,'Inputs - Partnership'!38:38)*CP5 -> 0 | CQ110: =LOOKUP(CQ109,'Inputs - Partnership'!37:37,'Inputs - Partnership'!38:38)*CQ5 -> 0 | CR110: =LOOKUP(CR109,'Inputs - Partnership'!37:37,'Inputs - Partnership'!38:38)*CR5 -> 0 | CS110: =LOOKUP(CS109,'Inputs - Partnership'!37:37,'Inputs - Partnership'!38:38)*CS5 -> 0 | CT110: =LOOKUP(CT109,'Inputs - Partnership'!37:37,'Inputs - Partnership'!38:38)*CT5 -> 0 | CU110: =LOOKUP(CU109,'Inputs - Partnership'!37:37,'Inputs - Partnership'!38:38)*CU5 -> 0 | CV110: =LOOKUP(CV109,'Inputs - Partnership'!37:37,'Inputs - Partnership'!38:38)*CV5 -> 0 | CW110: =LOOKUP(CW109,'Inputs - Partnership'!37:37,'Inputs - Partnership'!38:38)*CW5 -> 0 | CX110: =LOOKUP(CX109,'Inputs - Partnership'!37:37,'Inputs - Partnership'!38:38)*CX5 -> 0 | CY110: =LOOKUP(CY109,'Inputs - Partnership'!37:37,'Inputs - Partnership'!38:38)*CY5 -> 0 | CZ110: =LOOKUP(CZ109,'Inputs - Partnership'!37:37,'Inputs - Partnership'!38:38)*CZ5 -> 0 | DA110: =LOOKUP(DA109,'Inputs - Partnership'!37:37,'Inputs - Partnership'!38:38)*DA5 -> 0 | DB110: =LOOKUP(DB109,'Inputs - Partnership'!37:37,'Inputs - Partnership'!38:38)*DB5 -> 0 | DC110: =LOOKUP(DC109,'Inputs - Partnership'!37:37,'Inputs - Partnership'!38:38)*DC5 -> 0 | DD110: =LOOKUP(DD109,'Inputs - Partnership'!37:37,'Inputs - Partnership'!38:38)*DD5 -> 0 | DE110: =LOOKUP(DE109,'Inputs - Partnership'!37:37,'Inputs - Partnership'!38:38)*DE5 -> 0 | DF110: =LOOKUP(DF109,'Inputs - Partnership'!37:37,'Inputs - Partnership'!38:38)*DF5 -> 0 | DG110: =LOOKUP(DG109,'Inputs - Partnership'!37:37,'Inputs - Partnership'!38:38)*DG5 -> 0 | DH110: =LOOKUP(DH109,'Inputs - Partnership'!37:37,'Inputs - Partnership'!38:38)*DH5 -> 0 | DI110: =LOOKUP(DI109,'Inputs - Partnership'!37:37,'Inputs - Partnership'!38:38)*DI5 -> 0 | DJ110: =LOOKUP(DJ109,'Inputs - Partnership'!37:37,'Inputs - Partnership'!38:38)*DJ5 -> 0 | DK110: =LOOKUP(DK109,'Inputs - Partnership'!37:37,'Inputs - Partnership'!38:38)*DK5 -> 0 | DL110: =LOOKUP(DL109,'Inputs - Partnership'!37:37,'Inputs - Partnership'!38:38)*DL5 -> 0 | DM110: =LOOKUP(DM109,'Inputs - Partnership'!37:37,'Inputs - Partnership'!38:38)*DM5 -> 0 | DN110: =LOOKUP(DN109,'Inputs - Partnership'!37:37,'Inputs - Partnership'!38:38)*DN5 -> 0 | DO110: =LOOKUP(DO109,'Inputs - Partnership'!37:37,'Inputs - Partnership'!38:38)*DO5 -> 0 | DP110: =LOOKUP(DP109,'Inputs - Partnership'!37:37,'Inputs - Partnership'!38:38)*DP5 -> 0 | DQ110: =LOOKUP(DQ109,'Inputs - Partnership'!37:37,'Inputs - Partnership'!38:38)*DQ5 -> 0 | DR110: =LOOKUP(DR109,'Inputs - Partnership'!37:37,'Inputs - Partnership'!38:38)*DR5 -> 0 | DS110: =LOOKUP(DS109,'Inputs - Partnership'!37:37,'Inputs - Partnership'!38:38)*DS5 -> 0 | DT110: =LOOKUP(DT109,'Inputs - Partnership'!37:37,'Inputs - Partnership'!38:38)*DT5 -> 0 | DU110: =LOOKUP(DU109,'Inputs - Partnership'!37:37,'Inputs - Partnership'!38:38)*DU5 -> 0 | DV110: =LOOKUP(DV109,'Inputs - Partnership'!37:37,'Inputs - Partnership'!38:38)*DV5 -> 0 | DW110: =LOOKUP(DW109,'Inputs - Partnership'!37:37,'Inputs - Partnership'!38:38)*DW5 -> 0 | DX110: =LOOKUP(DX109,'Inputs - Partnership'!37:37,'Inputs - Partnership'!38:38)*DX5 -> 0 | DY110: =LOOKUP(DY109,'Inputs - Partnership'!37:37,'Inputs - Partnership'!38:38)*DY5 -> 0 | DZ110: =LOOKUP(DZ109,'Inputs - Partnership'!37:37,'Inputs - Partnership'!38:38)*DZ5 -> 0 | EA110: =LOOKUP(EA109,'Inputs - Partnership'!37:37,'Inputs - Partnership'!38:38)*EA5 -> 0 | EB110: =LOOKUP(EB109,'Inputs - Partnership'!37:37,'Inputs - Partnership'!38:38)*EB5 -> 0 | EC110: =LOOKUP(EC109,'Inputs - Partnership'!37:37,'Inputs - Partnership'!38:38)*EC5 -> 0 | ED110: =LOOKUP(ED109,'Inputs - Partnership'!37:37,'Inputs - Partnership'!38:38)*ED5 -> 0 | EE110: =LOOKUP(EE109,'Inputs - Partnership'!37:37,'Inputs - Partnership'!38:38)*EE5 -> 0 | EF110: =LOOKUP(EF109,'Inputs - Partnership'!37:37,'Inputs - Partnership'!38:38)*EF5 -> 0 | EG110: =LOOKUP(EG109,'Inputs - Partnership'!37:37,'Inputs - Partnership'!38:38)*EG5 -> 0 | EH110: =LOOKUP(EH109,'Inputs - Partnership'!37:37,'Inputs - Partnership'!38:38)*EH5 -> 0 | EI110: =LOOKUP(EI109,'Inputs - Partnership'!37:37,'Inputs - Partnership'!38:38)*EI5 -> 0 | EJ110: =LOOKUP(EJ109,'Inputs - Partnership'!37:37,'Inputs - Partnership'!38:38)*EJ5 -> 0 | EK110: =LOOKUP(EK109,'Inputs - Partnership'!37:37,'Inputs - Partnership'!38:38)*EK5 -> 0 | EL110: =LOOKUP(EL109,'Inputs - Partnership'!37:37,'Inputs - Partnership'!38:38)*EL5 -> 0 | EM110: =LOOKUP(EM109,'Inputs - Partnership'!37:37,'Inputs - Partnership'!38:38)*EM5 -> 0 | EN110: =LOOKUP(EN109,'Inputs - Partnership'!37:37,'Inputs - Partnership'!38:38)*EN5 -> 0 | EO110: =LOOKUP(EO109,'Inputs - Partnership'!37:37,'Inputs - Partnership'!38:38)*EO5 -> 0 | EP110: =LOOKUP(EP109,'Inputs - Partnership'!37:37,'Inputs - Partnership'!38:38)*EP5 -> 0 | EQ110: =LOOKUP(EQ109,'Inputs - Partnership'!37:37,'Inputs - Partnership'!38:38)*EQ5 -> 0 | ER110: =LOOKUP(ER109,'Inputs - Partnership'!37:37,'Inputs - Partnership'!38:38)*ER5 -> 0 | ES110: =LOOKUP(ES109,'Inputs - Partnership'!37:37,'Inputs - Partnership'!38:38)*ES5 -> 0 | ET110: =LOOKUP(ET109,'Inputs - Partnership'!37:37,'Inputs - Partnership'!38:38)*ET5 -> 0 | EU110: =LOOKUP(EU109,'Inputs - Partnership'!37:37,'Inputs - Partnership'!38:38)*EU5 -> 0 | EV110: =LOOKUP(EV109,'Inputs - Partnership'!37:37,'Inputs - Partnership'!38:38)*EV5 -> 0 | EW110: =LOOKUP(EW109,'Inputs - Partnership'!37:37,'Inputs - Partnership'!38:38)*EW5 -> 0 | EX110: =LOOKUP(EX109,'Inputs - Partnership'!37:37,'Inputs - Partnership'!38:38)*EX5 -> 0 | EY110: =LOOKUP(EY109,'Inputs - Partnership'!37:37,'Inputs - Partnership'!38:38)*EY5 -> 0 | EZ110: =LOOKUP(EZ109,'Inputs - Partnership'!37:37,'Inputs - Partnership'!38:38)*EZ5 -> 0 | FA110: =LOOKUP(FA109,'Inputs - Partnership'!37:37,'Inputs - Partnership'!38:38)*FA5 -> 0 | FB110: =LOOKUP(FB109,'Inputs - Partnership'!37:37,'Inputs - Partnership'!38:38)*FB5 -> 0 | FC110: =LOOKUP(FC109,'Inputs - Partnership'!37:37,'Inputs - Partnership'!38:38)*FC5 -> 0 | FD110: =LOOKUP(FD109,'Inputs - Partnership'!37:37,'Inputs - Partnership'!38:38)*FD5 -> 0 | FE110: =LOOKUP(FE109,'Inputs - Partnership'!37:37,'Inputs - Partnership'!38:38)*FE5 -> 0 | FF110: =LOOKUP(FF109,'Inputs - Partnership'!37:37,'Inputs - Partnership'!38:38)*FF5 -> 0 | FG110: =LOOKUP(FG109,'Inputs - Partnership'!37:37,'Inputs - Partnership'!38:38)*FG5 -> 0 | FH110: =LOOKUP(FH109,'Inputs - Partnership'!37:37,'Inputs - Partnership'!38:38)*FH5 -> 0 | FI110: =LOOKUP(FI109,'Inputs - Partnership'!37:37,'Inputs - Partnership'!38:38)*FI5 -> 0 | FJ110: =LOOKUP(FJ109,'Inputs - Partnership'!37:37,'Inputs - Partnership'!38:38)*FJ5 -> 0 | FK110: =LOOKUP(FK109,'Inputs - Partnership'!37:37,'Inputs - Partnership'!38:38)*FK5 -> 0 | FL110: =LOOKUP(FL109,'Inputs - Partnership'!37:37,'Inputs - Partnership'!38:38)*FL5 -> 0 | FM110: =LOOKUP(FM109,'Inputs - Partnership'!37:37,'Inputs - Partnership'!38:38)*FM5 -> 0 | FN110: =LOOKUP(FN109,'Inputs - Partnership'!37:37,'Inputs - Partnership'!38:38)*FN5 -> 0 | FO110: =LOOKUP(FO109,'Inputs - Partnership'!37:37,'Inputs - Partnership'!38:38)*FO5 -> 0 | FP110: =LOOKUP(FP109,'Inputs - Partnership'!37:37,'Inputs - Partnership'!38:38)*FP5 -> 0 | FQ110: =LOOKUP(FQ109,'Inputs - Partnership'!37:37,'Inputs - Partnership'!38:38)*FQ5 -> 0 | FR110: =LOOKUP(FR109,'Inputs - Partnership'!37:37,'Inputs - Partnership'!38:38)*FR5 -> 0 | FS110: =LOOKUP(FS109,'Inputs - Partnership'!37:37,'Inputs - Partnership'!38:38)*FS5 -> 0
C112: Construction cost | E112: Costs
C113: Development | D113: USD '000 | E113: ='Inputs - Partnership'!E22 -> 14700 | F113: ='Inputs - Tax'!E7 -> 1 | H113: =SUM(I113:FS113) -> 0 | I113: =$E113*I$108 -> 0 | J113: 0 | K113: 0 | L113: 0 | M113: 0 | N113: 0 | O113: 0 | P113: 0 | Q113: 0 | R113: 0 | S113: 0 | T113: 0 | U113: 0 | V113: 0 | W113: 0 | X113: 0 | Y113: 0 | Z113: 0 | AA113: 0 | AB113: 0 | AC113: 0 | AD113: 0 | AE113: 0 | AF113: 0 | AG113: 0 | AH113: 0 | AI113: 0 | AJ113: 0 | AK113: 0 | AL113: 0 | AM113: 0 | AN113: 0 | AO113: =$E113*AO$108 -> 0 | AP113: 0 | AQ113: 0 | AR113: 0 | AS113: 0 | AT113: 0 | AU113: 0 | AV113: 0 | AW113: 0 | AX113: 0 | AY113: 0 | AZ113: 0 | BA113: 0 | BB113: 0 | BC113: 0 | BD113: 0 | BE113: 0 | BF113: 0 | BG113: 0 | BH113: 0 | BI113: 0 | BJ113: 0 | BK113: 0 | BL113: 0 | BM113: 0 | BN113: 0 | BO113: 0 | BP113: 0 | BQ113: 0 | BR113: 0 | BS113: 0 | BT113: 0 | BU113: =$E113*BU$108 -> 0 | BV113: 0 | BW113: 0 | BX113: 0 | BY113: 0 | BZ113: 0 | CA113: 0 | CB113: 0 | CC113: 0 | CD113: 0 | CE113: 0 | CF113: 0 | CG113: 0 | CH113: 0 | CI113: 0 | CJ113: 0 | CK113: 0 | CL113: 0 | CM113: 0 | CN113: 0 | CO113: 0 | CP113: 0 | CQ113: 0 | CR113: 0 | CS113: 0 | CT113: 0 | CU113: 0 | CV113: 0 | CW113: 0 | CX113: 0 | CY113: 0 | CZ113: 0 | DA113: =$E113*DA$108 -> 0 | DB113: 0 | DC113: 0 | DD113: 0 | DE113: 0 | DF113: 0 | DG113: 0 | DH113: 0 | DI113: 0 | DJ113: 0 | DK113: 0 | DL113: 0 | DM113: 0 | DN113: 0 | DO113: 0 | DP113: 0 | DQ113: 0 | DR113: 0 | DS113: 0 | DT113: 0 | DU113: 0 | DV113: 0 | DW113: 0 | DX113: 0 | DY113: 0 | DZ113: 0 | EA113: 0 | EB113: 0 | EC113: 0 | ED113: 0 | EE113: 0 | EF113: 0 | EG113: =$E113*EG$108 -> 0 | EH113: 0 | EI113: 0 | EJ113: 0 | EK113: 0 | EL113: 0 | EM113: 0 | EN113: 0 | EO113: 0 | EP113: 0 | EQ113: 0 | ER113: 0 | ES113: 0 | ET113: 0 | EU113: 0 | EV113: 0 | EW113: 0 | EX113: 0 | EY113: 0 | EZ113: 0 | FA113: 0 | FB113: 0 | FC113: 0 | FD113: 0 | FE113: 0 | FF113: 0 | FG113: 0 | FH113: 0 | FI113: 0 | FJ113: 0 | FK113: 0 | FL113: 0 | FM113: =$E113*FM$108 -> 0 | FN113: 0 | FO113: 0 | FP113: 0 | FQ113: 0 | FR113: 0 | FS113: 0
C114: Panels | D114: USD '000 | E114: ='Inputs - Partnership'!E23 -> 202500 | F114: ='Inputs - Tax'!E8 -> 2 | H114: 202500 | I114: =$E114/4*'Partnership Pre-tax Cash Flow'!I$5 -> 0 | J114: =$E114/4*'Partnership Pre-tax Cash Flow'!J$5 -> 0 | K114: =$E114/4*'Partnership Pre-tax Cash Flow'!K$5 -> 0 | L114: =$E114/4*'Partnership Pre-tax Cash Flow'!L$5 -> 0 | M114: =$E114/4*'Partnership Pre-tax Cash Flow'!M$5 -> 50625 | N114: =$E114/4*'Partnership Pre-tax Cash Flow'!N$5 -> 50625 | O114: =$E114/4*'Partnership Pre-tax Cash Flow'!O$5 -> 50625 | P114: =$E114/4*'Partnership Pre-tax Cash Flow'!P$5 -> 50625 | Q114: =$E114/4*'Partnership Pre-tax Cash Flow'!Q$5 -> 0 | R114: =$E114/4*'Partnership Pre-tax Cash Flow'!R$5 -> 0 | S114: =$E114/4*'Partnership Pre-tax Cash Flow'!S$5 -> 0 | T114: =$E114/4*'Partnership Pre-tax Cash Flow'!T$5 -> 0 | U114: =$E114/4*'Partnership Pre-tax Cash Flow'!U$5 -> 0 | V114: =$E114/4*'Partnership Pre-tax Cash Flow'!V$5 -> 0 | W114: =$E114/4*'Partnership Pre-tax Cash Flow'!W$5 -> 0 | X114: =$E114/4*'Partnership Pre-tax Cash Flow'!X$5 -> 0 | Y114: =$E114/4*'Partnership Pre-tax Cash Flow'!Y$5 -> 0 | Z114: =$E114/4*'Partnership Pre-tax Cash Flow'!Z$5 -> 0 | AA114: =$E114/4*'Partnership Pre-tax Cash Flow'!AA$5 -> 0 | AB114: =$E114/4*'Partnership Pre-tax Cash Flow'!AB$5 -> 0 | AC114: =$E114/4*'Partnership Pre-tax Cash Flow'!AC$5 -> 0 | AD114: =$E114/4*'Partnership Pre-tax Cash Flow'!AD$5 -> 0 | AE114: =$E114/4*'Partnership Pre-tax Cash Flow'!AE$5 -> 0 | AF114: =$E114/4*'Partnership Pre-tax Cash Flow'!AF$5 -> 0 | AG114: =$E114/4*'Partnership Pre-tax Cash Flow'!AG$5 -> 0 | AH114: =$E114/4*'Partnership Pre-tax Cash Flow'!AH$5 -> 0 | AI114: =$E114/4*'Partnership Pre-tax Cash Flow'!AI$5 -> 0 | AJ114: =$E114/4*'Partnership Pre-tax Cash Flow'!AJ$5 -> 0 | AK114: =$E114/4*'Partnership Pre-tax Cash Flow'!AK$5 -> 0 | AL114: =$E114/4*'Partnership Pre-tax Cash Flow'!AL$5 -> 0 | AM114: =$E114/4*'Partnership Pre-tax Cash Flow'!AM$5 -> 0 | AN114: =$E114/4*'Partnership Pre-tax Cash Flow'!AN$5 -> 0 | AO114: =$E114/4*'Partnership Pre-tax Cash Flow'!AO$5 -> 0 | AP114: =$E114/4*'Partnership Pre-tax Cash Flow'!AP$5 -> 0 | AQ114: =$E114/4*'Partnership Pre-tax Cash Flow'!AQ$5 -> 0 | AR114: =$E114/4*'Partnership Pre-tax Cash Flow'!AR$5 -> 0 | AS114: =$E114/4*'Partnership Pre-tax Cash Flow'!AS$5 -> 0 | AT114: =$E114/4*'Partnership Pre-tax Cash Flow'!AT$5 -> 0 | AU114: =$E114/4*'Partnership Pre-tax Cash Flow'!AU$5 -> 0 | AV114: =$E114/4*'Partnership Pre-tax Cash Flow'!AV$5 -> 0 | AW114: =$E114/4*'Partnership Pre-tax Cash Flow'!AW$5 -> 0 | AX114: =$E114/4*'Partnership Pre-tax Cash Flow'!AX$5 -> 0 | AY114: =$E114/4*'Partnership Pre-tax Cash Flow'!AY$5 -> 0 | AZ114: =$E114/4*'Partnership Pre-tax Cash Flow'!AZ$5 -> 0 | BA114: =$E114/4*'Partnership Pre-tax Cash Flow'!BA$5 -> 0 | BB114: =$E114/4*'Partnership Pre-tax Cash Flow'!BB$5 -> 0 | BC114: =$E114/4*'Partnership Pre-tax Cash Flow'!BC$5 -> 0 | BD114: =$E114/4*'Partnership Pre-tax Cash Flow'!BD$5 -> 0 | BE114: =$E114/4*'Partnership Pre-tax Cash Flow'!BE$5 -> 0 | BF114: =$E114/4*'Partnership Pre-tax Cash Flow'!BF$5 -> 0 | BG114: =$E114/4*'Partnership Pre-tax Cash Flow'!BG$5 -> 0 | BH114: =$E114/4*'Partnership Pre-tax Cash Flow'!BH$5 -> 0 | BI114: =$E114/4*'Partnership Pre-tax Cash Flow'!BI$5 -> 0 | BJ114: =$E114/4*'Partnership Pre-tax Cash Flow'!BJ$5 -> 0 | BK114: =$E114/4*'Partnership Pre-tax Cash Flow'!BK$5 -> 0 | BL114: =$E114/4*'Partnership Pre-tax Cash Flow'!BL$5 -> 0 | BM114: =$E114/4*'Partnership Pre-tax Cash Flow'!BM$5 -> 0 | BN114: =$E114/4*'Partnership Pre-tax Cash Flow'!BN$5 -> 0 | BO114: =$E114/4*'Partnership Pre-tax Cash Flow'!BO$5 -> 0 | BP114: =$E114/4*'Partnership Pre-tax Cash Flow'!BP$5 -> 0 | BQ114: =$E114/4*'Partnership Pre-tax Cash Flow'!BQ$5 -> 0 | BR114: =$E114/4*'Partnership Pre-tax Cash Flow'!BR$5 -> 0 | BS114: =$E114/4*'Partnership Pre-tax Cash Flow'!BS$5 -> 0 | BT114: =$E114/4*'Partnership Pre-tax Cash Flow'!BT$5 -> 0 | BU114: =$E114/4*'Partnership Pre-tax Cash Flow'!BU$5 -> 0 | BV114: =$E114/4*'Partnership Pre-tax Cash Flow'!BV$5 -> 0 | BW114: =$E114/4*'Partnership Pre-tax Cash Flow'!BW$5 -> 0 | BX114: =$E114/4*'Partnership Pre-tax Cash Flow'!BX$5 -> 0 | BY114: =$E114/4*'Partnership Pre-tax Cash Flow'!BY$5 -> 0 | BZ114: =$E114/4*'Partnership Pre-tax Cash Flow'!BZ$5 -> 0 | CA114: =$E114/4*'Partnership Pre-tax Cash Flow'!CA$5 -> 0 | CB114: =$E114/4*'Partnership Pre-tax Cash Flow'!CB$5 -> 0 | CC114: =$E114/4*'Partnership Pre-tax Cash Flow'!CC$5 -> 0 | CD114: =$E114/4*'Partnership Pre-tax Cash Flow'!CD$5 -> 0 | CE114: =$E114/4*'Partnership Pre-tax Cash Flow'!CE$5 -> 0 | CF114: =$E114/4*'Partnership Pre-tax Cash Flow'!CF$5 -> 0 | CG114: =$E114/4*'Partnership Pre-tax Cash Flow'!CG$5 -> 0 | CH114: =$E114/4*'Partnership Pre-tax Cash Flow'!CH$5 -> 0 | CI114: =$E114/4*'Partnership Pre-tax Cash Flow'!CI$5 -> 0 | CJ114: =$E114/4*'Partnership Pre-tax Cash Flow'!CJ$5 -> 0 | CK114: =$E114/4*'Partnership Pre-tax Cash Flow'!CK$5 -> 0 | CL114: =$E114/4*'Partnership Pre-tax Cash Flow'!CL$5 -> 0 | CM114: =$E114/4*'Partnership Pre-tax Cash Flow'!CM$5 -> 0 | CN114: =$E114/4*'Partnership Pre-tax Cash Flow'!CN$5 -> 0 | CO114: =$E114/4*'Partnership Pre-tax Cash Flow'!CO$5 -> 0 | CP114: =$E114/4*'Partnership Pre-tax Cash Flow'!CP$5 -> 0 | CQ114: =$E114/4*'Partnership Pre-tax Cash Flow'!CQ$5 -> 0 | CR114: =$E114/4*'Partnership Pre-tax Cash Flow'!CR$5 -> 0 | CS114: =$E114/4*'Partnership Pre-tax Cash Flow'!CS$5 -> 0 | CT114: =$E114/4*'Partnership Pre-tax Cash Flow'!CT$5 -> 0 | CU114: =$E114/4*'Partnership Pre-tax Cash Flow'!CU$5 -> 0 | CV114: =$E114/4*'Partnership Pre-tax Cash Flow'!CV$5 -> 0 | CW114: =$E114/4*'Partnership Pre-tax Cash Flow'!CW$5 -> 0 | CX114: =$E114/4*'Partnership Pre-tax Cash Flow'!CX$5 -> 0 | CY114: =$E114/4*'Partnership Pre-tax Cash Flow'!CY$5 -> 0 | CZ114: =$E114/4*'Partnership Pre-tax Cash Flow'!CZ$5 -> 0 | DA114: =$E114/4*'Partnership Pre-tax Cash Flow'!DA$5 -> 0 | DB114: =$E114/4*'Partnership Pre-tax Cash Flow'!DB$5 -> 0 | DC114: =$E114/4*'Partnership Pre-tax Cash Flow'!DC$5 -> 0 | DD114: =$E114/4*'Partnership Pre-tax Cash Flow'!DD$5 -> 0 | DE114: =$E114/4*'Partnership Pre-tax Cash Flow'!DE$5 -> 0 | DF114: =$E114/4*'Partnership Pre-tax Cash Flow'!DF$5 -> 0 | DG114: =$E114/4*'Partnership Pre-tax Cash Flow'!DG$5 -> 0 | DH114: =$E114/4*'Partnership Pre-tax Cash Flow'!DH$5 -> 0 | DI114: =$E114/4*'Partnership Pre-tax Cash Flow'!DI$5 -> 0 | DJ114: =$E114/4*'Partnership Pre-tax Cash Flow'!DJ$5 -> 0 | DK114: =$E114/4*'Partnership Pre-tax Cash Flow'!DK$5 -> 0 | DL114: =$E114/4*'Partnership Pre-tax Cash Flow'!DL$5 -> 0 | DM114: =$E114/4*'Partnership Pre-tax Cash Flow'!DM$5 -> 0 | DN114: =$E114/4*'Partnership Pre-tax Cash Flow'!DN$5 -> 0 | DO114: =$E114/4*'Partnership Pre-tax Cash Flow'!DO$5 -> 0 | DP114: =$E114/4*'Partnership Pre-tax Cash Flow'!DP$5 -> 0 | DQ114: =$E114/4*'Partnership Pre-tax Cash Flow'!DQ$5 -> 0 | DR114: =$E114/4*'Partnership Pre-tax Cash Flow'!DR$5 -> 0 | DS114: =$E114/4*'Partnership Pre-tax Cash Flow'!DS$5 -> 0 | DT114: =$E114/4*'Partnership Pre-tax Cash Flow'!DT$5 -> 0 | DU114: =$E114/4*'Partnership Pre-tax Cash Flow'!DU$5 -> 0 | DV114: =$E114/4*'Partnership Pre-tax Cash Flow'!DV$5 -> 0 | DW114: =$E114/4*'Partnership Pre-tax Cash Flow'!DW$5 -> 0 | DX114: =$E114/4*'Partnership Pre-tax Cash Flow'!DX$5 -> 0 | DY114: =$E114/4*'Partnership Pre-tax Cash Flow'!DY$5 -> 0 | DZ114: =$E114/4*'Partnership Pre-tax Cash Flow'!DZ$5 -> 0 | EA114: =$E114/4*'Partnership Pre-tax Cash Flow'!EA$5 -> 0 | EB114: =$E114/4*'Partnership Pre-tax Cash Flow'!EB$5 -> 0 | EC114: =$E114/4*'Partnership Pre-tax Cash Flow'!EC$5 -> 0 | ED114: =$E114/4*'Partnership Pre-tax Cash Flow'!ED$5 -> 0 | EE114: =$E114/4*'Partnership Pre-tax Cash Flow'!EE$5 -> 0 | EF114: =$E114/4*'Partnership Pre-tax Cash Flow'!EF$5 -> 0 | EG114: =$E114/4*'Partnership Pre-tax Cash Flow'!EG$5 -> 0 | EH114: =$E114/4*'Partnership Pre-tax Cash Flow'!EH$5 -> 0 | EI114: =$E114/4*'Partnership Pre-tax Cash Flow'!EI$5 -> 0 | EJ114: =$E114/4*'Partnership Pre-tax Cash Flow'!EJ$5 -> 0 | EK114: =$E114/4*'Partnership Pre-tax Cash Flow'!EK$5 -> 0 | EL114: =$E114/4*'Partnership Pre-tax Cash Flow'!EL$5 -> 0 | EM114: =$E114/4*'Partnership Pre-tax Cash Flow'!EM$5 -> 0 | EN114: =$E114/4*'Partnership Pre-tax Cash Flow'!EN$5 -> 0 | EO114: =$E114/4*'Partnership Pre-tax Cash Flow'!EO$5 -> 0 | EP114: =$E114/4*'Partnership Pre-tax Cash Flow'!EP$5 -> 0 | EQ114: =$E114/4*'Partnership Pre-tax Cash Flow'!EQ$5 -> 0 | ER114: =$E114/4*'Partnership Pre-tax Cash Flow'!ER$5 -> 0 | ES114: =$E114/4*'Partnership Pre-tax Cash Flow'!ES$5 -> 0 | ET114: =$E114/4*'Partnership Pre-tax Cash Flow'!ET$5 -> 0 | EU114: =$E114/4*'Partnership Pre-tax Cash Flow'!EU$5 -> 0 | EV114: =$E114/4*'Partnership Pre-tax Cash Flow'!EV$5 -> 0 | EW114: =$E114/4*'Partnership Pre-tax Cash Flow'!EW$5 -> 0 | EX114: =$E114/4*'Partnership Pre-tax Cash Flow'!EX$5 -> 0 | EY114: =$E114/4*'Partnership Pre-tax Cash Flow'!EY$5 -> 0 | EZ114: =$E114/4*'Partnership Pre-tax Cash Flow'!EZ$5 -> 0 | FA114: =$E114/4*'Partnership Pre-tax Cash Flow'!FA$5 -> 0 | FB114: =$E114/4*'Partnership Pre-tax Cash Flow'!FB$5 -> 0 | FC114: =$E114/4*'Partnership Pre-tax Cash Flow'!FC$5 -> 0 | FD114: =$E114/4*'Partnership Pre-tax Cash Flow'!FD$5 -> 0 | FE114: =$E114/4*'Partnership Pre-tax Cash Flow'!FE$5 -> 0 | FF114: =$E114/4*'Partnership Pre-tax Cash Flow'!FF$5 -> 0 | FG114: =$E114/4*'Partnership Pre-tax Cash Flow'!FG$5 -> 0 | FH114: =$E114/4*'Partnership Pre-tax Cash Flow'!FH$5 -> 0 | FI114: =$E114/4*'Partnership Pre-tax Cash Flow'!FI$5 -> 0 | FJ114: =$E114/4*'Partnership Pre-tax Cash Flow'!FJ$5 -> 0 | FK114: =$E114/4*'Partnership Pre-tax Cash Flow'!FK$5 -> 0 | FL114: =$E114/4*'Partnership Pre-tax Cash Flow'!FL$5 -> 0 | FM114: =$E114/4*'Partnership Pre-tax Cash Flow'!FM$5 -> 0 | FN114: =$E114/4*'Partnership Pre-tax Cash Flow'!FN$5 -> 0 | FO114: =$E114/4*'Partnership Pre-tax Cash Flow'!FO$5 -> 0 | FP114: =$E114/4*'Partnership Pre-tax Cash Flow'!FP$5 -> 0 | FQ114: =$E114/4*'Partnership Pre-tax Cash Flow'!FQ$5 -> 0 | FR114: =$E114/4*'Partnership Pre-tax Cash Flow'!FR$5 -> 0 | FS114: =$E114/4*'Partnership Pre-tax Cash Flow'!FS$5 -> 0
C115: Balance of plant | D115: USD '000 | E115: ='Inputs - Partnership'!E24 -> 67500 | F115: ='Inputs - Tax'!E9 -> 1 | H115: 67500 | I115: =$E115/4*'Partnership Pre-tax Cash Flow'!I$5 -> 0 | J115: =$E115/4*'Partnership Pre-tax Cash Flow'!J$5 -> 0 | K115: =$E115/4*'Partnership Pre-tax Cash Flow'!K$5 -> 0 | L115: =$E115/4*'Partnership Pre-tax Cash Flow'!L$5 -> 0 | M115: =$E115/4*'Partnership Pre-tax Cash Flow'!M$5 -> 16875 | N115: =$E115/4*'Partnership Pre-tax Cash Flow'!N$5 -> 16875 | O115: =$E115/4*'Partnership Pre-tax Cash Flow'!O$5 -> 16875 | P115: =$E115/4*'Partnership Pre-tax Cash Flow'!P$5 -> 16875 | Q115: =$E115/4*'Partnership Pre-tax Cash Flow'!Q$5 -> 0 | R115: =$E115/4*'Partnership Pre-tax Cash Flow'!R$5 -> 0 | S115: =$E115/4*'Partnership Pre-tax Cash Flow'!S$5 -> 0 | T115: =$E115/4*'Partnership Pre-tax Cash Flow'!T$5 -> 0 | U115: =$E115/4*'Partnership Pre-tax Cash Flow'!U$5 -> 0 | V115: =$E115/4*'Partnership Pre-tax Cash Flow'!V$5 -> 0 | W115: =$E115/4*'Partnership Pre-tax Cash Flow'!W$5 -> 0 | X115: =$E115/4*'Partnership Pre-tax Cash Flow'!X$5 -> 0 | Y115: =$E115/4*'Partnership Pre-tax Cash Flow'!Y$5 -> 0 | Z115: =$E115/4*'Partnership Pre-tax Cash Flow'!Z$5 -> 0 | AA115: =$E115/4*'Partnership Pre-tax Cash Flow'!AA$5 -> 0 | AB115: =$E115/4*'Partnership Pre-tax Cash Flow'!AB$5 -> 0 | AC115: =$E115/4*'Partnership Pre-tax Cash Flow'!AC$5 -> 0 | AD115: =$E115/4*'Partnership Pre-tax Cash Flow'!AD$5 -> 0 | AE115: =$E115/4*'Partnership Pre-tax Cash Flow'!AE$5 -> 0 | AF115: =$E115/4*'Partnership Pre-tax Cash Flow'!AF$5 -> 0 | AG115: =$E115/4*'Partnership Pre-tax Cash Flow'!AG$5 -> 0 | AH115: =$E115/4*'Partnership Pre-tax Cash Flow'!AH$5 -> 0 | AI115: =$E115/4*'Partnership Pre-tax Cash Flow'!AI$5 -> 0 | AJ115: =$E115/4*'Partnership Pre-tax Cash Flow'!AJ$5 -> 0 | AK115: =$E115/4*'Partnership Pre-tax Cash Flow'!AK$5 -> 0 | AL115: =$E115/4*'Partnership Pre-tax Cash Flow'!AL$5 -> 0 | AM115: =$E115/4*'Partnership Pre-tax Cash Flow'!AM$5 -> 0 | AN115: =$E115/4*'Partnership Pre-tax Cash Flow'!AN$5 -> 0 | AO115: =$E115/4*'Partnership Pre-tax Cash Flow'!AO$5 -> 0 | AP115: =$E115/4*'Partnership Pre-tax Cash Flow'!AP$5 -> 0 | AQ115: =$E115/4*'Partnership Pre-tax Cash Flow'!AQ$5 -> 0 | AR115: =$E115/4*'Partnership Pre-tax Cash Flow'!AR$5 -> 0 | AS115: =$E115/4*'Partnership Pre-tax Cash Flow'!AS$5 -> 0 | AT115: =$E115/4*'Partnership Pre-tax Cash Flow'!AT$5 -> 0 | AU115: =$E115/4*'Partnership Pre-tax Cash Flow'!AU$5 -> 0 | AV115: =$E115/4*'Partnership Pre-tax Cash Flow'!AV$5 -> 0 | AW115: =$E115/4*'Partnership Pre-tax Cash Flow'!AW$5 -> 0 | AX115: =$E115/4*'Partnership Pre-tax Cash Flow'!AX$5 -> 0 | AY115: =$E115/4*'Partnership Pre-tax Cash Flow'!AY$5 -> 0 | AZ115: =$E115/4*'Partnership Pre-tax Cash Flow'!AZ$5 -> 0 | BA115: =$E115/4*'Partnership Pre-tax Cash Flow'!BA$5 -> 0 | BB115: =$E115/4*'Partnership Pre-tax Cash Flow'!BB$5 -> 0 | BC115: =$E115/4*'Partnership Pre-tax Cash Flow'!BC$5 -> 0 | BD115: =$E115/4*'Partnership Pre-tax Cash Flow'!BD$5 -> 0 | BE115: =$E115/4*'Partnership Pre-tax Cash Flow'!BE$5 -> 0 | BF115: =$E115/4*'Partnership Pre-tax Cash Flow'!BF$5 -> 0 | BG115: =$E115/4*'Partnership Pre-tax Cash Flow'!BG$5 -> 0 | BH115: =$E115/4*'Partnership Pre-tax Cash Flow'!BH$5 -> 0 | BI115: =$E115/4*'Partnership Pre-tax Cash Flow'!BI$5 -> 0 | BJ115: =$E115/4*'Partnership Pre-tax Cash Flow'!BJ$5 -> 0 | BK115: =$E115/4*'Partnership Pre-tax Cash Flow'!BK$5 -> 0 | BL115: =$E115/4*'Partnership Pre-tax Cash Flow'!BL$5 -> 0 | BM115: =$E115/4*'Partnership Pre-tax Cash Flow'!BM$5 -> 0 | BN115: =$E115/4*'Partnership Pre-tax Cash Flow'!BN$5 -> 0 | BO115: =$E115/4*'Partnership Pre-tax Cash Flow'!BO$5 -> 0 | BP115: =$E115/4*'Partnership Pre-tax Cash Flow'!BP$5 -> 0 | BQ115: =$E115/4*'Partnership Pre-tax Cash Flow'!BQ$5 -> 0 | BR115: =$E115/4*'Partnership Pre-tax Cash Flow'!BR$5 -> 0 | BS115: =$E115/4*'Partnership Pre-tax Cash Flow'!BS$5 -> 0 | BT115: =$E115/4*'Partnership Pre-tax Cash Flow'!BT$5 -> 0 | BU115: =$E115/4*'Partnership Pre-tax Cash Flow'!BU$5 -> 0 | BV115: =$E115/4*'Partnership Pre-tax Cash Flow'!BV$5 -> 0 | BW115: =$E115/4*'Partnership Pre-tax Cash Flow'!BW$5 -> 0 | BX115: =$E115/4*'Partnership Pre-tax Cash Flow'!BX$5 -> 0 | BY115: =$E115/4*'Partnership Pre-tax Cash Flow'!BY$5 -> 0 | BZ115: =$E115/4*'Partnership Pre-tax Cash Flow'!BZ$5 -> 0 | CA115: =$E115/4*'Partnership Pre-tax Cash Flow'!CA$5 -> 0 | CB115: =$E115/4*'Partnership Pre-tax Cash Flow'!CB$5 -> 0 | CC115: =$E115/4*'Partnership Pre-tax Cash Flow'!CC$5 -> 0 | CD115: =$E115/4*'Partnership Pre-tax Cash Flow'!CD$5 -> 0 | CE115: =$E115/4*'Partnership Pre-tax Cash Flow'!CE$5 -> 0 | CF115: =$E115/4*'Partnership Pre-tax Cash Flow'!CF$5 -> 0 | CG115: =$E115/4*'Partnership Pre-tax Cash Flow'!CG$5 -> 0 | CH115: =$E115/4*'Partnership Pre-tax Cash Flow'!CH$5 -> 0 | CI115: =$E115/4*'Partnership Pre-tax Cash Flow'!CI$5 -> 0 | CJ115: =$E115/4*'Partnership Pre-tax Cash Flow'!CJ$5 -> 0 | CK115: =$E115/4*'Partnership Pre-tax Cash Flow'!CK$5 -> 0 | CL115: =$E115/4*'Partnership Pre-tax Cash Flow'!CL$5 -> 0 | CM115: =$E115/4*'Partnership Pre-tax Cash Flow'!CM$5 -> 0 | CN115: =$E115/4*'Partnership Pre-tax Cash Flow'!CN$5 -> 0 | CO115: =$E115/4*'Partnership Pre-tax Cash Flow'!CO$5 -> 0 | CP115: =$E115/4*'Partnership Pre-tax Cash Flow'!CP$5 -> 0 | CQ115: =$E115/4*'Partnership Pre-tax Cash Flow'!CQ$5 -> 0 | CR115: =$E115/4*'Partnership Pre-tax Cash Flow'!CR$5 -> 0 | CS115: =$E115/4*'Partnership Pre-tax Cash Flow'!CS$5 -> 0 | CT115: =$E115/4*'Partnership Pre-tax Cash Flow'!CT$5 -> 0 | CU115: =$E115/4*'Partnership Pre-tax Cash Flow'!CU$5 -> 0 | CV115: =$E115/4*'Partnership Pre-tax Cash Flow'!CV$5 -> 0 | CW115: =$E115/4*'Partnership Pre-tax Cash Flow'!CW$5 -> 0 | CX115: =$E115/4*'Partnership Pre-tax Cash Flow'!CX$5 -> 0 | CY115: =$E115/4*'Partnership Pre-tax Cash Flow'!CY$5 -> 0 | CZ115: =$E115/4*'Partnership Pre-tax Cash Flow'!CZ$5 -> 0 | DA115: =$E115/4*'Partnership Pre-tax Cash Flow'!DA$5 -> 0 | DB115: =$E115/4*'Partnership Pre-tax Cash Flow'!DB$5 -> 0 | DC115: =$E115/4*'Partnership Pre-tax Cash Flow'!DC$5 -> 0 | DD115: =$E115/4*'Partnership Pre-tax Cash Flow'!DD$5 -> 0 | DE115: =$E115/4*'Partnership Pre-tax Cash Flow'!DE$5 -> 0 | DF115: =$E115/4*'Partnership Pre-tax Cash Flow'!DF$5 -> 0 | DG115: =$E115/4*'Partnership Pre-tax Cash Flow'!DG$5 -> 0 | DH115: =$E115/4*'Partnership Pre-tax Cash Flow'!DH$5 -> 0 | DI115: =$E115/4*'Partnership Pre-tax Cash Flow'!DI$5 -> 0 | DJ115: =$E115/4*'Partnership Pre-tax Cash Flow'!DJ$5 -> 0 | DK115: =$E115/4*'Partnership Pre-tax Cash Flow'!DK$5 -> 0 | DL115: =$E115/4*'Partnership Pre-tax Cash Flow'!DL$5 -> 0 | DM115: =$E115/4*'Partnership Pre-tax Cash Flow'!DM$5 -> 0 | DN115: =$E115/4*'Partnership Pre-tax Cash Flow'!DN$5 -> 0 | DO115: =$E115/4*'Partnership Pre-tax Cash Flow'!DO$5 -> 0 | DP115: =$E115/4*'Partnership Pre-tax Cash Flow'!DP$5 -> 0 | DQ115: =$E115/4*'Partnership Pre-tax Cash Flow'!DQ$5 -> 0 | DR115: =$E115/4*'Partnership Pre-tax Cash Flow'!DR$5 -> 0 | DS115: =$E115/4*'Partnership Pre-tax Cash Flow'!DS$5 -> 0 | DT115: =$E115/4*'Partnership Pre-tax Cash Flow'!DT$5 -> 0 | DU115: =$E115/4*'Partnership Pre-tax Cash Flow'!DU$5 -> 0 | DV115: =$E115/4*'Partnership Pre-tax Cash Flow'!DV$5 -> 0 | DW115: =$E115/4*'Partnership Pre-tax Cash Flow'!DW$5 -> 0 | DX115: =$E115/4*'Partnership Pre-tax Cash Flow'!DX$5 -> 0 | DY115: =$E115/4*'Partnership Pre-tax Cash Flow'!DY$5 -> 0 | DZ115: =$E115/4*'Partnership Pre-tax Cash Flow'!DZ$5 -> 0 | EA115: =$E115/4*'Partnership Pre-tax Cash Flow'!EA$5 -> 0 | EB115: =$E115/4*'Partnership Pre-tax Cash Flow'!EB$5 -> 0 | EC115: =$E115/4*'Partnership Pre-tax Cash Flow'!EC$5 -> 0 | ED115: =$E115/4*'Partnership Pre-tax Cash Flow'!ED$5 -> 0 | EE115: =$E115/4*'Partnership Pre-tax Cash Flow'!EE$5 -> 0 | EF115: =$E115/4*'Partnership Pre-tax Cash Flow'!EF$5 -> 0 | EG115: =$E115/4*'Partnership Pre-tax Cash Flow'!EG$5 -> 0 | EH115: =$E115/4*'Partnership Pre-tax Cash Flow'!EH$5 -> 0 | EI115: =$E115/4*'Partnership Pre-tax Cash Flow'!EI$5 -> 0 | EJ115: =$E115/4*'Partnership Pre-tax Cash Flow'!EJ$5 -> 0 | EK115: =$E115/4*'Partnership Pre-tax Cash Flow'!EK$5 -> 0 | EL115: =$E115/4*'Partnership Pre-tax Cash Flow'!EL$5 -> 0 | EM115: =$E115/4*'Partnership Pre-tax Cash Flow'!EM$5 -> 0 | EN115: =$E115/4*'Partnership Pre-tax Cash Flow'!EN$5 -> 0 | EO115: =$E115/4*'Partnership Pre-tax Cash Flow'!EO$5 -> 0 | EP115: =$E115/4*'Partnership Pre-tax Cash Flow'!EP$5 -> 0 | EQ115: =$E115/4*'Partnership Pre-tax Cash Flow'!EQ$5 -> 0 | ER115: =$E115/4*'Partnership Pre-tax Cash Flow'!ER$5 -> 0 | ES115: =$E115/4*'Partnership Pre-tax Cash Flow'!ES$5 -> 0 | ET115: =$E115/4*'Partnership Pre-tax Cash Flow'!ET$5 -> 0 | EU115: =$E115/4*'Partnership Pre-tax Cash Flow'!EU$5 -> 0 | EV115: =$E115/4*'Partnership Pre-tax Cash Flow'!EV$5 -> 0 | EW115: =$E115/4*'Partnership Pre-tax Cash Flow'!EW$5 -> 0 | EX115: =$E115/4*'Partnership Pre-tax Cash Flow'!EX$5 -> 0 | EY115: =$E115/4*'Partnership Pre-tax Cash Flow'!EY$5 -> 0 | EZ115: =$E115/4*'Partnership Pre-tax Cash Flow'!EZ$5 -> 0 | FA115: =$E115/4*'Partnership Pre-tax Cash Flow'!FA$5 -> 0 | FB115: =$E115/4*'Partnership Pre-tax Cash Flow'!FB$5 -> 0 | FC115: =$E115/4*'Partnership Pre-tax Cash Flow'!FC$5 -> 0 | FD115: =$E115/4*'Partnership Pre-tax Cash Flow'!FD$5 -> 0 | FE115: =$E115/4*'Partnership Pre-tax Cash Flow'!FE$5 -> 0 | FF115: =$E115/4*'Partnership Pre-tax Cash Flow'!FF$5 -> 0 | FG115: =$E115/4*'Partnership Pre-tax Cash Flow'!FG$5 -> 0 | FH115: =$E115/4*'Partnership Pre-tax Cash Flow'!FH$5 -> 0 | FI115: =$E115/4*'Partnership Pre-tax Cash Flow'!FI$5 -> 0 | FJ115: =$E115/4*'Partnership Pre-tax Cash Flow'!FJ$5 -> 0 | FK115: =$E115/4*'Partnership Pre-tax Cash Flow'!FK$5 -> 0 | FL115: =$E115/4*'Partnership Pre-tax Cash Flow'!FL$5 -> 0 | FM115: =$E115/4*'Partnership Pre-tax Cash Flow'!FM$5 -> 0 | FN115: =$E115/4*'Partnership Pre-tax Cash Flow'!FN$5 -> 0 | FO115: =$E115/4*'Partnership Pre-tax Cash Flow'!FO$5 -> 0 | FP115: =$E115/4*'Partnership Pre-tax Cash Flow'!FP$5 -> 0 | FQ115: =$E115/4*'Partnership Pre-tax Cash Flow'!FQ$5 -> 0 | FR115: =$E115/4*'Partnership Pre-tax Cash Flow'!FR$5 -> 0 | FS115: =$E115/4*'Partnership Pre-tax Cash Flow'!FS$5 -> 0
C116: Interconnection | D116: USD '000 | E116: ='Inputs - Partnership'!E25 -> 9000 | F116: ='Inputs - Tax'!E10 -> 2 | H116: 9000 | I116: =$E116/4*'Partnership Pre-tax Cash Flow'!I$5 -> 0 | J116: =$E116/4*'Partnership Pre-tax Cash Flow'!J$5 -> 0 | K116: =$E116/4*'Partnership Pre-tax Cash Flow'!K$5 -> 0 | L116: =$E116/4*'Partnership Pre-tax Cash Flow'!L$5 -> 0 | M116: =$E116/4*'Partnership Pre-tax Cash Flow'!M$5 -> 2250 | N116: =$E116/4*'Partnership Pre-tax Cash Flow'!N$5 -> 2250 | O116: =$E116/4*'Partnership Pre-tax Cash Flow'!O$5 -> 2250 | P116: =$E116/4*'Partnership Pre-tax Cash Flow'!P$5 -> 2250 | Q116: =$E116/4*'Partnership Pre-tax Cash Flow'!Q$5 -> 0 | R116: =$E116/4*'Partnership Pre-tax Cash Flow'!R$5 -> 0 | S116: =$E116/4*'Partnership Pre-tax Cash Flow'!S$5 -> 0 | T116: =$E116/4*'Partnership Pre-tax Cash Flow'!T$5 -> 0 | U116: =$E116/4*'Partnership Pre-tax Cash Flow'!U$5 -> 0 | V116: =$E116/4*'Partnership Pre-tax Cash Flow'!V$5 -> 0 | W116: =$E116/4*'Partnership Pre-tax Cash Flow'!W$5 -> 0 | X116: =$E116/4*'Partnership Pre-tax Cash Flow'!X$5 -> 0 | Y116: =$E116/4*'Partnership Pre-tax Cash Flow'!Y$5 -> 0 | Z116: =$E116/4*'Partnership Pre-tax Cash Flow'!Z$5 -> 0 | AA116: =$E116/4*'Partnership Pre-tax Cash Flow'!AA$5 -> 0 | AB116: =$E116/4*'Partnership Pre-tax Cash Flow'!AB$5 -> 0 | AC116: =$E116/4*'Partnership Pre-tax Cash Flow'!AC$5 -> 0 | AD116: =$E116/4*'Partnership Pre-tax Cash Flow'!AD$5 -> 0 | AE116: =$E116/4*'Partnership Pre-tax Cash Flow'!AE$5 -> 0 | AF116: =$E116/4*'Partnership Pre-tax Cash Flow'!AF$5 -> 0 | AG116: =$E116/4*'Partnership Pre-tax Cash Flow'!AG$5 -> 0 | AH116: =$E116/4*'Partnership Pre-tax Cash Flow'!AH$5 -> 0 | AI116: =$E116/4*'Partnership Pre-tax Cash Flow'!AI$5 -> 0 | AJ116: =$E116/4*'Partnership Pre-tax Cash Flow'!AJ$5 -> 0 | AK116: =$E116/4*'Partnership Pre-tax Cash Flow'!AK$5 -> 0 | AL116: =$E116/4*'Partnership Pre-tax Cash Flow'!AL$5 -> 0 | AM116: =$E116/4*'Partnership Pre-tax Cash Flow'!AM$5 -> 0 | AN116: =$E116/4*'Partnership Pre-tax Cash Flow'!AN$5 -> 0 | AO116: =$E116/4*'Partnership Pre-tax Cash Flow'!AO$5 -> 0 | AP116: =$E116/4*'Partnership Pre-tax Cash Flow'!AP$5 -> 0 | AQ116: =$E116/4*'Partnership Pre-tax Cash Flow'!AQ$5 -> 0 | AR116: =$E116/4*'Partnership Pre-tax Cash Flow'!AR$5 -> 0 | AS116: =$E116/4*'Partnership Pre-tax Cash Flow'!AS$5 -> 0 | AT116: =$E116/4*'Partnership Pre-tax Cash Flow'!AT$5 -> 0 | AU116: =$E116/4*'Partnership Pre-tax Cash Flow'!AU$5 -> 0 | AV116: =$E116/4*'Partnership Pre-tax Cash Flow'!AV$5 -> 0 | AW116: =$E116/4*'Partnership Pre-tax Cash Flow'!AW$5 -> 0 | AX116: =$E116/4*'Partnership Pre-tax Cash Flow'!AX$5 -> 0 | AY116: =$E116/4*'Partnership Pre-tax Cash Flow'!AY$5 -> 0 | AZ116: =$E116/4*'Partnership Pre-tax Cash Flow'!AZ$5 -> 0 | BA116: =$E116/4*'Partnership Pre-tax Cash Flow'!BA$5 -> 0 | BB116: =$E116/4*'Partnership Pre-tax Cash Flow'!BB$5 -> 0 | BC116: =$E116/4*'Partnership Pre-tax Cash Flow'!BC$5 -> 0 | BD116: =$E116/4*'Partnership Pre-tax Cash Flow'!BD$5 -> 0 | BE116: =$E116/4*'Partnership Pre-tax Cash Flow'!BE$5 -> 0 | BF116: =$E116/4*'Partnership Pre-tax Cash Flow'!BF$5 -> 0 | BG116: =$E116/4*'Partnership Pre-tax Cash Flow'!BG$5 -> 0 | BH116: =$E116/4*'Partnership Pre-tax Cash Flow'!BH$5 -> 0 | BI116: =$E116/4*'Partnership Pre-tax Cash Flow'!BI$5 -> 0 | BJ116: =$E116/4*'Partnership Pre-tax Cash Flow'!BJ$5 -> 0 | BK116: =$E116/4*'Partnership Pre-tax Cash Flow'!BK$5 -> 0 | BL116: =$E116/4*'Partnership Pre-tax Cash Flow'!BL$5 -> 0 | BM116: =$E116/4*'Partnership Pre-tax Cash Flow'!BM$5 -> 0 | BN116: =$E116/4*'Partnership Pre-tax Cash Flow'!BN$5 -> 0 | BO116: =$E116/4*'Partnership Pre-tax Cash Flow'!BO$5 -> 0 | BP116: =$E116/4*'Partnership Pre-tax Cash Flow'!BP$5 -> 0 | BQ116: =$E116/4*'Partnership Pre-tax Cash Flow'!BQ$5 -> 0 | BR116: =$E116/4*'Partnership Pre-tax Cash Flow'!BR$5 -> 0 | BS116: =$E116/4*'Partnership Pre-tax Cash Flow'!BS$5 -> 0 | BT116: =$E116/4*'Partnership Pre-tax Cash Flow'!BT$5 -> 0 | BU116: =$E116/4*'Partnership Pre-tax Cash Flow'!BU$5 -> 0 | BV116: =$E116/4*'Partnership Pre-tax Cash Flow'!BV$5 -> 0 | BW116: =$E116/4*'Partnership Pre-tax Cash Flow'!BW$5 -> 0 | BX116: =$E116/4*'Partnership Pre-tax Cash Flow'!BX$5 -> 0 | BY116: =$E116/4*'Partnership Pre-tax Cash Flow'!BY$5 -> 0 | BZ116: =$E116/4*'Partnership Pre-tax Cash Flow'!BZ$5 -> 0 | CA116: =$E116/4*'Partnership Pre-tax Cash Flow'!CA$5 -> 0 | CB116: =$E116/4*'Partnership Pre-tax Cash Flow'!CB$5 -> 0 | CC116: =$E116/4*'Partnership Pre-tax Cash Flow'!CC$5 -> 0 | CD116: =$E116/4*'Partnership Pre-tax Cash Flow'!CD$5 -> 0 | CE116: =$E116/4*'Partnership Pre-tax Cash Flow'!CE$5 -> 0 | CF116: =$E116/4*'Partnership Pre-tax Cash Flow'!CF$5 -> 0 | CG116: =$E116/4*'Partnership Pre-tax Cash Flow'!CG$5 -> 0 | CH116: =$E116/4*'Partnership Pre-tax Cash Flow'!CH$5 -> 0 | CI116: =$E116/4*'Partnership Pre-tax Cash Flow'!CI$5 -> 0 | CJ116: =$E116/4*'Partnership Pre-tax Cash Flow'!CJ$5 -> 0 | CK116: =$E116/4*'Partnership Pre-tax Cash Flow'!CK$5 -> 0 | CL116: =$E116/4*'Partnership Pre-tax Cash Flow'!CL$5 -> 0 | CM116: =$E116/4*'Partnership Pre-tax Cash Flow'!CM$5 -> 0 | CN116: =$E116/4*'Partnership Pre-tax Cash Flow'!CN$5 -> 0 | CO116: =$E116/4*'Partnership Pre-tax Cash Flow'!CO$5 -> 0 | CP116: =$E116/4*'Partnership Pre-tax Cash Flow'!CP$5 -> 0 | CQ116: =$E116/4*'Partnership Pre-tax Cash Flow'!CQ$5 -> 0 | CR116: =$E116/4*'Partnership Pre-tax Cash Flow'!CR$5 -> 0 | CS116: =$E116/4*'Partnership Pre-tax Cash Flow'!CS$5 -> 0 | CT116: =$E116/4*'Partnership Pre-tax Cash Flow'!CT$5 -> 0 | CU116: =$E116/4*'Partnership Pre-tax Cash Flow'!CU$5 -> 0 | CV116: =$E116/4*'Partnership Pre-tax Cash Flow'!CV$5 -> 0 | CW116: =$E116/4*'Partnership Pre-tax Cash Flow'!CW$5 -> 0 | CX116: =$E116/4*'Partnership Pre-tax Cash Flow'!CX$5 -> 0 | CY116: =$E116/4*'Partnership Pre-tax Cash Flow'!CY$5 -> 0 | CZ116: =$E116/4*'Partnership Pre-tax Cash Flow'!CZ$5 -> 0 | DA116: =$E116/4*'Partnership Pre-tax Cash Flow'!DA$5 -> 0 | DB116: =$E116/4*'Partnership Pre-tax Cash Flow'!DB$5 -> 0 | DC116: =$E116/4*'Partnership Pre-tax Cash Flow'!DC$5 -> 0 | DD116: =$E116/4*'Partnership Pre-tax Cash Flow'!DD$5 -> 0 | DE116: =$E116/4*'Partnership Pre-tax Cash Flow'!DE$5 -> 0 | DF116: =$E116/4*'Partnership Pre-tax Cash Flow'!DF$5 -> 0 | DG116: =$E116/4*'Partnership Pre-tax Cash Flow'!DG$5 -> 0 | DH116: =$E116/4*'Partnership Pre-tax Cash Flow'!DH$5 -> 0 | DI116: =$E116/4*'Partnership Pre-tax Cash Flow'!DI$5 -> 0 | DJ116: =$E116/4*'Partnership Pre-tax Cash Flow'!DJ$5 -> 0 | DK116: =$E116/4*'Partnership Pre-tax Cash Flow'!DK$5 -> 0 | DL116: =$E116/4*'Partnership Pre-tax Cash Flow'!DL$5 -> 0 | DM116: =$E116/4*'Partnership Pre-tax Cash Flow'!DM$5 -> 0 | DN116: =$E116/4*'Partnership Pre-tax Cash Flow'!DN$5 -> 0 | DO116: =$E116/4*'Partnership Pre-tax Cash Flow'!DO$5 -> 0 | DP116: =$E116/4*'Partnership Pre-tax Cash Flow'!DP$5 -> 0 | DQ116: =$E116/4*'Partnership Pre-tax Cash Flow'!DQ$5 -> 0 | DR116: =$E116/4*'Partnership Pre-tax Cash Flow'!DR$5 -> 0 | DS116: =$E116/4*'Partnership Pre-tax Cash Flow'!DS$5 -> 0 | DT116: =$E116/4*'Partnership Pre-tax Cash Flow'!DT$5 -> 0 | DU116: =$E116/4*'Partnership Pre-tax Cash Flow'!DU$5 -> 0 | DV116: =$E116/4*'Partnership Pre-tax Cash Flow'!DV$5 -> 0 | DW116: =$E116/4*'Partnership Pre-tax Cash Flow'!DW$5 -> 0 | DX116: =$E116/4*'Partnership Pre-tax Cash Flow'!DX$5 -> 0 | DY116: =$E116/4*'Partnership Pre-tax Cash Flow'!DY$5 -> 0 | DZ116: =$E116/4*'Partnership Pre-tax Cash Flow'!DZ$5 -> 0 | EA116: =$E116/4*'Partnership Pre-tax Cash Flow'!EA$5 -> 0 | EB116: =$E116/4*'Partnership Pre-tax Cash Flow'!EB$5 -> 0 | EC116: =$E116/4*'Partnership Pre-tax Cash Flow'!EC$5 -> 0 | ED116: =$E116/4*'Partnership Pre-tax Cash Flow'!ED$5 -> 0 | EE116: =$E116/4*'Partnership Pre-tax Cash Flow'!EE$5 -> 0 | EF116: =$E116/4*'Partnership Pre-tax Cash Flow'!EF$5 -> 0 | EG116: =$E116/4*'Partnership Pre-tax Cash Flow'!EG$5 -> 0 | EH116: =$E116/4*'Partnership Pre-tax Cash Flow'!EH$5 -> 0 | EI116: =$E116/4*'Partnership Pre-tax Cash Flow'!EI$5 -> 0 | EJ116: =$E116/4*'Partnership Pre-tax Cash Flow'!EJ$5 -> 0 | EK116: =$E116/4*'Partnership Pre-tax Cash Flow'!EK$5 -> 0 | EL116: =$E116/4*'Partnership Pre-tax Cash Flow'!EL$5 -> 0 | EM116: =$E116/4*'Partnership Pre-tax Cash Flow'!EM$5 -> 0 | EN116: =$E116/4*'Partnership Pre-tax Cash Flow'!EN$5 -> 0 | EO116: =$E116/4*'Partnership Pre-tax Cash Flow'!EO$5 -> 0 | EP116: =$E116/4*'Partnership Pre-tax Cash Flow'!EP$5 -> 0 | EQ116: =$E116/4*'Partnership Pre-tax Cash Flow'!EQ$5 -> 0 | ER116: =$E116/4*'Partnership Pre-tax Cash Flow'!ER$5 -> 0 | ES116: =$E116/4*'Partnership Pre-tax Cash Flow'!ES$5 -> 0 | ET116: =$E116/4*'Partnership Pre-tax Cash Flow'!ET$5 -> 0 | EU116: =$E116/4*'Partnership Pre-tax Cash Flow'!EU$5 -> 0 | EV116: =$E116/4*'Partnership Pre-tax Cash Flow'!EV$5 -> 0 | EW116: =$E116/4*'Partnership Pre-tax Cash Flow'!EW$5 -> 0 | EX116: =$E116/4*'Partnership Pre-tax Cash Flow'!EX$5 -> 0 | EY116: =$E116/4*'Partnership Pre-tax Cash Flow'!EY$5 -> 0 | EZ116: =$E116/4*'Partnership Pre-tax Cash Flow'!EZ$5 -> 0 | FA116: =$E116/4*'Partnership Pre-tax Cash Flow'!FA$5 -> 0 | FB116: =$E116/4*'Partnership Pre-tax Cash Flow'!FB$5 -> 0 | FC116: =$E116/4*'Partnership Pre-tax Cash Flow'!FC$5 -> 0 | FD116: =$E116/4*'Partnership Pre-tax Cash Flow'!FD$5 -> 0 | FE116: =$E116/4*'Partnership Pre-tax Cash Flow'!FE$5 -> 0 | FF116: =$E116/4*'Partnership Pre-tax Cash Flow'!FF$5 -> 0 | FG116: =$E116/4*'Partnership Pre-tax Cash Flow'!FG$5 -> 0 | FH116: =$E116/4*'Partnership Pre-tax Cash Flow'!FH$5 -> 0 | FI116: =$E116/4*'Partnership Pre-tax Cash Flow'!FI$5 -> 0 | FJ116: =$E116/4*'Partnership Pre-tax Cash Flow'!FJ$5 -> 0 | FK116: =$E116/4*'Partnership Pre-tax Cash Flow'!FK$5 -> 0 | FL116: =$E116/4*'Partnership Pre-tax Cash Flow'!FL$5 -> 0 | FM116: =$E116/4*'Partnership Pre-tax Cash Flow'!FM$5 -> 0 | FN116: =$E116/4*'Partnership Pre-tax Cash Flow'!FN$5 -> 0 | FO116: =$E116/4*'Partnership Pre-tax Cash Flow'!FO$5 -> 0 | FP116: =$E116/4*'Partnership Pre-tax Cash Flow'!FP$5 -> 0 | FQ116: =$E116/4*'Partnership Pre-tax Cash Flow'!FQ$5 -> 0 | FR116: =$E116/4*'Partnership Pre-tax Cash Flow'!FR$5 -> 0 | FS116: =$E116/4*'Partnership Pre-tax Cash Flow'!FS$5 -> 0
C117: Contingency | D117: USD '000 | E117: ='Inputs - Partnership'!E26 -> 13950 | F117: ='Inputs - Tax'!E11 -> 2 | H117: 13950 | I117: =$E117/4*'Partnership Pre-tax Cash Flow'!I$5 -> 0 | J117: =$E117/4*'Partnership Pre-tax Cash Flow'!J$5 -> 0 | K117: =$E117/4*'Partnership Pre-tax Cash Flow'!K$5 -> 0 | L117: =$E117/4*'Partnership Pre-tax Cash Flow'!L$5 -> 0 | M117: =$E117/4*'Partnership Pre-tax Cash Flow'!M$5 -> 3487.5 | N117: =$E117/4*'Partnership Pre-tax Cash Flow'!N$5 -> 3487.5 | O117: =$E117/4*'Partnership Pre-tax Cash Flow'!O$5 -> 3487.5 | P117: =$E117/4*'Partnership Pre-tax Cash Flow'!P$5 -> 3487.5 | Q117: =$E117/4*'Partnership Pre-tax Cash Flow'!Q$5 -> 0 | R117: =$E117/4*'Partnership Pre-tax Cash Flow'!R$5 -> 0 | S117: =$E117/4*'Partnership Pre-tax Cash Flow'!S$5 -> 0 | T117: =$E117/4*'Partnership Pre-tax Cash Flow'!T$5 -> 0 | U117: =$E117/4*'Partnership Pre-tax Cash Flow'!U$5 -> 0 | V117: =$E117/4*'Partnership Pre-tax Cash Flow'!V$5 -> 0 | W117: =$E117/4*'Partnership Pre-tax Cash Flow'!W$5 -> 0 | X117: =$E117/4*'Partnership Pre-tax Cash Flow'!X$5 -> 0 | Y117: =$E117/4*'Partnership Pre-tax Cash Flow'!Y$5 -> 0 | Z117: =$E117/4*'Partnership Pre-tax Cash Flow'!Z$5 -> 0 | AA117: =$E117/4*'Partnership Pre-tax Cash Flow'!AA$5 -> 0 | AB117: =$E117/4*'Partnership Pre-tax Cash Flow'!AB$5 -> 0 | AC117: =$E117/4*'Partnership Pre-tax Cash Flow'!AC$5 -> 0 | AD117: =$E117/4*'Partnership Pre-tax Cash Flow'!AD$5 -> 0 | AE117: =$E117/4*'Partnership Pre-tax Cash Flow'!AE$5 -> 0 | AF117: =$E117/4*'Partnership Pre-tax Cash Flow'!AF$5 -> 0 | AG117: =$E117/4*'Partnership Pre-tax Cash Flow'!AG$5 -> 0 | AH117: =$E117/4*'Partnership Pre-tax Cash Flow'!AH$5 -> 0 | AI117: =$E117/4*'Partnership Pre-tax Cash Flow'!AI$5 -> 0 | AJ117: =$E117/4*'Partnership Pre-tax Cash Flow'!AJ$5 -> 0 | AK117: =$E117/4*'Partnership Pre-tax Cash Flow'!AK$5 -> 0 | AL117: =$E117/4*'Partnership Pre-tax Cash Flow'!AL$5 -> 0 | AM117: =$E117/4*'Partnership Pre-tax Cash Flow'!AM$5 -> 0 | AN117: =$E117/4*'Partnership Pre-tax Cash Flow'!AN$5 -> 0 | AO117: =$E117/4*'Partnership Pre-tax Cash Flow'!AO$5 -> 0 | AP117: =$E117/4*'Partnership Pre-tax Cash Flow'!AP$5 -> 0 | AQ117: =$E117/4*'Partnership Pre-tax Cash Flow'!AQ$5 -> 0 | AR117: =$E117/4*'Partnership Pre-tax Cash Flow'!AR$5 -> 0 | AS117: =$E117/4*'Partnership Pre-tax Cash Flow'!AS$5 -> 0 | AT117: =$E117/4*'Partnership Pre-tax Cash Flow'!AT$5 -> 0 | AU117: =$E117/4*'Partnership Pre-tax Cash Flow'!AU$5 -> 0 | AV117: =$E117/4*'Partnership Pre-tax Cash Flow'!AV$5 -> 0 | AW117: =$E117/4*'Partnership Pre-tax Cash Flow'!AW$5 -> 0 | AX117: =$E117/4*'Partnership Pre-tax Cash Flow'!AX$5 -> 0 | AY117: =$E117/4*'Partnership Pre-tax Cash Flow'!AY$5 -> 0 | AZ117: =$E117/4*'Partnership Pre-tax Cash Flow'!AZ$5 -> 0 | BA117: =$E117/4*'Partnership Pre-tax Cash Flow'!BA$5 -> 0 | BB117: =$E117/4*'Partnership Pre-tax Cash Flow'!BB$5 -> 0 | BC117: =$E117/4*'Partnership Pre-tax Cash Flow'!BC$5 -> 0 | BD117: =$E117/4*'Partnership Pre-tax Cash Flow'!BD$5 -> 0 | BE117: =$E117/4*'Partnership Pre-tax Cash Flow'!BE$5 -> 0 | BF117: =$E117/4*'Partnership Pre-tax Cash Flow'!BF$5 -> 0 | BG117: =$E117/4*'Partnership Pre-tax Cash Flow'!BG$5 -> 0 | BH117: =$E117/4*'Partnership Pre-tax Cash Flow'!BH$5 -> 0 | BI117: =$E117/4*'Partnership Pre-tax Cash Flow'!BI$5 -> 0 | BJ117: =$E117/4*'Partnership Pre-tax Cash Flow'!BJ$5 -> 0 | BK117: =$E117/4*'Partnership Pre-tax Cash Flow'!BK$5 -> 0 | BL117: =$E117/4*'Partnership Pre-tax Cash Flow'!BL$5 -> 0 | BM117: =$E117/4*'Partnership Pre-tax Cash Flow'!BM$5 -> 0 | BN117: =$E117/4*'Partnership Pre-tax Cash Flow'!BN$5 -> 0 | BO117: =$E117/4*'Partnership Pre-tax Cash Flow'!BO$5 -> 0 | BP117: =$E117/4*'Partnership Pre-tax Cash Flow'!BP$5 -> 0 | BQ117: =$E117/4*'Partnership Pre-tax Cash Flow'!BQ$5 -> 0 | BR117: =$E117/4*'Partnership Pre-tax Cash Flow'!BR$5 -> 0 | BS117: =$E117/4*'Partnership Pre-tax Cash Flow'!BS$5 -> 0 | BT117: =$E117/4*'Partnership Pre-tax Cash Flow'!BT$5 -> 0 | BU117: =$E117/4*'Partnership Pre-tax Cash Flow'!BU$5 -> 0 | BV117: =$E117/4*'Partnership Pre-tax Cash Flow'!BV$5 -> 0 | BW117: =$E117/4*'Partnership Pre-tax Cash Flow'!BW$5 -> 0 | BX117: =$E117/4*'Partnership Pre-tax Cash Flow'!BX$5 -> 0 | BY117: =$E117/4*'Partnership Pre-tax Cash Flow'!BY$5 -> 0 | BZ117: =$E117/4*'Partnership Pre-tax Cash Flow'!BZ$5 -> 0 | CA117: =$E117/4*'Partnership Pre-tax Cash Flow'!CA$5 -> 0 | CB117: =$E117/4*'Partnership Pre-tax Cash Flow'!CB$5 -> 0 | CC117: =$E117/4*'Partnership Pre-tax Cash Flow'!CC$5 -> 0 | CD117: =$E117/4*'Partnership Pre-tax Cash Flow'!CD$5 -> 0 | CE117: =$E117/4*'Partnership Pre-tax Cash Flow'!CE$5 -> 0 | CF117: =$E117/4*'Partnership Pre-tax Cash Flow'!CF$5 -> 0 | CG117: =$E117/4*'Partnership Pre-tax Cash Flow'!CG$5 -> 0 | CH117: =$E117/4*'Partnership Pre-tax Cash Flow'!CH$5 -> 0 | CI117: =$E117/4*'Partnership Pre-tax Cash Flow'!CI$5 -> 0 | CJ117: =$E117/4*'Partnership Pre-tax Cash Flow'!CJ$5 -> 0 | CK117: =$E117/4*'Partnership Pre-tax Cash Flow'!CK$5 -> 0 | CL117: =$E117/4*'Partnership Pre-tax Cash Flow'!CL$5 -> 0 | CM117: =$E117/4*'Partnership Pre-tax Cash Flow'!CM$5 -> 0 | CN117: =$E117/4*'Partnership Pre-tax Cash Flow'!CN$5 -> 0 | CO117: =$E117/4*'Partnership Pre-tax Cash Flow'!CO$5 -> 0 | CP117: =$E117/4*'Partnership Pre-tax Cash Flow'!CP$5 -> 0 | CQ117: =$E117/4*'Partnership Pre-tax Cash Flow'!CQ$5 -> 0 | CR117: =$E117/4*'Partnership Pre-tax Cash Flow'!CR$5 -> 0 | CS117: =$E117/4*'Partnership Pre-tax Cash Flow'!CS$5 -> 0 | CT117: =$E117/4*'Partnership Pre-tax Cash Flow'!CT$5 -> 0 | CU117: =$E117/4*'Partnership Pre-tax Cash Flow'!CU$5 -> 0 | CV117: =$E117/4*'Partnership Pre-tax Cash Flow'!CV$5 -> 0 | CW117: =$E117/4*'Partnership Pre-tax Cash Flow'!CW$5 -> 0 | CX117: =$E117/4*'Partnership Pre-tax Cash Flow'!CX$5 -> 0 | CY117: =$E117/4*'Partnership Pre-tax Cash Flow'!CY$5 -> 0 | CZ117: =$E117/4*'Partnership Pre-tax Cash Flow'!CZ$5 -> 0 | DA117: =$E117/4*'Partnership Pre-tax Cash Flow'!DA$5 -> 0 | DB117: =$E117/4*'Partnership Pre-tax Cash Flow'!DB$5 -> 0 | DC117: =$E117/4*'Partnership Pre-tax Cash Flow'!DC$5 -> 0 | DD117: =$E117/4*'Partnership Pre-tax Cash Flow'!DD$5 -> 0 | DE117: =$E117/4*'Partnership Pre-tax Cash Flow'!DE$5 -> 0 | DF117: =$E117/4*'Partnership Pre-tax Cash Flow'!DF$5 -> 0 | DG117: =$E117/4*'Partnership Pre-tax Cash Flow'!DG$5 -> 0 | DH117: =$E117/4*'Partnership Pre-tax Cash Flow'!DH$5 -> 0 | DI117: =$E117/4*'Partnership Pre-tax Cash Flow'!DI$5 -> 0 | DJ117: =$E117/4*'Partnership Pre-tax Cash Flow'!DJ$5 -> 0 | DK117: =$E117/4*'Partnership Pre-tax Cash Flow'!DK$5 -> 0 | DL117: =$E117/4*'Partnership Pre-tax Cash Flow'!DL$5 -> 0 | DM117: =$E117/4*'Partnership Pre-tax Cash Flow'!DM$5 -> 0 | DN117: =$E117/4*'Partnership Pre-tax Cash Flow'!DN$5 -> 0 | DO117: =$E117/4*'Partnership Pre-tax Cash Flow'!DO$5 -> 0 | DP117: =$E117/4*'Partnership Pre-tax Cash Flow'!DP$5 -> 0 | DQ117: =$E117/4*'Partnership Pre-tax Cash Flow'!DQ$5 -> 0 | DR117: =$E117/4*'Partnership Pre-tax Cash Flow'!DR$5 -> 0 | DS117: =$E117/4*'Partnership Pre-tax Cash Flow'!DS$5 -> 0 | DT117: =$E117/4*'Partnership Pre-tax Cash Flow'!DT$5 -> 0 | DU117: =$E117/4*'Partnership Pre-tax Cash Flow'!DU$5 -> 0 | DV117: =$E117/4*'Partnership Pre-tax Cash Flow'!DV$5 -> 0 | DW117: =$E117/4*'Partnership Pre-tax Cash Flow'!DW$5 -> 0 | DX117: =$E117/4*'Partnership Pre-tax Cash Flow'!DX$5 -> 0 | DY117: =$E117/4*'Partnership Pre-tax Cash Flow'!DY$5 -> 0 | DZ117: =$E117/4*'Partnership Pre-tax Cash Flow'!DZ$5 -> 0 | EA117: =$E117/4*'Partnership Pre-tax Cash Flow'!EA$5 -> 0 | EB117: =$E117/4*'Partnership Pre-tax Cash Flow'!EB$5 -> 0 | EC117: =$E117/4*'Partnership Pre-tax Cash Flow'!EC$5 -> 0 | ED117: =$E117/4*'Partnership Pre-tax Cash Flow'!ED$5 -> 0 | EE117: =$E117/4*'Partnership Pre-tax Cash Flow'!EE$5 -> 0 | EF117: =$E117/4*'Partnership Pre-tax Cash Flow'!EF$5 -> 0 | EG117: =$E117/4*'Partnership Pre-tax Cash Flow'!EG$5 -> 0 | EH117: =$E117/4*'Partnership Pre-tax Cash Flow'!EH$5 -> 0 | EI117: =$E117/4*'Partnership Pre-tax Cash Flow'!EI$5 -> 0 | EJ117: =$E117/4*'Partnership Pre-tax Cash Flow'!EJ$5 -> 0 | EK117: =$E117/4*'Partnership Pre-tax Cash Flow'!EK$5 -> 0 | EL117: =$E117/4*'Partnership Pre-tax Cash Flow'!EL$5 -> 0 | EM117: =$E117/4*'Partnership Pre-tax Cash Flow'!EM$5 -> 0 | EN117: =$E117/4*'Partnership Pre-tax Cash Flow'!EN$5 -> 0 | EO117: =$E117/4*'Partnership Pre-tax Cash Flow'!EO$5 -> 0 | EP117: =$E117/4*'Partnership Pre-tax Cash Flow'!EP$5 -> 0 | EQ117: =$E117/4*'Partnership Pre-tax Cash Flow'!EQ$5 -> 0 | ER117: =$E117/4*'Partnership Pre-tax Cash Flow'!ER$5 -> 0 | ES117: =$E117/4*'Partnership Pre-tax Cash Flow'!ES$5 -> 0 | ET117: =$E117/4*'Partnership Pre-tax Cash Flow'!ET$5 -> 0 | EU117: =$E117/4*'Partnership Pre-tax Cash Flow'!EU$5 -> 0 | EV117: =$E117/4*'Partnership Pre-tax Cash Flow'!EV$5 -> 0 | EW117: =$E117/4*'Partnership Pre-tax Cash Flow'!EW$5 -> 0 | EX117: =$E117/4*'Partnership Pre-tax Cash Flow'!EX$5 -> 0 | EY117: =$E117/4*'Partnership Pre-tax Cash Flow'!EY$5 -> 0 | EZ117: =$E117/4*'Partnership Pre-tax Cash Flow'!EZ$5 -> 0 | FA117: =$E117/4*'Partnership Pre-tax Cash Flow'!FA$5 -> 0 | FB117: =$E117/4*'Partnership Pre-tax Cash Flow'!FB$5 -> 0 | FC117: =$E117/4*'Partnership Pre-tax Cash Flow'!FC$5 -> 0 | FD117: =$E117/4*'Partnership Pre-tax Cash Flow'!FD$5 -> 0 | FE117: =$E117/4*'Partnership Pre-tax Cash Flow'!FE$5 -> 0 | FF117: =$E117/4*'Partnership Pre-tax Cash Flow'!FF$5 -> 0 | FG117: =$E117/4*'Partnership Pre-tax Cash Flow'!FG$5 -> 0 | FH117: =$E117/4*'Partnership Pre-tax Cash Flow'!FH$5 -> 0 | FI117: =$E117/4*'Partnership Pre-tax Cash Flow'!FI$5 -> 0 | FJ117: =$E117/4*'Partnership Pre-tax Cash Flow'!FJ$5 -> 0 | FK117: =$E117/4*'Partnership Pre-tax Cash Flow'!FK$5 -> 0 | FL117: =$E117/4*'Partnership Pre-tax Cash Flow'!FL$5 -> 0 | FM117: =$E117/4*'Partnership Pre-tax Cash Flow'!FM$5 -> 0 | FN117: =$E117/4*'Partnership Pre-tax Cash Flow'!FN$5 -> 0 | FO117: =$E117/4*'Partnership Pre-tax Cash Flow'!FO$5 -> 0 | FP117: =$E117/4*'Partnership Pre-tax Cash Flow'!FP$5 -> 0 | FQ117: =$E117/4*'Partnership Pre-tax Cash Flow'!FQ$5 -> 0 | FR117: =$E117/4*'Partnership Pre-tax Cash Flow'!FR$5 -> 0 | FS117: =$E117/4*'Partnership Pre-tax Cash Flow'!FS$5 -> 0
C118: Total | D118: USD '000 | H118: 292950 | I118: =SUM(I113:I117) -> 0 | J118: 0 | K118: 0 | L118: 0 | M118: 73237.5 | N118: 73237.5 | O118: 73237.5 | P118: 73237.5 | Q118: 0 | R118: 0 | S118: 0 | T118: 0 | U118: 0 | V118: 0 | W118: 0 | X118: 0 | Y118: 0 | Z118: 0 | AA118: 0 | AB118: 0 | AC118: 0 | AD118: 0 | AE118: 0 | AF118: 0 | AG118: 0 | AH118: 0 | AI118: 0 | AJ118: 0 | AK118: 0 | AL118: 0 | AM118: 0 | AN118: 0 | AO118: =SUM(AO113:AO117) -> 0 | AP118: 0 | AQ118: 0 | AR118: 0 | AS118: 0 | AT118: 0 | AU118: 0 | AV118: 0 | AW118: 0 | AX118: 0 | AY118: 0 | AZ118: 0 | BA118: 0 | BB118: 0 | BC118: 0 | BD118: 0 | BE118: 0 | BF118: 0 | BG118: 0 | BH118: 0 | BI118: 0 | BJ118: 0 | BK118: 0 | BL118: 0 | BM118: 0 | BN118: 0 | BO118: 0 | BP118: 0 | BQ118: 0 | BR118: 0 | BS118: 0 | BT118: 0 | BU118: =SUM(BU113:BU117) -> 0 | BV118: 0 | BW118: 0 | BX118: 0 | BY118: 0 | BZ118: 0 | CA118: 0 | CB118: 0 | CC118: 0 | CD118: 0 | CE118: 0 | CF118: 0 | CG118: 0 | CH118: 0 | CI118: 0 | CJ118: 0 | CK118: 0 | CL118: 0 | CM118: 0 | CN118: 0 | CO118: 0 | CP118: 0 | CQ118: 0 | CR118: 0 | CS118: 0 | CT118: 0 | CU118: 0 | CV118: 0 | CW118: 0 | CX118: 0 | CY118: 0 | CZ118: 0 | DA118: =SUM(DA113:DA117) -> 0 | DB118: 0 | DC118: 0 | DD118: 0 | DE118: 0 | DF118: 0 | DG118: 0 | DH118: 0 | DI118: 0 | DJ118: 0 | DK118: 0 | DL118: 0 | DM118: 0 | DN118: 0 | DO118: 0 | DP118: 0 | DQ118: 0 | DR118: 0 | DS118: 0 | DT118: 0 | DU118: 0 | DV118: 0 | DW118: 0 | DX118: 0 | DY118: 0 | DZ118: 0 | EA118: 0 | EB118: 0 | EC118: 0 | ED118: 0 | EE118: 0 | EF118: 0 | EG118: =SUM(EG113:EG117) -> 0 | EH118: 0 | EI118: 0 | EJ118: 0 | EK118: 0 | EL118: 0 | EM118: 0 | EN118: 0 | EO118: 0 | EP118: 0 | EQ118: 0 | ER118: 0 | ES118: 0 | ET118: 0 | EU118: 0 | EV118: 0 | EW118: 0 | EX118: 0 | EY118: 0 | EZ118: 0 | FA118: 0 | FB118: 0 | FC118: 0 | FD118: 0 | FE118: 0 | FF118: 0 | FG118: 0 | FH118: 0 | FI118: 0 | FJ118: 0 | FK118: 0 | FL118: 0 | FM118: =SUM(FM113:FM117) -> 0 | FN118: 0 | FO118: 0 | FP118: 0 | FQ118: 0 | FR118: 0 | FS118: 0
C120: Total Capex incl development | D120: USD '000 | H120: =SUM(I120:FS120) -> 292950 | I120: =I118 -> 0 | J120: 0 | K120: 0 | L120: 0 | M120: 73237.5 | N120: 73237.5 | O120: 73237.5 | P120: 73237.5 | Q120: 0 | R120: 0 | S120: 0 | T120: 0 | U120: 0 | V120: 0 | W120: 0 | X120: 0 | Y120: 0 | Z120: 0 | AA120: 0 | AB120: 0 | AC120: 0 | AD120: 0 | AE120: 0 | AF120: 0 | AG120: 0 | AH120: 0 | AI120: 0 | AJ120: 0 | AK120: 0 | AL120: 0 | AM120: 0 | AN120: 0 | AO120: =AO118 -> 0 | AP120: 0 | AQ120: 0 | AR120: 0 | AS120: 0 | AT120: 0 | AU120: 0 | AV120: 0 | AW120: 0 | AX120: 0 | AY120: 0 | AZ120: 0 | BA120: 0 | BB120: 0 | BC120: 0 | BD120: 0 | BE120: 0 | BF120: 0 | BG120: 0 | BH120: 0 | BI120: 0 | BJ120: 0 | BK120: 0 | BL120: 0 | BM120: 0 | BN120: 0 | BO120: 0 | BP120: 0 | BQ120: 0 | BR120: 0 | BS120: 0 | BT120: 0 | BU120: =BU118 -> 0 | BV120: 0 | BW120: 0 | BX120: 0 | BY120: 0 | BZ120: 0 | CA120: 0 | CB120: 0 | CC120: 0 | CD120: 0 | CE120: 0 | CF120: 0 | CG120: 0 | CH120: 0 | CI120: 0 | CJ120: 0 | CK120: 0 | CL120: 0 | CM120: 0 | CN120: 0 | CO120: 0 | CP120: 0 | CQ120: 0 | CR120: 0 | CS120: 0 | CT120: 0 | CU120: 0 | CV120: 0 | CW120: 0 | CX120: 0 | CY120: 0 | CZ120: 0 | DA120: =DA118 -> 0 | DB120: 0 | DC120: 0 | DD120: 0 | DE120: 0 | DF120: 0 | DG120: 0 | DH120: 0 | DI120: 0 | DJ120: 0 | DK120: 0 | DL120: 0 | DM120: 0 | DN120: 0 | DO120: 0 | DP120: 0 | DQ120: 0 | DR120: 0 | DS120: 0 | DT120: 0 | DU120: 0 | DV120: 0 | DW120: 0 | DX120: 0 | DY120: 0 | DZ120: 0 | EA120: 0 | EB120: 0 | EC120: 0 | ED120: 0 | EE120: 0 | EF120: 0 | EG120: =EG118 -> 0 | EH120: 0 | EI120: 0 | EJ120: 0 | EK120: 0 | EL120: 0 | EM120: 0 | EN120: 0 | EO120: 0 | EP120: 0 | EQ120: 0 | ER120: 0 | ES120: 0 | ET120: 0 | EU120: 0 | EV120: 0 | EW120: 0 | EX120: 0 | EY120: 0 | EZ120: 0 | FA120: 0 | FB120: 0 | FC120: 0 | FD120: 0 | FE120: 0 | FF120: 0 | FG120: 0 | FH120: 0 | FI120: 0 | FJ120: 0 | FK120: 0 | FL120: 0 | FM120: =FM118 -> 0 | FN120: 0 | FO120: 0 | FP120: 0 | FQ120: 0 | FR120: 0 | FS120: 0
C121: Total Capex excl development | D121: USD '000 | H121: =SUM(I121:FS121) -> 292950 | I121: =SUM($I$114:$FS$117)*I110 -> 0 | J121: 0 | K121: 0 | L121: 0 | M121: 73237.5 | N121: 73237.5 | O121: 73237.5 | P121: 73237.5 | Q121: 0 | R121: 0 | S121: 0 | T121: 0 | U121: 0 | V121: 0 | W121: 0 | X121: 0 | Y121: 0 | Z121: 0 | AA121: 0 | AB121: 0 | AC121: 0 | AD121: 0 | AE121: 0 | AF121: 0 | AG121: 0 | AH121: 0 | AI121: 0 | AJ121: 0 | AK121: 0 | AL121: 0 | AM121: 0 | AN121: 0 | AO121: =SUM($I$114:$FS$117)*AO110 -> 0 | AP121: 0 | AQ121: 0 | AR121: 0 | AS121: 0 | AT121: 0 | AU121: 0 | AV121: 0 | AW121: 0 | AX121: 0 | AY121: 0 | AZ121: 0 | BA121: 0 | BB121: 0 | BC121: 0 | BD121: 0 | BE121: 0 | BF121: 0 | BG121: 0 | BH121: 0 | BI121: 0 | BJ121: 0 | BK121: 0 | BL121: 0 | BM121: 0 | BN121: 0 | BO121: 0 | BP121: 0 | BQ121: 0 | BR121: 0 | BS121: 0 | BT121: 0 | BU121: =SUM($I$114:$FS$117)*BU110 -> 0 | BV121: 0 | BW121: 0 | BX121: 0 | BY121: 0 | BZ121: 0 | CA121: 0 | CB121: 0 | CC121: 0 | CD121: 0 | CE121: 0 | CF121: 0 | CG121: 0 | CH121: 0 | CI121: 0 | CJ121: 0 | CK121: 0 | CL121: 0 | CM121: 0 | CN121: 0 | CO121: 0 | CP121: 0 | CQ121: 0 | CR121: 0 | CS121: 0 | CT121: 0 | CU121: 0 | CV121: 0 | CW121: 0 | CX121: 0 | CY121: 0 | CZ121: 0 | DA121: =SUM($I$114:$FS$117)*DA110 -> 0 | DB121: 0 | DC121: 0 | DD121: 0 | DE121: 0 | DF121: 0 | DG121: 0 | DH121: 0 | DI121: 0 | DJ121: 0 | DK121: 0 | DL121: 0 | DM121: 0 | DN121: 0 | DO121: 0 | DP121: 0 | DQ121: 0 | DR121: 0 | DS121: 0 | DT121: 0 | DU121: 0 | DV121: 0 | DW121: 0 | DX121: 0 | DY121: 0 | DZ121: 0 | EA121: 0 | EB121: 0 | EC121: 0 | ED121: 0 | EE121: 0 | EF121: 0 | EG121: =SUM($I$114:$FS$117)*EG110 -> 0 | EH121: 0 | EI121: 0 | EJ121: 0 | EK121: 0 | EL121: 0 | EM121: 0 | EN121: 0 | EO121: 0 | EP121: 0 | EQ121: 0 | ER121: 0 | ES121: 0 | ET121: 0 | EU121: 0 | EV121: 0 | EW121: 0 | EX121: 0 | EY121: 0 | EZ121: 0 | FA121: 0 | FB121: 0 | FC121: 0 | FD121: 0 | FE121: 0 | FF121: 0 | FG121: 0 | FH121: 0 | FI121: 0 | FJ121: 0 | FK121: 0 | FL121: 0 | FM121: =SUM($I$114:$FS$117)*FM110 -> 0 | FN121: 0 | FO121: 0 | FP121: 0 | FQ121: 0 | FR121: 0 | FS121: 0
B123: Unlevered IRR and Cash Flow at P50
C124: Pre tax unlevered free cash flow
C125: EBITDA | H125: =SUM(I125:FS125) -> -121149.1035 | I125: =I102 -> 0 | J125: 0 | K125: 0 | L125: 0 | M125: 0 | N125: 0 | O125: 0 | P125: 0 | Q125: -781.0014208 | R125: -781.819381 | S125: -782.6414007 | T125: -783.4675 | U125: -784.2976992 | V125: -785.1320186 | W125: -785.9704787 | X125: -786.8131 | Y125: -787.6599032 | Z125: -788.510909 | AA125: -789.3661383 | AB125: -790.225612 | AC125: -791.0893512 | AD125: -791.9573772 | AE125: -792.829711 | AF125: -793.7063742 | AG125: -817.0611147 | AH125: -817.9465011 | AI125: -818.8362816 | AJ125: -819.7304781 | AK125: -821.0819693 | AL125: -821.9850634 | AM125: -822.8926396 | AN125: -823.80472 | AO125: =AO102 -> -825.1833091 | AP125: -826.1044652 | AQ125: -827.0301928 | AR125: -827.9605149 | AS125: -829.3667453 | AT125: -830.3063245 | AU125: -831.2505667 | AV125: -832.1994951 | AW125: -833.6339211 | AX125: -834.5922919 | AY125: -835.555419 | AZ125: -836.523326 | BA125: -837.9865128 | BB125: -838.964051 | BC125: -839.9464406 | BD125: -840.9337058 | BE125: -842.4262302 | BF125: -843.4233191 | BG125: -844.4253565 | BH125: -845.432367 | BI125: -846.9548172 | BJ125: -847.9718479 | BK125: -848.9939261 | BL125: -850.0210767 | BM125: -851.5740527 | BN125: -852.6114241 | BO125: -853.6539438 | BP125: -854.7016375 | BQ125: -856.2857514 | BR125: -857.3438702 | BS125: -858.4072403 | BT125: -859.4758878 | BU125: =BU102 -> -861.091764 | BV125: -862.1710451 | BW125: -863.2556826 | BX125: -864.3457031 | BY125: -865.9939784 | BZ125: -867.0948451 | CA125: -868.2011754 | CB125: -869.3129963 | CC125: -870.9943202 | CD125: -872.1172043 | CE125: -873.2456612 | CF125: -874.3797185 | CG125: -876.0947538 | CH125: -877.2400956 | CI125: -878.3911216 | CJ125: -879.5478601 | CK125: -881.2972827 | CL125: -882.4655313 | CM125: -883.6395778 | CN125: -884.8194511 | CO125: -886.6039504 | CP125: -887.795564 | CQ125: -888.9930915 | CR125: -890.1965622 | CS125: -861.0923164 | CT125: -862.3077622 | CU125: -863.5292403 | CV125: -864.7567804 | CW125: -865.9904127 | CX125: -867.2301675 | CY125: -868.4760751 | CZ125: -869.728166 | DA125: =DA102 -> -870.986471 | DB125: -872.2510208 | DC125: -873.5218466 | DD125: -874.7989793 | DE125: -876.0824504 | DF125: -877.3722913 | DG125: -878.6685335 | DH125: -879.9712089 | DI125: -881.2803494 | DJ125: -882.5959871 | DK125: -883.9181542 | DL125: -885.2468831 | DM125: -886.5822064 | DN125: -887.9241568 | DO125: -889.2727673 | DP125: -890.6280708 | DQ125: -891.9901005 | DR125: -893.35889 | DS125: -894.7344726 | DT125: -896.1168822 | DU125: -897.5061525 | DV125: -898.9023178 | DW125: -900.3054121 | DX125: -901.7154698 | DY125: -903.1325256 | DZ125: -904.5566141 | EA125: -905.9877703 | EB125: -907.4260292 | EC125: -908.8714261 | ED125: -910.3239964 | EE125: -911.7837757 | EF125: -913.2507998 | EG125: =EG102 -> -914.7251046 | EH125: -916.2067263 | EI125: -917.6957012 | EJ125: -919.1920658 | EK125: -920.6958567 | EL125: -922.2071109 | EM125: -923.7258652 | EN125: -925.2521571 | EO125: -926.7860238 | EP125: -928.3275031 | EQ125: -929.8766325 | ER125: -931.4334502 | ES125: -932.9979943 | ET125: -934.5703031 | EU125: -936.1504152 | EV125: -937.7383693 | EW125: -939.3342042 | EX125: -940.9379592 | EY125: -942.5496735 | EZ125: -944.1693866 | FA125: 0 | FB125: 0 | FC125: 0 | FD125: 0 | FE125: 0 | FF125: 0 | FG125: 0 | FH125: 0 | FI125: 0 | FJ125: 0 | FK125: 0 | FL125: 0 | FM125: =FM102 -> 0 | FN125: 0 | FO125: 0 | FP125: 0 | FQ125: 0 | FR125: 0 | FS125: 0
C126: Less: CapEx | H126: =SUM(I126:FS126) -> 292950 | I126: =I120 -> 0 | J126: 0 | K126: 0 | L126: 0 | M126: 73237.5 | N126: 73237.5 | O126: 73237.5 | P126: 73237.5 | Q126: 0 | R126: 0 | S126: 0 | T126: 0 | U126: 0 | V126: 0 | W126: 0 | X126: 0 | Y126: 0 | Z126: 0 | AA126: 0 | AB126: 0 | AC126: 0 | AD126: 0 | AE126: 0 | AF126: 0 | AG126: 0 | AH126: 0 | AI126: 0 | AJ126: 0 | AK126: 0 | AL126: 0 | AM126: 0 | AN126: 0 | AO126: =AO120 -> 0 | AP126: 0 | AQ126: 0 | AR126: 0 | AS126: 0 | AT126: 0 | AU126: 0 | AV126: 0 | AW126: 0 | AX126: 0 | AY126: 0 | AZ126: 0 | BA126: 0 | BB126: 0 | BC126: 0 | BD126: 0 | BE126: 0 | BF126: 0 | BG126: 0 | BH126: 0 | BI126: 0 | BJ126: 0 | BK126: 0 | BL126: 0 | BM126: 0 | BN126: 0 | BO126: 0 | BP126: 0 | BQ126: 0 | BR126: 0 | BS126: 0 | BT126: 0 | BU126: =BU120 -> 0 | BV126: 0 | BW126: 0 | BX126: 0 | BY126: 0 | BZ126: 0 | CA126: 0 | CB126: 0 | CC126: 0 | CD126: 0 | CE126: 0 | CF126: 0 | CG126: 0 | CH126: 0 | CI126: 0 | CJ126: 0 | CK126: 0 | CL126: 0 | CM126: 0 | CN126: 0 | CO126: 0 | CP126: 0 | CQ126: 0 | CR126: 0 | CS126: 0 | CT126: 0 | CU126: 0 | CV126: 0 | CW126: 0 | CX126: 0 | CY126: 0 | CZ126: 0 | DA126: =DA120 -> 0 | DB126: 0 | DC126: 0 | DD126: 0 | DE126: 0 | DF126: 0 | DG126: 0 | DH126: 0 | DI126: 0 | DJ126: 0 | DK126: 0 | DL126: 0 | DM126: 0 | DN126: 0 | DO126: 0 | DP126: 0 | DQ126: 0 | DR126: 0 | DS126: 0 | DT126: 0 | DU126: 0 | DV126: 0 | DW126: 0 | DX126: 0 | DY126: 0 | DZ126: 0 | EA126: 0 | EB126: 0 | EC126: 0 | ED126: 0 | EE126: 0 | EF126: 0 | EG126: =EG120 -> 0 | EH126: 0 | EI126: 0 | EJ126: 0 | EK126: 0 | EL126: 0 | EM126: 0 | EN126: 0 | EO126: 0 | EP126: 0 | EQ126: 0 | ER126: 0 | ES126: 0 | ET126: 0 | EU126: 0 | EV126: 0 | EW126: 0 | EX126: 0 | EY126: 0 | EZ126: 0 | FA126: 0 | FB126: 0 | FC126: 0 | FD126: 0 | FE126: 0 | FF126: 0 | FG126: 0 | FH126: 0 | FI126: 0 | FJ126: 0 | FK126: 0 | FL126: 0 | FM126: =FM120 -> 0 | FN126: 0 | FO126: 0 | FP126: 0 | FQ126: 0 | FR126: 0 | FS126: 0
C127: Unlevered partnership cash flow | I127: =I125-I126 -> 0 | J127: =J125-J126 -> 0 | K127: 0 | L127: 0 | M127: -73237.5 | N127: -73237.5 | O127: -73237.5 | P127: -73237.5 | Q127: -781.0014208 | R127: -781.819381 | S127: -782.6414007 | T127: -783.4675 | U127: -784.2976992 | V127: -785.1320186 | W127: -785.9704787 | X127: -786.8131 | Y127: -787.6599032 | Z127: -788.510909 | AA127: -789.3661383 | AB127: -790.225612 | AC127: -791.0893512 | AD127: -791.9573772 | AE127: -792.829711 | AF127: -793.7063742 | AG127: -817.0611147 | AH127: -817.9465011 | AI127: -818.8362816 | AJ127: -819.7304781 | AK127: -821.0819693 | AL127: -821.9850634 | AM127: -822.8926396 | AN127: -823.80472 | AO127: -825.1833091 | AP127: -826.1044652 | AQ127: -827.0301928 | AR127: -827.9605149 | AS127: -829.3667453 | AT127: -830.3063245 | AU127: -831.2505667 | AV127: -832.1994951 | AW127: -833.6339211 | AX127: -834.5922919 | AY127: -835.555419 | AZ127: -836.523326 | BA127: -837.9865128 | BB127: -838.964051 | BC127: -839.9464406 | BD127: -840.9337058 | BE127: -842.4262302 | BF127: -843.4233191 | BG127: -844.4253565 | BH127: -845.432367 | BI127: -846.9548172 | BJ127: -847.9718479 | BK127: -848.9939261 | BL127: -850.0210767 | BM127: -851.5740527 | BN127: -852.6114241 | BO127: -853.6539438 | BP127: -854.7016375 | BQ127: -856.2857514 | BR127: -857.3438702 | BS127: -858.4072403 | BT127: -859.4758878 | BU127: -861.091764 | BV127: =BV125-BV126 -> -862.1710451 | BW127: -863.2556826 | BX127: -864.3457031 | BY127: -865.9939784 | BZ127: -867.0948451 | CA127: -868.2011754 | CB127: -869.3129963 | CC127: -870.9943202 | CD127: -872.1172043 | CE127: -873.2456612 | CF127: -874.3797185 | CG127: -876.0947538 | CH127: -877.2400956 | CI127: -878.3911216 | CJ127: -879.5478601 | CK127: -881.2972827 | CL127: -882.4655313 | CM127: -883.6395778 | CN127: -884.8194511 | CO127: -886.6039504 | CP127: -887.795564 | CQ127: -888.9930915 | CR127: -890.1965622 | CS127: -861.0923164 | CT127: -862.3077622 | CU127: -863.5292403 | CV127: -864.7567804 | CW127: -865.9904127 | CX127: -867.2301675 | CY127: -868.4760751 | CZ127: -869.728166 | DA127: -870.986471 | DB127: -872.2510208 | DC127: -873.5218466 | DD127: -874.7989793 | DE127: -876.0824504 | DF127: -877.3722913 | DG127: -878.6685335 | DH127: -879.9712089 | DI127: -881.2803494 | DJ127: -882.5959871 | DK127: -883.9181542 | DL127: -885.2468831 | DM127: -886.5822064 | DN127: -887.9241568 | DO127: -889.2727673 | DP127: -890.6280708 | DQ127: -891.9901005 | DR127: -893.35889 | DS127: -894.7344726 | DT127: -896.1168822 | DU127: -897.5061525 | DV127: -898.9023178 | DW127: -900.3054121 | DX127: -901.7154698 | DY127: -903.1325256 | DZ127: -904.5566141 | EA127: -905.9877703 | EB127: -907.4260292 | EC127: -908.8714261 | ED127: -910.3239964 | EE127: -911.7837757 | EF127: -913.2507998 | EG127: -914.7251046 | EH127: =EH125-EH126 -> -916.2067263 | EI127: -917.6957012 | EJ127: -919.1920658 | EK127: -920.6958567 | EL127: -922.2071109 | EM127: -923.7258652 | EN127: -925.2521571 | EO127: -926.7860238 | EP127: -928.3275031 | EQ127: -929.8766325 | ER127: -931.4334502 | ES127: -932.9979943 | ET127: -934.5703031 | EU127: -936.1504152 | EV127: -937.7383693 | EW127: -939.3342042 | EX127: -940.9379592 | EY127: -942.5496735 | EZ127: -944.1693866 | FA127: 0 | FB127: 0 | FC127: 0 | FD127: 0 | FE127: 0 | FF127: 0 | FG127: 0 | FH127: 0 | FI127: 0 | FJ127: 0 | FK127: 0 | FL127: 0 | FM127: 0 | FN127: 0 | FO127: 0 | FP127: 0 | FQ127: 0 | FR127: 0 | FS127: 0
C129: Pre tax unlevered IRR
B132: Generation at P99
C133: Rated capacity | D133: MW | E133: ='Inputs - Partnership'!E52 -> 225 | I133: =$E133*I$6 -> 0 | J133: 0 | K133: 0 | L133: 0 | M133: 0 | N133: 0 | O133: 0 | P133: 0 | Q133: 225 | R133: 225 | S133: 225 | T133: 225 | U133: 225 | V133: 225 | W133: 225 | X133: 225 | Y133: 225 | Z133: 225 | AA133: 225 | AB133: 225 | AC133: 225 | AD133: 225 | AE133: 225 | AF133: 225 | AG133: 225 | AH133: 225 | AI133: 225 | AJ133: 225 | AK133: 225 | AL133: 225 | AM133: 225 | AN133: 225 | AO133: 225 | AP133: 225 | AQ133: 225 | AR133: 225 | AS133: 225 | AT133: 225 | AU133: 225 | AV133: 225 | AW133: 225 | AX133: 225 | AY133: 225 | AZ133: 225 | BA133: 225 | BB133: 225 | BC133: 225 | BD133: 225 | BE133: 225 | BF133: 225 | BG133: 225 | BH133: 225 | BI133: 225 | BJ133: 225 | BK133: 225 | BL133: 225 | BM133: 225 | BN133: 225 | BO133: 225 | BP133: 225 | BQ133: 225 | BR133: 225 | BS133: 225 | BT133: 225 | BU133: =$E133*BU$6 -> 225 | BV133: 225 | BW133: 225 | BX133: 225 | BY133: 225 | BZ133: 225 | CA133: 225 | CB133: 225 | CC133: 225 | CD133: 225 | CE133: 225 | CF133: 225 | CG133: 225 | CH133: 225 | CI133: 225 | CJ133: 225 | CK133: 225 | CL133: 225 | CM133: 225 | CN133: 225 | CO133: 225 | CP133: 225 | CQ133: 225 | CR133: 225 | CS133: 225 | CT133: 225 | CU133: 225 | CV133: 225 | CW133: 225 | CX133: 225 | CY133: 225 | CZ133: 225 | DA133: 225 | DB133: 225 | DC133: 225 | DD133: 225 | DE133: 225 | DF133: 225 | DG133: 225 | DH133: 225 | DI133: 225 | DJ133: 225 | DK133: 225 | DL133: 225 | DM133: 225 | DN133: 225 | DO133: 225 | DP133: 225 | DQ133: 225 | DR133: 225 | DS133: 225 | DT133: 225 | DU133: 225 | DV133: 225 | DW133: 225 | DX133: 225 | DY133: 225 | DZ133: 225 | EA133: 225 | EB133: 225 | EC133: 225 | ED133: 225 | EE133: 225 | EF133: 225 | EG133: =$E133*EG$6 -> 225 | EH133: 225 | EI133: 225 | EJ133: 225 | EK133: 225 | EL133: 225 | EM133: 225 | EN133: 225 | EO133: 225 | EP133: 225 | EQ133: 225 | ER133: 225 | ES133: 225 | ET133: 225 | EU133: 225 | EV133: 225 | EW133: 225 | EX133: 225 | EY133: 225 | EZ133: 225 | FA133: 0 | FB133: 0 | FC133: 0 | FD133: 0 | FE133: 0 | FF133: 0 | FG133: 0 | FH133: 0 | FI133: 0 | FJ133: 0 | FK133: 0 | FL133: 0 | FM133: 0 | FN133: 0 | FO133: 0 | FP133: 0 | FQ133: 0 | FR133: 0 | FS133: 0
C134: Degradation | D134: % | E134: ='Inputs - Partnership'!E60 -> 0.006 | I134: =I133/(1+$E134)^(I$14-1) -> 0 | J134: =J133/(1+$E134)^(J$14-1) -> 0 | K134: 0 | L134: 0 | M134: 0 | N134: 0 | O134: 0 | P134: 0 | Q134: 225 | R134: 225 | S134: 225 | T134: 225 | U134: 223.6580517 | V134: 223.6580517 | W134: 223.6580517 | X134: 223.6580517 | Y134: 222.324107 | Z134: 222.324107 | AA134: 222.324107 | AB134: 222.324107 | AC134: 220.9981183 | AD134: 220.9981183 | AE134: 220.9981183 | AF134: 220.9981183 | AG134: 219.6800381 | AH134: 219.6800381 | AI134: 219.6800381 | AJ134: 219.6800381 | AK134: 218.3698192 | AL134: 218.3698192 | AM134: 218.3698192 | AN134: 218.3698192 | AO134: 217.0674147 | AP134: 217.0674147 | AQ134: 217.0674147 | AR134: 217.0674147 | AS134: 215.772778 | AT134: 215.772778 | AU134: 215.772778 | AV134: 215.772778 | AW134: 214.4858629 | AX134: 214.4858629 | AY134: 214.4858629 | AZ134: 214.4858629 | BA134: 213.2066231 | BB134: 213.2066231 | BC134: 213.2066231 | BD134: 213.2066231 | BE134: 211.935013 | BF134: 211.935013 | BG134: 211.935013 | BH134: 211.935013 | BI134: 210.6709871 | BJ134: 210.6709871 | BK134: 210.6709871 | BL134: 210.6709871 | BM134: 209.4145001 | BN134: 209.4145001 | BO134: 209.4145001 | BP134: 209.4145001 | BQ134: 208.1655071 | BR134: 208.1655071 | BS134: 208.1655071 | BT134: 208.1655071 | BU134: 206.9239633 | BV134: =BV133/(1+$E134)^(BV$14-1) -> 206.9239633 | BW134: 206.9239633 | BX134: 206.9239633 | BY134: 205.6898244 | BZ134: 205.6898244 | CA134: 205.6898244 | CB134: 205.6898244 | CC134: 204.4630461 | CD134: 204.4630461 | CE134: 204.4630461 | CF134: 204.4630461 | CG134: 203.2435846 | CH134: 203.2435846 | CI134: 203.2435846 | CJ134: 203.2435846 | CK134: 202.0313962 | CL134: 202.0313962 | CM134: 202.0313962 | CN134: 202.0313962 | CO134: 200.8264376 | CP134: 200.8264376 | CQ134: 200.8264376 | CR134: 200.8264376 | CS134: 199.6286656 | CT134: 199.6286656 | CU134: 199.6286656 | CV134: 199.6286656 | CW134: 198.4380373 | CX134: 198.4380373 | CY134: 198.4380373 | CZ134: 198.4380373 | DA134: 197.2545103 | DB134: 197.2545103 | DC134: 197.2545103 | DD134: 197.2545103 | DE134: 196.078042 | DF134: 196.078042 | DG134: 196.078042 | DH134: 196.078042 | DI134: 194.9085905 | DJ134: 194.9085905 | DK134: 194.9085905 | DL134: 194.9085905 | DM134: 193.7461138 | DN134: 193.7461138 | DO134: 193.7461138 | DP134: 193.7461138 | DQ134: 192.5905704 | DR134: 192.5905704 | DS134: 192.5905704 | DT134: 192.5905704 | DU134: 191.4419189 | DV134: 191.4419189 | DW134: 191.4419189 | DX134: 191.4419189 | DY134: 190.3001182 | DZ134: 190.3001182 | EA134: 190.3001182 | EB134: 190.3001182 | EC134: 189.1651274 | ED134: 189.1651274 | EE134: 189.1651274 | EF134: 189.1651274 | EG134: 188.036906 | EH134: =EH133/(1+$E134)^(EH$14-1) -> 188.036906 | EI134: 188.036906 | EJ134: 188.036906 | EK134: 186.9154135 | EL134: 186.9154135 | EM134: 186.9154135 | EN134: 186.9154135 | EO134: 185.8006098 | EP134: 185.8006098 | EQ134: 185.8006098 | ER134: 185.8006098 | ES134: 184.6924551 | ET134: 184.6924551 | EU134: 184.6924551 | EV134: 184.6924551 | EW134: 183.5909096 | EX134: 183.5909096 | EY134: 183.5909096 | EZ134: 183.5909096 | FA134: 0 | FB134: 0 | FC134: 0 | FD134: 0 | FE134: 0 | FF134: 0 | FG134: 0 | FH134: 0 | FI134: 0 | FJ134: 0 | FK134: 0 | FL134: 0 | FM134: 0 | FN134: 0 | FO134: 0 | FP134: 0 | FQ134: 0 | FR134: 0 | FS134: 0
C135: Production curve | D135: % | I135: =IF(I$13=0,0,LOOKUP(I$13,'Inputs - Partnership'!$E$64:$H$64,'Inputs - Partnership'!$E$65:$H$65)) -> 0 | J135: =IF(J$13=0,0,LOOKUP(J$13,'Inputs - Partnership'!$E$64:$H$64,'Inputs - Partnership'!$E$65:$H$65)) -> 0 | K135: =IF(K$13=0,0,LOOKUP(K$13,'Inputs - Partnership'!$E$64:$H$64,'Inputs - Partnership'!$E$65:$H$65)) -> 0 | L135: =IF(L$13=0,0,LOOKUP(L$13,'Inputs - Partnership'!$E$64:$H$64,'Inputs - Partnership'!$E$65:$H$65)) -> 0 | M135: =IF(M$13=0,0,LOOKUP(M$13,'Inputs - Partnership'!$E$64:$H$64,'Inputs - Partnership'!$E$65:$H$65)) -> 0 | N135: =IF(N$13=0,0,LOOKUP(N$13,'Inputs - Partnership'!$E$64:$H$64,'Inputs - Partnership'!$E$65:$H$65)) -> 0 | O135: =IF(O$13=0,0,LOOKUP(O$13,'Inputs - Partnership'!$E$64:$H$64,'Inputs - Partnership'!$E$65:$H$65)) -> 0 | P135: =IF(P$13=0,0,LOOKUP(P$13,'Inputs - Partnership'!$E$64:$H$64,'Inputs - Partnership'!$E$65:$H$65)) -> 0 | Q135: =IF(Q$13=0,0,LOOKUP(Q$13,'Inputs - Partnership'!$E$64:$H$64,'Inputs - Partnership'!$E$65:$H$65)) -> 0.2 | R135: =IF(R$13=0,0,LOOKUP(R$13,'Inputs - Partnership'!$E$64:$H$64,'Inputs - Partnership'!$E$65:$H$65)) -> 0.325 | S135: =IF(S$13=0,0,LOOKUP(S$13,'Inputs - Partnership'!$E$64:$H$64,'Inputs - Partnership'!$E$65:$H$65)) -> 0.294 | T135: =IF(T$13=0,0,LOOKUP(T$13,'Inputs - Partnership'!$E$64:$H$64,'Inputs - Partnership'!$E$65:$H$65)) -> 0.181 | U135: =IF(U$13=0,0,LOOKUP(U$13,'Inputs - Partnership'!$E$64:$H$64,'Inputs - Partnership'!$E$65:$H$65)) -> 0.181 | V135: =IF(V$13=0,0,LOOKUP(V$13,'Inputs - Partnership'!$E$64:$H$64,'Inputs - Partnership'!$E$65:$H$65)) -> 0.181 | W135: =IF(W$13=0,0,LOOKUP(W$13,'Inputs - Partnership'!$E$64:$H$64,'Inputs - Partnership'!$E$65:$H$65)) -> 0.181 | X135: =IF(X$13=0,0,LOOKUP(X$13,'Inputs - Partnership'!$E$64:$H$64,'Inputs - Partnership'!$E$65:$H$65)) -> 0.181 | Y135: =IF(Y$13=0,0,LOOKUP(Y$13,'Inputs - Partnership'!$E$64:$H$64,'Inputs - Partnership'!$E$65:$H$65)) -> 0.181 | Z135: =IF(Z$13=0,0,LOOKUP(Z$13,'Inputs - Partnership'!$E$64:$H$64,'Inputs - Partnership'!$E$65:$H$65)) -> 0.181 | AA135: =IF(AA$13=0,0,LOOKUP(AA$13,'Inputs - Partnership'!$E$64:$H$64,'Inputs - Partnership'!$E$65:$H$65)) -> 0.181 | AB135: =IF(AB$13=0,0,LOOKUP(AB$13,'Inputs - Partnership'!$E$64:$H$64,'Inputs - Partnership'!$E$65:$H$65)) -> 0.181 | AC135: =IF(AC$13=0,0,LOOKUP(AC$13,'Inputs - Partnership'!$E$64:$H$64,'Inputs - Partnership'!$E$65:$H$65)) -> 0.181 | AD135: =IF(AD$13=0,0,LOOKUP(AD$13,'Inputs - Partnership'!$E$64:$H$64,'Inputs - Partnership'!$E$65:$H$65)) -> 0.181 | AE135: =IF(AE$13=0,0,LOOKUP(AE$13,'Inputs - Partnership'!$E$64:$H$64,'Inputs - Partnership'!$E$65:$H$65)) -> 0.181 | AF135: =IF(AF$13=0,0,LOOKUP(AF$13,'Inputs - Partnership'!$E$64:$H$64,'Inputs - Partnership'!$E$65:$H$65)) -> 0.181 | AG135: =IF(AG$13=0,0,LOOKUP(AG$13,'Inputs - Partnership'!$E$64:$H$64,'Inputs - Partnership'!$E$65:$H$65)) -> 0.181 | AH135: =IF(AH$13=0,0,LOOKUP(AH$13,'Inputs - Partnership'!$E$64:$H$64,'Inputs - Partnership'!$E$65:$H$65)) -> 0.181 | AI135: =IF(AI$13=0,0,LOOKUP(AI$13,'Inputs - Partnership'!$E$64:$H$64,'Inputs - Partnership'!$E$65:$H$65)) -> 0.181 | AJ135: =IF(AJ$13=0,0,LOOKUP(AJ$13,'Inputs - Partnership'!$E$64:$H$64,'Inputs - Partnership'!$E$65:$H$65)) -> 0.181 | AK135: =IF(AK$13=0,0,LOOKUP(AK$13,'Inputs - Partnership'!$E$64:$H$64,'Inputs - Partnership'!$E$65:$H$65)) -> 0.181 | AL135: =IF(AL$13=0,0,LOOKUP(AL$13,'Inputs - Partnership'!$E$64:$H$64,'Inputs - Partnership'!$E$65:$H$65)) -> 0.181 | AM135: =IF(AM$13=0,0,LOOKUP(AM$13,'Inputs - Partnership'!$E$64:$H$64,'Inputs - Partnership'!$E$65:$H$65)) -> 0.181 | AN135: =IF(AN$13=0,0,LOOKUP(AN$13,'Inputs - Partnership'!$E$64:$H$64,'Inputs - Partnership'!$E$65:$H$65)) -> 0.181 | AO135: =IF(AO$13=0,0,LOOKUP(AO$13,'Inputs - Partnership'!$E$64:$H$64,'Inputs - Partnership'!$E$65:$H$65)) -> 0.181 | AP135: =IF(AP$13=0,0,LOOKUP(AP$13,'Inputs - Partnership'!$E$64:$H$64,'Inputs - Partnership'!$E$65:$H$65)) -> 0.181 | AQ135: =IF(AQ$13=0,0,LOOKUP(AQ$13,'Inputs - Partnership'!$E$64:$H$64,'Inputs - Partnership'!$E$65:$H$65)) -> 0.181 | AR135: =IF(AR$13=0,0,LOOKUP(AR$13,'Inputs - Partnership'!$E$64:$H$64,'Inputs - Partnership'!$E$65:$H$65)) -> 0.181 | AS135: =IF(AS$13=0,0,LOOKUP(AS$13,'Inputs - Partnership'!$E$64:$H$64,'Inputs - Partnership'!$E$65:$H$65)) -> 0.181 | AT135: =IF(AT$13=0,0,LOOKUP(AT$13,'Inputs - Partnership'!$E$64:$H$64,'Inputs - Partnership'!$E$65:$H$65)) -> 0.181 | AU135: =IF(AU$13=0,0,LOOKUP(AU$13,'Inputs - Partnership'!$E$64:$H$64,'Inputs - Partnership'!$E$65:$H$65)) -> 0.181 | AV135: =IF(AV$13=0,0,LOOKUP(AV$13,'Inputs - Partnership'!$E$64:$H$64,'Inputs - Partnership'!$E$65:$H$65)) -> 0.181 | AW135: =IF(AW$13=0,0,LOOKUP(AW$13,'Inputs - Partnership'!$E$64:$H$64,'Inputs - Partnership'!$E$65:$H$65)) -> 0.181 | AX135: =IF(AX$13=0,0,LOOKUP(AX$13,'Inputs - Partnership'!$E$64:$H$64,'Inputs - Partnership'!$E$65:$H$65)) -> 0.181 | AY135: =IF(AY$13=0,0,LOOKUP(AY$13,'Inputs - Partnership'!$E$64:$H$64,'Inputs - Partnership'!$E$65:$H$65)) -> 0.181 | AZ135: =IF(AZ$13=0,0,LOOKUP(AZ$13,'Inputs - Partnership'!$E$64:$H$64,'Inputs - Partnership'!$E$65:$H$65)) -> 0.181 | BA135: =IF(BA$13=0,0,LOOKUP(BA$13,'Inputs - Partnership'!$E$64:$H$64,'Inputs - Partnership'!$E$65:$H$65)) -> 0.181 | BB135: =IF(BB$13=0,0,LOOKUP(BB$13,'Inputs - Partnership'!$E$64:$H$64,'Inputs - Partnership'!$E$65:$H$65)) -> 0.181 | BC135: =IF(BC$13=0,0,LOOKUP(BC$13,'Inputs - Partnership'!$E$64:$H$64,'Inputs - Partnership'!$E$65:$H$65)) -> 0.181 | BD135: =IF(BD$13=0,0,LOOKUP(BD$13,'Inputs - Partnership'!$E$64:$H$64,'Inputs - Partnership'!$E$65:$H$65)) -> 0.181 | BE135: =IF(BE$13=0,0,LOOKUP(BE$13,'Inputs - Partnership'!$E$64:$H$64,'Inputs - Partnership'!$E$65:$H$65)) -> 0.181 | BF135: =IF(BF$13=0,0,LOOKUP(BF$13,'Inputs - Partnership'!$E$64:$H$64,'Inputs - Partnership'!$E$65:$H$65)) -> 0.181 | BG135: =IF(BG$13=0,0,LOOKUP(BG$13,'Inputs - Partnership'!$E$64:$H$64,'Inputs - Partnership'!$E$65:$H$65)) -> 0.181 | BH135: =IF(BH$13=0,0,LOOKUP(BH$13,'Inputs - Partnership'!$E$64:$H$64,'Inputs - Partnership'!$E$65:$H$65)) -> 0.181 | BI135: =IF(BI$13=0,0,LOOKUP(BI$13,'Inputs - Partnership'!$E$64:$H$64,'Inputs - Partnership'!$E$65:$H$65)) -> 0.181 | BJ135: =IF(BJ$13=0,0,LOOKUP(BJ$13,'Inputs - Partnership'!$E$64:$H$64,'Inputs - Partnership'!$E$65:$H$65)) -> 0.181 | BK135: =IF(BK$13=0,0,LOOKUP(BK$13,'Inputs - Partnership'!$E$64:$H$64,'Inputs - Partnership'!$E$65:$H$65)) -> 0.181 | BL135: =IF(BL$13=0,0,LOOKUP(BL$13,'Inputs - Partnership'!$E$64:$H$64,'Inputs - Partnership'!$E$65:$H$65)) -> 0.181 | BM135: =IF(BM$13=0,0,LOOKUP(BM$13,'Inputs - Partnership'!$E$64:$H$64,'Inputs - Partnership'!$E$65:$H$65)) -> 0.181 | BN135: =IF(BN$13=0,0,LOOKUP(BN$13,'Inputs - Partnership'!$E$64:$H$64,'Inputs - Partnership'!$E$65:$H$65)) -> 0.181 | BO135: =IF(BO$13=0,0,LOOKUP(BO$13,'Inputs - Partnership'!$E$64:$H$64,'Inputs - Partnership'!$E$65:$H$65)) -> 0.181 | BP135: =IF(BP$13=0,0,LOOKUP(BP$13,'Inputs - Partnership'!$E$64:$H$64,'Inputs - Partnership'!$E$65:$H$65)) -> 0.181 | BQ135: =IF(BQ$13=0,0,LOOKUP(BQ$13,'Inputs - Partnership'!$E$64:$H$64,'Inputs - Partnership'!$E$65:$H$65)) -> 0.181 | BR135: =IF(BR$13=0,0,LOOKUP(BR$13,'Inputs - Partnership'!$E$64:$H$64,'Inputs - Partnership'!$E$65:$H$65)) -> 0.181 | BS135: =IF(BS$13=0,0,LOOKUP(BS$13,'Inputs - Partnership'!$E$64:$H$64,'Inputs - Partnership'!$E$65:$H$65)) -> 0.181 | BT135: =IF(BT$13=0,0,LOOKUP(BT$13,'Inputs - Partnership'!$E$64:$H$64,'Inputs - Partnership'!$E$65:$H$65)) -> 0.181 | BU135: =IF(BU$13=0,0,LOOKUP(BU$13,'Inputs - Partnership'!$E$64:$H$64,'Inputs - Partnership'!$E$65:$H$65)) -> 0.181 | BV135: =IF(BV$13=0,0,LOOKUP(BV$13,'Inputs - Partnership'!$E$64:$H$64,'Inputs - Partnership'!$E$65:$H$65)) -> 0.181 | BW135: =IF(BW$13=0,0,LOOKUP(BW$13,'Inputs - Partnership'!$E$64:$H$64,'Inputs - Partnership'!$E$65:$H$65)) -> 0.181 | BX135: =IF(BX$13=0,0,LOOKUP(BX$13,'Inputs - Partnership'!$E$64:$H$64,'Inputs - Partnership'!$E$65:$H$65)) -> 0.181 | BY135: =IF(BY$13=0,0,LOOKUP(BY$13,'Inputs - Partnership'!$E$64:$H$64,'Inputs - Partnership'!$E$65:$H$65)) -> 0.181 | BZ135: =IF(BZ$13=0,0,LOOKUP(BZ$13,'Inputs - Partnership'!$E$64:$H$64,'Inputs - Partnership'!$E$65:$H$65)) -> 0.181 | CA135: =IF(CA$13=0,0,LOOKUP(CA$13,'Inputs - Partnership'!$E$64:$H$64,'Inputs - Partnership'!$E$65:$H$65)) -> 0.181 | CB135: =IF(CB$13=0,0,LOOKUP(CB$13,'Inputs - Partnership'!$E$64:$H$64,'Inputs - Partnership'!$E$65:$H$65)) -> 0.181 | CC135: =IF(CC$13=0,0,LOOKUP(CC$13,'Inputs - Partnership'!$E$64:$H$64,'Inputs - Partnership'!$E$65:$H$65)) -> 0.181 | CD135: =IF(CD$13=0,0,LOOKUP(CD$13,'Inputs - Partnership'!$E$64:$H$64,'Inputs - Partnership'!$E$65:$H$65)) -> 0.181 | CE135: =IF(CE$13=0,0,LOOKUP(CE$13,'Inputs - Partnership'!$E$64:$H$64,'Inputs - Partnership'!$E$65:$H$65)) -> 0.181 | CF135: =IF(CF$13=0,0,LOOKUP(CF$13,'Inputs - Partnership'!$E$64:$H$64,'Inputs - Partnership'!$E$65:$H$65)) -> 0.181 | CG135: =IF(CG$13=0,0,LOOKUP(CG$13,'Inputs - Partnership'!$E$64:$H$64,'Inputs - Partnership'!$E$65:$H$65)) -> 0.181 | CH135: =IF(CH$13=0,0,LOOKUP(CH$13,'Inputs - Partnership'!$E$64:$H$64,'Inputs - Partnership'!$E$65:$H$65)) -> 0.181 | CI135: =IF(CI$13=0,0,LOOKUP(CI$13,'Inputs - Partnership'!$E$64:$H$64,'Inputs - Partnership'!$E$65:$H$65)) -> 0.181 | CJ135: =IF(CJ$13=0,0,LOOKUP(CJ$13,'Inputs - Partnership'!$E$64:$H$64,'Inputs - Partnership'!$E$65:$H$65)) -> 0.181 | CK135: =IF(CK$13=0,0,LOOKUP(CK$13,'Inputs - Partnership'!$E$64:$H$64,'Inputs - Partnership'!$E$65:$H$65)) -> 0.181 | CL135: =IF(CL$13=0,0,LOOKUP(CL$13,'Inputs - Partnership'!$E$64:$H$64,'Inputs - Partnership'!$E$65:$H$65)) -> 0.181 | CM135: =IF(CM$13=0,0,LOOKUP(CM$13,'Inputs - Partnership'!$E$64:$H$64,'Inputs - Partnership'!$E$65:$H$65)) -> 0.181 | CN135: =IF(CN$13=0,0,LOOKUP(CN$13,'Inputs - Partnership'!$E$64:$H$64,'Inputs - Partnership'!$E$65:$H$65)) -> 0.181 | CO135: =IF(CO$13=0,0,LOOKUP(CO$13,'Inputs - Partnership'!$E$64:$H$64,'Inputs - Partnership'!$E$65:$H$65)) -> 0.181 | CP135: =IF(CP$13=0,0,LOOKUP(CP$13,'Inputs - Partnership'!$E$64:$H$64,'Inputs - Partnership'!$E$65:$H$65)) -> 0.181 | CQ135: =IF(CQ$13=0,0,LOOKUP(CQ$13,'Inputs - Partnership'!$E$64:$H$64,'Inputs - Partnership'!$E$65:$H$65)) -> 0.181 | CR135: =IF(CR$13=0,0,LOOKUP(CR$13,'Inputs - Partnership'!$E$64:$H$64,'Inputs - Partnership'!$E$65:$H$65)) -> 0.181 | CS135: =IF(CS$13=0,0,LOOKUP(CS$13,'Inputs - Partnership'!$E$64:$H$64,'Inputs - Partnership'!$E$65:$H$65)) -> 0.181 | CT135: =IF(CT$13=0,0,LOOKUP(CT$13,'Inputs - Partnership'!$E$64:$H$64,'Inputs - Partnership'!$E$65:$H$65)) -> 0.181 | CU135: =IF(CU$13=0,0,LOOKUP(CU$13,'Inputs - Partnership'!$E$64:$H$64,'Inputs - Partnership'!$E$65:$H$65)) -> 0.181 | CV135: =IF(CV$13=0,0,LOOKUP(CV$13,'Inputs - Partnership'!$E$64:$H$64,'Inputs - Partnership'!$E$65:$H$65)) -> 0.181 | CW135: =IF(CW$13=0,0,LOOKUP(CW$13,'Inputs - Partnership'!$E$64:$H$64,'Inputs - Partnership'!$E$65:$H$65)) -> 0.181 | CX135: =IF(CX$13=0,0,LOOKUP(CX$13,'Inputs - Partnership'!$E$64:$H$64,'Inputs - Partnership'!$E$65:$H$65)) -> 0.181 | CY135: =IF(CY$13=0,0,LOOKUP(CY$13,'Inputs - Partnership'!$E$64:$H$64,'Inputs - Partnership'!$E$65:$H$65)) -> 0.181 | CZ135: =IF(CZ$13=0,0,LOOKUP(CZ$13,'Inputs - Partnership'!$E$64:$H$64,'Inputs - Partnership'!$E$65:$H$65)) -> 0.181 | DA135: =IF(DA$13=0,0,LOOKUP(DA$13,'Inputs - Partnership'!$E$64:$H$64,'Inputs - Partnership'!$E$65:$H$65)) -> 0.181 | DB135: =IF(DB$13=0,0,LOOKUP(DB$13,'Inputs - Partnership'!$E$64:$H$64,'Inputs - Partnership'!$E$65:$H$65)) -> 0.181 | DC135: =IF(DC$13=0,0,LOOKUP(DC$13,'Inputs - Partnership'!$E$64:$H$64,'Inputs - Partnership'!$E$65:$H$65)) -> 0.181 | DD135: =IF(DD$13=0,0,LOOKUP(DD$13,'Inputs - Partnership'!$E$64:$H$64,'Inputs - Partnership'!$E$65:$H$65)) -> 0.181 | DE135: =IF(DE$13=0,0,LOOKUP(DE$13,'Inputs - Partnership'!$E$64:$H$64,'Inputs - Partnership'!$E$65:$H$65)) -> 0.181 | DF135: =IF(DF$13=0,0,LOOKUP(DF$13,'Inputs - Partnership'!$E$64:$H$64,'Inputs - Partnership'!$E$65:$H$65)) -> 0.181 | DG135: =IF(DG$13=0,0,LOOKUP(DG$13,'Inputs - Partnership'!$E$64:$H$64,'Inputs - Partnership'!$E$65:$H$65)) -> 0.181 | DH135: =IF(DH$13=0,0,LOOKUP(DH$13,'Inputs - Partnership'!$E$64:$H$64,'Inputs - Partnership'!$E$65:$H$65)) -> 0.181 | DI135: =IF(DI$13=0,0,LOOKUP(DI$13,'Inputs - Partnership'!$E$64:$H$64,'Inputs - Partnership'!$E$65:$H$65)) -> 0.181 | DJ135: =IF(DJ$13=0,0,LOOKUP(DJ$13,'Inputs - Partnership'!$E$64:$H$64,'Inputs - Partnership'!$E$65:$H$65)) -> 0.181 | DK135: =IF(DK$13=0,0,LOOKUP(DK$13,'Inputs - Partnership'!$E$64:$H$64,'Inputs - Partnership'!$E$65:$H$65)) -> 0.181 | DL135: =IF(DL$13=0,0,LOOKUP(DL$13,'Inputs - Partnership'!$E$64:$H$64,'Inputs - Partnership'!$E$65:$H$65)) -> 0.181 | DM135: =IF(DM$13=0,0,LOOKUP(DM$13,'Inputs - Partnership'!$E$64:$H$64,'Inputs - Partnership'!$E$65:$H$65)) -> 0.181 | DN135: =IF(DN$13=0,0,LOOKUP(DN$13,'Inputs - Partnership'!$E$64:$H$64,'Inputs - Partnership'!$E$65:$H$65)) -> 0.181 | DO135: =IF(DO$13=0,0,LOOKUP(DO$13,'Inputs - Partnership'!$E$64:$H$64,'Inputs - Partnership'!$E$65:$H$65)) -> 0.181 | DP135: =IF(DP$13=0,0,LOOKUP(DP$13,'Inputs - Partnership'!$E$64:$H$64,'Inputs - Partnership'!$E$65:$H$65)) -> 0.181 | DQ135: =IF(DQ$13=0,0,LOOKUP(DQ$13,'Inputs - Partnership'!$E$64:$H$64,'Inputs - Partnership'!$E$65:$H$65)) -> 0.181 | DR135: =IF(DR$13=0,0,LOOKUP(DR$13,'Inputs - Partnership'!$E$64:$H$64,'Inputs - Partnership'!$E$65:$H$65)) -> 0.181 | DS135: =IF(DS$13=0,0,LOOKUP(DS$13,'Inputs - Partnership'!$E$64:$H$64,'Inputs - Partnership'!$E$65:$H$65)) -> 0.181 | DT135: =IF(DT$13=0,0,LOOKUP(DT$13,'Inputs - Partnership'!$E$64:$H$64,'Inputs - Partnership'!$E$65:$H$65)) -> 0.181 | DU135: =IF(DU$13=0,0,LOOKUP(DU$13,'Inputs - Partnership'!$E$64:$H$64,'Inputs - Partnership'!$E$65:$H$65)) -> 0.181 | DV135: =IF(DV$13=0,0,LOOKUP(DV$13,'Inputs - Partnership'!$E$64:$H$64,'Inputs - Partnership'!$E$65:$H$65)) -> 0.181 | DW135: =IF(DW$13=0,0,LOOKUP(DW$13,'Inputs - Partnership'!$E$64:$H$64,'Inputs - Partnership'!$E$65:$H$65)) -> 0.181 | DX135: =IF(DX$13=0,0,LOOKUP(DX$13,'Inputs - Partnership'!$E$64:$H$64,'Inputs - Partnership'!$E$65:$H$65)) -> 0.181 | DY135: =IF(DY$13=0,0,LOOKUP(DY$13,'Inputs - Partnership'!$E$64:$H$64,'Inputs - Partnership'!$E$65:$H$65)) -> 0.181 | DZ135: =IF(DZ$13=0,0,LOOKUP(DZ$13,'Inputs - Partnership'!$E$64:$H$64,'Inputs - Partnership'!$E$65:$H$65)) -> 0.181 | EA135: =IF(EA$13=0,0,LOOKUP(EA$13,'Inputs - Partnership'!$E$64:$H$64,'Inputs - Partnership'!$E$65:$H$65)) -> 0.181 | EB135: =IF(EB$13=0,0,LOOKUP(EB$13,'Inputs - Partnership'!$E$64:$H$64,'Inputs - Partnership'!$E$65:$H$65)) -> 0.181 | EC135: =IF(EC$13=0,0,LOOKUP(EC$13,'Inputs - Partnership'!$E$64:$H$64,'Inputs - Partnership'!$E$65:$H$65)) -> 0.181 | ED135: =IF(ED$13=0,0,LOOKUP(ED$13,'Inputs - Partnership'!$E$64:$H$64,'Inputs - Partnership'!$E$65:$H$65)) -> 0.181 | EE135: =IF(EE$13=0,0,LOOKUP(EE$13,'Inputs - Partnership'!$E$64:$H$64,'Inputs - Partnership'!$E$65:$H$65)) -> 0.181 | EF135: =IF(EF$13=0,0,LOOKUP(EF$13,'Inputs - Partnership'!$E$64:$H$64,'Inputs - Partnership'!$E$65:$H$65)) -> 0.181 | EG135: =IF(EG$13=0,0,LOOKUP(EG$13,'Inputs - Partnership'!$E$64:$H$64,'Inputs - Partnership'!$E$65:$H$65)) -> 0.181 | EH135: =IF(EH$13=0,0,LOOKUP(EH$13,'Inputs - Partnership'!$E$64:$H$64,'Inputs - Partnership'!$E$65:$H$65)) -> 0.181 | EI135: =IF(EI$13=0,0,LOOKUP(EI$13,'Inputs - Partnership'!$E$64:$H$64,'Inputs - Partnership'!$E$65:$H$65)) -> 0.181 | EJ135: =IF(EJ$13=0,0,LOOKUP(EJ$13,'Inputs - Partnership'!$E$64:$H$64,'Inputs - Partnership'!$E$65:$H$65)) -> 0.181 | EK135: =IF(EK$13=0,0,LOOKUP(EK$13,'Inputs - Partnership'!$E$64:$H$64,'Inputs - Partnership'!$E$65:$H$65)) -> 0.181 | EL135: =IF(EL$13=0,0,LOOKUP(EL$13,'Inputs - Partnership'!$E$64:$H$64,'Inputs - Partnership'!$E$65:$H$65)) -> 0.181 | EM135: =IF(EM$13=0,0,LOOKUP(EM$13,'Inputs - Partnership'!$E$64:$H$64,'Inputs - Partnership'!$E$65:$H$65)) -> 0.181 | EN135: =IF(EN$13=0,0,LOOKUP(EN$13,'Inputs - Partnership'!$E$64:$H$64,'Inputs - Partnership'!$E$65:$H$65)) -> 0.181 | EO135: =IF(EO$13=0,0,LOOKUP(EO$13,'Inputs - Partnership'!$E$64:$H$64,'Inputs - Partnership'!$E$65:$H$65)) -> 0.181 | EP135: =IF(EP$13=0,0,LOOKUP(EP$13,'Inputs - Partnership'!$E$64:$H$64,'Inputs - Partnership'!$E$65:$H$65)) -> 0.181 | EQ135: =IF(EQ$13=0,0,LOOKUP(EQ$13,'Inputs - Partnership'!$E$64:$H$64,'Inputs - Partnership'!$E$65:$H$65)) -> 0.181 | ER135: =IF(ER$13=0,0,LOOKUP(ER$13,'Inputs - Partnership'!$E$64:$H$64,'Inputs - Partnership'!$E$65:$H$65)) -> 0.181 | ES135: =IF(ES$13=0,0,LOOKUP(ES$13,'Inputs - Partnership'!$E$64:$H$64,'Inputs - Partnership'!$E$65:$H$65)) -> 0.181 | ET135: =IF(ET$13=0,0,LOOKUP(ET$13,'Inputs - Partnership'!$E$64:$H$64,'Inputs - Partnership'!$E$65:$H$65)) -> 0.181 | EU135: =IF(EU$13=0,0,LOOKUP(EU$13,'Inputs - Partnership'!$E$64:$H$64,'Inputs - Partnership'!$E$65:$H$65)) -> 0.181 | EV135: =IF(EV$13=0,0,LOOKUP(EV$13,'Inputs - Partnership'!$E$64:$H$64,'Inputs - Partnership'!$E$65:$H$65)) -> 0.181 | EW135: =IF(EW$13=0,0,LOOKUP(EW$13,'Inputs - Partnership'!$E$64:$H$64,'Inputs - Partnership'!$E$65:$H$65)) -> 0.181 | EX135: =IF(EX$13=0,0,LOOKUP(EX$13,'Inputs - Partnership'!$E$64:$H$64,'Inputs - Partnership'!$E$65:$H$65)) -> 0.181 | EY135: =IF(EY$13=0,0,LOOKUP(EY$13,'Inputs - Partnership'!$E$64:$H$64,'Inputs - Partnership'!$E$65:$H$65)) -> 0.181 | EZ135: =IF(EZ$13=0,0,LOOKUP(EZ$13,'Inputs - Partnership'!$E$64:$H$64,'Inputs - Partnership'!$E$65:$H$65)) -> 0.181 | FA135: =IF(FA$13=0,0,LOOKUP(FA$13,'Inputs - Partnership'!$E$64:$H$64,'Inputs - Partnership'!$E$65:$H$65)) -> 0 | FB135: =IF(FB$13=0,0,LOOKUP(FB$13,'Inputs - Partnership'!$E$64:$H$64,'Inputs - Partnership'!$E$65:$H$65)) -> 0 | FC135: =IF(FC$13=0,0,LOOKUP(FC$13,'Inputs - Partnership'!$E$64:$H$64,'Inputs - Partnership'!$E$65:$H$65)) -> 0 | FD135: =IF(FD$13=0,0,LOOKUP(FD$13,'Inputs - Partnership'!$E$64:$H$64,'Inputs - Partnership'!$E$65:$H$65)) -> 0 | FE135: =IF(FE$13=0,0,LOOKUP(FE$13,'Inputs - Partnership'!$E$64:$H$64,'Inputs - Partnership'!$E$65:$H$65)) -> 0 | FF135: =IF(FF$13=0,0,LOOKUP(FF$13,'Inputs - Partnership'!$E$64:$H$64,'Inputs - Partnership'!$E$65:$H$65)) -> 0 | FG135: =IF(FG$13=0,0,LOOKUP(FG$13,'Inputs - Partnership'!$E$64:$H$64,'Inputs - Partnership'!$E$65:$H$65)) -> 0 | FH135: =IF(FH$13=0,0,LOOKUP(FH$13,'Inputs - Partnership'!$E$64:$H$64,'Inputs - Partnership'!$E$65:$H$65)) -> 0 | FI135: =IF(FI$13=0,0,LOOKUP(FI$13,'Inputs - Partnership'!$E$64:$H$64,'Inputs - Partnership'!$E$65:$H$65)) -> 0 | FJ135: =IF(FJ$13=0,0,LOOKUP(FJ$13,'Inputs - Partnership'!$E$64:$H$64,'Inputs - Partnership'!$E$65:$H$65)) -> 0 | FK135: =IF(FK$13=0,0,LOOKUP(FK$13,'Inputs - Partnership'!$E$64:$H$64,'Inputs - Partnership'!$E$65:$H$65)) -> 0 | FL135: =IF(FL$13=0,0,LOOKUP(FL$13,'Inputs - Partnership'!$E$64:$H$64,'Inputs - Partnership'!$E$65:$H$65)) -> 0 | FM135: =IF(FM$13=0,0,LOOKUP(FM$13,'Inputs - Partnership'!$E$64:$H$64,'Inputs - Partnership'!$E$65:$H$65)) -> 0 | FN135: =IF(FN$13=0,0,LOOKUP(FN$13,'Inputs - Partnership'!$E$64:$H$64,'Inputs - Partnership'!$E$65:$H$65)) -> 0 | FO135: =IF(FO$13=0,0,LOOKUP(FO$13,'Inputs - Partnership'!$E$64:$H$64,'Inputs - Partnership'!$E$65:$H$65)) -> 0 | FP135: =IF(FP$13=0,0,LOOKUP(FP$13,'Inputs - Partnership'!$E$64:$H$64,'Inputs - Partnership'!$E$65:$H$65)) -> 0 | FQ135: =IF(FQ$13=0,0,LOOKUP(FQ$13,'Inputs - Partnership'!$E$64:$H$64,'Inputs - Partnership'!$E$65:$H$65)) -> 0 | FR135: =IF(FR$13=0,0,LOOKUP(FR$13,'Inputs - Partnership'!$E$64:$H$64,'Inputs - Partnership'!$E$65:$H$65)) -> 0 | FS135: =IF(FS$13=0,0,LOOKUP(FS$13,'Inputs - Partnership'!$E$64:$H$64,'Inputs - Partnership'!$E$65:$H$65)) -> 0
C136: Grid availability | D136: % | E136: ='Inputs - Partnership'!E61 -> 1 | I136: =$E136*I$6 -> 0 | J136: =$E136*J$6 -> 0 | K136: 0 | L136: 0 | M136: 0 | N136: 0 | O136: 0 | P136: 0 | Q136: 1 | R136: 1 | S136: 1 | T136: 1 | U136: 1 | V136: 1 | W136: 1 | X136: 1 | Y136: 1 | Z136: 1 | AA136: 1 | AB136: 1 | AC136: 1 | AD136: 1 | AE136: 1 | AF136: 1 | AG136: 1 | AH136: 1 | AI136: 1 | AJ136: 1 | AK136: 1 | AL136: 1 | AM136: 1 | AN136: 1 | AO136: 1 | AP136: 1 | AQ136: 1 | AR136: 1 | AS136: 1 | AT136: 1 | AU136: 1 | AV136: 1 | AW136: 1 | AX136: 1 | AY136: 1 | AZ136: 1 | BA136: 1 | BB136: 1 | BC136: 1 | BD136: 1 | BE136: 1 | BF136: 1 | BG136: 1 | BH136: 1 | BI136: 1 | BJ136: 1 | BK136: 1 | BL136: 1 | BM136: 1 | BN136: 1 | BO136: 1 | BP136: 1 | BQ136: 1 | BR136: 1 | BS136: 1 | BT136: 1 | BU136: 1 | BV136: =$E136*BV$6 -> 1 | BW136: 1 | BX136: 1 | BY136: 1 | BZ136: 1 | CA136: 1 | CB136: 1 | CC136: 1 | CD136: 1 | CE136: 1 | CF136: 1 | CG136: 1 | CH136: 1 | CI136: 1 | CJ136: 1 | CK136: 1 | CL136: 1 | CM136: 1 | CN136: 1 | CO136: 1 | CP136: 1 | CQ136: 1 | CR136: 1 | CS136: 1 | CT136: 1 | CU136: 1 | CV136: 1 | CW136: 1 | CX136: 1 | CY136: 1 | CZ136: 1 | DA136: 1 | DB136: 1 | DC136: 1 | DD136: 1 | DE136: 1 | DF136: 1 | DG136: 1 | DH136: 1 | DI136: 1 | DJ136: 1 | DK136: 1 | DL136: 1 | DM136: 1 | DN136: 1 | DO136: 1 | DP136: 1 | DQ136: 1 | DR136: 1 | DS136: 1 | DT136: 1 | DU136: 1 | DV136: 1 | DW136: 1 | DX136: 1 | DY136: 1 | DZ136: 1 | EA136: 1 | EB136: 1 | EC136: 1 | ED136: 1 | EE136: 1 | EF136: 1 | EG136: 1 | EH136: =$E136*EH$6 -> 1 | EI136: 1 | EJ136: 1 | EK136: 1 | EL136: 1 | EM136: 1 | EN136: 1 | EO136: 1 | EP136: 1 | EQ136: 1 | ER136: 1 | ES136: 1 | ET136: 1 | EU136: 1 | EV136: 1 | EW136: 1 | EX136: 1 | EY136: 1 | EZ136: 1 | FA136: 0 | FB136: 0 | FC136: 0 | FD136: 0 | FE136: 0 | FF136: 0 | FG136: 0 | FH136: 0 | FI136: 0 | FJ136: 0 | FK136: 0 | FL136: 0 | FM136: 0 | FN136: 0 | FO136: 0 | FP136: 0 | FQ136: 0 | FR136: 0 | FS136: 0
C137: P99 Production ratio | D137: kWh/kW | E137: ='Inputs - Partnership'!I57 -> 2426.52 | I137: =$E137*I$6 -> 0 | J137: 0 | K137: 0 | L137: 0 | M137: 0 | N137: 0 | O137: 0 | P137: 0 | Q137: 2426.52 | R137: 2426.52 | S137: 2426.52 | T137: 2426.52 | U137: 2426.52 | V137: 2426.52 | W137: 2426.52 | X137: 2426.52 | Y137: 2426.52 | Z137: 2426.52 | AA137: 2426.52 | AB137: 2426.52 | AC137: 2426.52 | AD137: 2426.52 | AE137: 2426.52 | AF137: 2426.52 | AG137: 2426.52 | AH137: 2426.52 | AI137: 2426.52 | AJ137: 2426.52 | AK137: 2426.52 | AL137: 2426.52 | AM137: 2426.52 | AN137: 2426.52 | AO137: 2426.52 | AP137: 2426.52 | AQ137: 2426.52 | AR137: 2426.52 | AS137: 2426.52 | AT137: 2426.52 | AU137: 2426.52 | AV137: 2426.52 | AW137: 2426.52 | AX137: 2426.52 | AY137: 2426.52 | AZ137: 2426.52 | BA137: 2426.52 | BB137: 2426.52 | BC137: 2426.52 | BD137: 2426.52 | BE137: 2426.52 | BF137: 2426.52 | BG137: 2426.52 | BH137: 2426.52 | BI137: 2426.52 | BJ137: 2426.52 | BK137: 2426.52 | BL137: 2426.52 | BM137: 2426.52 | BN137: 2426.52 | BO137: 2426.52 | BP137: 2426.52 | BQ137: 2426.52 | BR137: 2426.52 | BS137: 2426.52 | BT137: 2426.52 | BU137: 2426.52 | BV137: 2426.52 | BW137: 2426.52 | BX137: 2426.52 | BY137: 2426.52 | BZ137: 2426.52 | CA137: 2426.52 | CB137: 2426.52 | CC137: 2426.52 | CD137: 2426.52 | CE137: 2426.52 | CF137: 2426.52 | CG137: 2426.52 | CH137: 2426.52 | CI137: 2426.52 | CJ137: 2426.52 | CK137: 2426.52 | CL137: 2426.52 | CM137: 2426.52 | CN137: 2426.52 | CO137: 2426.52 | CP137: 2426.52 | CQ137: 2426.52 | CR137: 2426.52 | CS137: 2426.52 | CT137: 2426.52 | CU137: 2426.52 | CV137: 2426.52 | CW137: 2426.52 | CX137: 2426.52 | CY137: 2426.52 | CZ137: 2426.52 | DA137: 2426.52 | DB137: 2426.52 | DC137: 2426.52 | DD137: 2426.52 | DE137: 2426.52 | DF137: 2426.52 | DG137: 2426.52 | DH137: 2426.52 | DI137: 2426.52 | DJ137: 2426.52 | DK137: 2426.52 | DL137: 2426.52 | DM137: 2426.52 | DN137: 2426.52 | DO137: 2426.52 | DP137: 2426.52 | DQ137: 2426.52 | DR137: 2426.52 | DS137: 2426.52 | DT137: 2426.52 | DU137: 2426.52 | DV137: 2426.52 | DW137: 2426.52 | DX137: 2426.52 | DY137: 2426.52 | DZ137: 2426.52 | EA137: 2426.52 | EB137: 2426.52 | EC137: 2426.52 | ED137: 2426.52 | EE137: 2426.52 | EF137: 2426.52 | EG137: 2426.52 | EH137: 2426.52 | EI137: 2426.52 | EJ137: 2426.52 | EK137: 2426.52 | EL137: 2426.52 | EM137: 2426.52 | EN137: 2426.52 | EO137: 2426.52 | EP137: 2426.52 | EQ137: 2426.52 | ER137: 2426.52 | ES137: 2426.52 | ET137: 2426.52 | EU137: 2426.52 | EV137: 2426.52 | EW137: 2426.52 | EX137: 2426.52 | EY137: 2426.52 | EZ137: 2426.52 | FA137: 0 | FB137: 0 | FC137: 0 | FD137: 0 | FE137: 0 | FF137: 0 | FG137: 0 | FH137: 0 | FI137: 0 | FJ137: 0 | FK137: 0 | FL137: 0 | FM137: 0 | FN137: 0 | FO137: 0 | FP137: 0 | FQ137: 0 | FR137: 0 | FS137: 0
C138: Total generation - P99 | D138: MWh | H138: =SUM(I138:XFD138) -> 12670551.97 | I138: =I134*I135*I136*I137 -> 0 | J138: =J134*J135*J136*J137 -> 0 | K138: 0 | L138: 0 | M138: 0 | N138: 0 | O138: 0 | P138: 0 | Q138: 109193.4 | R138: 177439.275 | S138: 160514.298 | T138: 98820.027 | U138: 98230.64314 | V138: 98230.64314 | W138: 98230.64314 | X138: 98230.64314 | Y138: 97644.77449 | Z138: 97644.77449 | AA138: 97644.77449 | AB138: 97644.77449 | AC138: 97062.40009 | AD138: 97062.40009 | AE138: 97062.40009 | AF138: 97062.40009 | AG138: 96483.4991 | AH138: 96483.4991 | AI138: 96483.4991 | AJ138: 96483.4991 | AK138: 95908.05079 | AL138: 95908.05079 | AM138: 95908.05079 | AN138: 95908.05079 | AO138: 95336.03459 | AP138: 95336.03459 | AQ138: 95336.03459 | AR138: 95336.03459 | AS138: 94767.43001 | AT138: 94767.43001 | AU138: 94767.43001 | AV138: 94767.43001 | AW138: 94202.21671 | AX138: 94202.21671 | AY138: 94202.21671 | AZ138: 94202.21671 | BA138: 93640.37446 | BB138: 93640.37446 | BC138: 93640.37446 | BD138: 93640.37446 | BE138: 93081.88316 | BF138: 93081.88316 | BG138: 93081.88316 | BH138: 93081.88316 | BI138: 92526.72282 | BJ138: 92526.72282 | BK138: 92526.72282 | BL138: 92526.72282 | BM138: 91974.87358 | BN138: 91974.87358 | BO138: 91974.87358 | BP138: 91974.87358 | BQ138: 91426.31569 | BR138: 91426.31569 | BS138: 91426.31569 | BT138: 91426.31569 | BU138: 90881.02951 | BV138: =BV134*BV135*BV136*BV137 -> 90881.02951 | BW138: 90881.02951 | BX138: 90881.02951 | BY138: 90338.99554 | BZ138: 90338.99554 | CA138: 90338.99554 | CB138: 90338.99554 | CC138: 89800.19437 | CD138: 89800.19437 | CE138: 89800.19437 | CF138: 89800.19437 | CG138: 89264.60673 | CH138: 89264.60673 | CI138: 89264.60673 | CJ138: 89264.60673 | CK138: 88732.21345 | CL138: 88732.21345 | CM138: 88732.21345 | CN138: 88732.21345 | CO138: 88202.99548 | CP138: 88202.99548 | CQ138: 88202.99548 | CR138: 88202.99548 | CS138: 87676.93387 | CT138: 87676.93387 | CU138: 87676.93387 | CV138: 87676.93387 | CW138: 87154.00982 | CX138: 87154.00982 | CY138: 87154.00982 | CZ138: 87154.00982 | DA138: 86634.20459 | DB138: 86634.20459 | DC138: 86634.20459 | DD138: 86634.20459 | DE138: 86117.49959 | DF138: 86117.49959 | DG138: 86117.49959 | DH138: 86117.49959 | DI138: 85603.87633 | DJ138: 85603.87633 | DK138: 85603.87633 | DL138: 85603.87633 | DM138: 85093.31643 | DN138: 85093.31643 | DO138: 85093.31643 | DP138: 85093.31643 | DQ138: 84585.80162 | DR138: 84585.80162 | DS138: 84585.80162 | DT138: 84585.80162 | DU138: 84081.31374 | DV138: 84081.31374 | DW138: 84081.31374 | DX138: 84081.31374 | DY138: 83579.83473 | DZ138: 83579.83473 | EA138: 83579.83473 | EB138: 83579.83473 | EC138: 83081.34665 | ED138: 83081.34665 | EE138: 83081.34665 | EF138: 83081.34665 | EG138: 82585.83166 | EH138: =EH134*EH135*EH136*EH137 -> 82585.83166 | EI138: 82585.83166 | EJ138: 82585.83166 | EK138: 82093.27203 | EL138: 82093.27203 | EM138: 82093.27203 | EN138: 82093.27203 | EO138: 81603.65013 | EP138: 81603.65013 | EQ138: 81603.65013 | ER138: 81603.65013 | ES138: 81116.94844 | ET138: 81116.94844 | EU138: 81116.94844 | EV138: 81116.94844 | EW138: 80633.14954 | EX138: 80633.14954 | EY138: 80633.14954 | EZ138: 80633.14954 | FA138: 0 | FB138: 0 | FC138: 0 | FD138: 0 | FE138: 0 | FF138: 0 | FG138: 0 | FH138: 0 | FI138: 0 | FJ138: 0 | FK138: 0 | FL138: 0 | FM138: 0 | FN138: 0 | FO138: 0 | FP138: 0 | FQ138: 0 | FR138: 0 | FS138: 0
C140: P99 versus P50 | H140: =H138/H36 -> 
B142: Revenue at P99
C143: PPA 1
